Workbook

Sheet Introduction
A3: . . . . . . . . . . . . . . . . . . . . . . . . . . . . . . . . . . . . . . . . . . . . . . . . .
A5: Guidelines For Estimating
A6: ="Crop Production Costs - "&I11 -> Crop Production Costs - 2024
H11: Date: January, | I11: 2024
B17: The following budgets are estimates of the cost of producing the most commonly grown field crops in Manitoba. General Manitoba Agriculture recommendations are assumed in using fertilizers and chemical inputs. These figures provide an economic evaluation of the crops and estimated yields required to cover all costs. Costs include labour, investment and depreciation, but do not include management costs, nor do they necessarily represent the average cost of production in Manitoba.
B25: These budgets may be adjusted by putting in your own figures. As a producer you are encouraged to calculate your own costs of production for various crops. On each farm, costs and yields differ due to soil type, climate and agronomic practices.
B30: This tool is available as an Excel worksheet at:
B37: is also available to help
B38: determine machinery costs.
B40: The | G40: is also available for producers to
B41: estimate the cash cost of producing field crops on their farm on an annual basis. CropPlan calculates marginal returns, breakeven yields, breakeven crop prices on total production and remaining unsold inventory, land and machinery cost analysis and cash based financial ratios.
B53: Note: This budget is only a guide and is not intended as an in depth study of the cost of production of this industry. Interpretation and use of this information is the responsibility of the user. If you need help with a budget, contact a Farm Management Specialist.

Sheet Summary
A1: =IF('Data (HIDE)'!B13="Manitoba","Crop Production Costs "&Introduction!I11&" Guidelines (Dollars Per Acre)","Crop Production Costs "&Introduction!I11&" Guidelines "&'Data (HIDE)'!B13&" (Dollars Per Acre)") -> Crop Production Costs 2024 Guidelines (Dollars Per Acre) | K1: =IF('Data (HIDE)'!L13="Manitoba","Crop Production Costs "&Introduction!S11&" Guidelines (Dollars Per Acre)","Crop Production Costs "&Introduction!S11&" Guidelines "&'Data (HIDE)'!L13&" (Dollars Per Acre)") -> Crop Production Costs Guidelines (Dollars Per Acre)
C2: ='Data (HIDE)'!$B$16 -> Wheat - Hard Red Spring | D2: ='Data (HIDE)'!$B$17 -> Wheat - Northern Hard Red | E2: ='Data (HIDE)'!$B$18 -> Wheat - Prairie Spring | F2: ='Data (HIDE)'!$B$19 -> Wheat - Winter | G2: ='Data (HIDE)'!$B$20 -> Oats | H2: ='Data (HIDE)'!$B$21 -> Barley | I2: ='Data (HIDE)'!$B$22 -> Hybrid Fall Rye | J2: ='Data (HIDE)'!$B$23 -> Corn | M2: ='Data (HIDE)'!$B$24 -> Canola | N2: ='Data (HIDE)'!$B$25 -> Soybeans | O2: ='Data (HIDE)'!$B$26 -> Sunflower - Oilseed | P2: ='Data (HIDE)'!$B$27 -> Flaxseed | Q2: ='Data (HIDE)'!$B$28 -> Peas | R2: ='Data (HIDE)'!$B$29 -> Beans - Pinto | S2: ='Data (HIDE)'!$B$30 -> Beans - White | T2: ='Data (HIDE)'!$B$31 -> Beans - Black
A3: A. Operating Costs | K3: A. Operating Costs
B4: Seed & Treatment | C4: ='Data (HIDE)'!$L$16 -> 36 | D4: ='Data (HIDE)'!$L$17 -> 36 | E4: ='Data (HIDE)'!$L$18 -> 36 | F4: ='Data (HIDE)'!$L$19 -> 34 | G4: ='Data (HIDE)'!$L$20 -> 25 | H4: ='Data (HIDE)'!$L$21 -> 24 | I4: ='Data (HIDE)'!$L$22 -> 82.4 | J4: ='Data (HIDE)'!$L$23 -> 102 | L4: Seed & Treatment | M4: ='Data (HIDE)'!$L$24 -> 80 | N4: ='Data (HIDE)'!$L$25 -> 90 | O4: ='Data (HIDE)'!$L$26 -> 50 | P4: ='Data (HIDE)'!$L$27 -> 64 | Q4: ='Data (HIDE)'!$L$28 -> 88 | R4: ='Data (HIDE)'!$L$29 -> 116 | S4: ='Data (HIDE)'!$L$30 -> 112 | T4: ='Data (HIDE)'!$L$31 -> 118
B5: Fertilizer | C5: ='Data (HIDE)'!$M$16 -> 124.4367504 | D5: ='Data (HIDE)'!$M$17 -> 136.2854995 | E5: ='Data (HIDE)'!$M$18 -> 128.3863334 | F5: ='Data (HIDE)'!$M$19 -> 124.4367504 | G5: ='Data (HIDE)'!$M$20 -> 91.20748273 | H5: ='Data (HIDE)'!$M$21 -> 93.08290595 | I5: ='Data (HIDE)'!$M$22 -> 152.0838317 | J5: ='Data (HIDE)'!$M$23 -> 176.9996939 | L5: Fertilizer | M5: ='Data (HIDE)'!$M$24 -> 142.0968231 | N5: ='Data (HIDE)'!$M$25 -> 42.23395371 | O5: ='Data (HIDE)'!$M$26 -> 116.1356063 | P5: ='Data (HIDE)'!$M$27 -> 62.4648688 | Q5: ='Data (HIDE)'!$M$28 -> 28.13173853 | R5: ='Data (HIDE)'!$M$29 -> 78.26320101 | S5: ='Data (HIDE)'!$M$30 -> 86.16236711 | T5: ='Data (HIDE)'!$M$31 -> 86.16236711
B6: Crop Protection | C6: ='Data (HIDE)'!$N$16+'Data (HIDE)'!$O$16+'Data (HIDE)'!$P$16 -> 61.81 | D6: ='Data (HIDE)'!$N$17+'Data (HIDE)'!$O$17+'Data (HIDE)'!$P$17 -> 61.81 | E6: ='Data (HIDE)'!$N$18+'Data (HIDE)'!$O$18+'Data (HIDE)'!$P$18 -> 61.81 | F6: ='Data (HIDE)'!$N$19+'Data (HIDE)'!$O$19+'Data (HIDE)'!$P$19 -> 41.54 | G6: ='Data (HIDE)'!$N$20+'Data (HIDE)'!$O$20+'Data (HIDE)'!$P$20 -> 23.13 | H6: ='Data (HIDE)'!$N$21+'Data (HIDE)'!$O$21+'Data (HIDE)'!$P$21 -> 50.13 | I6: ='Data (HIDE)'!$N$22+'Data (HIDE)'!$O$22+'Data (HIDE)'!$P$22 -> 8.38 | J6: ='Data (HIDE)'!$N$23+'Data (HIDE)'!$O$23+'Data (HIDE)'!$P$23 -> 32 | L6: Crop Protection | M6: ='Data (HIDE)'!$N$24+'Data (HIDE)'!$O$24+'Data (HIDE)'!$P$24 -> 66.76 | N6: ='Data (HIDE)'!$N$25+'Data (HIDE)'!$O$25+'Data (HIDE)'!$P$25 -> 23.58 | O6: ='Data (HIDE)'!$N$26+'Data (HIDE)'!$O$26+'Data (HIDE)'!$P$26 -> 47.52 | P6: ='Data (HIDE)'!$N$27+'Data (HIDE)'!$O$27+'Data (HIDE)'!$P$27 -> 32.26 | Q6: ='Data (HIDE)'!$N$28+'Data (HIDE)'!$O$28+'Data (HIDE)'!$P$28 -> 46 | R6: ='Data (HIDE)'!$N$29+'Data (HIDE)'!$O$29+'Data (HIDE)'!$P$29 -> 129.78 | S6: ='Data (HIDE)'!$N$30+'Data (HIDE)'!$O$30+'Data (HIDE)'!$P$30 -> 129.78 | T6: ='Data (HIDE)'!$N$31+'Data (HIDE)'!$O$31+'Data (HIDE)'!$P$31 -> 129.78
B7: if delete it will affect crop rotation and fuel calcs | L7: if delete it will affect crop rotation and fuel calcs
B8: if delete it will affect crop rotation and fuel calcs | L8: if delete it will affect crop rotation and fuel calcs
B9: Fuel | C9: ='Data (HIDE)'!$Q$16 -> 38.14336253 | D9: ='Data (HIDE)'!$Q$17 -> 38.82669811 | E9: ='Data (HIDE)'!$Q$18 -> 38.28002964 | F9: ='Data (HIDE)'!$Q$19 -> 38.14336253 | G9: ='Data (HIDE)'!$Q$20 -> 44.97671832 | H9: ='Data (HIDE)'!$Q$21 -> 41.74003503 | I9: ='Data (HIDE)'!$Q$22 -> 38.79336926 | J9: ='Data (HIDE)'!$Q$23 -> 46.59006063 | L9: Fuel | M9: ='Data (HIDE)'!$Q$24 -> 37.93002021 | N9: ='Data (HIDE)'!$Q$25 -> 33.0533504 | O9: ='Data (HIDE)'!$Q$26 -> 39.07336926 | P9: ='Data (HIDE)'!$Q$27 -> 36.31667789 | Q9: ='Data (HIDE)'!$Q$28 -> 33.15335579 | R9: ='Data (HIDE)'!$Q$29 -> 32.607792 | S9: ='Data (HIDE)'!$Q$30 -> 32.15223495 | T9: ='Data (HIDE)'!$Q$31 -> 32.15223495
B10: Machinery Operating & Lease | C10: ='Data (HIDE)'!$R$16+'Data (HIDE)'!$S$16+'Data (HIDE)'!$T$16 -> 25 | D10: ='Data (HIDE)'!$R$17+'Data (HIDE)'!$S$17+'Data (HIDE)'!$T$17 -> 25 | E10: ='Data (HIDE)'!$R$18+'Data (HIDE)'!$S$18+'Data (HIDE)'!$T$18 -> 25 | F10: ='Data (HIDE)'!$R$19+'Data (HIDE)'!$S$19+'Data (HIDE)'!$T$19 -> 25 | G10: ='Data (HIDE)'!$R$20+'Data (HIDE)'!$S$20+'Data (HIDE)'!$T$20 -> 25 | H10: ='Data (HIDE)'!$R$21+'Data (HIDE)'!$S$21+'Data (HIDE)'!$T$21 -> 25 | I10: ='Data (HIDE)'!$R$22+'Data (HIDE)'!$S$22+'Data (HIDE)'!$T$22 -> 25 | J10: ='Data (HIDE)'!$R$23+'Data (HIDE)'!$S$23+'Data (HIDE)'!$T$23 -> 25 | L10: Machinery Operating & Lease | M10: ='Data (HIDE)'!$R$24+'Data (HIDE)'!$S$24+'Data (HIDE)'!$T$24 -> 25 | N10: ='Data (HIDE)'!$R$25+'Data (HIDE)'!$S$25+'Data (HIDE)'!$T$25 -> 25 | O10: ='Data (HIDE)'!$R$26+'Data (HIDE)'!$S$26+'Data (HIDE)'!$T$26 -> 38 | P10: ='Data (HIDE)'!$R$27+'Data (HIDE)'!$S$27+'Data (HIDE)'!$T$27 -> 25 | Q10: ='Data (HIDE)'!$R$28+'Data (HIDE)'!$S$28+'Data (HIDE)'!$T$28 -> 25 | R10: ='Data (HIDE)'!$R$29+'Data (HIDE)'!$S$29+'Data (HIDE)'!$T$29 -> 50 | S10: ='Data (HIDE)'!$R$30+'Data (HIDE)'!$S$30+'Data (HIDE)'!$T$30 -> 50 | T10: ='Data (HIDE)'!$R$31+'Data (HIDE)'!$S$31+'Data (HIDE)'!$T$31 -> 50
B11: if delete it will affect crop rotation and fuel calcs | L11: if delete it will affect crop rotation and fuel calcs
B12: if delete it will affect crop rotation and fuel calcs | L12: if delete it will affect crop rotation and fuel calcs
B13: Labour - Hired | C13: ='Data (HIDE)'!$U$16 -> 5.4 | D13: ='Data (HIDE)'!$U$17 -> 5.4 | E13: ='Data (HIDE)'!$U$18 -> 5.4 | F13: ='Data (HIDE)'!$U$19 -> 5.4 | G13: ='Data (HIDE)'!$U$20 -> 5.4 | H13: ='Data (HIDE)'!$U$21 -> 5.4 | I13: ='Data (HIDE)'!$U$22 -> 5.4 | J13: ='Data (HIDE)'!$U$23 -> 5.4 | L13: Labour - Hired | M13: ='Data (HIDE)'!$U$24 -> 5.4 | N13: ='Data (HIDE)'!$U$25 -> 5.4 | O13: ='Data (HIDE)'!$U$26 -> 5.4 | P13: ='Data (HIDE)'!$U$27 -> 5.4 | Q13: ='Data (HIDE)'!$U$28 -> 5.4 | R13: ='Data (HIDE)'!$U$29 -> 5.4 | S13: ='Data (HIDE)'!$U$30 -> 5.4 | T13: ='Data (HIDE)'!$U$31 -> 5.4
B14: Crop Insurance | C14: ='Data (HIDE)'!$V$16 -> 13.5175 | D14: ='Data (HIDE)'!$V$17 -> 16.4075 | E14: ='Data (HIDE)'!$V$18 -> 12.445 | F14: ='Data (HIDE)'!$V$19 -> 13.9775 | G14: ='Data (HIDE)'!$V$20 -> 21.015 | H14: ='Data (HIDE)'!$V$21 -> 18.955 | I14: ='Data (HIDE)'!$V$22 -> 18.4975 | J14: ='Data (HIDE)'!$V$23 -> 50.695 | L14: Crop Insurance | M14: ='Data (HIDE)'!$V$24 -> 17.495 | N14: ='Data (HIDE)'!$V$25 -> 25.945 | O14: ='Data (HIDE)'!$V$26 -> 27.3475 | P14: ='Data (HIDE)'!$V$27 -> 21.695 | Q14: ='Data (HIDE)'!$V$28 -> 19.6575 | R14: ='Data (HIDE)'!$V$29 -> 39.0075 | S14: ='Data (HIDE)'!$V$30 -> 40.815 | T14: ='Data (HIDE)'!$V$31 -> 46.855
B15: Hail Insurance | C15: ='Data (HIDE)'!$W$16 -> 11.8 | D15: ='Data (HIDE)'!$W$17 -> 11.8 | E15: ='Data (HIDE)'!$W$18 -> 11.8 | F15: ='Data (HIDE)'!$W$19 -> 11.8 | G15: ='Data (HIDE)'!$W$20 -> 11.8 | H15: ='Data (HIDE)'!$W$21 -> 11.8 | I15: ='Data (HIDE)'!$W$22 -> 11.8 | J15: ='Data (HIDE)'!$W$23 -> 11.8 | L15: Hail Insurance | M15: ='Data (HIDE)'!$W$24 -> 11.8 | N15: ='Data (HIDE)'!$W$25 -> 15.34 | O15: ='Data (HIDE)'!$W$26 -> 11.8 | P15: ='Data (HIDE)'!$W$27 -> 11.8 | Q15: ='Data (HIDE)'!$W$28 -> 23.6 | R15: ='Data (HIDE)'!$W$29 -> 20.65 | S15: ='Data (HIDE)'!$W$30 -> 20.65 | T15: ='Data (HIDE)'!$W$31 -> 20.65
B16: Drying & Other Costs | C16: ='Data (HIDE)'!$X$16+'Data (HIDE)'!$AA$16 -> 17.75 | D16: ='Data (HIDE)'!$X$17+'Data (HIDE)'!$AA$17 -> 17.75 | E16: ='Data (HIDE)'!$X$18+'Data (HIDE)'!$AA$18 -> 17.75 | F16: ='Data (HIDE)'!$X$19+'Data (HIDE)'!$AA$19 -> 17.75 | G16: ='Data (HIDE)'!$X$20+'Data (HIDE)'!$AA$20 -> 17.75 | H16: ='Data (HIDE)'!$X$21+'Data (HIDE)'!$AA$21 -> 17.75 | I16: ='Data (HIDE)'!$X$22+'Data (HIDE)'!$AA$22 -> 17.75 | J16: ='Data (HIDE)'!$X$23+'Data (HIDE)'!$AA$23 -> 87.75 | L16: Drying & Other Costs | M16: ='Data (HIDE)'!$X$24+'Data (HIDE)'!$AA$24 -> 17.75 | N16: ='Data (HIDE)'!$X$25+'Data (HIDE)'!$AA$25 -> 17.75 | O16: ='Data (HIDE)'!$X$26+'Data (HIDE)'!$AA$26 -> 27.75 | P16: ='Data (HIDE)'!$X$27+'Data (HIDE)'!$AA$27 -> 17.75 | Q16: ='Data (HIDE)'!$X$28+'Data (HIDE)'!$AA$28 -> 17.75 | R16: ='Data (HIDE)'!$X$29+'Data (HIDE)'!$AA$29 -> 17.75 | S16: ='Data (HIDE)'!$X$30+'Data (HIDE)'!$AA$30 -> 17.75 | T16: ='Data (HIDE)'!$X$31+'Data (HIDE)'!$AA$31 -> 17.75
B17: Land Taxes | C17: ='Data (HIDE)'!$Y$16 -> 20 | D17: ='Data (HIDE)'!$Y$17 -> 20 | E17: ='Data (HIDE)'!$Y$18 -> 20 | F17: ='Data (HIDE)'!$Y$19 -> 20 | G17: ='Data (HIDE)'!$Y$20 -> 20 | H17: ='Data (HIDE)'!$Y$21 -> 20 | I17: ='Data (HIDE)'!$Y$22 -> 20 | J17: ='Data (HIDE)'!$Y$23 -> 20 | L17: Land Taxes | M17: ='Data (HIDE)'!$Y$24 -> 20 | N17: ='Data (HIDE)'!$Y$25 -> 20 | O17: ='Data (HIDE)'!$Y$26 -> 20 | P17: ='Data (HIDE)'!$Y$27 -> 20 | Q17: ='Data (HIDE)'!$Y$28 -> 20 | R17: ='Data (HIDE)'!$Y$29 -> 20 | S17: ='Data (HIDE)'!$Y$30 -> 20 | T17: ='Data (HIDE)'!$Y$31 -> 20
B18: Storage Costs | C18: ='Data (HIDE)'!$Z$16 -> 17.87506265 | D18: ='Data (HIDE)'!$Z$17 -> 19.25006747 | E18: ='Data (HIDE)'!$Z$18 -> 18.15006361 | F18: ='Data (HIDE)'!$Z$19 -> 17.87506265 | G18: ='Data (HIDE)'!$Z$20 -> 31.62511084 | H18: ='Data (HIDE)'!$Z$21 -> 21.45007518 | I18: ='Data (HIDE)'!$Z$22 -> 22.00007711 | J18: ='Data (HIDE)'!$Z$23 -> 37.12513012 | L18: Storage Costs | M18: ='Data (HIDE)'!$Z$24 -> 12.37504337 | N18: ='Data (HIDE)'!$Z$25 -> 10.45003663 | O18: ='Data (HIDE)'!$Z$26 -> 22.00007711 | P18: ='Data (HIDE)'!$Z$27 -> 6.875024096 | Q18: ='Data (HIDE)'!$Z$28 -> 13.75004819 | R18: ='Data (HIDE)'!$Z$29 -> 8.708363854 | S18: ='Data (HIDE)'!$Z$30 -> 7.791693975 | T18: ='Data (HIDE)'!$Z$31 -> 7.791693975
B19: if delete it will affect crop rotation and fuel calcs | L19: if delete it will affect crop rotation and fuel calcs
B20: Interest on Operating | C20: ='Data (HIDE)'!$AB$16 -> 16.73 | D20: ='Data (HIDE)'!$AB$17 -> 17.48 | E20: ='Data (HIDE)'!$AB$18 -> 16.88 | F20: ='Data (HIDE)'!$AB$19 -> 15.75 | G20: ='Data (HIDE)'!$AB$20 -> 14.26 | H20: ='Data (HIDE)'!$AB$21 -> 14.82 | I20: ='Data (HIDE)'!$AB$22 -> 18.09 | J20: ='Data (HIDE)'!$AB$23 -> 26.79 | L20: Interest on Operating | M20: ='Data (HIDE)'!$AB$24 -> 19.65 | N20: ='Data (HIDE)'!$AB$25 -> 13.89 | O20: ='Data (HIDE)'!$AB$26 -> 18.23 | P20: ='Data (HIDE)'!$AB$27 -> 13.66 | Q20: ='Data (HIDE)'!$AB$28 -> 14.42 | R20: ='Data (HIDE)'!$AB$29 -> 23.32 | S20: ='Data (HIDE)'!$AB$30 -> 23.51 | T20: ='Data (HIDE)'!$AB$31 -> 24.05
B21: Total Operating | C21: =SUM(C4:C20) -> 388.4626755 | D21: 406.0097651 | E21: 391.9014267 | F21: 365.6726755 | G21: 331.1643119 | H21: 344.1280162 | I21: 420.1947781 | J21: 622.1498846 | L21: Total Operating | M21: 456.2568866 | N21: 322.6423407 | O21: 423.2565527 | P21: 317.2215708 | Q21: 334.8626425 | R21: 541.4868569 | S21: 546.011296 | T21: 558.591296
A23: B. Fixed Costs | K23: B. Fixed Costs
B24: Land Costs | C24: ='Fixed Cost Input'!$D$14 -> 101.432032 | D24: ='Fixed Cost Input'!$D$14 -> 101.432032 | E24: ='Fixed Cost Input'!$D$14 -> 101.432032 | F24: ='Fixed Cost Input'!$D$14 -> 101.432032 | G24: ='Fixed Cost Input'!$D$14 -> 101.432032 | H24: ='Fixed Cost Input'!$D$14 -> 101.432032 | I24: ='Fixed Cost Input'!$D$14 -> 101.432032 | J24: ='Fixed Cost Input'!$D$14 -> 101.432032 | L24: Land Costs | M24: ='Fixed Cost Input'!$D$14 -> 101.432032 | N24: ='Fixed Cost Input'!$D$14 -> 101.432032 | O24: ='Fixed Cost Input'!$D$14 -> 101.432032 | P24: ='Fixed Cost Input'!$D$14 -> 101.432032 | Q24: ='Fixed Cost Input'!$D$14 -> 101.432032 | R24: ='Fixed Cost Input'!$D$14 -> 101.432032 | S24: ='Fixed Cost Input'!$D$14 -> 101.432032 | T24: ='Fixed Cost Input'!$D$14 -> 101.432032
B25: Machinery Costs | C25: ='Data (HIDE)'!$AE$16 -> 89.1459975 | D25: ='Data (HIDE)'!$AE$17 -> 89.1459975 | E25: ='Data (HIDE)'!$AE$18 -> 89.1459975 | F25: ='Data (HIDE)'!$AE$19 -> 89.1459975 | G25: ='Data (HIDE)'!$AE$20 -> 89.1459975 | H25: ='Data (HIDE)'!$AE$21 -> 89.1459975 | I25: ='Data (HIDE)'!$AE$22 -> 89.1459975 | J25: ='Data (HIDE)'!$AE$23 -> 109.0324123 | L25: Machinery Costs | M25: ='Data (HIDE)'!$AE$24 -> 89.1459975 | N25: ='Data (HIDE)'!$AE25 -> 89.1459975 | O25: ='Data (HIDE)'!$AE$26 -> 109.0324123 | P25: ='Data (HIDE)'!$AE$27 -> 89.1459975 | Q25: ='Data (HIDE)'!$AE$28 -> 89.1459975 | R25: ='Data (HIDE)'!$AE$29 -> 109.0324123 | S25: ='Data (HIDE)'!$AE$30 -> 109.0324123 | T25: ='Data (HIDE)'!$AE$31 -> 109.0324123
B26: Total Fixed | C26: =SUM(C24:C25) -> 190.5780295 | D26: 190.5780295 | E26: 190.5780295 | F26: 190.5780295 | G26: 190.5780295 | H26: 190.5780295 | I26: 190.5780295 | J26: 210.4644443 | L26: Total Fixed | M26: 190.5780295 | N26: 190.5780295 | O26: 210.4644443 | P26: 190.5780295 | Q26: 190.5780295 | R26: 210.4644443 | S26: 210.4644443 | T26: 210.4644443
A28: C. Owners - Labour & Living | C28: ='Data (HIDE)'!$AH$16 -> 27 | D28: ='Data (HIDE)'!$AH$17 -> 27 | E28: ='Data (HIDE)'!$AH$18 -> 27 | F28: ='Data (HIDE)'!$AH$19 -> 27 | G28: ='Data (HIDE)'!$AH$20 -> 27 | H28: ='Data (HIDE)'!$AH$21 -> 27 | I28: ='Data (HIDE)'!$AH$22 -> 27 | J28: ='Data (HIDE)'!$AH$23 -> 27 | K28: C. Owners - Labour & Living | M28: ='Data (HIDE)'!$AH$24 -> 27 | N28: ='Data (HIDE)'!$AH28 -> 27 | O28: ='Data (HIDE)'!$AH$26 -> 27 | P28: ='Data (HIDE)'!$AH$27 -> 27 | Q28: ='Data (HIDE)'!$AH$28 -> 27 | R28: ='Data (HIDE)'!$AH$29 -> 27 | S28: ='Data (HIDE)'!$AH$30 -> 27 | T28: ='Data (HIDE)'!$AH$31 -> 27
A30: Total Costs | C30: =C26+C28+C21 -> 606.040705 | D30: =D26+D28+D21 -> 623.5877946 | E30: 609.4794561 | F30: 583.250705 | G30: 548.7423414 | H30: 561.7060456 | I30: 637.7728076 | J30: 859.6143289 | K30: Total Costs | M30: 673.8349161 | N30: 540.2203702 | O30: 660.720997 | P30: 534.7996003 | Q30: 552.440672 | R30: 778.9513012 | S30: 783.4757403 | T30: 796.0557403
A32: Profitability Analysis | K32: Profitability Analysis
A33: Estimated Farmgate | K33: Estimated Farmgate
B34: Target Price $ per unit | C34: ='Data (HIDE)'!$E$16 -> 9.25 | D34: ='Data (HIDE)'!$E$17 -> 8.75 | E34: ='Data (HIDE)'!$E$18 -> 8.75 | F34: ='Data (HIDE)'!$E$19 -> 8 | G34: ='Data (HIDE)'!$E$20 -> 5 | H34: ='Data (HIDE)'!$E$21 -> 6.25 | I34: ='Data (HIDE)'!$E$22 -> 6.5 | J34: ='Data (HIDE)'!$E$23 -> 6.25 | L34: Target Price $ per unit | M34: ='Data (HIDE)'!$E$24 -> 15.75 | N34: ='Data (HIDE)'!$E$25 -> 15.25 | O34: ='Data (HIDE)'!$E$26 -> 0.25 | P34: ='Data (HIDE)'!$E$27 -> 16 | Q34: ='Data (HIDE)'!$E$28 -> 9.5 | R34: ='Data (HIDE)'!$E$29 -> 0.5 | S34: ='Data (HIDE)'!$E$30 -> 0.5 | T34: ='Data (HIDE)'!$E$31 -> 0.5 | Z34: ='Data (HIDE)'!$E$16 -> 9.25 | AA34: ='Data (HIDE)'!$E$17 -> 8.75 | AB34: ='Data (HIDE)'!$E$18 -> 8.75 | AC34: ='Data (HIDE)'!$E$19 -> 8 | AD34: ='Data (HIDE)'!$E$20 -> 5 | AE34: ='Data (HIDE)'!$E$21 -> 6.25 | AF34: ='Data (HIDE)'!$E$22 -> 6.5 | AG34: ='Data (HIDE)'!$E$23 -> 6.25 | AI34: ='Data (HIDE)'!$E$24 -> 15.75 | AJ34: ='Data (HIDE)'!$E$25 -> 15.25 | AK34: ='Data (HIDE)'!$E$26 -> 0.25 | AL34: ='Data (HIDE)'!$E$27 -> 16 | AM34: ='Data (HIDE)'!$E$28 -> 9.5 | AN34: ='Data (HIDE)'!$E$29 -> 0.5 | AO34: ='Data (HIDE)'!$E$30 -> 0.5 | AP34: ='Data (HIDE)'!$E$31 -> 0.5
B35: Premium $ per unit | C35: 0 | D35: 0 | E35: 0 | F35: 0 | G35: 0 | H35: 0 | I35: 0 | J35: 0 | L35: Premium $ per unit | M35: 0 | N35: 0 | O35: 0 | P35: 0 | Q35: 0 | R35: 0 | S35: 0 | T35: 0 | Z35: 0 | AA35: 0 | AB35: 0 | AC35: 0 | AD35: 0 | AE35: 0 | AF35: 0 | AG35: 0 | AI35: 0 | AJ35: 0 | AK35: 0 | AL35: 0 | AM35: 0 | AN35: 0 | AO35: 0 | AP35: 0
B36: Target Yield per acre | C36: ='Data (HIDE)'!$C$16 -> 65 | D36: ='Data (HIDE)'!$C$17 -> 70 | E36: ='Data (HIDE)'!$C$18 -> 66 | F36: ='Data (HIDE)'!$C$19 -> 65 | G36: ='Data (HIDE)'!$C$20 -> 115 | H36: ='Data (HIDE)'!$C$21 -> 78 | I36: ='Data (HIDE)'!$C$22 -> 80 | J36: ='Data (HIDE)'!$C$23 -> 135 | L36: Target Yield per acre | M36: ='Data (HIDE)'!$C$24 -> 45 | N36: ='Data (HIDE)'!$C$25 -> 38 | O36: ='Data (HIDE)'!$C$26 -> 2000 | P36: ='Data (HIDE)'!$C$27 -> 25 | Q36: ='Data (HIDE)'!$C$28 -> 50 | R36: ='Data (HIDE)'!$C$29 -> 1900 | S36: ='Data (HIDE)'!$C$30 -> 1700 | T36: ='Data (HIDE)'!$C$31 -> 1700 | Z36: ='Data (HIDE)'!$C$16 -> 65 | AA36: ='Data (HIDE)'!$C$17 -> 70 | AB36: ='Data (HIDE)'!$C$18 -> 66 | AC36: ='Data (HIDE)'!$C$19 -> 65 | AD36: ='Data (HIDE)'!$C$20 -> 115 | AE36: ='Data (HIDE)'!$C$21 -> 78 | AF36: ='Data (HIDE)'!$C$22 -> 80 | AG36: ='Data (HIDE)'!$C$23 -> 135 | AI36: ='Data (HIDE)'!$C$24 -> 45 | AJ36: ='Data (HIDE)'!$C$25 -> 38 | AK36: ='Data (HIDE)'!$C$26 -> 2000 | AL36: ='Data (HIDE)'!$C$27 -> 25 | AM36: ='Data (HIDE)'!$C$28 -> 50 | AN36: ='Data (HIDE)'!$C$29 -> 1900 | AO36: ='Data (HIDE)'!$C$30 -> 1700 | AP36: ='Data (HIDE)'!$C$31 -> 1700
B37: Unit type (bu. or lb.) | C37: ='Data (HIDE)'!$D$16 -> bu | D37: ='Data (HIDE)'!$D$17 -> bu | E37: ='Data (HIDE)'!$D$18 -> bu | F37: ='Data (HIDE)'!$D$19 -> bu | G37: ='Data (HIDE)'!$D$20 -> bu | H37: ='Data (HIDE)'!$D$21 -> bu | I37: ='Data (HIDE)'!$D$22 -> bu | J37: ='Data (HIDE)'!$D$23 -> bu | L37: Unit type (bu. or lb.) | M37: ='Data (HIDE)'!$D$24 -> bu | N37: ='Data (HIDE)'!$D$25 -> bu | O37: ='Data (HIDE)'!$D$26 -> lb | P37: ='Data (HIDE)'!$D$27 -> bu | Q37: ='Data (HIDE)'!$D$28 -> bu | R37: ='Data (HIDE)'!$D$29 -> lb | S37: ='Data (HIDE)'!$D$30 -> lb | T37: ='Data (HIDE)'!$D$31 -> lb
B38: Gross Revenue / acre | C38: =ROUND(((C34+C35)*C36),2) -> 601.25 | D38: 612.5 | E38: 577.5 | F38: 520 | G38: 575 | H38: 487.5 | I38: 520 | J38: 843.75 | L38: Gross Revenue / acre | M38: 708.75 | N38: 579.5 | O38: 500 | P38: 400 | Q38: 475 | R38: 950 | S38: 850 | T38: 850
B39: Revenue Ranking | C39: =RANK(C38,C38:T38) -> 7 | D39: =RANK(D38,C38:T38) -> 6 | E39: =RANK(E38,C38:T38) -> 9 | F39: =RANK(F38,C38:T38) -> 11 | G39: =RANK(G38,C38:T38) -> 10 | H39: =RANK(H38,C38:T38) -> 14 | I39: =RANK(I38,C38:T38) -> 11 | J39: =RANK(J38,C38:T38) -> 4 | L39: Revenue Ranking | M39: =RANK(M38,C38:T38) -> 5 | N39: =RANK(N38,C38:T38) -> 8 | O39: =RANK(O38,C38:T38) -> 13 | P39: =RANK(P38,C38:T38) -> 16 | Q39: =RANK(Q38,C38:T38) -> 15 | R39: =RANK(R38,C38:T38) -> 1 | S39: =RANK(S38,C38:T38) -> 2 | T39: =RANK(T38,C38:T38) -> 2
B41: Operating Expense Ratio | C41: =SUM(C21/C38) -> 0.646091768 | D41: 0.6628730858 | E41: 0.678617189 | F41: 0.7032166837 | G41: 0.5759379337 | H41: 0.7059036229 | I41: 0.8080668809 | J41: 0.7373628262 | L41: Operating Expense Ratio | M41: 0.6437486937 | N41: 0.5567598632 | O41: 0.8465131054 | P41: 0.793053927 | Q41: 0.7049739842 | R41: 0.5699861651 | S41: 0.6423662306 | T41: 0.6571662306
B42: Land Expense Ratio | C42: =SUM(C24/C38) -> 0.1687019243 | D42: 0.1656033175 | E42: 0.1756398822 | F42: 0.1950615999 | G42: 0.1764035339 | H42: 0.2080657066 | I42: 0.1950615999 | J42: 0.1202157416 | L42: Land Expense Ratio | M42: 0.1431139781 | N42: 0.1750337049 | O42: 0.2028640639 | P42: 0.2535800799 | Q42: 0.2135411199 | R42: 0.10677056 | S42: 0.1193318023 | T42: 0.1193318023
B43: Machinery Expense Ratio | C43: =SUM(C25/C38) -> 0.1482677713 | D43: 0.1455444857 | E43: 0.1543653636 | F43: 0.1714346106 | G43: 0.1550365174 | H43: 0.1828635846 | I43: 0.1714346106 | J43: 0.1292235998 | L43: Machinery Expense Ratio | M43: 0.1257791852 | N43: 0.15383261 | O43: 0.2180648247 | P43: 0.2228649938 | Q43: 0.1876757842 | R43: 0.1147709603 | S43: 0.1282734263 | T43: 0.1282734263
A45: Marginal Returns | K45: Marginal Returns
B46: Over Operating Costs | C46: =SUM(C38-C21) -> 212.7873245 | D46: 206.4902349 | E46: 185.5985733 | F46: 154.3273245 | G46: 243.8356881 | H46: 143.3719838 | I46: 99.80522192 | J46: 221.6001154 | L46: Over Operating Costs | M46: 252.4931134 | N46: 256.8576593 | O46: 76.7434473 | P46: 82.77842921 | Q46: 140.1373575 | R46: 408.5131431 | S46: 303.988704 | T46: 291.408704
B47: Over Operating & Fixed | C47: =SUM(C38-C27) -> 601.25 | D47: 612.5 | E47: 577.5 | F47: 520 | G47: 575 | H47: 487.5 | I47: 520 | J47: 843.75 | L47: Over Operating & Fixed | M47: 708.75 | N47: 579.5 | O47: 500 | P47: 400 | Q47: 475 | R47: 950 | S47: 850 | T47: 850
B48: Over Total Costs (Net Profit) | C48: =SUM(C38-C30) -> -4.790705001 | D48: -11.08779455 | E48: -31.97945613 | F48: -63.250705 | G48: 26.25765864 | H48: -74.20604563 | I48: -117.7728076 | J48: -15.86432891 | L48: Over Total Costs (Net Profit) | M48: 34.91508388 | N48: 39.27962979 | O48: -160.720997 | P48: -134.7996003 | Q48: -77.44067198 | R48: 171.0486988 | S48: 66.52425967 | T48: 53.94425967
B49: Profitability Ranking | C49: =RANK(C48,C48:T48) -> 7 | D49: =RANK(D48,C48:T48) -> 8 | E49: =RANK(E48,C48:T48) -> 10 | F49: =RANK(F48,C48:T48) -> 11 | G49: =RANK(G48,C48:T48) -> 6 | H49: =RANK(H48,C48:T48) -> 12 | I49: =RANK(I48,C48:T48) -> 14 | J49: =RANK(J48,C48:T48) -> 9 | L49: Profitability Ranking | M49: =RANK(M48,C48:T48) -> 5 | N49: =RANK(N48,C48:T48) -> 4 | O49: =RANK(O48,C48:T48) -> 16 | P49: =RANK(P48,C48:T48) -> 15 | Q49: =RANK(Q48,C48:T48) -> 13 | R49: =RANK(R48,C48:T48) -> 1 | S49: =RANK(S48,C48:T48) -> 2 | T49: =RANK(T48,C48:T48) -> 3
A51: Return on Investment (ROI) | C51: =SUM((C38-C30)/C30) -> -0.007904922824 | D51: -0.01778064717 | E51: -0.05247011332 | F51: -0.1084451411 | G51: 0.04785061524 | H51: -0.1321083264 | I51: -0.1846626356 | J51: -0.01845517039 | K51: Return on Investment (ROI) | M51: 0.05181548632 | N51: 0.07271038257 | O51: -0.24325093 | P51: -0.2520562846 | Q51: -0.1401791648 | R51: 0.2195884372 | S51: 0.08490915065 | T51: 0.0677644252
A52: Return on Asset (ROA) | C52: ='Data (HIDE)'!$AY$16 -> 0.03099844782 | D52: ='Data (HIDE)'!$AY$17 -> 0.02972502223 | E52: ='Data (HIDE)'!$AY$18 -> 0.02550021706 | F52: ='Data (HIDE)'!$AY$19 -> 0.01917640535 | G52: ='Data (HIDE)'!$AY$20 -> 0.03727718668 | H52: ='Data (HIDE)'!$AY$21 -> 0.01696096741 | I52: ='Data (HIDE)'!$AY$22 -> 0.008150702106 | J52: ='Data (HIDE)'!$AY$23 -> 0.03278060978 | K52: Return on Asset (ROA) | M52: ='Data (HIDE)'!$AY$24 -> 0.0390279299 | N52: ='Data (HIDE)'!$AY$25 -> 0.03991054788 | O52: ='Data (HIDE)'!$AY$26 -> 0.003487046977 | P52: ='Data (HIDE)'!$AY$27 -> 0.00470746799 | Q52: ='Data (HIDE)'!$AY$28 -> 0.01630684681 | R52: ='Data (HIDE)'!$AY$29 -> 0.0705789976 | S52: ='Data (HIDE)'!$AY$30 -> 0.04944159838 | T52: ='Data (HIDE)'!$AY$31 -> 0.04689761455
A54: Breakeven Analysis | K54: Breakeven Analysis
A55: Breakeven Price Per Unit | K55: Breakeven Price Per Unit
B56: Over Operating Costs | C56: =SUM(Summary!C21/Summary!C36) -> 5.976348854 | D56: =SUM(Summary!D21/Summary!D36) -> 5.800139501 | E56: =SUM(Summary!E21/Summary!E36) -> 5.937900404 | F56: =SUM(Summary!F21/Summary!F36) -> 5.62573347 | G56: =SUM(Summary!G21/Summary!G36) -> 2.879689669 | H56: =SUM(Summary!H21/Summary!H36) -> 4.411897643 | I56: =SUM(Summary!I21/Summary!I36) -> 5.252434726 | J56: =SUM(Summary!J21/Summary!J36) -> 4.608517664 | L56: Over Operating Costs | M56: =SUM(Summary!M21/Summary!M36) -> 10.13904193 | N56: =SUM(Summary!N21/Summary!N36) -> 8.490587914 | O56: =SUM(Summary!O21/Summary!O36) -> 0.2116282763 | P56: =SUM(Summary!P21/Summary!P36) -> 12.68886283 | Q56: =SUM(Summary!Q21/Summary!Q36) -> 6.69725285 | R56: =SUM(Summary!R21/Summary!R36) -> 0.2849930826 | S56: =SUM(Summary!S21/Summary!S36) -> 0.3211831153 | T56: =SUM(Summary!T21/Summary!T36) -> 0.3285831153
B57: Over Land Costs | C57: =SUM(Summary!C24/Summary!C36) -> 1.5604928 | D57: =SUM(Summary!D24/Summary!D36) -> 1.449029028 | E57: =SUM(Summary!E24/Summary!E36) -> 1.536848969 | F57: =SUM(Summary!F24/Summary!F36) -> 1.5604928 | G57: =SUM(Summary!G24/Summary!G36) -> 0.8820176693 | H57: =SUM(Summary!H24/Summary!H36) -> 1.300410666 | I57: =SUM(Summary!I24/Summary!I36) -> 1.2679004 | J57: =SUM(Summary!J24/Summary!J36) -> 0.7513483849 | L57: Over Land Costs | M57: =SUM(Summary!M24/Summary!M36) -> 2.254045155 | N57: =SUM(Summary!N24/Summary!N36) -> 2.669263999 | O57: =SUM(Summary!O24/Summary!O36) -> 0.05071601598 | P57: =SUM(Summary!P24/Summary!P36) -> 4.057281279 | Q57: =SUM(Summary!Q24/Summary!Q36) -> 2.028640639 | R57: =SUM(Summary!R24/Summary!R36) -> 0.05338527998 | S57: =SUM(Summary!S24/Summary!S36) -> 0.05966590116 | T57: =SUM(Summary!T24/Summary!T36) -> 0.05966590116
B58: Over Machinery Costs | C58: =SUM(Summary!C25/Summary!C36) -> 1.371476885 | D58: =SUM(Summary!D25/Summary!D36) -> 1.27351425 | E58: =SUM(Summary!E25/Summary!E36) -> 1.350696932 | F58: =SUM(Summary!F25/Summary!F36) -> 1.371476885 | G58: =SUM(Summary!G25/Summary!G36) -> 0.775182587 | H58: =SUM(Summary!H25/Summary!H36) -> 1.142897404 | I58: =SUM(Summary!I25/Summary!I36) -> 1.114324969 | J58: =SUM(Summary!J25/Summary!J36) -> 0.8076474987 | L58: Over Machinery Costs | M58: =SUM(Summary!M25/Summary!M36) -> 1.981022167 | N58: =SUM(Summary!N25/Summary!N36) -> 2.345947303 | O58: =SUM(Summary!O25/Summary!O36) -> 0.05451620617 | P58: =SUM(Summary!P25/Summary!P36) -> 3.5658399 | Q58: =SUM(Summary!Q25/Summary!Q36) -> 1.78291995 | R58: =SUM(Summary!R25/Summary!R36) -> 0.05738548017 | S58: =SUM(Summary!S25/Summary!S36) -> 0.06413671314 | T58: =SUM(Summary!T25/Summary!T36) -> 0.06413671314
B59: Over Owners Labour & Lliving | C59: =SUM(Summary!C28/Summary!C36) -> 0.4153846154 | D59: =SUM(Summary!D28/Summary!D36) -> 0.3857142857 | E59: =SUM(Summary!E28/Summary!E36) -> 0.4090909091 | F59: =SUM(Summary!F28/Summary!F36) -> 0.4153846154 | G59: =SUM(Summary!G28/Summary!G36) -> 0.2347826087 | H59: =SUM(Summary!H28/Summary!H36) -> 0.3461538462 | I59: =SUM(Summary!I28/Summary!I36) -> 0.3375 | J59: =SUM(Summary!J28/Summary!J36) -> 0.2 | L59: Over Owners Labour & Lliving | M59: =SUM(Summary!M28/Summary!M36) -> 0.6 | N59: =SUM(Summary!N28/Summary!N36) -> 0.7105263158 | O59: =SUM(Summary!O28/Summary!O36) -> 0.0135 | P59: =SUM(Summary!P28/Summary!P36) -> 1.08 | Q59: =SUM(Summary!Q28/Summary!Q36) -> 0.54 | R59: =SUM(Summary!R28/Summary!R36) -> 0.01421052632 | S59: =SUM(Summary!S28/Summary!S36) -> 0.01588235294 | T59: =SUM(Summary!T28/Summary!T36) -> 0.01588235294
B60: Over Total Costs | C60: =SUM(C56:C59) -> 9.323703154 | D60: =SUM(D56:D59) -> 8.908397065 | E60: 9.234537214 | F60: 8.973087769 | G60: 4.771672534 | H60: 7.201359559 | I60: 7.972160094 | J60: 6.367513548 | L60: Over Total Costs | M60: 14.97410925 | N60: 14.21632553 | O60: 0.3303604985 | P60: 21.39198401 | Q60: 11.04881344 | R60: 0.409974369 | S60: 0.4608680825 | T60: 0.4682680825
A61: Breakeven Yield (Bu or lb.) | K61: Breakeven Yield (Bu or lb.)
B62: Over Operating Costs | C62: =ROUND(Summary!C21/Summary!C34,1) -> 42 | D62: =ROUND(Summary!D21/Summary!D34,1) -> 46.4 | E62: =ROUND(Summary!E21/Summary!E34,1) -> 44.8 | F62: =ROUND(Summary!F21/Summary!F34,1) -> 45.7 | G62: =ROUND(Summary!G21/Summary!G34,1) -> 66.2 | H62: =ROUND(Summary!H21/Summary!H34,1) -> 55.1 | I62: =ROUND(Summary!I21/Summary!I34,1) -> 64.6 | J62: =ROUND(Summary!J21/Summary!J34,0) -> 100 | L62: Over Operating Costs | M62: =ROUND(Summary!M21/Summary!M34,1) -> 29 | N62: =ROUND(Summary!N21/Summary!N34,0) -> 21 | O62: =ROUND(Summary!O21/Summary!O34,0) -> 1693 | P62: =ROUND(Summary!P21/Summary!P34,1) -> 19.8 | Q62: =ROUND(Summary!Q21/Summary!Q34,1) -> 35.2 | R62: =ROUND(Summary!R21/Summary!R34,0) -> 1083 | S62: =ROUND(Summary!S21/Summary!S34,0) -> 1092 | T62: =ROUND(Summary!T21/Summary!T34,1) -> 1117.2
B63: Over Land Costs | C63: =ROUND(Summary!C24/Summary!C34,1) -> 11 | D63: =ROUND(Summary!D24/Summary!D34,1) -> 11.6 | E63: =ROUND(Summary!E24/Summary!E34,1) -> 11.6 | F63: =ROUND(Summary!F24/Summary!F34,1) -> 12.7 | G63: =ROUND(Summary!G24/Summary!G34,1) -> 20.3 | H63: =ROUND(Summary!H24/Summary!H34,1) -> 16.2 | I63: =ROUND(Summary!I24/Summary!I34,1) -> 15.6 | J63: =ROUND(Summary!J24/Summary!J34,1) -> 16.2 | L63: Over Land Costs | M63: =ROUND(Summary!M24/Summary!M34,1) -> 6.4 | N63: =ROUND(Summary!N24/Summary!N34,1) -> 6.7 | O63: =ROUND(Summary!O24/Summary!O34,1) -> 405.7 | P63: =ROUND(Summary!P24/Summary!P34,1) -> 6.3 | Q63: =ROUND(Summary!Q24/Summary!Q34,1) -> 10.7 | R63: =ROUND(Summary!R24/Summary!R34,1) -> 202.9 | S63: =ROUND(Summary!S24/Summary!S34,1) -> 202.9 | T63: =ROUND(Summary!T24/Summary!T34,1) -> 202.9
B64: Over Machinery Costs | C64: =ROUND(Summary!C25/Summary!C34,1) -> 9.6 | D64: =ROUND(Summary!D25/Summary!D34,1) -> 10.2 | E64: =ROUND(Summary!E25/Summary!E34,1) -> 10.2 | F64: =ROUND(Summary!F25/Summary!F34,1) -> 11.1 | G64: =ROUND(Summary!G25/Summary!G34,1) -> 17.8 | H64: =ROUND(Summary!H25/Summary!H34,1) -> 14.3 | I64: =ROUND(Summary!I25/Summary!I34,1) -> 13.7 | J64: =ROUND(Summary!J25/Summary!J34,1) -> 17.4 | L64: Over Machinery Costs | M64: =ROUND(Summary!M25/Summary!M34,1) -> 5.7 | N64: =ROUND(Summary!N25/Summary!N34,1) -> 5.8 | O64: =ROUND(Summary!O25/Summary!O34,1) -> 436.1 | P64: =ROUND(Summary!P25/Summary!P34,1) -> 5.6 | Q64: =ROUND(Summary!Q25/Summary!Q34,1) -> 9.4 | R64: =ROUND(Summary!R25/Summary!R34,1) -> 218.1 | S64: =ROUND(Summary!S25/Summary!S34,1) -> 218.1 | T64: =ROUND(Summary!T25/Summary!T34,1) -> 218.1
B65: Over Owners Labour & Lliving | C65: =ROUND(Summary!C28/Summary!C34,1) -> 2.9 | D65: =ROUND(Summary!D28/Summary!D34,1) -> 3.1 | E65: =ROUND(Summary!E28/Summary!E34,1) -> 3.1 | F65: =ROUND(Summary!F28/Summary!F34,1) -> 3.4 | G65: =ROUND(Summary!G28/Summary!G34,1) -> 5.4 | H65: =ROUND(Summary!H28/Summary!H34,1) -> 4.3 | I65: =ROUND(Summary!I28/Summary!I34,1) -> 4.2 | J65: =ROUND(Summary!J28/Summary!J34,1) -> 4.3 | L65: Over Owners Labour & Lliving | M65: =ROUND(Summary!M28/Summary!M34,1) -> 1.7 | N65: =ROUND(Summary!N28/Summary!N34,1) -> 1.8 | O65: =ROUND(Summary!O28/Summary!O34,1) -> 108 | P65: =ROUND(Summary!P28/Summary!P34,1) -> 1.7 | Q65: =ROUND(Summary!Q28/Summary!Q34,1) -> 2.8 | R65: =ROUND(Summary!R28/Summary!R34,1) -> 54 | S65: =ROUND(Summary!S28/Summary!S34,1) -> 54 | T65: =ROUND(Summary!T28/Summary!T34,1) -> 54
B66: Over Total Costs | C66: =SUM(C62:C65) -> 65.5 | D66: =SUM(D62:D65) -> 71.3 | E66: 69.7 | F66: 72.9 | G66: 109.7 | H66: 89.9 | I66: 98.1 | J66: 137.9 | L66: Over Total Costs | M66: 42.8 | N66: 35.3 | O66: 2642.8 | P66: 33.4 | Q66: 58.1 | R66: 1558 | S66: 1567 | T66: 1592.2
A67: Breakeven Yield Risk Ratio | C67: =SUM(Summary!C36/C66) -> 0.9923664122 | D67: =SUM(Summary!D36/D66) -> 0.9817671809 | E67: =SUM(Summary!E36/E66) -> 0.9469153515 | F67: =SUM(Summary!F36/F66) -> 0.8916323731 | G67: =SUM(Summary!G36/G66) -> 1.048313582 | H67: =SUM(Summary!H36/H66) -> 0.8676307008 | I67: =SUM(Summary!I36/I66) -> 0.8154943935 | J67: =SUM(Summary!J36/J66) -> 0.9789702683 | K67: Breakeven Yield Risk Ratio | M67: =SUM(Summary!M36/M66) -> 1.051401869 | N67: =SUM(Summary!N36/N66) -> 1.076487252 | O67: =SUM(Summary!O36/O66) -> 0.7567731194 | P67: =SUM(Summary!P36/P66) -> 0.748502994 | Q67: =SUM(Summary!Q36/Q66) -> 0.8605851979 | R67: =SUM(Summary!R36/R66) -> 1.219512195 | S67: =SUM(Summary!S36/S66) -> 1.084875558 | T67: =SUM(Summary!T36/T66) -> 1.067705062
B68: (Target Yield per Acre / BE Yield) | L68: (Target Yield per Acre / BE Yield)
B70: Note: This budget is only a guide and is not intended as an in depth study of the cost of production of this industry. Interpretation and utilization of this information is the responsibility of the user. | L70: Note: This budget is only a guide and is not intended as an in depth study of the cost of production of this industry. Interpretation and utilization of this information is the responsibility of the user.

Sheet S.O.S.
A1: ="Crop Production Standardized Operating Statement "&Introduction!I11&" (Dollars Per Acre)" -> Crop Production Standardized Operating Statement 2024 (Dollars Per Acre) | M1: ="Crop Production Standardized Operating Statement "&Introduction!I11&" (Dollars Per Acre)" -> Crop Production Standardized Operating Statement 2024 (Dollars Per Acre) | AB1: HIDE
C2: ="Estimated Manitoba "&Introduction!I11&" Benchmark" -> Estimated Manitoba 2024 Benchmark | E2: ='Data (HIDE)'!$B$16 -> Wheat - Hard Red Spring | F2: ='Data (HIDE)'!$B$17 -> Wheat - Northern Hard Red | G2: ='Data (HIDE)'!$B$18 -> Wheat - Prairie Spring | H2: ='Data (HIDE)'!$B$19 -> Wheat - Winter | I2: ='Data (HIDE)'!$B$20 -> Oats | J2: ='Data (HIDE)'!$B$21 -> Barley | K2: ='Data (HIDE)'!$B$22 -> Hybrid Fall Rye | L2: ='Data (HIDE)'!$B$23 -> Corn | O2: ="Estimated Manitoba "&Introduction!U11&" Benchmark" -> Estimated Manitoba Benchmark | Q2: ='Data (HIDE)'!$B$24 -> Canola | R2: ='Data (HIDE)'!$B$25 -> Soybeans | S2: ='Data (HIDE)'!$B$26 -> Sunflower - Oilseed | T2: ='Data (HIDE)'!$B$27 -> Flaxseed | U2: ='Data (HIDE)'!$B$28 -> Peas | V2: ='Data (HIDE)'!$B$29 -> Beans - Pinto | W2: ='Data (HIDE)'!$B$30 -> Beans - White | X2: ='Data (HIDE)'!$B$31 -> Beans - Black | AB2: Estimated Manitoba Benchmark | AW2: 2021
A3: = | B3: Revenue | C3: 645 | D3: =SUM(C3/C3) -> 1 | E3: =Summary!C38 -> 601.25 | F3: =Summary!D38 -> 612.5 | G3: =Summary!E38 -> 577.5 | H3: =Summary!F38 -> 520 | I3: =Summary!G38 -> 575 | J3: =Summary!H38 -> 487.5 | K3: =Summary!I38 -> 520 | L3: =Summary!J38 -> 843.75 | M3: = | N3: Revenue | O3: =C3 -> 645 | P3: =D3 -> 1 | Q3: =Summary!M38 -> 708.75 | R3: =Summary!N38 -> 579.5 | S3: =Summary!O38 -> 500 | T3: =Summary!P38 -> 400 | U3: =Summary!Q38 -> 475 | V3: =Summary!R38 -> 950 | W3: =Summary!S38 -> 850 | X3: =Summary!T38 -> 850 | AB3: =SUM((E3*('Data (HIDE)'!$H$16/SUM('Data (HIDE)'!$H$16+'Data (HIDE)'!$H$24+'Data (HIDE)'!$H$25)))+(Q3*('Data (HIDE)'!$H$24/SUM('Data (HIDE)'!$H$16+'Data (HIDE)'!$H$24+'Data (HIDE)'!$H$25)))+(R3*('Data (HIDE)'!$H$25/SUM('Data (HIDE)'!$H$16+'Data (HIDE)'!$H$24+'Data (HIDE)'!$H$25)))) -> 646.3440091 | AC3: =SUM(AB3/AB3) -> 1 | AW3: 451.484787 | AX3: =SUM(AW3/AW3) -> 1
A5: =" -" -> - | B5: Cost of Goods Sold (CoGS) | M5: =" -" -> - | N5: Cost of Goods Sold (CoGS) | AB5: ***copy nnum to left | AW5: ***need to hard type the benchmark, from right ***
B6: Seed & Treatment | C6: 65 | D6: =SUM(C6/$C$3) -> 0.1007751938 | E6: ='Data (HIDE)'!$L$16 -> 36 | F6: ='Data (HIDE)'!$L$17 -> 36 | G6: ='Data (HIDE)'!$L$18 -> 36 | H6: ='Data (HIDE)'!$L$19 -> 34 | I6: ='Data (HIDE)'!$L$20 -> 25 | J6: ='Data (HIDE)'!$L$21 -> 24 | K6: ='Data (HIDE)'!$L$22 -> 82.4 | L6: ='Data (HIDE)'!$L$23 -> 102 | N6: Seed & Treatment | O6: =C6 -> 65 | P6: =D6 -> 0.1007751938 | Q6: ='Data (HIDE)'!$L$24 -> 80 | R6: ='Data (HIDE)'!$L$25 -> 90 | S6: ='Data (HIDE)'!$L$26 -> 50 | T6: ='Data (HIDE)'!$L$27 -> 64 | U6: ='Data (HIDE)'!$L$28 -> 88 | V6: ='Data (HIDE)'!$L$29 -> 116 | W6: ='Data (HIDE)'!$L$30 -> 112 | X6: ='Data (HIDE)'!$L$31 -> 118 | AB6: =SUM((E6*('Data (HIDE)'!$H$16/SUM('Data (HIDE)'!$H$16+'Data (HIDE)'!$H$24+'Data (HIDE)'!$H$25)))+(Q6*('Data (HIDE)'!$H$24/SUM('Data (HIDE)'!$H$16+'Data (HIDE)'!$H$24+'Data (HIDE)'!$H$25)))+(R6*('Data (HIDE)'!$H$25/SUM('Data (HIDE)'!$H$16+'Data (HIDE)'!$H$24+'Data (HIDE)'!$H$25)))) -> 65.26146612 | AC6: =SUM(AB6/$AB$3) -> 0.1009701725 | AE6: ***rebuild formulas for top 3 canola, HRS and soybeans instead of top 4 - canola, HRS, soybeans, oats??*** | AW6: 57.60012173 | AX6: =SUM(AW6/$AB$3) -> 0.08911681847
B7: Fertilizer | C7: 120 | D7: 0.1860465116 | E7: ='Data (HIDE)'!$M$16 -> 124.4367504 | F7: ='Data (HIDE)'!$M$17 -> 136.2854995 | G7: ='Data (HIDE)'!$M$18 -> 128.3863334 | H7: ='Data (HIDE)'!$M$19 -> 124.4367504 | I7: ='Data (HIDE)'!$M$20 -> 91.20748273 | J7: ='Data (HIDE)'!$M$21 -> 93.08290595 | K7: ='Data (HIDE)'!$M$22 -> 152.0838317 | L7: ='Data (HIDE)'!$M$23 -> 176.9996939 | N7: Fertilizer | O7: =C7 -> 120 | P7: =D7 -> 0.1860465116 | Q7: ='Data (HIDE)'!$M$24 -> 142.0968231 | R7: ='Data (HIDE)'!$M$25 -> 42.23395371 | S7: ='Data (HIDE)'!$M$26 -> 116.1356063 | T7: ='Data (HIDE)'!$M$27 -> 62.4648688 | U7: ='Data (HIDE)'!$M$28 -> 28.13173853 | V7: ='Data (HIDE)'!$M$29 -> 78.26320101 | W7: ='Data (HIDE)'!$M$30 -> 86.16236711 | X7: ='Data (HIDE)'!$M$31 -> 86.16236711 | AB7: =SUM((E7*('Data (HIDE)'!$H$16/SUM('Data (HIDE)'!$H$16+'Data (HIDE)'!$H$24+'Data (HIDE)'!$H$25)))+(Q7*('Data (HIDE)'!$H$24/SUM('Data (HIDE)'!$H$16+'Data (HIDE)'!$H$24+'Data (HIDE)'!$H$25)))+(R7*('Data (HIDE)'!$H$25/SUM('Data (HIDE)'!$H$16+'Data (HIDE)'!$H$24+'Data (HIDE)'!$H$25)))) -> 118.3389935 | AC7: 0.1830897971 | AW7: 69.56998408 | AX7: 0.1076361552
B8: Crop Protection | C8: 55 | D8: 0.08527131783 | E8: ='Data (HIDE)'!$N$16+'Data (HIDE)'!$O$16+'Data (HIDE)'!$P$16 -> 61.81 | F8: ='Data (HIDE)'!$N$17+'Data (HIDE)'!$O$17+'Data (HIDE)'!$P$17 -> 61.81 | G8: ='Data (HIDE)'!$N$18+'Data (HIDE)'!$O$18+'Data (HIDE)'!$P$18 -> 61.81 | H8: ='Data (HIDE)'!$N$19+'Data (HIDE)'!$O$19+'Data (HIDE)'!$P$19 -> 41.54 | I8: ='Data (HIDE)'!$N$20+'Data (HIDE)'!$O$20+'Data (HIDE)'!$P$20 -> 23.13 | J8: ='Data (HIDE)'!$N$21+'Data (HIDE)'!$O$21+'Data (HIDE)'!$P$21 -> 50.13 | K8: ='Data (HIDE)'!$N$22+'Data (HIDE)'!$O$22+'Data (HIDE)'!$P$22 -> 8.38 | L8: ='Data (HIDE)'!$N$23+'Data (HIDE)'!$O$23+'Data (HIDE)'!$P$23 -> 32 | N8: Crop Protection | O8: 55 | P8: 0.08527131783 | Q8: ='Data (HIDE)'!$N$24+'Data (HIDE)'!$O$24+'Data (HIDE)'!$P$24 -> 66.76 | R8: ='Data (HIDE)'!$N$25+'Data (HIDE)'!$O$25+'Data (HIDE)'!$P$25 -> 23.58 | S8: ='Data (HIDE)'!$N$26+'Data (HIDE)'!$O$26+'Data (HIDE)'!$P$26 -> 47.52 | T8: ='Data (HIDE)'!$N$27+'Data (HIDE)'!$O$27+'Data (HIDE)'!$P$27 -> 32.26 | U8: ='Data (HIDE)'!$N$28+'Data (HIDE)'!$O$28+'Data (HIDE)'!$P$28 -> 46 | V8: ='Data (HIDE)'!$N$29+'Data (HIDE)'!$O$29+'Data (HIDE)'!$P$29 -> 129.78 | W8: ='Data (HIDE)'!$N$30+'Data (HIDE)'!$O$30+'Data (HIDE)'!$P$30 -> 129.78 | X8: ='Data (HIDE)'!$N$31+'Data (HIDE)'!$O$31+'Data (HIDE)'!$P$31 -> 129.78 | AB8: =SUM((E8*('Data (HIDE)'!$H$16/SUM('Data (HIDE)'!$H$16+'Data (HIDE)'!$H$24+'Data (HIDE)'!$H$25)))+(Q8*('Data (HIDE)'!$H$24/SUM('Data (HIDE)'!$H$16+'Data (HIDE)'!$H$24+'Data (HIDE)'!$H$25)))+(R8*('Data (HIDE)'!$H$25/SUM('Data (HIDE)'!$H$16+'Data (HIDE)'!$H$24+'Data (HIDE)'!$H$25)))) -> 57.49189099 | AC8: 0.08894936781 | AW8: 31.05370428 | AX8: 0.04804516457
B9: Crop Insurance | C9: 15 | D9: 0.02325581395 | E9: ='Data (HIDE)'!$V$16 -> 13.5175 | F9: ='Data (HIDE)'!$V$17 -> 16.4075 | G9: ='Data (HIDE)'!$V$18 -> 12.445 | H9: ='Data (HIDE)'!$V$19 -> 13.9775 | I9: ='Data (HIDE)'!$V$20 -> 21.015 | J9: ='Data (HIDE)'!$V$21 -> 18.955 | K9: ='Data (HIDE)'!$V$22 -> 18.4975 | L9: ='Data (HIDE)'!$V$23 -> 50.695 | N9: Crop Insurance | O9: 15 | P9: 0.02325581395 | Q9: ='Data (HIDE)'!$V$24 -> 17.495 | R9: ='Data (HIDE)'!$V$25 -> 25.945 | S9: ='Data (HIDE)'!$V$26 -> 27.3475 | T9: ='Data (HIDE)'!$V$27 -> 21.695 | U9: ='Data (HIDE)'!$V$28 -> 19.6575 | V9: ='Data (HIDE)'!$V$29 -> 39.0075 | W9: ='Data (HIDE)'!$V$30 -> 40.815 | X9: ='Data (HIDE)'!$V$31 -> 46.855 | AB9: =SUM((E9*('Data (HIDE)'!$H$16/SUM('Data (HIDE)'!$H$16+'Data (HIDE)'!$H$24+'Data (HIDE)'!$H$25)))+(Q9*('Data (HIDE)'!$H$24/SUM('Data (HIDE)'!$H$16+'Data (HIDE)'!$H$24+'Data (HIDE)'!$H$25)))+(R9*('Data (HIDE)'!$H$25/SUM('Data (HIDE)'!$H$16+'Data (HIDE)'!$H$24+'Data (HIDE)'!$H$25)))) -> 17.45880848 | AC9: 0.02701163503 | AW9: 8.960931142 | AX9: 0.01386402754
B10: Hail Insurance | C10: 12 | D10: 0.01860465116 | E10: ='Data (HIDE)'!$W$16 -> 11.8 | F10: ='Data (HIDE)'!$W$17 -> 11.8 | G10: ='Data (HIDE)'!$W$18 -> 11.8 | H10: ='Data (HIDE)'!$W$19 -> 11.8 | I10: ='Data (HIDE)'!$W$20 -> 11.8 | J10: ='Data (HIDE)'!$W$21 -> 11.8 | K10: ='Data (HIDE)'!$W$22 -> 11.8 | L10: ='Data (HIDE)'!$W$23 -> 11.8 | N10: Hail Insurance | O10: 12 | P10: 0.01860465116 | Q10: ='Data (HIDE)'!$W$24 -> 11.8 | R10: ='Data (HIDE)'!$W$25 -> 15.34 | S10: ='Data (HIDE)'!$W$26 -> 11.8 | T10: ='Data (HIDE)'!$W$27 -> 11.8 | U10: ='Data (HIDE)'!$W$28 -> 23.6 | V10: ='Data (HIDE)'!$W$29 -> 20.65 | W10: ='Data (HIDE)'!$W$30 -> 20.65 | X10: ='Data (HIDE)'!$W$31 -> 20.65 | AB10: =SUM((E10*('Data (HIDE)'!$H$16/SUM('Data (HIDE)'!$H$16+'Data (HIDE)'!$H$24+'Data (HIDE)'!$H$25)))+(Q10*('Data (HIDE)'!$H$24/SUM('Data (HIDE)'!$H$16+'Data (HIDE)'!$H$24+'Data (HIDE)'!$H$25)))+(R10*('Data (HIDE)'!$H$25/SUM('Data (HIDE)'!$H$16+'Data (HIDE)'!$H$24+'Data (HIDE)'!$H$25)))) -> 12.40804615 | AC10: 0.01919727881 | AW10: 6.708812669 | AX10: 0.01037963155
C11: =SUM(C6:C10) -> 267 | D11: 0.4139534884 | E11: =SUM(E6:E10) -> 247.5642504 | F11: =SUM(F6:F10) -> 262.3029995 | G11: 250.4413334 | H11: 225.7542504 | I11: 172.1524827 | J11: 197.967906 | K11: 273.1613317 | L11: 373.4946939 | O11: =C11 -> 267 | P11: =D11 -> 0.4139534884 | Q11: 318.1518231 | R11: 197.0989537 | S11: 252.8031063 | T11: 192.2198688 | U11: 205.3892385 | V11: 383.700701 | W11: 389.4073671 | X11: 401.4473671 | AB11: =SUM(AB6:AB10) -> 270.9592052 | AC11: 0.4192182513 | AW11: 173.8935539 | AX11: 0.2690417973
A13: = | B13: Gross Margin (GM) | C13: =SUM(C3-C11) -> 378 | D13: =SUM(C13/$C$3) -> 0.5860465116 | E13: =SUM(E3-E11) -> 353.6857496 | F13: =SUM(F3-F11) -> 350.1970005 | G13: 327.0586666 | H13: 294.2457496 | I13: 402.8475173 | J13: 289.532094 | K13: 246.8386683 | L13: 470.2553061 | M13: = | N13: Gross Margin (GM) | O13: =C13 -> 378 | P13: =D13 -> 0.5860465116 | Q13: 390.5981769 | R13: 382.4010463 | S13: 247.1968937 | T13: 207.7801312 | U13: 269.6107615 | V13: 566.299299 | W13: 460.5926329 | X13: 448.5526329 | AB13: =SUM(AB3-AB11) -> 375.3848038 | AC13: =SUM(AB13/$AB$3) -> 0.5807817487 | AW13: 277.5912331 | AX13: =SUM(AW13/$AB$3) -> 0.4294790842
A15: =" -" -> - | B15: Direct Operating Expenses (DOE) | M15: =" -" -> - | N15: Direct Operating Expenses (DOE)
B16: Labour - Hired | C16: 5 | D16: =SUM(C16/$C$3) -> 0.007751937984 | E16: ='Data (HIDE)'!$U$16 -> 5.4 | F16: ='Data (HIDE)'!$U$17 -> 5.4 | G16: ='Data (HIDE)'!$U$18 -> 5.4 | H16: ='Data (HIDE)'!$U$19 -> 5.4 | I16: ='Data (HIDE)'!$U$20 -> 5.4 | J16: ='Data (HIDE)'!$U$21 -> 5.4 | K16: ='Data (HIDE)'!$U$22 -> 5.4 | L16: ='Data (HIDE)'!$U$23 -> 5.4 | N16: Labour - Hired | O16: =C16 -> 5 | P16: =D16 -> 0.007751937984 | Q16: ='Data (HIDE)'!$U$24 -> 5.4 | R16: ='Data (HIDE)'!$U$25 -> 5.4 | S16: ='Data (HIDE)'!$U$26 -> 5.4 | T16: ='Data (HIDE)'!$U$27 -> 5.4 | U16: ='Data (HIDE)'!$U$28 -> 5.4 | V16: ='Data (HIDE)'!$U$29 -> 5.4 | W16: ='Data (HIDE)'!$U$30 -> 5.4 | X16: ='Data (HIDE)'!$U$31 -> 5.4 | AB16: =SUM((E16*('Data (HIDE)'!$H$16/SUM('Data (HIDE)'!$H$16+'Data (HIDE)'!$H$24+'Data (HIDE)'!$H$25)))+(Q16*('Data (HIDE)'!$H$24/SUM('Data (HIDE)'!$H$16+'Data (HIDE)'!$H$24+'Data (HIDE)'!$H$25)))+(R16*('Data (HIDE)'!$H$25/SUM('Data (HIDE)'!$H$16+'Data (HIDE)'!$H$24+'Data (HIDE)'!$H$25)))) -> 5.4 | AC16: =SUM(AB16/$AB$3) -> 0.008354684076 | AW16: 5 | AX16: =SUM(AW16/$AB$3) -> 0.007735818589
B17: Owners - Labour & Living | C17: 25 | D17: 0.03875968992 | E17: ='Data (HIDE)'!$AH$16 -> 27 | F17: ='Data (HIDE)'!$AH$17 -> 27 | G17: ='Data (HIDE)'!$AH$18 -> 27 | H17: ='Data (HIDE)'!$AH$19 -> 27 | I17: ='Data (HIDE)'!$AH$20 -> 27 | J17: ='Data (HIDE)'!$AH$21 -> 27 | K17: ='Data (HIDE)'!$AH$22 -> 27 | L17: ='Data (HIDE)'!$AH$23 -> 27 | N17: Owners - Labour & Living | O17: 25 | P17: 0.03875968992 | Q17: ='Data (HIDE)'!$AH$24 -> 27 | R17: ='Data (HIDE)'!$AH28 -> 27 | S17: ='Data (HIDE)'!$AH$26 -> 27 | T17: ='Data (HIDE)'!$AH$27 -> 27 | U17: ='Data (HIDE)'!$AH$28 -> 27 | V17: ='Data (HIDE)'!$AH$29 -> 27 | W17: ='Data (HIDE)'!$AH$30 -> 27 | X17: ='Data (HIDE)'!$AH$31 -> 27 | AB17: =SUM((E17*('Data (HIDE)'!$H$16/SUM('Data (HIDE)'!$H$16+'Data (HIDE)'!$H$24+'Data (HIDE)'!$H$25)))+(Q17*('Data (HIDE)'!$H$24/SUM('Data (HIDE)'!$H$16+'Data (HIDE)'!$H$24+'Data (HIDE)'!$H$25)))+(R17*('Data (HIDE)'!$H$25/SUM('Data (HIDE)'!$H$16+'Data (HIDE)'!$H$24+'Data (HIDE)'!$H$25)))) -> 27 | AC17: 0.04177342038 | AW17: 25 | AX17: 0.03867909294
B18: Fuel | C18: 38 | D18: 0.05891472868 | E18: ='Data (HIDE)'!$Q$16 -> 38.14336253 | F18: ='Data (HIDE)'!$Q$17 -> 38.82669811 | G18: ='Data (HIDE)'!$Q$18 -> 38.28002964 | H18: ='Data (HIDE)'!$Q$19 -> 38.14336253 | I18: ='Data (HIDE)'!$Q$20 -> 44.97671832 | J18: ='Data (HIDE)'!$Q$21 -> 41.74003503 | K18: ='Data (HIDE)'!$Q$22 -> 38.79336926 | L18: ='Data (HIDE)'!$Q$23 -> 46.59006063 | N18: Fuel | O18: 38 | P18: 0.05891472868 | Q18: ='Data (HIDE)'!$Q$24 -> 37.93002021 | R18: ='Data (HIDE)'!$Q$25 -> 33.0533504 | S18: ='Data (HIDE)'!$Q$26 -> 39.07336926 | T18: ='Data (HIDE)'!$Q$27 -> 36.31667789 | U18: ='Data (HIDE)'!$Q$28 -> 33.15335579 | V18: ='Data (HIDE)'!$Q$29 -> 32.607792 | W18: ='Data (HIDE)'!$Q$30 -> 32.15223495 | X18: ='Data (HIDE)'!$Q$31 -> 32.15223495 | AB18: =SUM((E18*('Data (HIDE)'!$H$16/SUM('Data (HIDE)'!$H$16+'Data (HIDE)'!$H$24+'Data (HIDE)'!$H$25)))+(Q18*('Data (HIDE)'!$H$24/SUM('Data (HIDE)'!$H$16+'Data (HIDE)'!$H$24+'Data (HIDE)'!$H$25)))+(R18*('Data (HIDE)'!$H$25/SUM('Data (HIDE)'!$H$16+'Data (HIDE)'!$H$24+'Data (HIDE)'!$H$25)))) -> 37.17217259 | AC18: 0.05751143675 | AW18: 24.63724152 | AX18: 0.03811784619
B19: Drying Costs | C19: 0 | D19: 0 | E19: ='Data (HIDE)'!$AA$16 -> 0 | F19: ='Data (HIDE)'!$AA$17 -> 0 | G19: ='Data (HIDE)'!$AA$18 -> 0 | H19: ='Data (HIDE)'!$AA$19 -> 0 | I19: ='Data (HIDE)'!$AA$20 -> 0 | J19: ='Data (HIDE)'!$AA$21 -> 0 | K19: ='Data (HIDE)'!$AA$22 -> 0 | L19: ='Data (HIDE)'!$AA$23 -> 70 | N19: Drying Costs | O19: 0 | P19: 0 | Q19: ='Data (HIDE)'!$AA$24 -> 0 | R19: ='Data (HIDE)'!$AA$25 -> 0 | S19: ='Data (HIDE)'!$AA$26 -> 10 | T19: ='Data (HIDE)'!$AA$27 -> 0 | U19: ='Data (HIDE)'!$AA$28 -> 0 | V19: ='Data (HIDE)'!$AA$29 -> 0 | W19: ='Data (HIDE)'!$AA$30 -> 0 | X19: ='Data (HIDE)'!$AA$31 -> 0 | AB19: =SUM((E19*('Data (HIDE)'!$H$16/SUM('Data (HIDE)'!$H$16+'Data (HIDE)'!$H$24+'Data (HIDE)'!$H$25)))+(Q19*('Data (HIDE)'!$H$24/SUM('Data (HIDE)'!$H$16+'Data (HIDE)'!$H$24+'Data (HIDE)'!$H$25)))+(R19*('Data (HIDE)'!$H$25/SUM('Data (HIDE)'!$H$16+'Data (HIDE)'!$H$24+'Data (HIDE)'!$H$25)))) -> 0 | AC19: 0 | AW19: 0 | AX19: 0
B20: Storage Costs | C20: 15 | D20: 0.02325581395 | E20: ='Data (HIDE)'!$Z$16 -> 17.87506265 | F20: ='Data (HIDE)'!$Z$17 -> 19.25006747 | G20: ='Data (HIDE)'!$Z$18 -> 18.15006361 | H20: ='Data (HIDE)'!$Z$19 -> 17.87506265 | I20: ='Data (HIDE)'!$Z$20 -> 31.62511084 | J20: ='Data (HIDE)'!$Z$21 -> 21.45007518 | K20: ='Data (HIDE)'!$Z$22 -> 22.00007711 | L20: ='Data (HIDE)'!$Z$23 -> 37.12513012 | N20: Storage Costs | O20: 15 | P20: 0.02325581395 | Q20: ='Data (HIDE)'!$Z$24 -> 12.37504337 | R20: ='Data (HIDE)'!$Z$25 -> 10.45003663 | S20: ='Data (HIDE)'!$Z$26 -> 22.00007711 | T20: ='Data (HIDE)'!$Z$27 -> 6.875024096 | U20: ='Data (HIDE)'!$Z$28 -> 13.75004819 | V20: ='Data (HIDE)'!$Z$29 -> 8.708363854 | W20: ='Data (HIDE)'!$Z$30 -> 7.791693975 | X20: ='Data (HIDE)'!$Z$31 -> 7.791693975 | AB20: =SUM((E20*('Data (HIDE)'!$H$16/SUM('Data (HIDE)'!$H$16+'Data (HIDE)'!$H$24+'Data (HIDE)'!$H$25)))+(Q20*('Data (HIDE)'!$H$24/SUM('Data (HIDE)'!$H$16+'Data (HIDE)'!$H$24+'Data (HIDE)'!$H$25)))+(R20*('Data (HIDE)'!$H$25/SUM('Data (HIDE)'!$H$16+'Data (HIDE)'!$H$24+'Data (HIDE)'!$H$25)))) -> 14.10142515 | AC20: 0.02181721337 | AW20: 6.102064195 | AX20: 0.009440892326
B21: Machinery Operating | C21: 25 | D21: 0.03875968992 | E21: ='Data (HIDE)'!$R$16 -> 25 | F21: ='Data (HIDE)'!$R$17 -> 25 | G21: ='Data (HIDE)'!$R$18 -> 25 | H21: ='Data (HIDE)'!$R$19 -> 25 | I21: ='Data (HIDE)'!$R$20 -> 25 | J21: ='Data (HIDE)'!$R$21 -> 25 | K21: ='Data (HIDE)'!$R$22 -> 25 | L21: ='Data (HIDE)'!$R$23 -> 25 | N21: Machinery Operating | O21: 25 | P21: 0.03875968992 | Q21: ='Data (HIDE)'!$R$24 -> 25 | R21: ='Data (HIDE)'!$R$25 -> 25 | S21: ='Data (HIDE)'!$R$26 -> 25 | T21: ='Data (HIDE)'!$R$27 -> 25 | U21: ='Data (HIDE)'!$R$28 -> 25 | V21: ='Data (HIDE)'!$R$29 -> 25 | W21: ='Data (HIDE)'!$R$30 -> 25 | X21: ='Data (HIDE)'!$R$31 -> 25 | AB21: =SUM((E21*('Data (HIDE)'!$H$16/SUM('Data (HIDE)'!$H$16+'Data (HIDE)'!$H$24+'Data (HIDE)'!$H$25)))+(Q21*('Data (HIDE)'!$H$24/SUM('Data (HIDE)'!$H$16+'Data (HIDE)'!$H$24+'Data (HIDE)'!$H$25)))+(R21*('Data (HIDE)'!$H$25/SUM('Data (HIDE)'!$H$16+'Data (HIDE)'!$H$24+'Data (HIDE)'!$H$25)))) -> 25 | AC21: 0.03867909294 | AW21: 20 | AX21: 0.03094327436
B22: Machinery Custom | C22: 0 | D22: 0 | E22: ='Data (HIDE)'!$T$16 -> 0 | F22: ='Data (HIDE)'!$T$17 -> 0 | G22: ='Data (HIDE)'!$T$18 -> 0 | H22: ='Data (HIDE)'!$T$19 -> 0 | I22: ='Data (HIDE)'!$T$20 -> 0 | J22: ='Data (HIDE)'!$T$21 -> 0 | K22: ='Data (HIDE)'!$T$22 -> 0 | L22: ='Data (HIDE)'!$T$23 -> 0 | N22: Machinery Custom | O22: =C22 -> 0 | P22: =D22 -> 0 | Q22: ='Data (HIDE)'!$T$24 -> 0 | R22: ='Data (HIDE)'!$T$25 -> 0 | S22: ='Data (HIDE)'!$T$26 -> 13 | T22: ='Data (HIDE)'!$T$27 -> 0 | U22: ='Data (HIDE)'!$T$28 -> 0 | V22: ='Data (HIDE)'!$T$29 -> 25 | W22: ='Data (HIDE)'!$T$30 -> 25 | X22: ='Data (HIDE)'!$T$31 -> 25 | AB22: =SUM((E22*('Data (HIDE)'!$H$16/SUM('Data (HIDE)'!$H$16+'Data (HIDE)'!$H$24+'Data (HIDE)'!$H$25)))+(Q22*('Data (HIDE)'!$H$24/SUM('Data (HIDE)'!$H$16+'Data (HIDE)'!$H$24+'Data (HIDE)'!$H$25)))+(R22*('Data (HIDE)'!$H$25/SUM('Data (HIDE)'!$H$16+'Data (HIDE)'!$H$24+'Data (HIDE)'!$H$25)))) -> 0 | AC22: 0 | AW22: 0 | AX22: 0
C23: =SUM(C16:C22) -> 108 | D23: =SUM(C23/$C$3) -> 0.1674418605 | E23: =SUM(E16:E22) -> 113.4184252 | F23: =SUM(F16:F22) -> 115.4767656 | G23: 113.8300933 | H23: 113.4184252 | I23: 134.0018292 | J23: 120.5901102 | K23: 118.1934464 | L23: 211.1151907 | O23: =C23 -> 108 | P23: =D23 -> 0.1674418605 | Q23: 107.7050636 | R23: 100.903387 | S23: 141.4734464 | T23: 100.591702 | U23: 104.303404 | V23: 123.7161559 | W23: 122.3439289 | X23: 122.3439289 | AB23: =SUM(AB16:AB22) -> 108.6735977 | AC23: 0.1681358475 | AW23: 80.73930572 | AX23: 0.1249169244
A25: = | B25: Contribution Margin (CM) | C25: =SUM(C13-C23) -> 270 | D25: =SUM(C25/$C$3) -> 0.4186046512 | E25: =SUM(E13-E23) -> 240.2673245 | F25: =SUM(F13-F23) -> 234.7202349 | G25: 213.2285733 | H25: 180.8273245 | I25: 268.8456881 | J25: 168.9419838 | K25: 128.6452219 | L25: 259.1401154 | M25: = | N25: Contribution Margin (CM) | O25: =C25 -> 270 | P25: =D25 -> 0.4186046512 | Q25: 282.8931134 | R25: 281.4976593 | S25: 105.7234473 | T25: 107.1884292 | U25: 165.3073575 | V25: 442.5831431 | W25: 338.248704 | X25: 326.208704 | AB25: =SUM(AB13-AB23) -> 266.7112061 | AC25: =SUM(AB25/$AB$3) -> 0.4126459012 | AW25: 196.8519274 | AX25: =SUM(AW25/$AB$3) -> 0.3045621598
A27: =" -" -> - | B27: Operating Overheads (OH) | M27: =" -" -> - | N27: Operating Overheads (OH)
B28: Other Costs | C28: 20 | D28: =SUM(C28/$C$3) -> 0.03100775194 | E28: ='Data (HIDE)'!$X$16 -> 17.75 | F28: ='Data (HIDE)'!$X$17 -> 17.75 | G28: ='Data (HIDE)'!$X$18 -> 17.75 | H28: ='Data (HIDE)'!$X$19 -> 17.75 | I28: ='Data (HIDE)'!$X$20 -> 17.75 | J28: ='Data (HIDE)'!$X$21 -> 17.75 | K28: ='Data (HIDE)'!$X$22 -> 17.75 | L28: ='Data (HIDE)'!$X$23 -> 17.75 | N28: Other Costs | O28: =C28 -> 20 | P28: =D28 -> 0.03100775194 | Q28: ='Data (HIDE)'!$X$24 -> 17.75 | R28: ='Data (HIDE)'!$X$25 -> 17.75 | S28: ='Data (HIDE)'!$X$26 -> 17.75 | T28: ='Data (HIDE)'!$X$27 -> 17.75 | U28: ='Data (HIDE)'!$X$28 -> 17.75 | V28: ='Data (HIDE)'!$X$29 -> 17.75 | W28: ='Data (HIDE)'!$X$30 -> 17.75 | X28: ='Data (HIDE)'!$X$31 -> 17.75 | AB28: =SUM((E28*('Data (HIDE)'!$H$16/SUM('Data (HIDE)'!$H$16+'Data (HIDE)'!$H$24+'Data (HIDE)'!$H$25)))+(Q28*('Data (HIDE)'!$H$24/SUM('Data (HIDE)'!$H$16+'Data (HIDE)'!$H$24+'Data (HIDE)'!$H$25)))+(R28*('Data (HIDE)'!$H$25/SUM('Data (HIDE)'!$H$16+'Data (HIDE)'!$H$24+'Data (HIDE)'!$H$25)))) -> 17.75 | AC28: =SUM(AB28/$AB$3) -> 0.02746215599 | AW28: 17.75 | AX28: =SUM(AW28/$AB$3) -> 0.02746215599
A30: = | B30: Earnings Before Interest Taxes Depreciation Amortization Rent (EBITDAR) or Operating Income | M30: = | N30: Earnings Before Interest Taxes Depreciation Amortization Rent (EBITDAR) or Operating Income
B31: EBITDAR | C31: =SUM(C25-C28) -> 250 | D31: =SUM(C31/$C$3) -> 0.3875968992 | E31: =SUM(E25-E28) -> 222.5173245 | F31: =SUM(F25-F28) -> 216.9702349 | G31: 195.4785733 | H31: 163.0773245 | I31: 251.0956881 | J31: 151.1919838 | K31: 110.8952219 | L31: 241.3901154 | N31: EBITDAR | O31: =C31 -> 250 | P31: =D31 -> 0.3875968992 | Q31: 265.1431134 | R31: 263.7476593 | S31: 87.9734473 | T31: 89.43842921 | U31: 147.5573575 | V31: 424.8331431 | W31: 320.498704 | X31: 308.458704 | AB31: =SUM(AB25-AB28) -> 248.9612061 | AC31: =SUM(AB31/$AB$3) -> 0.3851837452 | AW31: 179.1019274 | AX31: =SUM(AW31/$AB$3) -> 0.2771000039
A33: =" -" -> - | B33: Cost of Capital (CoC) or Depreciation/Amortization/Lease/Rent | M33: =" -" -> - | N33: Cost of Capital (CoC) or Depreciation/Amortization/Lease/Rent
B34: Machinery Depreciation Costs | C34: 33 | D34: =SUM(C34/$C$3) -> 0.0511627907 | E34: ='Data (HIDE)'!$AL$16 -> 32.5 | F34: ='Data (HIDE)'!$AL$17 -> 32.5 | G34: ='Data (HIDE)'!$AL$18 -> 32.5 | H34: ='Data (HIDE)'!$AL$19 -> 32.5 | I34: ='Data (HIDE)'!$AL$20 -> 32.5 | J34: ='Data (HIDE)'!$AL$21 -> 32.5 | K34: ='Data (HIDE)'!$AL$22 -> 32.5 | L34: ='Data (HIDE)'!$AL$23 -> 39.75 | N34: Machinery Depreciation Costs | O34: =C34 -> 33 | P34: =D34 -> 0.0511627907 | Q34: ='Data (HIDE)'!$AL$24 -> 32.5 | R34: ='Data (HIDE)'!$AL$25 -> 32.5 | S34: ='Data (HIDE)'!$AL$26 -> 39.75 | T34: ='Data (HIDE)'!$AL$27 -> 32.5 | U34: ='Data (HIDE)'!$AL$28 -> 32.5 | V34: ='Data (HIDE)'!$AL$29 -> 39.75 | W34: ='Data (HIDE)'!$AL$30 -> 39.75 | X34: ='Data (HIDE)'!$AL$31 -> 39.75 | AB34: =SUM((E34*('Data (HIDE)'!$H$16/SUM('Data (HIDE)'!$H$16+'Data (HIDE)'!$H$24+'Data (HIDE)'!$H$25)))+(Q34*('Data (HIDE)'!$H$24/SUM('Data (HIDE)'!$H$16+'Data (HIDE)'!$H$24+'Data (HIDE)'!$H$25)))+(R34*('Data (HIDE)'!$H$25/SUM('Data (HIDE)'!$H$16+'Data (HIDE)'!$H$24+'Data (HIDE)'!$H$25)))) -> 32.5 | AC34: =SUM(AB34/$AB$3) -> 0.05028282083 | AW34: 25 | AX34: =SUM(AW34/$AB$3) -> 0.03867909294
B35: Machinery Amortization Costs | C35: 37 | D35: 0.05736434109 | E35: ='Data (HIDE)'!$AJ$16 -> 37.14285714 | F35: ='Data (HIDE)'!$AJ$17 -> 37.14285714 | G35: ='Data (HIDE)'!$AJ$18 -> 37.14285714 | H35: ='Data (HIDE)'!$AJ$19 -> 37.14285714 | I35: ='Data (HIDE)'!$AJ$20 -> 37.14285714 | J35: ='Data (HIDE)'!$AJ$21 -> 37.14285714 | K35: ='Data (HIDE)'!$AJ$22 -> 37.14285714 | L35: ='Data (HIDE)'!$AJ$23 -> 45.42857143 | N35: Machinery Amortization Costs | O35: 37 | P35: 0.05736434109 | Q35: ='Data (HIDE)'!$AJ$24 -> 37.14285714 | R35: ='Data (HIDE)'!$AJ$25 -> 37.14285714 | S35: ='Data (HIDE)'!$AJ$26 -> 45.42857143 | T35: ='Data (HIDE)'!$AJ$27 -> 37.14285714 | U35: ='Data (HIDE)'!$AJ$28 -> 37.14285714 | V35: ='Data (HIDE)'!$AJ$29 -> 45.42857143 | W35: ='Data (HIDE)'!$AJ$30 -> 45.42857143 | X35: ='Data (HIDE)'!$AJ$31 -> 45.42857143 | AB35: =SUM((E35*('Data (HIDE)'!$H$16/SUM('Data (HIDE)'!$H$16+'Data (HIDE)'!$H$24+'Data (HIDE)'!$H$25)))+(Q35*('Data (HIDE)'!$H$24/SUM('Data (HIDE)'!$H$16+'Data (HIDE)'!$H$24+'Data (HIDE)'!$H$25)))+(R35*('Data (HIDE)'!$H$25/SUM('Data (HIDE)'!$H$16+'Data (HIDE)'!$H$24+'Data (HIDE)'!$H$25)))) -> 37.14285714 | AC35: 0.05746608095 | AW35: 32.14285714 | AX35: 0.04973026236
B36: Machinery Opportunity Costs | C36: 5 | D36: 0.007751937984 | E36: ='Data (HIDE)'!$AM$16 -> 5.85 | F36: ='Data (HIDE)'!$AM$17 -> 5.85 | G36: ='Data (HIDE)'!$AM$18 -> 5.85 | H36: ='Data (HIDE)'!$AM$19 -> 5.85 | I36: ='Data (HIDE)'!$AM$20 -> 5.85 | J36: ='Data (HIDE)'!$AM$21 -> 5.85 | K36: ='Data (HIDE)'!$AM$22 -> 5.85 | L36: ='Data (HIDE)'!$AM$23 -> 7.155 | N36: Machinery Opportunity Costs | O36: 5 | P36: 0.007751937984 | Q36: ='Data (HIDE)'!$AM$24 -> 5.85 | R36: ='Data (HIDE)'!$AM$25 -> 5.85 | S36: ='Data (HIDE)'!$AM$26 -> 7.155 | T36: ='Data (HIDE)'!$AM$27 -> 5.85 | U36: ='Data (HIDE)'!$AM$28 -> 5.85 | V36: ='Data (HIDE)'!$AM$29 -> 7.155 | W36: ='Data (HIDE)'!$AM$30 -> 7.155 | X36: ='Data (HIDE)'!$AM$31 -> 7.155 | AB36: =SUM((E36*('Data (HIDE)'!$H$16/SUM('Data (HIDE)'!$H$16+'Data (HIDE)'!$H$24+'Data (HIDE)'!$H$25)))+(Q36*('Data (HIDE)'!$H$24/SUM('Data (HIDE)'!$H$16+'Data (HIDE)'!$H$24+'Data (HIDE)'!$H$25)))+(R36*('Data (HIDE)'!$H$25/SUM('Data (HIDE)'!$H$16+'Data (HIDE)'!$H$24+'Data (HIDE)'!$H$25)))) -> 5.85 | AC36: 0.009050907749 | AW36: 4.125 | AX36: 0.006382050336
B37: Land Amortization Costs | C37: 20 | D37: 0.03100775194 | E37: =-CUMPRINC('Fixed Cost Input'!$C$11,'Fixed Cost Input'!$D$11,'Fixed Cost Input'!$D$4*'Fixed Cost Input'!$D$8,1,'Fixed Cost Input'!$D$11,0)/'Fixed Cost Input'!$D$11 -> 19.92 | F37: =-CUMPRINC('Fixed Cost Input'!$C$11,'Fixed Cost Input'!$D$11,'Fixed Cost Input'!$D$4*'Fixed Cost Input'!$D$8,1,'Fixed Cost Input'!$D$11,0)/'Fixed Cost Input'!$D$11 -> 19.92 | G37: =-CUMPRINC('Fixed Cost Input'!$C$11,'Fixed Cost Input'!$D$11,'Fixed Cost Input'!$D$4*'Fixed Cost Input'!$D$8,1,'Fixed Cost Input'!$D$11,0)/'Fixed Cost Input'!$D$11 -> 19.92 | H37: =-CUMPRINC('Fixed Cost Input'!$C$11,'Fixed Cost Input'!$D$11,'Fixed Cost Input'!$D$4*'Fixed Cost Input'!$D$8,1,'Fixed Cost Input'!$D$11,0)/'Fixed Cost Input'!$D$11 -> 19.92 | I37: =-CUMPRINC('Fixed Cost Input'!$C$11,'Fixed Cost Input'!$D$11,'Fixed Cost Input'!$D$4*'Fixed Cost Input'!$D$8,1,'Fixed Cost Input'!$D$11,0)/'Fixed Cost Input'!$D$11 -> 19.92 | J37: =-CUMPRINC('Fixed Cost Input'!$C$11,'Fixed Cost Input'!$D$11,'Fixed Cost Input'!$D$4*'Fixed Cost Input'!$D$8,1,'Fixed Cost Input'!$D$11,0)/'Fixed Cost Input'!$D$11 -> 19.92 | K37: =-CUMPRINC('Fixed Cost Input'!$C$11,'Fixed Cost Input'!$D$11,'Fixed Cost Input'!$D$4*'Fixed Cost Input'!$D$8,1,'Fixed Cost Input'!$D$11,0)/'Fixed Cost Input'!$D$11 -> 19.92 | L37: =-CUMPRINC('Fixed Cost Input'!$C$11,'Fixed Cost Input'!$D$11,'Fixed Cost Input'!$D$4*'Fixed Cost Input'!$D$8,1,'Fixed Cost Input'!$D$11,0)/'Fixed Cost Input'!$D$11 -> 19.92 | N37: Land Amortization Costs | O37: 20 | P37: 0.03100775194 | Q37: =-CUMPRINC('Fixed Cost Input'!$C$11,'Fixed Cost Input'!$D$11,'Fixed Cost Input'!$D$4*'Fixed Cost Input'!$D$8,1,'Fixed Cost Input'!$D$11,0)/'Fixed Cost Input'!$D$11 -> 19.92 | R37: =-CUMPRINC('Fixed Cost Input'!$C$11,'Fixed Cost Input'!$D$11,'Fixed Cost Input'!$D$4*'Fixed Cost Input'!$D$8,1,'Fixed Cost Input'!$D$11,0)/'Fixed Cost Input'!$D$11 -> 19.92 | S37: =-CUMPRINC('Fixed Cost Input'!$C$11,'Fixed Cost Input'!$D$11,'Fixed Cost Input'!$D$4*'Fixed Cost Input'!$D$8,1,'Fixed Cost Input'!$D$11,0)/'Fixed Cost Input'!$D$11 -> 19.92 | T37: =-CUMPRINC('Fixed Cost Input'!$C$11,'Fixed Cost Input'!$D$11,'Fixed Cost Input'!$D$4*'Fixed Cost Input'!$D$8,1,'Fixed Cost Input'!$D$11,0)/'Fixed Cost Input'!$D$11 -> 19.92 | U37: =-CUMPRINC('Fixed Cost Input'!$C$11,'Fixed Cost Input'!$D$11,'Fixed Cost Input'!$D$4*'Fixed Cost Input'!$D$8,1,'Fixed Cost Input'!$D$11,0)/'Fixed Cost Input'!$D$11 -> 19.92 | V37: =-CUMPRINC('Fixed Cost Input'!$C$11,'Fixed Cost Input'!$D$11,'Fixed Cost Input'!$D$4*'Fixed Cost Input'!$D$8,1,'Fixed Cost Input'!$D$11,0)/'Fixed Cost Input'!$D$11 -> 19.92 | W37: =-CUMPRINC('Fixed Cost Input'!$C$11,'Fixed Cost Input'!$D$11,'Fixed Cost Input'!$D$4*'Fixed Cost Input'!$D$8,1,'Fixed Cost Input'!$D$11,0)/'Fixed Cost Input'!$D$11 -> 19.92 | X37: =-CUMPRINC('Fixed Cost Input'!$C$11,'Fixed Cost Input'!$D$11,'Fixed Cost Input'!$D$4*'Fixed Cost Input'!$D$8,1,'Fixed Cost Input'!$D$11,0)/'Fixed Cost Input'!$D$11 -> 19.92 | AB37: =SUM((E37*('Data (HIDE)'!$H$16/SUM('Data (HIDE)'!$H$16+'Data (HIDE)'!$H$24+'Data (HIDE)'!$H$25)))+(Q37*('Data (HIDE)'!$H$24/SUM('Data (HIDE)'!$H$16+'Data (HIDE)'!$H$24+'Data (HIDE)'!$H$25)))+(R37*('Data (HIDE)'!$H$25/SUM('Data (HIDE)'!$H$16+'Data (HIDE)'!$H$24+'Data (HIDE)'!$H$25)))) -> 19.92 | AC37: 0.03081950126 | AW37: 20.4 | AX37: 0.03156213984
B38: Land Opportunity Costs | C38: 55 | D38: 0.08527131783 | E38: ='Fixed Cost Input'!$D$13 -> 54.78 | F38: ='Fixed Cost Input'!$D$13 -> 54.78 | G38: ='Fixed Cost Input'!$D$13 -> 54.78 | H38: ='Fixed Cost Input'!$D$13 -> 54.78 | I38: ='Fixed Cost Input'!$D$13 -> 54.78 | J38: ='Fixed Cost Input'!$D$13 -> 54.78 | K38: ='Fixed Cost Input'!$D$13 -> 54.78 | L38: ='Fixed Cost Input'!$D$13 -> 54.78 | N38: Land Opportunity Costs | O38: 55 | P38: 0.08527131783 | Q38: ='Fixed Cost Input'!$D$13 -> 54.78 | R38: ='Fixed Cost Input'!$D$13 -> 54.78 | S38: ='Fixed Cost Input'!$D$13 -> 54.78 | T38: ='Fixed Cost Input'!$D$13 -> 54.78 | U38: ='Fixed Cost Input'!$D$13 -> 54.78 | V38: ='Fixed Cost Input'!$D$13 -> 54.78 | W38: ='Fixed Cost Input'!$D$13 -> 54.78 | X38: ='Fixed Cost Input'!$D$13 -> 54.78 | AB38: =SUM((E38*('Data (HIDE)'!$H$16/SUM('Data (HIDE)'!$H$16+'Data (HIDE)'!$H$24+'Data (HIDE)'!$H$25)))+(Q38*('Data (HIDE)'!$H$24/SUM('Data (HIDE)'!$H$16+'Data (HIDE)'!$H$24+'Data (HIDE)'!$H$25)))+(R38*('Data (HIDE)'!$H$25/SUM('Data (HIDE)'!$H$16+'Data (HIDE)'!$H$24+'Data (HIDE)'!$H$25)))) -> 54.78 | AC38: 0.08475362846 | AW38: 43.35 | AX38: 0.06706954716
B39: Machinery Lease | C39: 0 | D39: 0 | E39: ='Data (HIDE)'!$S$16 -> 0 | F39: ='Data (HIDE)'!$S$17 -> 0 | G39: ='Data (HIDE)'!$S$18 -> 0 | H39: ='Data (HIDE)'!$S$19 -> 0 | I39: ='Data (HIDE)'!$S$20 -> 0 | J39: ='Data (HIDE)'!$S$21 -> 0 | K39: ='Data (HIDE)'!$S$22 -> 0 | L39: ='Data (HIDE)'!$S$23 -> 0 | N39: Machinery Lease | O39: 0 | P39: 0 | Q39: ='Data (HIDE)'!$S$24 -> 0 | R39: ='Data (HIDE)'!$S$25 -> 0 | S39: ='Data (HIDE)'!$S$26 -> 0 | T39: ='Data (HIDE)'!$S$27 -> 0 | U39: ='Data (HIDE)'!$S$28 -> 0 | V39: ='Data (HIDE)'!$S$29 -> 0 | W39: ='Data (HIDE)'!$S$30 -> 0 | X39: ='Data (HIDE)'!$S$31 -> 0 | AB39: =SUM((E39*('Data (HIDE)'!$H$16/SUM('Data (HIDE)'!$H$16+'Data (HIDE)'!$H$24+'Data (HIDE)'!$H$25)))+(Q39*('Data (HIDE)'!$H$24/SUM('Data (HIDE)'!$H$16+'Data (HIDE)'!$H$24+'Data (HIDE)'!$H$25)))+(R39*('Data (HIDE)'!$H$25/SUM('Data (HIDE)'!$H$16+'Data (HIDE)'!$H$24+'Data (HIDE)'!$H$25)))) -> 0 | AC39: 0 | AW39: 2.88 | AX39: 0.004455831507
B40: Land Taxes | C40: 20 | D40: 0.03100775194 | E40: ='Data (HIDE)'!$Y$16 -> 20 | F40: ='Data (HIDE)'!$Y$17 -> 20 | G40: ='Data (HIDE)'!$Y$18 -> 20 | H40: ='Data (HIDE)'!$Y$19 -> 20 | I40: ='Data (HIDE)'!$Y$20 -> 20 | J40: ='Data (HIDE)'!$Y$21 -> 20 | K40: ='Data (HIDE)'!$Y$22 -> 20 | L40: ='Data (HIDE)'!$Y$23 -> 20 | N40: Land Taxes | O40: 20 | P40: 0.03100775194 | Q40: ='Data (HIDE)'!$Y$24 -> 20 | R40: ='Data (HIDE)'!$Y$25 -> 20 | S40: ='Data (HIDE)'!$Y$26 -> 20 | T40: ='Data (HIDE)'!$Y$27 -> 20 | U40: ='Data (HIDE)'!$Y$28 -> 20 | V40: ='Data (HIDE)'!$Y$29 -> 20 | W40: ='Data (HIDE)'!$Y$30 -> 20 | X40: ='Data (HIDE)'!$Y$31 -> 20 | AB40: =SUM((E40*('Data (HIDE)'!$H$16/SUM('Data (HIDE)'!$H$16+'Data (HIDE)'!$H$24+'Data (HIDE)'!$H$25)))+(Q40*('Data (HIDE)'!$H$24/SUM('Data (HIDE)'!$H$16+'Data (HIDE)'!$H$24+'Data (HIDE)'!$H$25)))+(R40*('Data (HIDE)'!$H$25/SUM('Data (HIDE)'!$H$16+'Data (HIDE)'!$H$24+'Data (HIDE)'!$H$25)))) -> 20 | AC40: 0.03094327436 | AW40: 15 | AX40: 0.02320745577
C41: =SUM(C34:C40) -> 170 | D41: =SUM(C41/$C$3) -> 0.2635658915 | E41: =SUM(E34:E40) -> 170.1928571 | F41: 170.1928571 | G41: 170.1928571 | H41: 170.1928571 | I41: 170.1928571 | J41: 170.1928571 | K41: 170.1928571 | L41: 187.0335714 | O41: =C41 -> 170 | P41: =D41 -> 0.2635658915 | Q41: 170.1928571 | R41: 170.1928571 | S41: 187.0335714 | T41: 170.1928571 | U41: 170.1928571 | V41: 187.0335714 | W41: 187.0335714 | X41: 187.0335714 | AB41: =SUM(AB34:AB40) -> 170.1928571 | AC41: 0.2633162136 | AW41: 142.8978571 | AX41: 0.2210863799
A43: = | B43: Earnings Before Interest Taxes (EBIT) | M43: = | N43: Earnings Before Interest Taxes (EBIT)
C44: =SUM(C31-C41) -> 80 | D44: =SUM(C44/$AB$3) -> 0.1237730974 | E44: =SUM(E31-E41) -> 52.32446733 | F44: 46.77737777 | G44: 25.2857162 | H44: -7.115532673 | I44: 80.90283097 | J44: -19.0008733 | K44: -59.29763523 | L44: 54.35654396 | O44: =C44 -> 80 | P44: =D44 -> 0.1237730974 | Q44: 94.95025621 | R44: 93.55480212 | S44: -99.06012413 | T44: -80.75442793 | U44: -22.63549966 | V44: 237.7995717 | W44: 133.4651325 | X44: 121.4251325 | AB44: =SUM(AB31-AB41) -> 78.76834895 | AC44: =SUM(AB44/$AB$3) -> 0.1218675316 | AW44: 36.20407026 | AX44: =SUM(AW44/$AB$3) -> 0.05601362394
A46: =" -" -> - | B46: Interest Expenses | M46: =" -" -> - | N46: Interest Expenses
B47: Interest on Operating | C47: 18 | D47: =SUM(C47/$C$3) -> 0.02790697674 | E47: ='Data (HIDE)'!$AB$16 -> 16.73 | F47: ='Data (HIDE)'!$AB$17 -> 17.48 | G47: ='Data (HIDE)'!$AB$18 -> 16.88 | H47: ='Data (HIDE)'!$AB$19 -> 15.75 | I47: ='Data (HIDE)'!$AB$20 -> 14.26 | J47: ='Data (HIDE)'!$AB$21 -> 14.82 | K47: ='Data (HIDE)'!$AB$22 -> 18.09 | L47: ='Data (HIDE)'!$AB$23 -> 26.79 | N47: Interest on Operating | O47: =C47 -> 18 | P47: =D47 -> 0.02790697674 | Q47: ='Data (HIDE)'!$AB$24 -> 19.65 | R47: ='Data (HIDE)'!$AB$25 -> 13.89 | S47: ='Data (HIDE)'!$AB$26 -> 18.23 | T47: ='Data (HIDE)'!$AB$27 -> 13.66 | U47: ='Data (HIDE)'!$AB$28 -> 14.42 | V47: ='Data (HIDE)'!$AB$29 -> 23.32 | W47: ='Data (HIDE)'!$AB$30 -> 23.51 | X47: ='Data (HIDE)'!$AB$31 -> 24.05 | AB47: =SUM((E47*('Data (HIDE)'!$H$16/SUM('Data (HIDE)'!$H$16+'Data (HIDE)'!$H$24+'Data (HIDE)'!$H$25)))+(Q47*('Data (HIDE)'!$H$24/SUM('Data (HIDE)'!$H$16+'Data (HIDE)'!$H$24+'Data (HIDE)'!$H$25)))+(R47*('Data (HIDE)'!$H$25/SUM('Data (HIDE)'!$H$16+'Data (HIDE)'!$H$24+'Data (HIDE)'!$H$25)))) -> 17.56854493 | AC47: =SUM(AB47/$AB$3) -> 0.02718141529 | AW47: 5.968754545 | AX47: =SUM(AW47/$AB$3) -> 0.009234640472
B48: Land Interest Costs | C48: 27 | D48: =SUM(C48/$C$3) -> 0.04186046512 | E48: =-CUMIPMT('Fixed Cost Input'!$C$11,'Fixed Cost Input'!$D$11,'Fixed Cost Input'!$D$4*'Fixed Cost Input'!$D$8,1,'Fixed Cost Input'!$D$11,0)/'Fixed Cost Input'!$D$11 -> 26.73203197 | F48: =-CUMIPMT('Fixed Cost Input'!$C$11,'Fixed Cost Input'!$D$11,'Fixed Cost Input'!$D$4*'Fixed Cost Input'!$D$8,1,'Fixed Cost Input'!$D$11,0)/'Fixed Cost Input'!$D$11 -> 26.73203197 | G48: =-CUMIPMT('Fixed Cost Input'!$C$11,'Fixed Cost Input'!$D$11,'Fixed Cost Input'!$D$4*'Fixed Cost Input'!$D$8,1,'Fixed Cost Input'!$D$11,0)/'Fixed Cost Input'!$D$11 -> 26.73203197 | H48: =-CUMIPMT('Fixed Cost Input'!$C$11,'Fixed Cost Input'!$D$11,'Fixed Cost Input'!$D$4*'Fixed Cost Input'!$D$8,1,'Fixed Cost Input'!$D$11,0)/'Fixed Cost Input'!$D$11 -> 26.73203197 | I48: =-CUMIPMT('Fixed Cost Input'!$C$11,'Fixed Cost Input'!$D$11,'Fixed Cost Input'!$D$4*'Fixed Cost Input'!$D$8,1,'Fixed Cost Input'!$D$11,0)/'Fixed Cost Input'!$D$11 -> 26.73203197 | J48: =-CUMIPMT('Fixed Cost Input'!$C$11,'Fixed Cost Input'!$D$11,'Fixed Cost Input'!$D$4*'Fixed Cost Input'!$D$8,1,'Fixed Cost Input'!$D$11,0)/'Fixed Cost Input'!$D$11 -> 26.73203197 | K48: =-CUMIPMT('Fixed Cost Input'!$C$11,'Fixed Cost Input'!$D$11,'Fixed Cost Input'!$D$4*'Fixed Cost Input'!$D$8,1,'Fixed Cost Input'!$D$11,0)/'Fixed Cost Input'!$D$11 -> 26.73203197 | L48: =-CUMIPMT('Fixed Cost Input'!$C$11,'Fixed Cost Input'!$D$11,'Fixed Cost Input'!$D$4*'Fixed Cost Input'!$D$8,1,'Fixed Cost Input'!$D$11,0)/'Fixed Cost Input'!$D$11 -> 26.73203197 | N48: Land Interest Costs | O48: 27 | P48: 0.04186046512 | Q48: =-CUMIPMT('Fixed Cost Input'!$C$11,'Fixed Cost Input'!$D$11,'Fixed Cost Input'!$D$4*'Fixed Cost Input'!$D$8,1,'Fixed Cost Input'!$D$11,0)/'Fixed Cost Input'!$D$11 -> 26.73203197 | R48: =-CUMIPMT('Fixed Cost Input'!$C$11,'Fixed Cost Input'!$D$11,'Fixed Cost Input'!$D$4*'Fixed Cost Input'!$D$8,1,'Fixed Cost Input'!$D$11,0)/'Fixed Cost Input'!$D$11 -> 26.73203197 | S48: =-CUMIPMT('Fixed Cost Input'!$C$11,'Fixed Cost Input'!$D$11,'Fixed Cost Input'!$D$4*'Fixed Cost Input'!$D$8,1,'Fixed Cost Input'!$D$11,0)/'Fixed Cost Input'!$D$11 -> 26.73203197 | T48: =-CUMIPMT('Fixed Cost Input'!$C$11,'Fixed Cost Input'!$D$11,'Fixed Cost Input'!$D$4*'Fixed Cost Input'!$D$8,1,'Fixed Cost Input'!$D$11,0)/'Fixed Cost Input'!$D$11 -> 26.73203197 | U48: =-CUMIPMT('Fixed Cost Input'!$C$11,'Fixed Cost Input'!$D$11,'Fixed Cost Input'!$D$4*'Fixed Cost Input'!$D$8,1,'Fixed Cost Input'!$D$11,0)/'Fixed Cost Input'!$D$11 -> 26.73203197 | V48: =-CUMIPMT('Fixed Cost Input'!$C$11,'Fixed Cost Input'!$D$11,'Fixed Cost Input'!$D$4*'Fixed Cost Input'!$D$8,1,'Fixed Cost Input'!$D$11,0)/'Fixed Cost Input'!$D$11 -> 26.73203197 | W48: =-CUMIPMT('Fixed Cost Input'!$C$11,'Fixed Cost Input'!$D$11,'Fixed Cost Input'!$D$4*'Fixed Cost Input'!$D$8,1,'Fixed Cost Input'!$D$11,0)/'Fixed Cost Input'!$D$11 -> 26.73203197 | X48: =-CUMIPMT('Fixed Cost Input'!$C$11,'Fixed Cost Input'!$D$11,'Fixed Cost Input'!$D$4*'Fixed Cost Input'!$D$8,1,'Fixed Cost Input'!$D$11,0)/'Fixed Cost Input'!$D$11 -> 26.73203197 | AB48: =SUM((E48*('Data (HIDE)'!$H$16/SUM('Data (HIDE)'!$H$16+'Data (HIDE)'!$H$24+'Data (HIDE)'!$H$25)))+(Q48*('Data (HIDE)'!$H$24/SUM('Data (HIDE)'!$H$16+'Data (HIDE)'!$H$24+'Data (HIDE)'!$H$25)))+(R48*('Data (HIDE)'!$H$25/SUM('Data (HIDE)'!$H$16+'Data (HIDE)'!$H$24+'Data (HIDE)'!$H$25)))) -> 26.73203197 | AC48: =SUM(AB48/$AB$3) -> 0.04135882996 | AW48: 13.11440691 | AX48: =SUM(AW48/$AB$3) -> 0.02029013455
B49: Machinery Interest Costs | C49: 15 | D49: =SUM(C49/$C$3) -> 0.02325581395 | E49: ='Data (HIDE)'!$AK$16 -> 13.65314036 | F49: ='Data (HIDE)'!$AK$17 -> 13.65314036 | G49: ='Data (HIDE)'!$AK$18 -> 13.65314036 | H49: ='Data (HIDE)'!$AK$19 -> 13.65314036 | I49: ='Data (HIDE)'!$AK$20 -> 13.65314036 | J49: ='Data (HIDE)'!$AK$21 -> 13.65314036 | K49: ='Data (HIDE)'!$AK$22 -> 13.65314036 | L49: ='Data (HIDE)'!$AK$23 -> 16.6988409 | N49: Machinery Interest Costs | O49: 15 | P49: 0.02325581395 | Q49: ='Data (HIDE)'!$AK$24 -> 13.65314036 | R49: ='Data (HIDE)'!$AK$25 -> 13.65314036 | S49: ='Data (HIDE)'!$AK$26 -> 16.6988409 | T49: ='Data (HIDE)'!$AK$27 -> 13.65314036 | U49: ='Data (HIDE)'!$AK$28 -> 13.65314036 | V49: ='Data (HIDE)'!$AK$29 -> 16.6988409 | W49: ='Data (HIDE)'!$AK$30 -> 16.6988409 | X49: ='Data (HIDE)'!$AK$31 -> 16.6988409 | AB49: =SUM((E49*('Data (HIDE)'!$H$16/SUM('Data (HIDE)'!$H$16+'Data (HIDE)'!$H$24+'Data (HIDE)'!$H$25)))+(Q49*('Data (HIDE)'!$H$24/SUM('Data (HIDE)'!$H$16+'Data (HIDE)'!$H$24+'Data (HIDE)'!$H$25)))+(R49*('Data (HIDE)'!$H$25/SUM('Data (HIDE)'!$H$16+'Data (HIDE)'!$H$24+'Data (HIDE)'!$H$25)))) -> 13.65314036 | AC49: =SUM(AB49/$AB$3) -> 0.0211236434 | AW49: 6.741602008 | AX49: =SUM(AW49/$AB$3) -> 0.01043036203
C50: =SUM(C47:C49) -> 60 | D50: =SUM(C50/$C$3) -> 0.09302325581 | E50: =SUM(E47:E49) -> 57.11517233 | F50: =SUM(F47:F49) -> 57.86517233 | G50: 57.26517233 | H50: 56.13517233 | I50: 54.64517233 | J50: 55.20517233 | K50: 58.47517233 | L50: 70.22087287 | O50: =C50 -> 60 | P50: =D50 -> 0.09302325581 | Q50: 60.03517233 | R50: 54.27517233 | S50: 61.66087287 | T50: 54.04517233 | U50: 54.80517233 | V50: 66.75087287 | W50: 66.94087287 | X50: 67.48087287 | AB50: =SUM(AB47:AB49) -> 57.95371726 | AC50: =SUM(AB50/$AB$3) -> 0.08966388865 | AW50: 25.82476346 | AX50: =SUM(AW50/$AB$3) -> 0.03995513705
A52: = | B52: Earnings Before Taxes (EBT) | C52: =SUM(C44-C50) -> 20 | D52: =SUM(C52/$C$3) -> 0.03100775194 | E52: =SUM(E44-E50) -> -4.790705001 | F52: =SUM(F44-F50) -> -11.08779455 | G52: -31.97945613 | H52: -63.250705 | I52: 26.25765864 | J52: -74.20604563 | K52: -117.7728076 | L52: -15.86432891 | M52: = | N52: Earnings Before Taxes (EBT) | O52: =C52 -> 20 | P52: =D52 -> 0.03100775194 | Q52: 34.91508388 | R52: 39.27962979 | S52: -160.720997 | T52: -134.7996003 | U52: -77.44067198 | V52: 171.0486988 | W52: 66.52425967 | X52: 53.94425967 | AB52: =SUM(AB44-AB50) -> 20.81463169 | AC52: =SUM(AB52/$AB$3) -> 0.03220364296 | AW52: 10.3793068 | AX52: =SUM(AW52/$AB$3) -> 0.01605848689
E73: Benchmark Analysis (Ratios) | L73: Benchmark Analysis (Ratios)
C74: =C2 -> Estimated Manitoba 2024 Benchmark | E74: ='Data (HIDE)'!$B$16 -> Wheat - Hard Red Spring | F74: ='Data (HIDE)'!$B$17 -> Wheat - Northern Hard Red | G74: ='Data (HIDE)'!$B$18 -> Wheat - Prairie Spring | H74: ='Data (HIDE)'!$B$19 -> Wheat - Winter | I74: ='Data (HIDE)'!$B$20 -> Oats | J74: ='Data (HIDE)'!$B$21 -> Barley | K74: ='Data (HIDE)'!$B$22 -> Hybrid Fall Rye | L74: ='Data (HIDE)'!$B$23 -> Corn | Q74: ='Data (HIDE)'!$B$24 -> Canola | R74: ='Data (HIDE)'!$B$25 -> Soybeans | S74: ='Data (HIDE)'!$B$26 -> Sunflower - Oilseed | T74: ='Data (HIDE)'!$B$27 -> Flaxseed | U74: ='Data (HIDE)'!$B$28 -> Peas | V74: ='Data (HIDE)'!$B$29 -> Beans - Pinto | W74: ='Data (HIDE)'!$B$30 -> Beans - White | X74: ='Data (HIDE)'!$B$31 -> Beans - Black
A75: Revenue | C75: =SUM(C3/C3) -> 1 | E75: =SUM(E3/E3) -> 1 | F75: 1 | G75: 1 | H75: 1 | I75: 1 | J75: 1 | K75: 1 | L75: 1 | Q75: 1 | R75: 1 | S75: 1 | T75: 1 | U75: 1 | V75: 1 | W75: 1 | X75: 1
B76: CoGS | D76: =SUM(C11/C3) -> 0.4139534884 | E76: =SUM(E11/E3) -> 0.4117492729 | F76: 0.4282497951 | G76: 0.4336646466 | H76: 0.4341427891 | I76: 0.2993956221 | J76: 0.4060880122 | K76: 0.5253102533 | L76: 0.4426603779 | Q76: 0.4488914611 | R76: 0.3401189883 | S76: 0.5056062127 | T76: 0.480549672 | U76: 0.4323983969 | V76: 0.4038954747 | W76: 0.4581263142 | X76: 0.4722910201
A77: Gross Margin ratio (%GM) | C77: =SUM(C13/C3) -> 0.5860465116 | E77: =SUM(E13/E3) -> 0.5882507271 | F77: 0.5717502049 | G77: 0.5663353534 | H77: 0.5658572109 | I77: 0.7006043779 | J77: 0.5939119878 | K77: 0.4746897467 | L77: 0.5573396221 | Q77: 0.5511085389 | R77: 0.6598810117 | S77: 0.4943937873 | T77: 0.519450328 | U77: 0.5676016031 | V77: 0.5961045253 | W77: 0.5418736858 | X77: 0.5277089799
B78: DOE | D78: =SUM(C23/C3) -> 0.1674418605 | E78: =SUM(E23/E3) -> 0.1886377134 | F78: 0.1885334948 | G78: 0.1971083866 | H78: 0.2181123561 | I78: 0.2330466594 | J78: 0.2473643286 | K78: 0.2272950892 | L78: 0.2502105964 | Q78: 0.1519648163 | R78: 0.1741214616 | S78: 0.2829468927 | T78: 0.251479255 | U78: 0.2195861136 | V78: 0.1302275325 | W78: 0.143934034 | X78: 0.143934034
A79: Contribution Margin ratio (%CM) | C79: =SUM(C25/C3) -> 0.4186046512 | E79: =SUM(E25/E3) -> 0.3996130137 | F79: 0.3832167101 | G79: 0.3692269668 | H79: 0.3477448548 | I79: 0.4675577185 | J79: 0.3465476592 | K79: 0.2473946575 | L79: 0.3071290256 | Q79: 0.3991437225 | R79: 0.4857595501 | S79: 0.2114468946 | T79: 0.267971073 | U79: 0.3480154894 | V79: 0.4658769928 | W79: 0.3979396517 | X79: 0.3837749458
B80: OH | D80: =SUM(AB28/C3) -> 0.02751937984 | E80: =SUM(E28/E3) -> 0.02952182952 | F80: 0.02897959184 | G80: 0.03073593074 | H80: 0.03413461538 | I80: 0.03086956522 | J80: 0.03641025641 | K80: 0.03413461538 | L80: 0.02103703704 | Q80: 0.02504409171 | R80: 0.03062985332 | S80: 0.0355 | T80: 0.044375 | U80: 0.03736842105 | V80: 0.01868421053 | W80: 0.02088235294 | X80: 0.02088235294
A81: Operating Efficiency ratio (%EBITDAR) | C81: =SUM(C31/C3) -> 0.3875968992 | E81: =SUM(E31/E3) -> 0.3700911841 | F81: 0.3542371182 | G81: 0.3384910361 | H81: 0.3136102394 | I81: 0.4366881532 | J81: 0.3101374027 | K81: 0.2132600421 | L81: 0.2860919886 | Q81: 0.3740996308 | R81: 0.4551296967 | S81: 0.1759468946 | T81: 0.223596073 | U81: 0.3106470684 | V81: 0.4471927823 | W81: 0.3770572988 | X81: 0.3628925929
B82: CoC | D82: =SUM(C41/C3) -> 0.2635658915 | E82: =SUM(E41/E3) -> 0.2830650431 | F82: 0.2778658892 | G82: 0.2947062461 | H82: 0.327293956 | I82: 0.2959875776 | J82: 0.3491135531 | K82: 0.327293956 | L82: 0.221669418 | Q82: 0.2401310154 | R82: 0.2936891409 | S82: 0.3740671429 | T82: 0.4254821429 | U82: 0.3583007519 | V82: 0.1968774436 | W82: 0.2200394958 | X82: 0.2200394958
A83: EBIT ratio (%EBIT) | C83: =SUM(C44/C3) -> 0.1240310078 | E83: =SUM(E44/E3) -> 0.08702614108 | F83: 0.07637122902 | G83: 0.04378478995 | H83: -0.01368371668 | I83: 0.1407005756 | J83: -0.03897615037 | K83: -0.1140339139 | L83: 0.06442257062 | Q83: 0.1339686155 | R83: 0.1614405559 | S83: -0.1981202483 | T83: -0.2018860698 | U83: -0.04765368349 | V83: 0.2503153386 | W83: 0.157017803 | X83: 0.1428530971
B84: Interest | D84: =SUM(C50/C3) -> 0.09302325581 | E84: =SUM(E50/E3) -> 0.09499404961 | F84: 0.09447375074 | G84: 0.09916047156 | H84: 0.1079522545 | I84: 0.09503508231 | J84: 0.1132413791 | K84: 0.1124522545 | L84: 0.08322473822 | Q84: 0.08470571052 | R84: 0.09365862352 | S84: 0.1233217457 | T84: 0.1351129308 | U84: 0.1153793102 | V84: 0.07026407671 | W84: 0.07875396808 | X84: 0.0793892622
A85: EBT ratio (%EBT) | C85: =SUM(C52/C3) -> 0.03100775194 | E85: =SUM(E52/E3) -> -0.007967908526 | F85: -0.01810252172 | G85: -0.05537568161 | H85: -0.1216359712 | I85: 0.04566549329 | J85: -0.1522175295 | K85: -0.2264861684 | L85: -0.0188021676 | Q85: 0.04926290495 | R85: 0.06778193234 | S85: -0.321441994 | T85: -0.3369990007 | U85: -0.1630329937 | V85: 0.1800512619 | W85: 0.0782638349 | X85: 0.0634638349
E87: Benchmark Analysis (Dollars Per Acre) | L87: Benchmark Analysis (Dollars Per Acre)
C88: =C2 -> Estimated Manitoba 2024 Benchmark | E88: ='Data (HIDE)'!$B$16 -> Wheat - Hard Red Spring | F88: ='Data (HIDE)'!$B$17 -> Wheat - Northern Hard Red | G88: ='Data (HIDE)'!$B$18 -> Wheat - Prairie Spring | H88: ='Data (HIDE)'!$B$19 -> Wheat - Winter | I88: ='Data (HIDE)'!$B$20 -> Oats | J88: ='Data (HIDE)'!$B$21 -> Barley | K88: ='Data (HIDE)'!$B$22 -> Hybrid Fall Rye | L88: ='Data (HIDE)'!$B$23 -> Corn | Q88: ='Data (HIDE)'!$B$24 -> Canola | R88: ='Data (HIDE)'!$B$25 -> Soybeans | S88: ='Data (HIDE)'!$B$26 -> Sunflower - Oilseed | T88: ='Data (HIDE)'!$B$27 -> Flaxseed | U88: ='Data (HIDE)'!$B$28 -> Peas | V88: ='Data (HIDE)'!$B$29 -> Beans - Pinto | W88: ='Data (HIDE)'!$B$30 -> Beans - White | X88: ='Data (HIDE)'!$B$31 -> Beans - Black
A89: Revenue | C89: =C3 -> 645 | E89: =E3 -> 601.25 | F89: 612.5 | G89: 577.5 | H89: 520 | I89: 575 | J89: 487.5 | K89: 520 | L89: 843.75 | Q89: 708.75 | R89: 579.5 | S89: 500 | T89: 400 | U89: 475 | V89: 950 | W89: 850 | X89: 850
B90: CoGS | D90: =C11 -> 267 | E90: =E11 -> 247.5642504 | F90: 262.3029995 | G90: 250.4413334 | H90: 225.7542504 | I90: 172.1524827 | J90: 197.967906 | K90: 273.1613317 | L90: 373.4946939 | Q90: 318.1518231 | R90: 197.0989537 | S90: 252.8031063 | T90: 192.2198688 | U90: 205.3892385 | V90: 383.700701 | W90: 389.4073671 | X90: 401.4473671
A91: Gross Margin (GM) | C91: =C13 -> 378 | E91: =E13 -> 353.6857496 | F91: 350.1970005 | G91: 327.0586666 | H91: 294.2457496 | I91: 402.8475173 | J91: 289.532094 | K91: 246.8386683 | L91: 470.2553061 | Q91: 390.5981769 | R91: 382.4010463 | S91: 247.1968937 | T91: 207.7801312 | U91: 269.6107615 | V91: 566.299299 | W91: 460.5926329 | X91: 448.5526329
B92: DOE | D92: =C23 -> 108 | E92: =E23 -> 113.4184252 | F92: 115.4767656 | G92: 113.8300933 | H92: 113.4184252 | I92: 134.0018292 | J92: 120.5901102 | K92: 118.1934464 | L92: 211.1151907 | Q92: 107.7050636 | R92: 100.903387 | S92: 141.4734464 | T92: 100.591702 | U92: 104.303404 | V92: 123.7161559 | W92: 122.3439289 | X92: 122.3439289
A93: Contribution Margin (CM) | C93: =C25 -> 270 | E93: =E25 -> 240.2673245 | F93: 234.7202349 | G93: 213.2285733 | H93: 180.8273245 | I93: 268.8456881 | J93: 168.9419838 | K93: 128.6452219 | L93: 259.1401154 | Q93: 282.8931134 | R93: 281.4976593 | S93: 105.7234473 | T93: 107.1884292 | U93: 165.3073575 | V93: 442.5831431 | W93: 338.248704 | X93: 326.208704
B94: OH | D94: =C28 -> 20 | E94: =E28 -> 17.75 | F94: 17.75 | G94: 17.75 | H94: 17.75 | I94: 17.75 | J94: 17.75 | K94: 17.75 | L94: 17.75 | Q94: 17.75 | R94: 17.75 | S94: 17.75 | T94: 17.75 | U94: 17.75 | V94: 17.75 | W94: 17.75 | X94: 17.75
A95: Operating Income (EBITDAR) | C95: =C31 -> 250 | E95: =E31 -> 222.5173245 | F95: 216.9702349 | G95: 195.4785733 | H95: 163.0773245 | I95: 251.0956881 | J95: 151.1919838 | K95: 110.8952219 | L95: 241.3901154 | Q95: 265.1431134 | R95: 263.7476593 | S95: 87.9734473 | T95: 89.43842921 | U95: 147.5573575 | V95: 424.8331431 | W95: 320.498704 | X95: 308.458704
B96: CoC | D96: =C41 -> 170 | E96: =E41 -> 170.1928571 | F96: =F41 -> 170.1928571 | G96: 170.1928571 | H96: 170.1928571 | I96: 170.1928571 | J96: 170.1928571 | K96: 170.1928571 | L96: 187.0335714 | Q96: 170.1928571 | R96: 170.1928571 | S96: 187.0335714 | T96: 170.1928571 | U96: 170.1928571 | V96: 187.0335714 | W96: 187.0335714 | X96: 187.0335714
A97: EBIT | C97: =C44 -> 80 | E97: =E44 -> 52.32446733 | F97: =F44 -> 46.77737777 | G97: 25.2857162 | H97: -7.115532673 | I97: 80.90283097 | J97: -19.0008733 | K97: -59.29763523 | L97: 54.35654396 | Q97: 94.95025621 | R97: 93.55480212 | S97: -99.06012413 | T97: -80.75442793 | U97: -22.63549966 | V97: 237.7995717 | W97: 133.4651325 | X97: 121.4251325
B98: Interest | D98: =C50 -> 60 | E98: =E50 -> 57.11517233 | F98: =F50 -> 57.86517233 | G98: 57.26517233 | H98: 56.13517233 | I98: 54.64517233 | J98: 55.20517233 | K98: 58.47517233 | L98: 70.22087287 | Q98: 60.03517233 | R98: 54.27517233 | S98: 61.66087287 | T98: 54.04517233 | U98: 54.80517233 | V98: 66.75087287 | W98: 66.94087287 | X98: 67.48087287
A99: EBT | C99: =C52 -> 20 | E99: =E52 -> -4.790705001 | F99: =F52 -> -11.08779455 | G99: -31.97945613 | H99: -63.250705 | I99: 26.25765864 | J99: -74.20604563 | K99: -117.7728076 | L99: -15.86432891 | Q99: 34.91508388 | R99: 39.27962979 | S99: -160.720997 | T99: -134.7996003 | U99: -77.44067198 | V99: 171.0486988 | W99: 66.52425967 | X99: 53.94425967
B102: Note: This budget is only a guide and is not intended as an in depth study of the cost of production of this industry. Interpretation and utilization of this information is the responsibility of the user. | Q102: Note: This budget is only a guide and is not intended as an in depth study of the cost of production of this industry. Interpretation and utilization of this information is the responsibility of the user.
C107: =C2 -> Estimated Manitoba 2024 Benchmark
A108: Revenue | C108: =C75 -> 1 | E108: =C89 -> 645 | G108: * Crop Yield & Market Price
B109: Cost of Goods Sold (CoGS) | D109: =D76 -> 0.4139534884 | F109: =D90 -> 267 | G109: * Input Costs & Quantities | K109: (35-45%)
A110: Gross Margin ratio (%GM) | C110: =C77 -> 0.5860465116 | E110: =C91 -> 378 | K110: (55-65%)
B111: Direct Operating Expense (DOE) | D111: =D78 -> 0.1674418605 | F111: =D92 -> 108 | G111: * Labour, Fuel, Machinery Operating
A112: Contribution Margin ratio (%CM) | C112: =C79 -> 0.4186046512 | E112: =C93 -> 270 | K112: (40-50%)
B113: Overhead (OH) | D113: =D80 -> 0.02751937984 | F113: =D94 -> 20 | G113: * Other Costs, Accounting, Hydro
A114: Operating Efficiency ratio (%EBITDAR) | C114: =C81 -> 0.3875968992 | E114: =C95 -> 250 | K114: (35-40%)
B115: Cost of Capital (CoC) | D115: =D82 -> 0.2635658915 | F115: =D96 -> 170 | G115: * Land, Machinery, Depreciation
A116: EBIT ratio (%EBIT) | C116: =C83 -> 0.1240310078 | E116: =C97 -> 80 | K116: (10-15%)
B117: Interest | D117: =D84 -> 0.09302325581 | F117: =D98 -> 60
A118: EBT ratio (%EBT) | C118: =C85 -> 0.03100775194 | E118: =C99 -> 20 | K118: (5-10%)
B188: thoughts
B189: our input costs are bang on
B190: our direct op expenses are likely $20 low
B191: our 'other' op overhead are likely $10 low
B192: our capital costs are likely $40 low (opp costs)
B194: weighted avg for yields

Sheet Risk Analysis
A1: =IF('Data (HIDE)'!B13="Manitoba","AgriInsurance Analysis","AgriInsurance Analysis - "&'Data (HIDE)'!B13) -> AgriInsurance Analysis | K1: =IF('Data (HIDE)'!B13="Manitoba","AgriInsurance Analysis","AgriInsurance Analysis - "&'Data (HIDE)'!B13) -> AgriInsurance Analysis
B3: ="*Based on "&'Data (HIDE)'!B123&"*" -> *Based on 2023 MASC data* | C3: ='Data (HIDE)'!$B$16 -> Wheat - Hard Red Spring | D3: ='Data (HIDE)'!$B$17 -> Wheat - Northern Hard Red | E3: ='Data (HIDE)'!$B$18 -> Wheat - Prairie Spring | F3: ='Data (HIDE)'!$B$19 -> Wheat - Winter | G3: ='Data (HIDE)'!$B$20 -> Oats | H3: ='Data (HIDE)'!$B$21 -> Barley | I3: ='Data (HIDE)'!$B$22 -> Hybrid Fall Rye | J3: ='Data (HIDE)'!$B$23 -> Corn | N3: ='Data (HIDE)'!$B$24 -> Canola | O3: ='Data (HIDE)'!$B$25 -> Soybeans | P3: ='Data (HIDE)'!$B$26 -> Sunflower - Oilseed | Q3: ='Data (HIDE)'!$B$27 -> Flaxseed | R3: ='Data (HIDE)'!$B$28 -> Peas | S3: ='Data (HIDE)'!$B$29 -> Beans - Pinto | T3: ='Data (HIDE)'!$B$30 -> Beans - White | U3: ='Data (HIDE)'!$B$31 -> Beans - Black
A5: AgriInsurance | L5: AgriInsurance
B6: ='Data (HIDE)'!B14 -> 80% Insured Value | C6: ='Data (HIDE)'!$AO$16 -> 585.7252 | D6: ='Data (HIDE)'!$AO$17 -> 554.876 | E6: ='Data (HIDE)'!$AO$18 -> 505.6044 | F6: ='Data (HIDE)'!$AO$19 -> 527.6528 | G6: ='Data (HIDE)'!$AO$20 -> 468.1144 | H6: ='Data (HIDE)'!$AO$21 -> 417.555 | I6: ='Data (HIDE)'!$AO$22 -> 403.86 | J6: ='Data (HIDE)'!$AO$23 -> 827.2 | L6: ='Data (HIDE)'!B14 -> 80% Insured Value | N6: ='Data (HIDE)'!$AO$24 -> 719.6616 | O6: ='Data (HIDE)'!$AO$25 -> 481.8 | P6: ='Data (HIDE)'!$AO$26 -> 599.104 | Q6: ='Data (HIDE)'!$AO$27 -> 359.19 | R6: ='Data (HIDE)'!$AO$28 -> 450.216 | S6: ='Data (HIDE)'!$AO$29 -> 693.72 | T6: ='Data (HIDE)'!$AO$30 -> 687.648 | U6: ='Data (HIDE)'!$AO$31 -> 637.98
B7: Premium Cost (% of Insured) | C7: ='Data (HIDE)'!$AP$16 -> 0.02307822849 | D7: ='Data (HIDE)'!$AP$17 -> 0.02956966962 | E7: ='Data (HIDE)'!$AP$18 -> 0.02461410542 | F7: ='Data (HIDE)'!$AP$19 -> 0.02648995703 | G7: ='Data (HIDE)'!$AP$20 -> 0.04489287234 | H7: ='Data (HIDE)'!$AP$21 -> 0.0453952174 | I7: ='Data (HIDE)'!$AP$22 -> 0.04580176299 | J7: ='Data (HIDE)'!$AP$23 -> 0.06128505803 | L7: Premium Cost (% of Insured) | N7: ='Data (HIDE)'!$AP$24 -> 0.02431003683 | O7: ='Data (HIDE)'!$AP$25 -> 0.05385014529 | P7: ='Data (HIDE)'!$AP$26 -> 0.04564733335 | Q7: ='Data (HIDE)'!$AP$27 -> 0.06039978841 | R7: ='Data (HIDE)'!$AP$28 -> 0.04366237539 | S7: ='Data (HIDE)'!$AP$29 -> 0.05622945857 | T7: ='Data (HIDE)'!$AP$30 -> 0.05935449532 | U7: ='Data (HIDE)'!$AP$31 -> 0.07344274115
A9: Costs Not Covered By AgriInsurance | L9: Costs Not Covered By AgriInsurance
B10: Operating Costs | C10: =IF(Summary!C21-C6<0,0,SUM(Summary!C21-C6)) -> 0 | D10: =IF(Summary!D21-D6<0,0,SUM(Summary!D21-D6)) -> 0 | E10: =IF(Summary!E21-E6<0,0,SUM(Summary!E21-E6)) -> 0 | F10: =IF(Summary!F21-F6<0,0,SUM(Summary!F21-F6)) -> 0 | G10: =IF(Summary!G21-G6<0,0,SUM(Summary!G21-G6)) -> 0 | H10: =IF(Summary!H21-H6<0,0,SUM(Summary!H21-H6)) -> 0 | I10: =IF(Summary!I21-I6<0,0,SUM(Summary!I21-I6)) -> 16.33477808 | J10: =IF(Summary!J21-J6<0,0,SUM(Summary!J21-J6)) -> 0 | L10: Operating Costs | N10: =IF(Summary!M21-N6<0,0,SUM(Summary!M21-N6)) -> 0 | O10: =IF(Summary!N21-O6<0,0,SUM(Summary!N21-O6)) -> 0 | P10: =IF(Summary!O21-P6<0,0,SUM(Summary!O21-P6)) -> 0 | Q10: =IF(Summary!P21-Q6<0,0,SUM(Summary!P21-Q6)) -> 0 | R10: =IF(Summary!Q21-R6<0,0,SUM(Summary!Q21-R6)) -> 0 | S10: =IF(Summary!R21-S6<0,0,SUM(Summary!R21-S6)) -> 0 | T10: =IF(Summary!S21-T6<0,0,SUM(Summary!S21-T6)) -> 0 | U10: =IF(Summary!T21-U6<0,0,SUM(Summary!T21-U6)) -> 0
B11: Operating & Fixed Costs | C11: =IF(Summary!C27-C6<0,0,SUM(Summary!C27-C6)) -> 0 | D11: =IF(Summary!D27-D6<0,0,SUM(Summary!D27-D6)) -> 0 | E11: =IF(Summary!E27-E6<0,0,SUM(Summary!E27-E6)) -> 0 | F11: =IF(Summary!F27-F6<0,0,SUM(Summary!F27-F6)) -> 0 | G11: =IF(Summary!G27-G6<0,0,SUM(Summary!G27-G6)) -> 0 | H11: =IF(Summary!H27-H6<0,0,SUM(Summary!H27-H6)) -> 0 | I11: =IF(Summary!I27-I6<0,0,SUM(Summary!I27-I6)) -> 0 | J11: =IF(Summary!J27-J6<0,0,SUM(Summary!J27-J6)) -> 0 | L11: Operating & Fixed Costs | N11: =IF(Summary!M27-N6<0,0,SUM(Summary!M27-N6)) -> 0 | O11: =IF(Summary!N27-O6<0,0,SUM(Summary!N27-O6)) -> 0 | P11: =IF(Summary!O27-P6<0,0,SUM(Summary!O27-P6)) -> 0 | Q11: =IF(Summary!P27-Q6<0,0,SUM(Summary!P27-Q6)) -> 0 | R11: =IF(Summary!Q27-R6<0,0,SUM(Summary!Q27-R6)) -> 0 | S11: =IF(Summary!R27-S6<0,0,SUM(Summary!R27-S6)) -> 0 | T11: =IF(Summary!S27-T6<0,0,SUM(Summary!S27-T6)) -> 0 | U11: =IF(Summary!T27-U6<0,0,SUM(Summary!T27-U6)) -> 0
B12: Total Costs | C12: =IF(Summary!C30-C6<0,0,SUM(Summary!C30-C6)) -> 20.315505 | D12: =IF(Summary!D30-D6<0,0,SUM(Summary!D30-D6)) -> 68.71179455 | E12: =IF(Summary!E30-E6<0,0,SUM(Summary!E30-E6)) -> 103.8750561 | F12: =IF(Summary!F30-F6<0,0,SUM(Summary!F30-F6)) -> 55.597905 | G12: =IF(Summary!G30-G6<0,0,SUM(Summary!G30-G6)) -> 80.62794136 | H12: =IF(Summary!H30-H6<0,0,SUM(Summary!H30-H6)) -> 144.1510456 | I12: =IF(Summary!I30-I6<0,0,SUM(Summary!I30-I6)) -> 233.9128076 | J12: =IF(Summary!J30-J6<0,0,SUM(Summary!J30-J6)) -> 32.41432891 | L12: Total Costs | N12: =IF(Summary!M30-N6<0,0,SUM(Summary!M30-N6)) -> 0 | O12: =IF(Summary!N30-O6<0,0,SUM(Summary!N30-O6)) -> 58.42037021 | P12: =IF(Summary!O30-P6<0,0,SUM(Summary!O30-P6)) -> 61.616997 | Q12: =IF(Summary!P30-Q6<0,0,SUM(Summary!P30-Q6)) -> 175.6096003 | R12: =IF(Summary!Q30-R6<0,0,SUM(Summary!Q30-R6)) -> 102.224672 | S12: =IF(Summary!R30-S6<0,0,SUM(Summary!R30-S6)) -> 85.23130116 | T12: =IF(Summary!S30-T6<0,0,SUM(Summary!S30-T6)) -> 95.82774033 | U12: =IF(Summary!T30-U6<0,0,SUM(Summary!T30-U6)) -> 158.0757403
A14: AgriInsurance Risk Ratio | C14: (AgriInsurance Coverage / Cost) | L14: AgriInsurance Risk Ratio
B15: Operating Costs | C15: =SUM(C6/Summary!C21) -> 1.507803032 | D15: =SUM(D6/Summary!D21) -> 1.366656784 | E15: =SUM(E6/Summary!E21) -> 1.290131563 | F15: =SUM(F6/Summary!F21) -> 1.442964802 | G15: =SUM(G6/Summary!G21) -> 1.413541204 | H15: =SUM(H6/Summary!H21) -> 1.21337113 | I15: =SUM(I6/Summary!I21) -> 0.9611256995 | J15: =SUM(J6/Summary!J21) -> 1.329583145 | L15: Operating Costs | N15: =SUM(N6/Summary!M21) -> 1.577316685 | O15: =SUM(O6/Summary!N21) -> 1.493294398 | P15: =SUM(P6/Summary!O21) -> 1.415463024 | Q15: =SUM(Q6/Summary!P21) -> 1.132300049 | R15: =SUM(R6/Summary!Q21) -> 1.344479625 | S15: =SUM(S6/Summary!R21) -> 1.281139129 | T15: =SUM(T6/Summary!S21) -> 1.259402516 | U15: =SUM(U6/Summary!T21) -> 1.142123059
B16: Total Costs | C16: =SUM(C6/Summary!C30) -> 0.966478316 | D16: =SUM(D6/Summary!D30) -> 0.8898121561 | E16: =SUM(E6/Summary!E30) -> 0.8295675841 | F16: =SUM(F6/Summary!F30) -> 0.9046758032 | G16: =SUM(G6/Summary!G30) -> 0.8530677601 | H16: =SUM(H6/Summary!H30) -> 0.7433692467 | I16: =SUM(I6/Summary!I30) -> 0.6332349 | J16: =SUM(J6/Summary!J30) -> 0.9622920095 | L16: Total Costs | N16: =SUM(N6/Summary!M30) -> 1.06800877 | O16: =SUM(O6/Summary!N30) -> 0.8918582611 | P16: =SUM(P6/Summary!O30) -> 0.9067427897 | Q16: =SUM(Q6/Summary!P30) -> 0.6716347578 | R16: =SUM(R6/Summary!Q30) -> 0.8149580993 | S16: =SUM(S6/Summary!R30) -> 0.8905819901 | T16: =SUM(T6/Summary!S30) -> 0.8776889502 | U16: =SUM(U6/Summary!T30) -> 0.8014262917
B18: Risk Ranking | C18: =RANK(C15,$C15:$U15,1) -> 15 | D18: 10 | E18: 7 | F18: 13 | G18: 11 | H18: 4 | I18: 1 | J18: 8 | L18: Risk Ranking | N18: =RANK(N15,$C15:$U15,1) -> 16 | O18: 14 | P18: 12 | Q18: 2 | R18: 9 | S18: 6 | T18: 5 | U18: 3
B19: (Lower number indicates increasing risk) | L19: (Lower number indicates increasing risk)
A21: =IF('Data (HIDE)'!B13="Manitoba","Risk & Sensitivity Analysis (Stress Test)","Risk & Sensitivity Analysis (Stress Test) - "&'Data (HIDE)'!B13) -> Risk & Sensitivity Analysis (Stress Test) | K21: =IF('Data (HIDE)'!B13="Manitoba","Risk & Sensitivity Analysis (Stress Test)","Risk & Sensitivity Analysis (Stress Test) - "&'Data (HIDE)'!B13) -> Risk & Sensitivity Analysis (Stress Test)
A24: =#REF! ->  | B24: Operating Cost | C24: =Summary!C21 -> 388.4626755 | D24: =Summary!D21 -> 406.0097651 | E24: =Summary!E21 -> 391.9014267 | F24: =Summary!F21 -> 365.6726755 | G24: =Summary!G21 -> 331.1643119 | H24: =Summary!H21 -> 344.1280162 | I24: =Summary!I21 -> 420.1947781 | J24: =Summary!J21 -> 622.1498846 | K24: =Summary!M21 -> 456.2568866 | L24: =Summary!N21 -> 322.6423407 | M24: =Summary!O21 -> 423.2565527 | N24: =Summary!P21 -> 317.2215708 | O24: =Summary!Q21 -> 334.8626425 | P24: =Summary!R21 -> 541.4868569 | Q24: =Summary!S21 -> 546.011296 | R24: =Summary!T21 -> 558.591296 | S24: =Summary!#REF! -> 
B25: Land Cost | C25: =Summary!C24 -> 101.432032 | D25: =Summary!D24 -> 101.432032 | E25: =Summary!E24 -> 101.432032 | F25: =Summary!F24 -> 101.432032 | G25: =Summary!G24 -> 101.432032 | H25: =Summary!H24 -> 101.432032 | I25: =Summary!I24 -> 101.432032 | J25: =Summary!J24 -> 101.432032 | K25: =Summary!M24 -> 101.432032 | L25: =Summary!N24 -> 101.432032 | M25: =Summary!O24 -> 101.432032 | N25: =Summary!P24 -> 101.432032 | O25: =Summary!Q24 -> 101.432032 | P25: =Summary!R24 -> 101.432032 | Q25: =Summary!S24 -> 101.432032 | R25: =Summary!T24 -> 101.432032 | S25: =Summary!#REF! -> 
A26: =#REF! ->  | B26: Machinery Cost | C26: =Summary!C25 -> 89.1459975 | D26: =Summary!D25 -> 89.1459975 | E26: =Summary!E25 -> 89.1459975 | F26: =Summary!F25 -> 89.1459975 | G26: =Summary!G25 -> 89.1459975 | H26: =Summary!H25 -> 89.1459975 | I26: =Summary!I25 -> 89.1459975 | J26: =Summary!J25 -> 109.0324123 | K26: =Summary!M25 -> 89.1459975 | L26: =Summary!N25 -> 89.1459975 | M26: =Summary!O25 -> 109.0324123 | N26: =Summary!P25 -> 89.1459975 | O26: =Summary!Q25 -> 89.1459975 | P26: =Summary!R25 -> 109.0324123 | Q26: =Summary!S25 -> 109.0324123 | R26: =Summary!T25 -> 109.0324123 | S26: =Summary!#REF! -> 
B27: Labour - Owner Living | C27: =Summary!C28 -> 27 | D27: =Summary!D28 -> 27 | E27: =Summary!E28 -> 27 | F27: =Summary!F28 -> 27 | G27: =Summary!G28 -> 27 | H27: =Summary!H28 -> 27 | I27: =Summary!I28 -> 27 | J27: =Summary!J28 -> 27 | K27: =Summary!M28 -> 27 | L27: =Summary!N28 -> 27 | M27: =Summary!O28 -> 27 | N27: =Summary!P28 -> 27 | O27: =Summary!Q28 -> 27 | P27: =Summary!R28 -> 27 | Q27: =Summary!S28 -> 27 | R27: =Summary!T28 -> 27 | S27: =Summary!#REF! -> 
A28: =#REF! ->  | C28: =SUM(C24:C27) -> 606.040705 | D28: =SUM(D24:D27) -> 623.5877946 | E28: 609.4794561 | F28: 583.250705 | G28: 548.7423414 | H28: 561.7060456 | I28: 637.7728076 | J28: 859.6143289 | K28: 673.8349161 | L28: 540.2203702 | M28: 660.720997 | N28: 534.7996003 | O28: 552.440672 | P28: 778.9513012 | Q28: 783.4757403 | R28: 796.0557403
A30: Estimated Farmgate
B31: Price $ per unit | C31: =Summary!C34 -> 9.25 | D31: =Summary!D34 -> 8.75 | E31: =Summary!E34 -> 8.75 | F31: =Summary!F34 -> 8 | G31: =Summary!G34 -> 5 | H31: =Summary!H34 -> 6.25 | I31: =Summary!I34 -> 6.5 | J31: =Summary!J34 -> 6.25 | K31: =Summary!M34 -> 15.75 | L31: =Summary!N34 -> 15.25 | M31: =Summary!O34 -> 0.25 | N31: =Summary!P34 -> 16 | O31: =Summary!Q34 -> 9.5 | P31: =Summary!R34 -> 0.5 | Q31: =Summary!S34 -> 0.5 | R31: =Summary!T34 -> 0.5 | S31: =Summary!#REF! -> 
B32: Yield per acre (bu or lb.) | C32: =Summary!C36 -> 65 | D32: =Summary!D36 -> 70 | E32: =Summary!E36 -> 66 | F32: =Summary!F36 -> 65 | G32: =Summary!G36 -> 115 | H32: =Summary!H36 -> 78 | I32: =Summary!I36 -> 80 | J32: =Summary!J36 -> 135 | K32: =Summary!M36 -> 45 | L32: =Summary!N36 -> 38 | M32: =Summary!O36 -> 2000 | N32: =Summary!P36 -> 25 | O32: =Summary!Q36 -> 50 | P32: =Summary!R36 -> 1900 | Q32: =Summary!S36 -> 1700 | R32: =Summary!T36 -> 1700 | S32: =Summary!#REF! -> 
B33: Unit type | C33: =Summary!C37 -> bu | D33: =Summary!D37 -> bu | E33: =Summary!E37 -> bu | F33: =Summary!F37 -> bu | G33: =Summary!G37 -> bu | H33: =Summary!H37 -> bu | I33: =Summary!I37 -> bu | J33: =Summary!J37 -> bu | K33: =Summary!M37 -> bu | L33: =Summary!N37 -> bu | M33: =Summary!O37 -> lb | N33: =Summary!P37 -> bu | O33: =Summary!Q37 -> bu | P33: =Summary!R37 -> lb | Q33: =Summary!S37 -> lb | R33: =Summary!T37 -> lb | S33: =Summary!#REF! -> 
C34: =Summary!C38 -> 601.25 | D34: =Summary!D38 -> 612.5 | E34: =Summary!E38 -> 577.5 | F34: =Summary!F38 -> 520 | G34: =Summary!G38 -> 575 | H34: =Summary!H38 -> 487.5 | I34: =Summary!I38 -> 520 | J34: =Summary!J38 -> 843.75 | K34: =Summary!M38 -> 708.75 | L34: =Summary!N38 -> 579.5 | M34: =Summary!O38 -> 500 | N34: =Summary!P38 -> 400 | O34: =Summary!Q38 -> 475 | P34: =Summary!R38 -> 950 | Q34: =Summary!S38 -> 850 | R34: =Summary!T38 -> 850 | S34: =Summary!#REF! -> 
B37: Percent Crop Yield Change | C37: -0.2 | G37: Percent Fertilizer Cost Change | H37: 0 | P37: Change in Equipment Investment ($/Acre) | Q37: 0 | R37: =" = "&TEXT(ABS(J142-E142),"$0.00")&" "&IF(J142-E142<0,"decreased ","increased ")&"equipment cost /acre" -> = $0.00 increased equipment cost /acre
B38: Percent Market Price Change | C38: -0.1 | G38: Percent Seed Cost Change | H38: 0 | P38: ="Change in Owned Acres (Purchase or Sale @ $"&TEXT('Fixed Cost Input'!D4,"#,###")&"/acre)" -> Change in Owned Acres (Purchase or Sale @ $4,150/acre) | Q38: 0 | R38: =" = "&TEXT(ABS(I154-D154),"$0.00")&" "&IF(I154-D154<0,"decreased ","increased ")&"land cost /acre" -> = $0.00 increased land cost /acre
B39: Percent Fuel Cost Change | C39: 0 | G39: Percent Pesticide Cost Change | H39: 0
C42: ='Data (HIDE)'!$B$16 -> Wheat - Hard Red Spring | D42: ='Data (HIDE)'!$B$17 -> Wheat - Northern Hard Red | E42: ='Data (HIDE)'!$B$18 -> Wheat - Prairie Spring | F42: ='Data (HIDE)'!$B$19 -> Wheat - Winter | G42: ='Data (HIDE)'!$B$20 -> Oats | H42: ='Data (HIDE)'!$B$21 -> Barley | I42: ='Data (HIDE)'!$B$22 -> Hybrid Fall Rye | J42: ='Data (HIDE)'!$B$23 -> Corn | N42: ='Data (HIDE)'!$B$24 -> Canola | O42: ='Data (HIDE)'!$B$25 -> Soybeans | P42: ='Data (HIDE)'!$B$26 -> Sunflower - Oilseed | Q42: ='Data (HIDE)'!$B$27 -> Flaxseed | R42: ='Data (HIDE)'!$B$28 -> Peas | S42: ='Data (HIDE)'!$B$29 -> Beans - Pinto | T42: ='Data (HIDE)'!$B$30 -> Beans - White | U42: ='Data (HIDE)'!$B$31 -> Beans - Black
B44: Percent Crop Yield Change | C44: =$C$37 -> -0.2 | D44: -0.2 | E44: -0.2 | F44: -0.2 | G44: -0.2 | H44: -0.2 | I44: -0.2 | J44: -0.2 | L44: Percent Crop Yield Change | N44: =$C$37 -> -0.2 | O44: -0.2 | P44: -0.2 | Q44: -0.2 | R44: -0.2 | S44: -0.2 | T44: -0.2 | U44: -0.2 | AG44: =$C$37 -> -0.2
B45: Yield (units/acre) | C45: =C49 -> 52 | D45: =D49 -> 56 | E45: 52.8 | F45: 52 | G45: 92 | H45: 62.4 | I45: 64 | J45: 108 | L45: Yield (units/acre) | N45: =N49 -> 36 | O45: 30.4 | P45: 1600 | Q45: 20 | R45: 40 | S45: 1520 | T45: 1360 | U45: 1360
B46: Percent Market Price Change | C46: =$C$38 -> -0.1 | D46: -0.1 | E46: -0.1 | F46: -0.1 | G46: -0.1 | H46: -0.1 | I46: -0.1 | J46: -0.1 | L46: Percent Market Price Change | N46: =$C$38 -> -0.1 | O46: -0.1 | P46: -0.1 | Q46: -0.1 | R46: -0.1 | S46: -0.1 | T46: -0.1 | U46: -0.1 | AG46: =$C$38 -> -0.1
B47: Price ($/unit) | C47: =C48 -> 8.325 | D47: =D48 -> 7.875 | E47: 7.875 | F47: 7.2 | G47: 4.5 | H47: 5.625 | I47: 5.85 | J47: 5.625 | L47: Price ($/unit) | N47: =N48 -> 14.175 | O47: 13.725 | P47: 0.225 | Q47: 14.4 | R47: 8.55 | S47: 0.45 | T47: 0.45 | U47: 0.45
B48: Market Price ($ per unit) | C48: =SUM(C31*(1+C46)) -> 8.325 | D48: =SUM(D31*(1+D46)) -> 7.875 | E48: 7.875 | F48: 7.2 | G48: 4.5 | H48: 5.625 | I48: 5.85 | J48: 5.625 | L48: Market Price ($ per unit) | N48: =SUM(K31*(1+N46)) -> 14.175 | O48: 13.725 | P48: 0.225 | Q48: 14.4 | R48: 8.55 | S48: 0.45 | T48: 0.45 | U48: 0.45
B49: Yield (per acre) | C49: =ROUND(C32*(1+C44),1) -> 52 | D49: =ROUND(D32*(1+D44),1) -> 56 | E49: 52.8 | F49: 52 | G49: 92 | H49: 62.4 | I49: 64 | J49: 108 | L49: Yield (per acre) | N49: =ROUND(K32*(1+N44),1) -> 36 | O49: 30.4 | P49: 1600 | Q49: 20 | R49: 40 | S49: 1520 | T49: 1360 | U49: 1360
B50: Gross Revenue / acre | C50: =C48*C49 -> 432.9 | D50: 441 | E50: 415.8 | F50: 374.4 | G50: 414 | H50: 351 | I50: 374.4 | J50: 607.5 | L50: Gross Revenue / acre | N50: =N48*N49 -> 510.3 | O50: 417.24 | P50: 360 | Q50: 288 | R50: 342 | S50: 684 | T50: 612 | U50: 612
A51: Stress Test Change in Value
B52: Market Price ($ per unit) | C52: =SUM(C48-C31) -> -0.925 | D52: =SUM(D48-D31) -> -0.875 | E52: -0.875 | F52: -0.8 | G52: -0.5 | H52: -0.625 | I52: -0.65 | J52: -0.625 | L52: Market Price ($ per unit) | N52: =SUM(N48-K31) -> -1.575 | O52: -1.525 | P52: -0.025 | Q52: -1.6 | R52: -0.95 | S52: -0.05 | T52: -0.05 | U52: -0.05
B53: Yield (per acre) | C53: =SUM(C49-C32) -> -13 | D53: =SUM(D49-D32) -> -14 | E53: -13.2 | F53: -13 | G53: -23 | H53: -15.6 | I53: -16 | J53: -27 | L53: Yield (per acre) | N53: -9 | O53: -7.6 | P53: -400 | Q53: -5 | R53: -10 | S53: -380 | T53: -340 | U53: -340
B54: Equipment Cost ($ per acre) | C54: =$J$142-$E$142 -> 0 | D54: 0 | E54: 0 | F54: 0 | G54: 0 | H54: 0 | I54: 0 | J54: 0 | L54: Equipment Cost ($ per acre) | N54: =$J$142-$E$142 -> 0 | O54: 0 | P54: 0 | Q54: 0 | R54: 0 | S54: 0 | T54: 0 | U54: 0
B55: Land Cost ($ per acre) | C55: =$I$154-$D$154 -> 0 | D55: 0 | E55: 0 | F55: 0 | G55: 0 | H55: 0 | I55: 0 | J55: 0 | L55: Land Cost ($ per acre) | N55: =$I$154-$D$154 -> 0 | O55: 0 | P55: 0 | Q55: 0 | R55: 0 | S55: 0 | T55: 0 | U55: 0
B56: Fertilizer Cost ($ per acre) | C56: =Summary!C5*$H$37 -> 0 | D56: =Summary!D5*$H$37 -> 0 | E56: =Summary!E5*$H$37 -> 0 | F56: =Summary!F5*$H$37 -> 0 | G56: =Summary!G5*$H$37 -> 0 | H56: =Summary!H5*$H$37 -> 0 | I56: =Summary!I5*$H$37 -> 0 | J56: =Summary!J5*$H$37 -> 0 | L56: Fertilizer Cost ($ per acre) | N56: =Summary!M5*$H$37 -> 0 | O56: =Summary!N5*$H$37 -> 0 | P56: =Summary!O5*$H$37 -> 0 | Q56: =Summary!P5*$H$37 -> 0 | R56: =Summary!Q5*$H$37 -> 0 | S56: =Summary!R5*$H$37 -> 0 | T56: =Summary!S5*$H$37 -> 0 | U56: =Summary!T5*$H$37 -> 0
B57: Fuel Cost ($ per acre) | C57: =Summary!C9*$C$39 -> 0 | D57: =Summary!D9*$C$39 -> 0 | E57: =Summary!E9*$C$39 -> 0 | F57: =Summary!F9*$C$39 -> 0 | G57: =Summary!G9*$C$39 -> 0 | H57: =Summary!H9*$C$39 -> 0 | I57: =Summary!I9*$C$39 -> 0 | J57: =Summary!J9*$C$39 -> 0 | L57: Fuel Cost ($ per acre) | N57: =Summary!M9*$C$39 -> 0 | O57: =Summary!N9*$C$39 -> 0 | P57: =Summary!O9*$C$39 -> 0 | Q57: =Summary!P9*$C$39 -> 0 | R57: =Summary!Q9*$C$39 -> 0 | S57: =Summary!R9*$C$39 -> 0 | T57: =Summary!S9*$C$39 -> 0 | U57: =Summary!T9*$C$39 -> 0
B58: Seed Cost ($ per acre) | C58: =Summary!C4*$H$38 -> 0 | D58: =Summary!D4*$H$38 -> 0 | E58: =Summary!E4*$H$38 -> 0 | F58: =Summary!F4*$H$38 -> 0 | G58: =Summary!G4*$H$38 -> 0 | H58: =Summary!H4*$H$38 -> 0 | I58: =Summary!I4*$H$38 -> 0 | J58: =Summary!J4*$H$38 -> 0 | L58: Seed Cost ($ per acre) | N58: =Summary!M4*$H$38 -> 0 | O58: =Summary!N4*$H$38 -> 0 | P58: =Summary!O4*$H$38 -> 0 | Q58: =Summary!P4*$H$38 -> 0 | R58: =Summary!Q4*$H$38 -> 0 | S58: =Summary!R4*$H$38 -> 0 | T58: =Summary!S4*$H$38 -> 0 | U58: =Summary!T4*$H$38 -> 0
B59: Chemical Cost ($ per acre) | C59: =Summary!C6*$H$39 -> 0 | D59: =Summary!D6*$H$39 -> 0 | E59: =Summary!E6*$H$39 -> 0 | F59: =Summary!F6*$H$39 -> 0 | G59: =Summary!G6*$H$39 -> 0 | H59: =Summary!H6*$H$39 -> 0 | I59: =Summary!I6*$H$39 -> 0 | J59: =Summary!J6*$H$39 -> 0 | L59: Chemical Cost ($ per acre) | N59: =Summary!M6*$H$39 -> 0 | O59: =Summary!N6*$H$39 -> 0 | P59: =Summary!O6*$H$39 -> 0 | Q59: =Summary!P6*$H$39 -> 0 | R59: =Summary!Q6*$H$39 -> 0 | S59: =Summary!R6*$H$39 -> 0 | T59: =Summary!S6*$H$39 -> 0 | U59: =Summary!T6*$H$39 -> 0
A60: Change from Baseline Values
B61: Cost ($/acre) | C61: =SUM(C54:C59) -> 0 | D61: =SUM(D54:D59) -> 0 | E61: 0 | F61: 0 | G61: 0 | H61: 0 | I61: 0 | J61: 0 | L61: Cost ($/acre) | N61: =SUM(N54:N59) -> 0 | O61: 0 | P61: 0 | Q61: 0 | R61: 0 | S61: 0 | T61: 0 | U61: 0
B62: Revenue ($/acre) | C62: =-SUM(C34-C50) -> -168.35 | D62: -171.5 | E62: -161.7 | F62: -145.6 | G62: -161 | H62: -136.5 | I62: -145.6 | J62: -236.25 | L62: Revenue ($/acre) | N62: =-SUM(K34-N50) -> -198.45 | O62: -162.26 | P62: -140 | Q62: -112 | R62: -133 | S62: -266 | T62: -238 | U62: -238
A63: Change in Profit (Loss) % | C63: =IF(Summary!C48<0,-(C65/Summary!C48),C65/Summary!C48) -> -35.14096567 | D63: =IF(Summary!D48<0,-(D65/Summary!D48),D65/Summary!D48) -> -15.46745831 | E63: =IF(Summary!E48<0,-(E65/Summary!E48),E65/Summary!E48) -> -5.056371169 | F63: =IF(Summary!F48<0,-(F65/Summary!F48),F65/Summary!F48) -> -2.301950626 | G63: =IF(Summary!G48<0,-(G65/Summary!G48),G65/Summary!G48) -> -6.131544408 | H63: =IF(Summary!H48<0,-(H65/Summary!H48),H65/Summary!H48) -> -1.839472766 | I63: =IF(Summary!I48<0,-(I65/Summary!I48),I65/Summary!I48) -> -1.236278586 | J63: =IF(Summary!J48<0,-(J65/Summary!J48),J65/Summary!J48) -> -14.89190002 | N63: =IF(Summary!M48<0,-(N65/Summary!M48),N65/Summary!M48) -> -5.683789868 | O63: =IF(Summary!N48<0,-(O65/Summary!N48),O65/Summary!N48) -> -4.130894331 | P63: =IF(Summary!O48<0,-(P65/Summary!O48),P65/Summary!O48) -> -0.8710747358 | Q63: =IF(Summary!P48<0,-(Q65/Summary!P48),Q65/Summary!P48) -> -0.830862998 | R63: =IF(Summary!Q48<0,-(R65/Summary!Q48),R65/Summary!Q48) -> -1.717443775 | S63: =IF(Summary!R48<0,-(S65/Summary!R48),S65/Summary!R48) -> -1.555112677 | T63: =IF(Summary!S48<0,-(T65/Summary!S48),T65/Summary!S48) -> -3.577642219 | U63: =IF(Summary!T48<0,-(U65/Summary!T48),U65/Summary!T48) -> -4.411961559
A65: Change in Profit (Loss) $/acre | C65: =C62-C61 -> -168.35 | D65: -171.5 | E65: -161.7 | F65: -145.6 | G65: -161 | H65: -136.5 | I65: -145.6 | J65: -236.25 | L65: Change in Profit (Loss) $/acre | N65: =N62-N61 -> -198.45 | O65: -162.26 | P65: -140 | Q65: -112 | R65: -133 | S65: -266 | T65: -238 | U65: -238
A67: ="Stress Test Scenario = Market Price "&IF(#REF!<0,"Down","Up")&" "&ABS(#REF!*100)&"%, and Crop Yield "&IF(C37<0,"Down","Up")&" "&ABS(C37*100)&"%" ->  | L67: ="Stress Test Scenario = Market Price "&IF(#REF!<0,"Down","Up")&" "&ABS(#REF!*100)&"%, and Crop Yield "&IF(M37<0,"Down","Up")&" "&ABS(M37*100)&"%" -> 
A68: Adjusted Net Profit (Loss) $/acre | C68: =SUM(C50-C28-C54-C55-C56-C57-C58-C59) -> -173.140705 | D68: =SUM(D50-D28-D54-D55-D56-D57-D58-D59) -> -182.5877946 | E68: -193.6794561 | F68: -208.850705 | G68: -134.7423414 | H68: -210.7060456 | I68: -263.3728076 | J68: -252.1143289 | L68: Adjusted Net Profit (Loss) $/acre | N68: =SUM(N50-K28-N54-N55-N56-N57-N58-N59) -> -163.5349161 | O68: -122.9803702 | P68: -300.720997 | Q68: -246.7996003 | R68: -210.440672 | S68: -94.95130116 | T68: -171.4757403 | U68: -184.0557403
A69: Adjusted Profitability Ranking | C69: =RANK(C68,$C$68:$U$68) -> 6 | D69: 7 | E69: 9 | F69: 10 | G69: 3 | H69: 12 | I69: 15 | J69: 14 | L69: Adjusted Profitability Ranking | N69: =RANK(N68,$C$68:$U$68) -> 4 | O69: 2 | P69: 16 | Q69: 13 | R69: 11 | S69: 1 | T69: 5 | U69: 8
A71: ="Stress Test - Total Farm Debt ($/acre) = $"&TEXT(L133+L148,"#,###")&" (land debt of $"&TEXT(L148,"#,###")&"/acre + machinery debt of $"&TEXT(L133,"#,###")&"/acre, farm equity = "&ROUND(L156*100,1)&"%)" -> Stress Test - Total Farm Debt ($/acre) = $816 (land debt of $498/acre + machinery debt of $318/acre, farm equity = 83.5%)
A72: ="(compared to baseline - Total Farm Debt ($/acre) = $"&TEXT(G133+G148,"#,###")&" land debt of $"&TEXT(G148,"#,###")&"/acre + machinery debt of $"&TEXT(G133,"#,###")&"/acre, farm equity = "&ROUND(G156*100,1)&"%)" -> (compared to baseline - Total Farm Debt ($/acre) = $816 land debt of $498/acre + machinery debt of $318/acre, farm equity = 83.5%)
A74: Rotation Economic Analysis | K74: Rotation Economic Analysis
A76: ='Data (HIDE)'!B211 -> Data Source – MASC Harvest Production Reports (2010-2015)
C77: Year 1 | D77: Year 2 | E77: Year 3 | F77: Year 4 | G77: Year 5 | H77: Year 6 | N77: Year 1 | O77: Year 2 | P77: Year 3 | Q77: Year 4 | R77: Year 5 | S77: Year 6
A78: Example Rotation #1 | C78: Wheat - Hard Red Spring | D78: Canola | E78: Wheat - Hard Red Spring | F78: Canola | G78: Wheat - Hard Red Spring | H78: Canola | I78: Rotation Total Marginal Return | L78: Example Rotation #3 | N78: Wheat - Hard Red Spring | O78: Canola | P78: Oats | Q78: Soybeans | R78: Corn | S78: Sunflower | T78: Rotation Total Marginal Return
A79: Rotation Yield Premium | C79: 1 | D79: =HLOOKUP(D78,'Data (HIDE)'!$D$213:$Q$227,VLOOKUP(C78,'Data (HIDE)'!$B$214:$C$227,2,FALSE),FALSE)/100 -> 1.02 | E79: =HLOOKUP(E78,'Data (HIDE)'!$D$213:$Q$227,VLOOKUP(D78,'Data (HIDE)'!$B$214:$C$227,2,FALSE),FALSE)/100 -> 1.01 | F79: =HLOOKUP(F78,'Data (HIDE)'!$D$213:$Q$227,VLOOKUP(E78,'Data (HIDE)'!$B$214:$C$227,2,FALSE),FALSE)/100 -> 1.02 | G79: =HLOOKUP(G78,'Data (HIDE)'!$D$213:$Q$227,VLOOKUP(F78,'Data (HIDE)'!$B$214:$C$227,2,FALSE),FALSE)/100 -> 1.01 | H79: =HLOOKUP(H78,'Data (HIDE)'!$D$213:$Q$227,VLOOKUP(G78,'Data (HIDE)'!$B$214:$C$227,2,FALSE),FALSE)/100 -> 1.02 | I79: - | L79: Rotation Yield Premium | N79: 1 | O79: =HLOOKUP(O78,'Data (HIDE)'!$D$213:$Q$227,VLOOKUP(N78,'Data (HIDE)'!$B$214:$C$227,2,FALSE),FALSE)/100 -> 1.02 | P79: =HLOOKUP(P78,'Data (HIDE)'!$D$213:$Q$227,VLOOKUP(O78,'Data (HIDE)'!$B$214:$C$227,2,FALSE),FALSE)/100 -> 1.01 | Q79: =HLOOKUP(Q78,'Data (HIDE)'!$D$213:$Q$227,VLOOKUP(P78,'Data (HIDE)'!$B$214:$C$227,2,FALSE),FALSE)/100 -> 1 | R79: =HLOOKUP(R78,'Data (HIDE)'!$D$213:$Q$227,VLOOKUP(Q78,'Data (HIDE)'!$B$214:$C$227,2,FALSE),FALSE)/100 -> 1.03 | S79: =HLOOKUP(S78,'Data (HIDE)'!$D$213:$Q$227,VLOOKUP(R78,'Data (HIDE)'!$B$214:$C$227,2,FALSE),FALSE)/100 -> 1.19 | T79: -
A80: Net Profit (Loss) | C80: =(HLOOKUP(C78,Summary!$C$2:$T$67,35,FALSE)*HLOOKUP(C78,Summary!$C$2:$T$67,33,FALSE))-HLOOKUP(C78,Summary!$C$2:$T$67,29,FALSE) -> -4.790705001 | D80: =(HLOOKUP(D78,Summary!$C$2:$T$67,35,FALSE)*D79*HLOOKUP(D78,Summary!$C$2:$T$67,33,FALSE))-HLOOKUP(D78,Summary!$C$2:$T$67,29,FALSE) -> 49.09008388 | E80: =(HLOOKUP(E78,Summary!$C$2:$T$67,35,FALSE)*E79*HLOOKUP(E78,Summary!$C$2:$T$67,33,FALSE))-HLOOKUP(E78,Summary!$C$2:$T$67,29,FALSE) -> 1.221794999 | F80: =(HLOOKUP(F78,Summary!$C$2:$T$67,35,FALSE)*F79*HLOOKUP(F78,Summary!$C$2:$T$67,33,FALSE))-HLOOKUP(F78,Summary!$C$2:$T$67,29,FALSE) -> 49.09008388 | G80: =(HLOOKUP(G78,Summary!$C$2:$T$67,35,FALSE)*G79*HLOOKUP(G78,Summary!$C$2:$T$67,33,FALSE))-HLOOKUP(G78,Summary!$C$2:$T$67,29,FALSE) -> 1.221794999 | H80: =(HLOOKUP(H78,Summary!$C$2:$T$67,35,FALSE)*H79*HLOOKUP(H78,Summary!$C$2:$T$67,33,FALSE))-HLOOKUP(H78,Summary!$C$2:$T$67,29,FALSE) -> 49.09008388 | I80: =SUM(C80:H80) -> 144.9231366 | L80: Net Profit (Loss) | N80: =(HLOOKUP(N78,Summary!$C$2:$T$67,35,FALSE)*HLOOKUP(N78,Summary!$C$2:$T$67,33,FALSE))-HLOOKUP(N78,Summary!$C$2:$T$67,29,FALSE) -> -4.790705001 | O80: =(HLOOKUP(O78,Summary!$C$2:$T$67,35,FALSE)*O79*HLOOKUP(O78,Summary!$C$2:$T$67,33,FALSE))-HLOOKUP(O78,Summary!$C$2:$T$67,29,FALSE) -> 49.09008388 | P80: =(HLOOKUP(P78,Summary!$C$2:$T$67,35,FALSE)*P79*HLOOKUP(P78,Summary!$C$2:$T$67,33,FALSE))-HLOOKUP(P78,Summary!$C$2:$T$67,29,FALSE) -> 32.00765864 | Q80: =(HLOOKUP(Q78,Summary!$C$2:$T$67,35,FALSE)*Q79*HLOOKUP(Q78,Summary!$C$2:$T$67,33,FALSE))-HLOOKUP(Q78,Summary!$C$2:$T$67,29,FALSE) -> 39.27962979 | R80: =(HLOOKUP(R78,Summary!$C$2:$T$67,35,FALSE)*R79*HLOOKUP(R78,Summary!$C$2:$T$67,33,FALSE))-HLOOKUP(R78,Summary!$C$2:$T$67,29,FALSE) -> 9.448171087 | S80: =(HLOOKUP(S78,Summary!$C$2:$T$67,35,FALSE)*S79*HLOOKUP(S78,Summary!$C$2:$T$67,33,FALSE))-HLOOKUP(S78,Summary!$C$2:$T$67,29,FALSE) ->  | T80: =SUM(N80:S80) -> 
A82: Example Rotation #2 | C82: Corn | D82: Canola | E82: Wheat - Hard Red Spring | F82: Soybeans | G82: Corn | H82: Canola | I82: Rotation Total Marginal Return | L82: Your Farm Rotation | N82: Soybeans | O82: Wheat - Hard Red Spring | P82: Canola | Q82: Soybeans | R82: Wheat - Hard Red Spring | S82: Canola | T82: Rotation Total Marginal Return
A83: Rotation Yield Premium | C83: 1 | D83: =HLOOKUP(D82,'Data (HIDE)'!$D$213:$Q$227,VLOOKUP(C82,'Data (HIDE)'!$B$214:$C$227,2,FALSE),FALSE)/100 -> 1.12 | E83: =HLOOKUP(E82,'Data (HIDE)'!$D$213:$Q$227,VLOOKUP(D82,'Data (HIDE)'!$B$214:$C$227,2,FALSE),FALSE)/100 -> 1.01 | F83: =HLOOKUP(F82,'Data (HIDE)'!$D$213:$Q$227,VLOOKUP(E82,'Data (HIDE)'!$B$214:$C$227,2,FALSE),FALSE)/100 -> 1.01 | G83: =HLOOKUP(G82,'Data (HIDE)'!$D$213:$Q$227,VLOOKUP(F82,'Data (HIDE)'!$B$214:$C$227,2,FALSE),FALSE)/100 -> 1.03 | H83: =HLOOKUP(H82,'Data (HIDE)'!$D$213:$Q$227,VLOOKUP(G82,'Data (HIDE)'!$B$214:$C$227,2,FALSE),FALSE)/100 -> 1.12 | I83: - | L83: Rotation Yield Premium | N83: 1 | O83: =HLOOKUP(O82,'Data (HIDE)'!$D$213:$Q$227,VLOOKUP(N82,'Data (HIDE)'!$B$214:$C$227,2,FALSE),FALSE)/100 -> 1.08 | P83: =HLOOKUP(P82,'Data (HIDE)'!$D$213:$Q$227,VLOOKUP(O82,'Data (HIDE)'!$B$214:$C$227,2,FALSE),FALSE)/100 -> 1.02 | Q83: =HLOOKUP(Q82,'Data (HIDE)'!$D$213:$Q$227,VLOOKUP(P82,'Data (HIDE)'!$B$214:$C$227,2,FALSE),FALSE)/100 -> 1 | R83: =HLOOKUP(R82,'Data (HIDE)'!$D$213:$Q$227,VLOOKUP(Q82,'Data (HIDE)'!$B$214:$C$227,2,FALSE),FALSE)/100 -> 1.08 | S83: =HLOOKUP(S82,'Data (HIDE)'!$D$213:$Q$227,VLOOKUP(R82,'Data (HIDE)'!$B$214:$C$227,2,FALSE),FALSE)/100 -> 1.02 | T83: -
A84: Net Profit (Loss) | C84: =(HLOOKUP(C82,Summary!$C$2:$T$67,35,FALSE)*HLOOKUP(C82,Summary!$C$2:$T$67,33,FALSE))-HLOOKUP(C82,Summary!$C$2:$T$67,29,FALSE) -> -15.86432891 | D84: =(HLOOKUP(D82,Summary!$C$2:$T$67,35,FALSE)*D83*HLOOKUP(D82,Summary!$C$2:$T$67,33,FALSE))-HLOOKUP(D82,Summary!$C$2:$T$67,29,FALSE) -> 119.9650839 | E84: =(HLOOKUP(E82,Summary!$C$2:$T$67,35,FALSE)*E83*HLOOKUP(E82,Summary!$C$2:$T$67,33,FALSE))-HLOOKUP(E82,Summary!$C$2:$T$67,29,FALSE) -> 1.221794999 | F84: =(HLOOKUP(F82,Summary!$C$2:$T$67,35,FALSE)*F83*HLOOKUP(F82,Summary!$C$2:$T$67,33,FALSE))-HLOOKUP(F82,Summary!$C$2:$T$67,29,FALSE) -> 45.07462979 | G84: =(HLOOKUP(G82,Summary!$C$2:$T$67,35,FALSE)*G83*HLOOKUP(G82,Summary!$C$2:$T$67,33,FALSE))-HLOOKUP(G82,Summary!$C$2:$T$67,29,FALSE) -> 9.448171087 | H84: =(HLOOKUP(H82,Summary!$C$2:$T$67,35,FALSE)*H83*HLOOKUP(H82,Summary!$C$2:$T$67,33,FALSE))-HLOOKUP(H82,Summary!$C$2:$T$67,29,FALSE) -> 119.9650839 | I84: =SUM(C84:H84) -> 279.8104347 | L84: Net Profit (Loss) | N84: =(HLOOKUP(N82,Summary!$C$2:$T$67,35,FALSE)*HLOOKUP(N82,Summary!$C$2:$T$67,33,FALSE))-HLOOKUP(N82,Summary!$C$2:$T$67,29,FALSE) -> 39.27962979 | O84: =(HLOOKUP(O82,Summary!$C$2:$T$67,35,FALSE)*O83*HLOOKUP(O82,Summary!$C$2:$T$67,33,FALSE))-HLOOKUP(O82,Summary!$C$2:$T$67,29,FALSE) -> 43.309295 | P84: =(HLOOKUP(P82,Summary!$C$2:$T$67,35,FALSE)*P83*HLOOKUP(P82,Summary!$C$2:$T$67,33,FALSE))-HLOOKUP(P82,Summary!$C$2:$T$67,29,FALSE) -> 49.09008388 | Q84: =(HLOOKUP(Q82,Summary!$C$2:$T$67,35,FALSE)*Q83*HLOOKUP(Q82,Summary!$C$2:$T$67,33,FALSE))-HLOOKUP(Q82,Summary!$C$2:$T$67,29,FALSE) -> 39.27962979 | R84: =(HLOOKUP(R82,Summary!$C$2:$T$67,35,FALSE)*R83*HLOOKUP(R82,Summary!$C$2:$T$67,33,FALSE))-HLOOKUP(R82,Summary!$C$2:$T$67,29,FALSE) -> 43.309295 | S84: =(HLOOKUP(S82,Summary!$C$2:$T$67,35,FALSE)*S83*HLOOKUP(S82,Summary!$C$2:$T$67,33,FALSE))-HLOOKUP(S82,Summary!$C$2:$T$67,29,FALSE) -> 49.09008388 | T84: =SUM(N84:S84) -> 263.3580173
A86: Note: This budget is only a guide and is not intended as an in depth study of the cost of production of this industry. Interpretation and utilization of this information is the responsibility of the user. | L86: Note: This budget is only a guide and is not intended as an in depth study of the cost of production of this industry. Interpretation and utilization of this information is the responsibility of the user.
J90: Acreage Analysis
J92: ='Data (HIDE)'!$B$23 -> Corn | K92: ='Data (HIDE)'!$B$24 -> Canola | L92: ='Data (HIDE)'!$B$25 -> Soybeans | M92: ='Data (HIDE)'!$B$26 -> Sunflower - Oilseed | N92: ='Data (HIDE)'!$B$27 -> Flaxseed | O92: ='Data (HIDE)'!$B$28 -> Peas | P92: ='Data (HIDE)'!$B$29 -> Beans - Pinto | Q92: ='Data (HIDE)'!$B$30 -> Beans - White | R92: ='Data (HIDE)'!$B$31 -> Beans - Black | S92: ='Data (HIDE)'!#REF! ->  | U92: Your Farm
A94: MASC Seeded Acreage
J95: ='Data (HIDE)'!$H$23 -> 383497.6 | K95: ='Data (HIDE)'!$H$24 -> 3283027 | L95: ='Data (HIDE)'!$H$25 -> 1241453.6 | M95: ='Data (HIDE)'!$H$26 -> 79371.6 | N95: ='Data (HIDE)'!$H$27 -> 48233 | O95: ='Data (HIDE)'!$H$28 -> 169342.2 | P95: ='Data (HIDE)'!$H$29 -> 76749 | Q95: ='Data (HIDE)'!$H$30 -> 33258.6 | R95: ='Data (HIDE)'!$H$31 -> 25528.8 | S95: ='Data (HIDE)'!#REF! -> 
J96: =RANK(J95,C95:S95) ->  | K96: =RANK(K95,C95:S95) ->  | L96: =RANK(L95,C95:S95) ->  | M96: =RANK(M95,C95:S95) ->  | N96: =RANK(N95,C95:S95) ->  | O96: =RANK(O95,C95:S95) ->  | P96: =RANK(P95,C95:S95) ->  | Q96: =RANK(Q95,C95:S95) ->  | R96: =RANK(R95,C95:S95) ->  | S96: =RANK(S95,C95:S95) -> 
J98: ='Data (HIDE)'!$J$23 -> 497522 | K98: ='Data (HIDE)'!$J$24 -> 3142868 | L98: ='Data (HIDE)'!$J$25 -> 1571490 | M98: ='Data (HIDE)'!$J$26 -> 85767 | N98: ='Data (HIDE)'!$J$27 -> 30271 | O98: ='Data (HIDE)'!$J$28 -> 164775 | P98: ='Data (HIDE)'!$J$29 -> 81814 | Q98: ='Data (HIDE)'!$J$30 -> 19183 | R98: ='Data (HIDE)'!$J$31 -> 30497 | S98: ='Data (HIDE)'!#REF! -> 
J99: =RANK(J98,C98:S98) ->  | K99: =RANK(K98,C98:S98) ->  | L99: =RANK(L98,C98:S98) ->  | M99: =RANK(M98,C98:S98) ->  | N99: =RANK(N98,C98:S98) ->  | O99: =RANK(O98,C98:S98) ->  | P99: =RANK(P98,C98:S98) ->  | Q99: =RANK(Q98,C98:S98) ->  | R99: =RANK(R98,C98:S98) ->  | S99: =RANK(S98,C98:S98) -> 
A101: Example Rotation #3 | C101: Wheat - Hard Red Spring | D101: Canola | E101: Oats | F101: Soybeans | G101: Corn | H101: Sunflower Confection | I101: Rotation Total Marginal Return
A102: Rotation Yield Premium | C102: 1 | D102: =HLOOKUP(D101,'Data (HIDE)'!$D$213:$Q$227,VLOOKUP(C101,'Data (HIDE)'!$B$214:$C$227,2,FALSE),FALSE)/100 -> 1.02 | E102: =HLOOKUP(E101,'Data (HIDE)'!$D$213:$Q$227,VLOOKUP(D101,'Data (HIDE)'!$B$214:$C$227,2,FALSE),FALSE)/100 -> 1.01 | F102: =HLOOKUP(F101,'Data (HIDE)'!$D$213:$Q$227,VLOOKUP(E101,'Data (HIDE)'!$B$214:$C$227,2,FALSE),FALSE)/100 -> 1 | G102: =HLOOKUP(G101,'Data (HIDE)'!$D$213:$Q$227,VLOOKUP(F101,'Data (HIDE)'!$B$214:$C$227,2,FALSE),FALSE)/100 -> 1.03 | H102: =HLOOKUP(H101,'Data (HIDE)'!$D$213:$Q$227,VLOOKUP(G101,'Data (HIDE)'!$B$214:$C$227,2,FALSE),FALSE)/100 ->  | I102: -
A103: Net Profit (Loss) | C103: =(HLOOKUP(C101,Summary!$C$2:$T$67,36,FALSE)*HLOOKUP(C101,Summary!$C$2:$T$67,34,FALSE))-HLOOKUP(C101,Summary!$C$2:$T$67,30,FALSE) ->  | D103: =(HLOOKUP(D101,Summary!$C$2:$T$67,36,FALSE)*D102*HLOOKUP(D101,Summary!$C$2:$T$67,34,FALSE))-HLOOKUP(D101,Summary!$C$2:$T$67,30,FALSE) ->  | E103: =(HLOOKUP(E101,Summary!$C$2:$T$67,36,FALSE)*E102*HLOOKUP(E101,Summary!$C$2:$T$67,34,FALSE))-HLOOKUP(E101,Summary!$C$2:$T$67,30,FALSE) ->  | F103: =(HLOOKUP(F101,Summary!$C$2:$T$67,36,FALSE)*F102*HLOOKUP(F101,Summary!$C$2:$T$67,34,FALSE))-HLOOKUP(F101,Summary!$C$2:$T$67,30,FALSE) ->  | G103: =(HLOOKUP(G101,Summary!$C$2:$T$67,36,FALSE)*G102*HLOOKUP(G101,Summary!$C$2:$T$67,34,FALSE))-HLOOKUP(G101,Summary!$C$2:$T$67,30,FALSE) ->  | H103: =(HLOOKUP(H101,Summary!$C$2:$T$67,36,FALSE)*H102*HLOOKUP(H101,Summary!$C$2:$T$67,34,FALSE))-HLOOKUP(H101,Summary!$C$2:$T$67,30,FALSE) ->  | I103: =SUM(C103:H103) -> 
A105: Example Rotation #4 | C105: Soybeans | D105: Wheat - Hard Red Spring | E105: Canola | F105: Soybeans | G105: Wheat - Hard Red Spring | H105: Canola | I105: Rotation Total Marginal Return
A106: Rotation Yield Premium | C106: 1 | D106: =HLOOKUP(D105,'Data (HIDE)'!$D$213:$Q$227,VLOOKUP(C105,'Data (HIDE)'!$B$214:$C$227,2,FALSE),FALSE)/100 -> 1.08 | E106: =HLOOKUP(E105,'Data (HIDE)'!$D$213:$Q$227,VLOOKUP(D105,'Data (HIDE)'!$B$214:$C$227,2,FALSE),FALSE)/100 -> 1.02 | F106: =HLOOKUP(F105,'Data (HIDE)'!$D$213:$Q$227,VLOOKUP(E105,'Data (HIDE)'!$B$214:$C$227,2,FALSE),FALSE)/100 -> 1 | G106: =HLOOKUP(G105,'Data (HIDE)'!$D$213:$Q$227,VLOOKUP(F105,'Data (HIDE)'!$B$214:$C$227,2,FALSE),FALSE)/100 -> 1.08 | H106: =HLOOKUP(H105,'Data (HIDE)'!$D$213:$Q$227,VLOOKUP(G105,'Data (HIDE)'!$B$214:$C$227,2,FALSE),FALSE)/100 -> 1.02 | I106: -
A107: Net Profit (Loss) | C107: =(HLOOKUP(C105,Summary!$C$2:$T$67,36,FALSE)*HLOOKUP(C105,Summary!$C$2:$T$67,34,FALSE))-HLOOKUP(C105,Summary!$C$2:$T$67,30,FALSE) ->  | D107: =(HLOOKUP(D105,Summary!$C$2:$T$67,36,FALSE)*D106*HLOOKUP(D105,Summary!$C$2:$T$67,34,FALSE))-HLOOKUP(D105,Summary!$C$2:$T$67,30,FALSE) ->  | E107: =(HLOOKUP(E105,Summary!$C$2:$T$67,36,FALSE)*E106*HLOOKUP(E105,Summary!$C$2:$T$67,34,FALSE))-HLOOKUP(E105,Summary!$C$2:$T$67,30,FALSE) ->  | F107: =(HLOOKUP(F105,Summary!$C$2:$T$67,36,FALSE)*F106*HLOOKUP(F105,Summary!$C$2:$T$67,34,FALSE))-HLOOKUP(F105,Summary!$C$2:$T$67,30,FALSE) ->  | G107: =(HLOOKUP(G105,Summary!$C$2:$T$67,36,FALSE)*G106*HLOOKUP(G105,Summary!$C$2:$T$67,34,FALSE))-HLOOKUP(G105,Summary!$C$2:$T$67,30,FALSE) ->  | H107: =(HLOOKUP(H105,Summary!$C$2:$T$67,36,FALSE)*H106*HLOOKUP(H105,Summary!$C$2:$T$67,34,FALSE))-HLOOKUP(H105,Summary!$C$2:$T$67,30,FALSE) ->  | I107: =SUM(C107:H107) -> 
B108: Wheat - Hard Red Spring
B109: Wheat - Northern Hard Red
B110: Wheat - Special Purpose
B111: Wheat - Prairie Spring
B112: Wheat - Winter
B113: Oats
B114: Barley
B115: Canola
B116: Flaxseed
B117: Peas
B118: Soybeans
B119: Beans - White
B120: Sunflower
B121: Corn
I124: CHANGE
D126: Conventional | E126: Special | I126: Conventional | J126: Special
B127: Machinery | D127: Crop | E127: Crop | I127: Crop | J127: Crop
B128: Total Investment ($/acre) | D128: ='Fixed Cost Input'!I5 -> 650 | E128: ='Fixed Cost Input'!J5 -> 145 | I128: =SUM(D129+I129)/I145 -> 650 | J128: =SUM(E129+J129)/I145 -> 145
D129: =SUM(D128*(D145+D146)) -> 1625000 | E129: =SUM(E128*(D145+D146)) -> 362500 | I129: =SUM(I145*Q37) -> 0 | J129: 0
B130: Residual Value (End of Useful Life) | D130: ='Fixed Cost Input'!I6 -> 0.25
B131: Useful Life (years) | D131: ='Fixed Cost Input'!I7 -> 15
B132: Owned Equipment Equity | D132: ='Fixed Cost Input'!I8 -> 0.6 | F132: =SUM(($E$128+$D$128)*D132)*($D$145+$D$146) -> 1192500 | I132: =SUM(F132/(I129+D129+E129)) -> 0.6 | J132: =SUM(($J$128+$I$128)*I132)*(I145) -> 1192500
B133: Equipment Financed | D133: =SUM(1-D132) -> 0.4 | F133: =SUM(($E$128+$D$128)*D133)*($D$145+$D$146) -> 795000 | G133: =F133/(D145+D146) -> 318 | H133: debt/acre | I133: =SUM(1-I132) -> 0.4 | J133: =SUM(($J$128+$I$128)*I133)*(I145) -> 795000 | L133: =SUM(J133/I145) -> 318 | M133: debt/acre
B134: Machinery Opportunity Cost (Investment Rate) | D134: ='Fixed Cost Input'!I10 -> 0.015 | F134: =SUM(F132:F133) -> 1987500 | J134: =SUM(J132:J133) -> 1987500 | L134: =SUM(L133-G133) -> 0 | M134: change
B136: Machinery Cost ($/acre)
B137: Finance Rate & Term | C137: ='Fixed Cost Input'!H13 -> 0.085 | D137: ='Fixed Cost Input'!I13 -> 7 | E137: Years
B138: Principle & Interest Cost | D138: =-PMT(C137,D137,D128*D133,0) -> 50.7959975 | E138: =-PMT(C137,D137,E128*D133,0) -> 11.33141483 | I138: =-PMT(C137,D137,I128*I133,0) -> 50.7959975 | J138: =-PMT(C137,D137,J128*I133,0) -> 11.33141483
B139: Machinery Depreciation Cost | D139: =(D128-(D128*D130))/D131 -> 32.5 | E139: =(E128-(E128*D130))/D131 -> 7.25 | I139: =(I128-(I128*D130))/D131 -> 32.5 | J139: =(J128-(E128*D130))/D131 -> 7.25
B140: Owned Machinery Opportunity Cost | D140: =SUM(D128*D132)*(D134) -> 5.85 | E140: =SUM(E128*D132)*(D134) -> 1.305 | I140: =SUM(I128*I132)*(D134) -> 5.85 | J140: =SUM(J128*I132)*(D134) -> 1.305
D141: =SUM(D138:D140) -> 89.1459975 | E141: =SUM(E138:E140) -> 19.88641483 | I141: =SUM(I138:I140) -> 89.1459975 | J141: =SUM(J138:J140) -> 19.88641483
E142: =SUM(D141:E141) -> 109.0324123 | J142: =SUM(I141:J141) -> 109.0324123
B143: Land
B144: Average Land value ($/acre) | D144: ='Fixed Cost Input'!D4 -> 4150
B145: Conventional Crop acres | D145: ='Fixed Cost Input'!D5 -> 2000 | I145: =SUM(D145+D146+Q38) -> 2500
B146: Special Crop acres | D146: ='Fixed Cost Input'!D6 -> 500
B147: Owned Land Equity | D147: ='Fixed Cost Input'!D7 -> 0.88 | E147: =SUM(D144*(D145+D146)*D147) -> 9130000 | I147: =SUM(E147/(I145*D144)) -> 0.88 | J147: =SUM(I145*D144*I147) -> 9130000
B148: Land Financed | D148: =SUM(1-D147) -> 0.12 | E148: =SUM(D144*(D145+D146)*D148) -> 1245000 | G148: =SUM(D144*D148) -> 498 | H148: debt/acre | I148: =SUM(1-I147) -> 0.12 | J148: =SUM(I145*D144*I148) -> 1245000 | L148: =SUM(I148*D144) -> 498 | M148: debt/acre
B149: Land Opportunity Cost (Investment Rate) | D149: ='Fixed Cost Input'!D9 -> 0.015 | E149: =SUM(E147:F148) -> 10375000 | J149: =SUM(J147:K148) -> 10375000 | L149: =SUM(L148-G148) -> 0 | M149: change
B150: Land cost ($/acre)
B151: Finance Rate & Term | C151: ='Fixed Cost Input'!C11 -> 0.08 | D151: ='Fixed Cost Input'!D11 -> 25 | E151: Years
B152: Principle & Interest Cost | D152: =-PMT(C151,D151,D144*D148,0) -> 46.65203197 | I152: =-PMT(C151,D151,D144*I148,0) -> 46.65203197
B153: Owned Land Opportunity Cost | D153: =SUM(D144*D147)*(D149) -> 54.78 | I153: =SUM(D144*I147)*(D149) -> 54.78
B154: Total Cost | D154: =SUM(D152:D153) -> 101.432032 | I154: =SUM(I152:I153) -> 101.432032
C156: Equity % | E156: =SUM(E147+F132) -> 10322500 | G156: =SUM(E156/E158) -> 0.8349848332 | J156: =SUM(J147+J132) -> 10322500 | L156: =SUM(J156/J158) -> 0.8349848332
C157: Financed % | E157: =SUM(E148+F133) -> 2040000 | G157: =SUM(E157/E158) -> 0.1650151668 | J157: =SUM(J148+J133) -> 2040000 | L157: =SUM(J157/J158) -> 0.1650151668
E158: =SUM(E156:F157) -> 12362500 | J158: =SUM(J156:K157) -> 12362500

Sheet Charts

Sheet Seed, Fertilizer & Chemical
A1: Seed & Treatment
D2: Seeding Rate | G2: Price | J2: Cost
A3: Crop | D3: per Acre | G3: per Unit | J3: per Acre
B4: Wheat - Hard Red Spring | D4: 2 | E4: bu | G4: 18 | H4: /bu | J4: =ROUND(D4*G4,2) -> 36
B5: Wheat - Northern Hard Red | D5: 2 | E5: bu | G5: 18 | H5: /bu | J5: 36
B6: Wheat - Prairie Spring | D6: 2 | E6: bu | G6: 18 | H6: /bu | J6: 36
B7: Wheat - Winter | D7: 2 | E7: bu | G7: 17 | H7: /bu | J7: 34
B8: Oats | D8: 2.5 | E8: bu | G8: 10 | H8: /bu | J8: 25
B9: Barley | D9: 2 | E9: bu | G9: 12 | H9: /bu | J9: 24
B10: Hybrid Fall Rye | D10: 0.8 | E10: units | G10: 103 | H10: /unit | J10: 82.4
B11: Corn | D11: 32000 | E11: plants | G11: 0.0031875 | H11: /plant | J11: 102
B12: Canola | D12: 5 | E12: lb | G12: 16 | H12: /lb | J12: 80
B13: Soybeans | D13: 1.43 | E13: units | G13: 62.94 | H13: /unit | J13: 90
B14: Sunflower - Oilseed | D14: 20000 | E14: plants | G14: 0.0025 | H14: /plant | J14: 50
B15: Flaxseed | D15: 56 | E15: lb | G15: 1.142857 | H15: /lb | J15: 64
B16: Peas | D16: 3 | E16: bu | G16: 29.333 | H16: /bu | J16: 88
B17: Beans - Pinto | D17: 0.75 | E17: units | G17: 154.67 | H17: /unit | J17: 116
B18: Beans - White | D18: 1.1 | E18: units | G18: 101.82 | H18: /unit | J18: 112
B19: Beans - Black | D19: 1.25 | E19: units | G19: 94.4 | H19: /unit | J19: 118
B22: * If row cropping, change seeding rate to 1.3 units/acre which reduces seed cost by 10%
A24: Fertilizer
D25: Bulk Price | G25: Actual Nutrient | J25: Nitrogen | M25: Sulphur
A26: Fertilizer Type | D26: $/tonne | G26: $/lb | J26: Usage | M26: Usage
B27: Nitrogen: (urea) 46-0-0 | D27: 825 | G27: =SUM(D27/(2204.5855*0.46)) -> 0.8135217531 | J27: 0.75 | M27: -
B28: Nitrogen: (NH3) 82-0-0 | D28: 1300 | G28: =SUM(D28/(2204.5855*0.82)) -> 0.7191219636 | J28: 0.25 | M28: -
B29: Nitrogen: (liquid) 28-0-0 | D29: 500 | G29: =SUM(D29/(2204.5855*0.28)) -> 0.8100000139 | J29: 0 | M29: -
B30: Phosphorus: 11-52-0 | D30: 1075 | G30: =SUM((D30-(G27*(0.11*2204.5855)))/(2204.5855*0.52)) -> 0.7656396453 | J30: - | M30: -
B31: Potash: 0-0-60 | D31: 625 | G31: =SUM(D31/(2204.5855*0.6)) -> 0.4725000081 | J31: - | M31: -
B32: Sulphur: 20.5-0-0-24 | D32: 600 | G32: =SUM((D32-(G27*(0.205*2204.5855)))/(2204.5855*0.24)) -> 0.4391168554 | J32: - | M32: 1
B33: MES S15: 13-33-0-15 | D33: 1000 | G33: =SUM((D33-(G27*(0.13*2204.5855))-(G30*(0.33*2204.5855)))/(2204.5855*0.15)) -> 0.6345406464 | H33: 0 | J33: - | M33: 0
S34: ***HIDE***
C35: Amount of Actual Pounds of Elements Applied Per Acre | T35: 82-0-0 | X35: 28-0-0 | AD35: 46-0-0 | AH35: 11-52-0 | AK35: 0-0-60 | AN35: 20.5-0-0-24 | AQ35: 13-33-0-15
C36: Nitrogen | F36: Phosphorus | I36: Potash | L36: Sulphur | O36: Total | S36: preseed | T36: preseed | U36: preseed | V36: preseed | W36: suppl | X36: suppl | Y36: suppl | Z36: suppl | AA36: blend | AB36: blend | AC36: blend | AD36: blend | AE36: blend | AF36: blend | AG36: blend | AH36: blend | AI36: blend | AJ36: blend | AK36: blend | AL36: blend | AM36: blend | AN36: blend | AO36: blend | AP36: blend | AQ36: blend | AR36: blend | AS36: blend | AT36: N phos
A37: Crop | C37: lbs | D37: $/acre | F37: lbs | G37: $/acre | I37: lbs | J37: $/acre | L37: lbs | M37: $/acre | O37: $/acre | S37: N actual | T37: N lbs | U37: N MT | V37: N cost | W37: N actual | X37: N lbs | Y37: N MT | Z37: N cost | AA37: N phos | AB37: N sul1 | AC37: N sul2 | AD37: N urea | AE37: N lbs | AF37: N MT | AG37: N cost | AH37: phos lbs | AI37: phos MT | AJ37: phos cost | AK37: potash | AL37: pot MT | AM37: pot cost | AN37: sul 1 lbs | AO37: sul 1 MT | AP37: sul 1 cost | AQ37: sul 2 lbs | AR37: sul 2 MT | AS37: sul 2 cost | AT37: lbs
B38: =B4 -> Wheat - Hard Red Spring | C38: 110 | D38: =IF(SUM($J$27:$J$29)<>100%,"ERROR",SUM(V38+Z38+AG38)) -> 76.53283384 | F38: 40 | G38: =AJ38 -> 37.50898471 | I38: 10 | J38: =AM38 -> 4.724969004 | L38: 5 | M38: =IF(SUM($M$32:$M$33)<>100%,"ERROR",AP38+AS38) -> 5.669962805 | O38: =D38+G38+J38+M38 -> 124.4367504 | S38: =SUM(C38*$J$28) -> 27.5 | T38: =MAXA(0,(S38)/(0.82)) -> 33.53658537 | U38: =(T38)/2204.6 -> 0.01521209533 | V38: =SUM(U38*$D$28) -> 19.77572393 | W38: =SUM(C38*$J$29) -> 0 | X38: =MAXA(0,(W38)/(0.28)) -> 0 | Y38: =(X38)/2204.6 -> 0 | Z38: =SUM(Y38*$D$29) -> 0 | AA38: =SUM(AH38*0.11) -> 8.461538462 | AB38: =SUM(AN38*0.205) -> 4.270833333 | AC38: =SUM(AQ38*0.13) -> 0 | AD38: =SUM(C38-(AA38+AB38+AC38+W38+S38)) -> 69.76762821 | AE38: =MAXA(0,(AD38)/(0.46)) -> 151.668757 | AF38: =(AE38)/2204.6 -> 0.06879649686 | AG38: =SUM(AF38*$D$27) -> 56.75710991 | AH38: =MAXA(0,(F38-(AQ38*0.33))/0.52) -> 76.92307692 | AI38: =(AH38)/2204.6 -> 0.0348920788 | AJ38: =SUM(AI38*$D$30) -> 37.50898471 | AK38: =SUM(I38/0.6) -> 16.66666667 | AL38: =(AK38)/2204.6 -> 0.007559950407 | AM38: =SUM(AL38*$D$31) -> 4.724969004 | AN38: =MAXA(0,SUM(L38*$M$32)/0.24) -> 20.83333333 | AO38: =(AN38)/2204.6 -> 0.009449938008 | AP38: =SUM(AO38*$D$32) -> 5.669962805 | AQ38: =MAXA(0,SUM(L38*$M$33)/0.15) -> 0 | AR38: =(AQ38)/2204.6 -> 0 | AS38: =SUM(AR38*$D$33) -> 0
B39: =B5 -> Wheat - Northern Hard Red | C39: 125 | D39: 88.38158299 | F39: 40 | G39: 37.50898471 | I39: 10 | J39: 4.724969004 | L39: 5 | M39: 5.669962805 | O39: 136.2854995 | S39: 31.25 | T39: 38.1097561 | U39: 0.01728647197 | V39: 22.47241356 | W39: 0 | X39: 0 | Y39: 0 | Z39: 0 | AA39: 8.461538462 | AB39: 4.270833333 | AC39: 0 | AD39: 81.01762821 | AE39: 176.1252787 | AF39: 0.07988990234 | AG39: 65.90916943 | AH39: 76.92307692 | AI39: 0.0348920788 | AJ39: 37.50898471 | AK39: 16.66666667 | AL39: 0.007559950407 | AM39: 4.724969004 | AN39: 20.83333333 | AO39: 0.009449938008 | AP39: 5.669962805 | AQ39: 0 | AR39: 0 | AS39: 0
B40: Wheat - Prairie Spring | C40: 115 | D40: 80.48241689 | F40: 40 | G40: 37.50898471 | I40: 10 | J40: 4.724969004 | L40: 5 | M40: 5.669962805 | O40: 128.3863334 | S40: 28.75 | T40: 35.06097561 | U40: 0.01590355421 | V40: 20.67462047 | W40: 0 | X40: 0 | Y40: 0 | Z40: 0 | AA40: 8.461538462 | AB40: 4.270833333 | AC40: 0 | AD40: 73.51762821 | AE40: 159.8209309 | AF40: 0.07249429868 | AG40: 59.80779642 | AH40: 76.92307692 | AI40: 0.0348920788 | AJ40: 37.50898471 | AK40: 16.66666667 | AL40: 0.007559950407 | AM40: 4.724969004 | AN40: 20.83333333 | AO40: 0.009449938008 | AP40: 5.669962805 | AQ40: 0 | AR40: 0 | AS40: 0
B41: Wheat - Winter | C41: 110 | D41: 76.53283384 | F41: 40 | G41: 37.50898471 | I41: 10 | J41: 4.724969004 | L41: 5 | M41: 5.669962805 | O41: 124.4367504 | S41: 27.5 | T41: 33.53658537 | U41: 0.01521209533 | V41: 19.77572393 | W41: 0 | X41: 0 | Y41: 0 | Z41: 0 | AA41: 8.461538462 | AB41: 4.270833333 | AC41: 0 | AD41: 69.76762821 | AE41: 151.668757 | AF41: 0.06879649686 | AG41: 56.75710991 | AH41: 76.92307692 | AI41: 0.0348920788 | AJ41: 37.50898471 | AK41: 16.66666667 | AL41: 0.007559950407 | AM41: 4.724969004 | AN41: 20.83333333 | AO41: 0.009449938008 | AP41: 5.669962805 | AQ41: 0 | AR41: 0 | AS41: 0
B42: Oats | C42: 70 | D42: 42.3222265 | F42: 35 | G42: 32.82036162 | I42: 10 | J42: 4.724969004 | L42: 10 | M42: 11.33992561 | O42: 91.20748273 | S42: 17.5 | T42: 21.34146341 | U42: 0.009680424301 | V42: 12.58455159 | W42: 0 | X42: 0 | Y42: 0 | Z42: 0 | AA42: 7.403846154 | AB42: 8.541666667 | AC42: 0 | AD42: 36.55448718 | AE42: 79.46627648 | AF42: 0.03604566655 | AG42: 29.7376749 | AH42: 67.30769231 | AI42: 0.03053056895 | AJ42: 32.82036162 | AK42: 16.66666667 | AL42: 0.007559950407 | AM42: 4.724969004 | AN42: 41.66666667 | AO42: 0.01889987602 | AP42: 11.33992561 | AQ42: 0 | AR42: 0 | AS42: 0
B43: Barley | C43: 80 | D43: 54.55623561 | F43: 30 | G43: 28.13173853 | I43: 10 | J43: 4.724969004 | L43: 5 | M43: 5.669962805 | O43: 93.08290595 | S43: 20 | T43: 24.3902439 | U43: 0.01106334206 | V43: 14.38234468 | W43: 0 | X43: 0 | Y43: 0 | Z43: 0 | AA43: 6.346153846 | AB43: 4.270833333 | AC43: 0 | AD43: 49.38301282 | AE43: 107.3543757 | AF43: 0.04869562537 | AG43: 40.17389093 | AH43: 57.69230769 | AI43: 0.0261690591 | AJ43: 28.13173853 | AK43: 16.66666667 | AL43: 0.007559950407 | AM43: 4.724969004 | AN43: 20.83333333 | AO43: 0.009449938008 | AP43: 5.669962805 | AQ43: 0 | AR43: 0 | AS43: 0
B44: Hybrid Fall Rye | C44: 145 | D44: 104.1799152 | F44: 40 | G44: 37.50898471 | I44: 10 | J44: 4.724969004 | L44: 5 | M44: 5.669962805 | O44: 152.0838317 | S44: 36.25 | T44: 44.20731707 | U44: 0.02005230748 | V44: 26.06799973 | W44: 0 | X44: 0 | Y44: 0 | Z44: 0 | AA44: 8.461538462 | AB44: 4.270833333 | AC44: 0 | AD44: 96.01762821 | AE44: 208.7339744 | AF44: 0.09468110966 | AG44: 78.11191547 | AH44: 76.92307692 | AI44: 0.0348920788 | AJ44: 37.50898471 | AK44: 16.66666667 | AL44: 0.007559950407 | AM44: 4.724969004 | AN44: 20.83333333 | AO44: 0.009449938008 | AP44: 5.669962805 | AQ44: 0 | AR44: 0 | AS44: 0
B45: Corn | C45: 135 | D45: 81.55531998 | F45: 65 | G45: 60.95210015 | I45: 25 | J45: 11.81242251 | L45: 20 | M45: 22.67985122 | O45: 176.9996939 | S45: 33.75 | T45: 41.15853659 | U45: 0.01866938972 | V45: 24.27020664 | W45: 0 | X45: 0 | Y45: 0 | Z45: 0 | AA45: 13.75 | AB45: 17.08333333 | AC45: 0 | AD45: 70.41666667 | AE45: 153.0797101 | AF45: 0.06943650102 | AG45: 57.28511334 | AH45: 125 | AI45: 0.05669962805 | AJ45: 60.95210015 | AK45: 41.66666667 | AL45: 0.01889987602 | AM45: 11.81242251 | AN45: 83.33333333 | AO45: 0.03779975203 | AP45: 22.67985122 | AQ45: 0 | AR45: 0 | AS45: 0
B46: Canola | C46: 130 | D46: 81.90798714 | F46: 40 | G46: 37.50898471 | I46: 0 | J46: 0 | L46: 20 | M46: 22.67985122 | O46: 142.0968231 | S46: 32.5 | T46: 39.63414634 | U46: 0.01797793085 | V46: 23.3713101 | W46: 0 | X46: 0 | Y46: 0 | Z46: 0 | AA46: 8.461538462 | AB46: 17.08333333 | AC46: 0 | AD46: 71.95512821 | AE46: 156.4241918 | AF46: 0.07095354792 | AG46: 58.53667704 | AH46: 76.92307692 | AI46: 0.0348920788 | AJ46: 37.50898471 | AK46: 0 | AL46: 0 | AM46: 0 | AN46: 83.33333333 | AO46: 0.03779975203 | AP46: 22.67985122 | AQ46: 0 | AR46: 0 | AS46: 0
B47: Soybeans | C47: 0 | D47: 0 | F47: 40 | G47: 37.50898471 | I47: 10 | J47: 4.724969004 | L47: 0 | M47: 0 | O47: 42.23395371 | S47: 0 | T47: 0 | U47: 0 | V47: 0 | W47: 0 | X47: 0 | Y47: 0 | Z47: 0 | AA47: 8.461538462 | AB47: 0 | AC47: 0 | AD47: -8.461538462 | AE47: 0 | AF47: 0 | AG47: 0 | AH47: 76.92307692 | AI47: 0.0348920788 | AJ47: 37.50898471 | AK47: 16.66666667 | AL47: 0.007559950407 | AM47: 4.724969004 | AN47: 0 | AO47: 0 | AP47: 0 | AQ47: 0 | AR47: 0 | AS47: 0
B48: Sunflower - Oilseed | C48: 100 | D48: 73.82896078 | F48: 30 | G48: 28.13173853 | I48: 30 | J48: 14.17490701 | L48: 0 | M48: 0 | O48: 116.1356063 | S48: 25 | T48: 30.48780488 | U48: 0.01382917757 | V48: 17.97793085 | W48: 0 | X48: 0 | Y48: 0 | Z48: 0 | AA48: 6.346153846 | AB48: 0 | AC48: 0 | AD48: 68.65384615 | AE48: 149.2474916 | AF48: 0.06769821811 | AG48: 55.85102994 | AH48: 57.69230769 | AI48: 0.0261690591 | AJ48: 28.13173853 | AK48: 50 | AL48: 0.02267985122 | AM48: 14.17490701 | AN48: 0 | AO48: 0 | AP48: 0 | AQ48: 0 | AR48: 0 | AS48: 0
B49: Flaxseed | C49: 50 | D49: 34.33313027 | F49: 30 | G49: 28.13173853 | I49: 0 | J49: 0 | L49: 0 | M49: 0 | O49: 62.4648688 | S49: 12.5 | T49: 15.24390244 | U49: 0.006914588787 | V49: 8.988965423 | W49: 0 | X49: 0 | Y49: 0 | Z49: 0 | AA49: 6.346153846 | AB49: 0 | AC49: 0 | AD49: 31.15384615 | AE49: 67.72575251 | AF49: 0.03072019981 | AG49: 25.34416485 | AH49: 57.69230769 | AI49: 0.0261690591 | AJ49: 28.13173853 | AK49: 0 | AL49: 0 | AM49: 0 | AN49: 0 | AO49: 0 | AP49: 0 | AQ49: 0 | AR49: 0 | AS49: 0
B50: Peas | C50: 0 | D50: 0 | F50: 30 | G50: 28.13173853 | I50: 0 | J50: 0 | L50: 0 | M50: 0 | O50: 28.13173853 | S50: 0 | T50: 0 | U50: 0 | V50: 0 | W50: 0 | X50: 0 | Y50: 0 | Z50: 0 | AA50: 6.346153846 | AB50: 0 | AC50: 0 | AD50: -6.346153846 | AE50: 0 | AF50: 0 | AG50: 0 | AH50: 57.69230769 | AI50: 0.0261690591 | AJ50: 28.13173853 | AK50: 0 | AL50: 0 | AM50: 0 | AN50: 0 | AO50: 0 | AP50: 0 | AQ50: 0 | AR50: 0 | AS50: 0
B51: Beans - Pinto | C51: 70 | D51: 50.13146247 | F51: 30 | G51: 28.13173853 | I51: 0 | J51: 0 | L51: 0 | M51: 0 | O51: 78.26320101 | S51: 17.5 | T51: 21.34146341 | U51: 0.009680424301 | V51: 12.58455159 | W51: 0 | X51: 0 | Y51: 0 | Z51: 0 | AA51: 6.346153846 | AB51: 0 | AC51: 0 | AD51: 46.15384615 | AE51: 100.3344482 | AF51: 0.04551140713 | AG51: 37.54691088 | AH51: 57.69230769 | AI51: 0.0261690591 | AJ51: 28.13173853 | AK51: 0 | AL51: 0 | AM51: 0 | AN51: 0 | AO51: 0 | AP51: 0 | AQ51: 0 | AR51: 0 | AS51: 0
B52: Beans - White | C52: 80 | D52: 58.03062858 | F52: 30 | G52: 28.13173853 | I52: 0 | J52: 0 | L52: 0 | M52: 0 | O52: 86.16236711 | S52: 20 | T52: 24.3902439 | U52: 0.01106334206 | V52: 14.38234468 | W52: 0 | X52: 0 | Y52: 0 | Z52: 0 | AA52: 6.346153846 | AB52: 0 | AC52: 0 | AD52: 53.65384615 | AE52: 116.638796 | AF52: 0.05290701079 | AG52: 43.6482839 | AH52: 57.69230769 | AI52: 0.0261690591 | AJ52: 28.13173853 | AK52: 0 | AL52: 0 | AM52: 0 | AN52: 0 | AO52: 0 | AP52: 0 | AQ52: 0 | AR52: 0 | AS52: 0
B53: Beans - Black | C53: 80 | D53: 58.03062858 | F53: 30 | G53: 28.13173853 | I53: 0 | J53: 0 | L53: 0 | M53: 0 | O53: 86.16236711 | S53: 20 | T53: 24.3902439 | U53: 0.01106334206 | V53: 14.38234468 | W53: 0 | X53: 0 | Y53: 0 | Z53: 0 | AA53: 6.346153846 | AB53: 0 | AC53: 0 | AD53: 53.65384615 | AE53: 116.638796 | AF53: 0.05290701079 | AG53: 43.6482839 | AH53: 57.69230769 | AI53: 0.0261690591 | AJ53: 28.13173853 | AK53: 0 | AL53: 0 | AM53: 0 | AN53: 0 | AO53: 0 | AP53: 0 | AQ53: 0 | AR53: 0 | AS53: 0
S54: =SUM(C54*$J$28) -> 0 | T54: =MAXA(0,(S54)/(0.82)) -> 0 | U54: =(T54)/2204.6 -> 0 | V54: =SUM(U54*$D$28) -> 0 | W54: =SUM(C54*$J$29) -> 0 | X54: =MAXA(0,(W54)/(0.28)) -> 0 | Y54: =(X54)/2204.6 -> 0 | Z54: =SUM(Y54*$D$29) -> 0 | AA54: =SUM(AH54*0.11) -> 0 | AB54: =SUM(AN54*0.205) -> 0 | AC54: =SUM(AQ54*0.13) -> 0 | AD54: =SUM(C54-(AA54+AB54+AC54+W54+S54)) -> 0 | AE54: =MAXA(0,(AD54)/(0.46)) -> 0 | AF54: =(AE54)/2204.6 -> 0 | AG54: =SUM(AF54*$D$27) -> 0 | AH54: =MAXA(0,(F54-(AQ54*0.33))/0.52) -> 0 | AI54: =(AH54)/2204.6 -> 0 | AJ54: =SUM(AI54*$D$30) -> 0 | AK54: =SUM(I54/0.6) -> 0 | AL54: =(AK54)/2204.6 -> 0 | AM54: =SUM(AL54*$D$31) -> 0 | AN54: =MAXA(0,SUM(L54*$M$32)/0.24) -> 0 | AO54: =(AN54)/2204.6 -> 0 | AP54: =SUM(AO54*$D$32) -> 0 | AQ54: =MAXA(0,SUM(L54*$M$33)/0.15) -> 0 | AR54: =(AQ54)/2204.6 -> 0 | AS54: =SUM(AR54*$D$33) -> 0
A56: * | B56: The fertilizer recommendation will vary depending on the soil type, climate and crop rotation. It is recommended that soil test sampling and analysis be conducted each year to produce a better baseline for fertility. It costs $1.00 to $2.00/acre for custom sampling and analysis.
A58: * | B58: For more information on fertilizer rates and recommendations -
A59: * | B59: Note: phosphorus amounts are allotted to each crop in the above examples. Sometimes this amount may not be practical or safe to apply with the seed of some crops like soybean or canola. Options for meeting these needs and phosphorus balance through the rotation are provided at:
A90: Crop Protection
D91: Weed | F91: Disease | G91: Insect | J91: Total
D92: Control | F92: Control | G92: Control | J92: Cost
A93: Crop | D93: $/acre | F93: $/acre | G93: $/acre | J93: $/acre
B94: =B4 -> Wheat - Hard Red Spring | D94: 37.31 | F94: 24.5 | G94: 0 | J94: =D94+F94+G94 -> 61.81
B95: Wheat - Northern Hard Red | D95: 37.31 | F95: 24.5 | G95: 0 | J95: 61.81
B96: Wheat - Prairie Spring | D96: 37.31 | F96: 24.5 | G96: 0 | J96: 61.81
B97: Wheat - Winter | D97: 17.04 | F97: 24.5 | G97: 0 | J97: 41.54
B98: Oats | D98: 8.5 | F98: 14.63 | G98: 0 | J98: 23.13
B99: Barley | D99: 28.25 | F99: 21.88 | G99: 0 | J99: 50.13
B100: Hybrid Fall Rye | D100: 8.38 | F100: 0 | G100: 0 | J100: 8.38
B101: Corn | D101: 32 | F101: 0 | G101: 0 | J101: 32
B102: Canola | D102: 38.29 | F102: 23.13 | G102: 5.34 | J102: 66.76
B103: Soybeans | D103: 23.58 | F103: 0 | G103: 0 | J103: 23.58
B104: Sunflower - Oilseed | D104: 47.52 | F104: 0 | G104: 0 | J104: 47.52
B105: Flaxseed | D105: 15.63 | F105: 16.63 | G105: 0 | J105: 32.26
B106: Peas | D106: 21 | F106: 25 | G106: 0 | J106: 46
B107: Beans - Pinto | D107: 84.9 | F107: 44.88 | G107: 0 | J107: 129.78
B108: Beans - White | D108: 84.9 | F108: 44.88 | G108: 0 | J108: 129.78
B109: Beans - Black | D109: 84.9 | F109: 44.88 | G109: 0 | J109: 129.78
B112: Note:
B113: Pre-emergent burn off and/or pre-harvest desiccation not included in weed control costs. (except for wheat, win. wheat and sunflowers).
B114: Chemical costs do not include year end rebates or bundling discounts.
B115: Disease Control costs (except for sunflowers listed on Operating Cost Page) do not include custom application costs.

Sheet Op. Cost Input
A1: Operating Costs
B3: Interest Rate on Operating | D3: 0.09 | G3: Grain Hauling | R3: # Hired | S3: # of | T3: Acres | U3: Hours
B4: Land Taxes ($/acre) | D4: 20 | G4: Distance to storage | I4: 6 | J4: miles roundtrip | R4: Staff | S4: Months | T4: Farmed | U4: Per Acre
B5: Labour rate ($/hour) | D5: 27 | G5: Distance to market | I5: 45 | J5: miles roundtrip | R5: 1 | S5: 12 | T5: ='Fixed Cost Input'!D5+'Fixed Cost Input'!D6 -> 2500 | U5: =SUM(R5*S5*4*40)/T5 -> 0.768
B6: Machinery Operating ($/acre) | D6: 25 | G6: Grain truck fuel use | I6: 5 | J6: Miles per Imp. Gallon | R6: 2 | S6: 4 | T6: =T5 -> 2500 | U6: =SUM(R6*S6*4*40)/T6 -> 0.512
B7: Other Costs ($/acre) | D7: 17.75 | G7: Grain truck size | I7: 475 | J7: bushels | R7: 0 | S7: 0 | T7: =T5 -> 2500 | U7: =SUM(R7*S7*4*40)/T7 -> 0
B8: Fuel Cost ($/litre) | D8: 1.4 | R8: 0 | S8: 0 | T8: =T5 -> 2500 | U8: =SUM(R8*S8*4*40)/T8 -> 0
B9: Owners - Labour & Living (hrs/acre) | D9: 1 | T9: Total | U9: =SUM(U5:U8) -> 1.28
E10: Operating Cost ($/Acre)
C11: Hired Labour | E11: Crop* | F11: Hail | G11: Drying | H11: Storage | I11: Rental and Custom Costs
A12: Crop | C12: (hrs/acre) | D12: Fuel | E12: Insurance | F12: Insurance | G12: Costs | H12: $/acre** | I12: Seeding | J12: Application | K12: Swathing | L12: Harvest | M12: General | N12: Total
B13: ='Seed, Fertilizer & Chemical'!B4 -> Wheat - Hard Red Spring | C13: 0.2 | D13: =SUM($D$8*D38) -> 38.14336253 | E13: ='Data (HIDE)'!C168+'Data (HIDE)'!$D$186 -> 13.5175 | F13: ='Data (HIDE)'!D193 -> 11.8 | G13: - | H13: =-PMT('Fixed Cost Input'!$C$11,20,(HLOOKUP('Data (HIDE)'!$B$13,'Data (HIDE)'!$C$124:$G$141,2,FALSE)*(('Fixed Cost Input'!$C$17*'Fixed Cost Input'!$D$17)+('Fixed Cost Input'!$C$18*'Fixed Cost Input'!$D$18)+('Fixed Cost Input'!$C$19*'Fixed Cost Input'!$D$19))*'Fixed Cost Input'!$D$20),0) -> 17.87506265 | I13: - | J13: - | K13: - | L13: - | M13: - | N13: =SUM(I13:M13) -> 0 | AB13: =HLOOKUP('Data (HIDE)'!$V$14,'Data (HIDE)'!$C$167:$G$184,4,FALSE)+'Data (HIDE)'!$D$186 -> 12.445 | AC13: =HLOOKUP('Data (HIDE)'!$W$14,'Data (HIDE)'!$D$191:$H$208,5,FALSE) -> 11.8
B14: ='Seed, Fertilizer & Chemical'!B5 -> Wheat - Northern Hard Red | C14: 0.2 | D14: 38.82669811 | E14: ='Data (HIDE)'!C169+'Data (HIDE)'!$D$186 -> 16.4075 | F14: ='Data (HIDE)'!D194 -> 11.8 | G14: - | H14: =-PMT('Fixed Cost Input'!$C$11,20,(HLOOKUP('Data (HIDE)'!$B$13,'Data (HIDE)'!$C$124:$G$141,3,FALSE)*(('Fixed Cost Input'!$C$17*'Fixed Cost Input'!$D$17)+('Fixed Cost Input'!$C$18*'Fixed Cost Input'!$D$18)+('Fixed Cost Input'!$C$19*'Fixed Cost Input'!$D$19))*'Fixed Cost Input'!$D$20),0) -> 19.25006747 | I14: - | J14: - | K14: - | L14: - | M14: - | N14: 0 | AB14: =HLOOKUP('Data (HIDE)'!$V$14,'Data (HIDE)'!$C$167:$G$184,5,FALSE)+'Data (HIDE)'!$D$186 -> 13.9775 | AC14: =HLOOKUP('Data (HIDE)'!$W$14,'Data (HIDE)'!$D$191:$H$208,6,FALSE) -> 11.8
B15: ='Seed, Fertilizer & Chemical'!B6 -> Wheat - Prairie Spring | C15: 0.2 | D15: 38.28002964 | E15: ='Data (HIDE)'!C170+'Data (HIDE)'!$D$186 -> 12.445 | F15: ='Data (HIDE)'!D195 -> 11.8 | G15: - | H15: =-PMT('Fixed Cost Input'!$C$11,20,(HLOOKUP('Data (HIDE)'!$B$13,'Data (HIDE)'!$C$124:$G$141,4,FALSE)*(('Fixed Cost Input'!$C$17*'Fixed Cost Input'!$D$17)+('Fixed Cost Input'!$C$18*'Fixed Cost Input'!$D$18)+('Fixed Cost Input'!$C$19*'Fixed Cost Input'!$D$19))*'Fixed Cost Input'!$D$20),0) -> 18.15006361 | I15: - | J15: - | K15: - | L15: - | M15: - | N15: 0 | AB15: =HLOOKUP('Data (HIDE)'!$V$14,'Data (HIDE)'!$C$167:$G$184,7,FALSE)+'Data (HIDE)'!$D$186 -> 18.955 | AC15: =HLOOKUP('Data (HIDE)'!$W$14,'Data (HIDE)'!$D$191:$H$208,8,FALSE) -> 11.8
B16: ='Seed, Fertilizer & Chemical'!B7 -> Wheat - Winter | C16: 0.2 | D16: 38.14336253 | E16: ='Data (HIDE)'!C171+'Data (HIDE)'!$D$186 -> 13.9775 | F16: ='Data (HIDE)'!D196 -> 11.8 | G16: - | H16: =-PMT('Fixed Cost Input'!$C$11,20,(HLOOKUP('Data (HIDE)'!$B$13,'Data (HIDE)'!$C$124:$G$141,5,FALSE)*(('Fixed Cost Input'!$C$17*'Fixed Cost Input'!$D$17)+('Fixed Cost Input'!$C$18*'Fixed Cost Input'!$D$18)+('Fixed Cost Input'!$C$19*'Fixed Cost Input'!$D$19))*'Fixed Cost Input'!$D$20),0) -> 17.87506265 | I16: - | J16: - | K16: - | L16: - | M16: - | N16: 0 | AB16: =HLOOKUP('Data (HIDE)'!$V$14,'Data (HIDE)'!$C$167:$G$184,8,FALSE)+'Data (HIDE)'!$D$186 -> 18.4975 | AC16: =HLOOKUP('Data (HIDE)'!$W$14,'Data (HIDE)'!$D$191:$H$208,9,FALSE) -> 11.8
B17: ='Seed, Fertilizer & Chemical'!B8 -> Oats | C17: 0.2 | D17: 44.97671832 | E17: ='Data (HIDE)'!C172+'Data (HIDE)'!$D$186 -> 21.015 | F17: ='Data (HIDE)'!D197 -> 11.8 | G17: - | H17: =-PMT('Fixed Cost Input'!$C$11,20,(HLOOKUP('Data (HIDE)'!$B$13,'Data (HIDE)'!$C$124:$G$141,6,FALSE)*(('Fixed Cost Input'!$C$17*'Fixed Cost Input'!$D$17)+('Fixed Cost Input'!$C$18*'Fixed Cost Input'!$D$18)+('Fixed Cost Input'!$C$19*'Fixed Cost Input'!$D$19))*'Fixed Cost Input'!$D$20),0) -> 31.62511084 | I17: - | J17: - | K17: - | L17: - | M17: - | N17: 0 | AB17: =HLOOKUP('Data (HIDE)'!$V$14,'Data (HIDE)'!$C$167:$G$184,10,FALSE)+'Data (HIDE)'!$D$186 -> 17.495 | AC17: =HLOOKUP('Data (HIDE)'!$W$14,'Data (HIDE)'!$D$191:$H$208,11,FALSE) -> 11.8
B18: ='Seed, Fertilizer & Chemical'!B9 -> Barley | C18: 0.2 | D18: 41.74003503 | E18: ='Data (HIDE)'!C173+'Data (HIDE)'!$D$186 -> 18.955 | F18: ='Data (HIDE)'!D198 -> 11.8 | G18: - | H18: =-PMT('Fixed Cost Input'!$C$11,20,(HLOOKUP('Data (HIDE)'!$B$13,'Data (HIDE)'!$C$124:$G$141,7,FALSE)*(('Fixed Cost Input'!$C$17*'Fixed Cost Input'!$D$17)+('Fixed Cost Input'!$C$18*'Fixed Cost Input'!$D$18)+('Fixed Cost Input'!$C$19*'Fixed Cost Input'!$D$19))*'Fixed Cost Input'!$D$20),0) -> 21.45007518 | I18: - | J18: - | K18: - | L18: - | M18: - | N18: 0 | AB18: =HLOOKUP('Data (HIDE)'!$V$14,'Data (HIDE)'!$C$167:$G$184,9,FALSE)+'Data (HIDE)'!$D$186 -> 50.695 | AC18: =HLOOKUP('Data (HIDE)'!$W$14,'Data (HIDE)'!$D$191:$H$208,10,FALSE) -> 11.8
B19: ='Seed, Fertilizer & Chemical'!B10 -> Hybrid Fall Rye | C19: 0.2 | D19: 38.79336926 | E19: ='Data (HIDE)'!C174+'Data (HIDE)'!$D$186 -> 18.4975 | F19: ='Data (HIDE)'!D199 -> 11.8 | G19: - | H19: =-PMT('Fixed Cost Input'!$C$11,20,(HLOOKUP('Data (HIDE)'!$B$13,'Data (HIDE)'!$C$124:$G$141,8,FALSE)*(('Fixed Cost Input'!$C$17*'Fixed Cost Input'!$D$17)+('Fixed Cost Input'!$C$18*'Fixed Cost Input'!$D$18)+('Fixed Cost Input'!$C$19*'Fixed Cost Input'!$D$19))*'Fixed Cost Input'!$D$20),0) -> 22.00007711 | I19: - | J19: - | K19: - | L19: - | M19: - | N19: 0 | AB19: =HLOOKUP('Data (HIDE)'!$V$14,'Data (HIDE)'!$C$167:$G$184,13,FALSE)+'Data (HIDE)'!$D$186 -> 21.695 | AC19: =HLOOKUP('Data (HIDE)'!$W$14,'Data (HIDE)'!$D$191:$H$208,14,FALSE) -> 11.8
B20: ='Seed, Fertilizer & Chemical'!B11 -> Corn | C20: 0.2 | D20: 46.59006063 | E20: ='Data (HIDE)'!C175+'Data (HIDE)'!$D$186 -> 50.695 | F20: ='Data (HIDE)'!D200 -> 11.8 | G20: 70 | H20: =-PMT('Fixed Cost Input'!$C$11,20,(HLOOKUP('Data (HIDE)'!$B$13,'Data (HIDE)'!$C$124:$G$141,9,FALSE)*(('Fixed Cost Input'!$C$17*'Fixed Cost Input'!$D$17)+('Fixed Cost Input'!$C$18*'Fixed Cost Input'!$D$18)+('Fixed Cost Input'!$C$19*'Fixed Cost Input'!$D$19))*'Fixed Cost Input'!$D$20),0) -> 37.12513012 | I20: - | J20: - | K20: - | L20: - | M20: - | N20: 0 | AB20: =HLOOKUP('Data (HIDE)'!$V$14,'Data (HIDE)'!$C$167:$G$184,11,FALSE)+'Data (HIDE)'!$D$186 -> 25.945 | AC20: =HLOOKUP('Data (HIDE)'!$W$14,'Data (HIDE)'!$D$191:$H$208,12,FALSE) -> 15.34
B21: ='Seed, Fertilizer & Chemical'!B12 -> Canola | C21: 0.2 | D21: 37.93002021 | E21: ='Data (HIDE)'!C176+'Data (HIDE)'!$D$186 -> 17.495 | F21: ='Data (HIDE)'!D201 -> 11.8 | G21: - | H21: =-PMT('Fixed Cost Input'!$C$11,20,(HLOOKUP('Data (HIDE)'!$B$13,'Data (HIDE)'!$C$124:$G$141,10,FALSE)*(('Fixed Cost Input'!$C$17*'Fixed Cost Input'!$D$17)+('Fixed Cost Input'!$C$18*'Fixed Cost Input'!$D$18)+('Fixed Cost Input'!$C$19*'Fixed Cost Input'!$D$19))*'Fixed Cost Input'!$D$20),0) -> 12.37504337 | I21: - | J21: - | K21: - | L21: - | M21: - | N21: 0 | AB21: =HLOOKUP('Data (HIDE)'!$V$14,'Data (HIDE)'!$C$167:$G$184,2,FALSE)+'Data (HIDE)'!$D$186 -> 13.5175 | AC21: =HLOOKUP('Data (HIDE)'!$W$14,'Data (HIDE)'!$D$191:$H$208,3,FALSE) -> 11.8
B22: ='Seed, Fertilizer & Chemical'!B13 -> Soybeans | C22: 0.2 | D22: 33.0533504 | E22: ='Data (HIDE)'!C177+'Data (HIDE)'!$D$186 -> 25.945 | F22: ='Data (HIDE)'!D202 -> 15.34 | G22: - | H22: =-PMT('Fixed Cost Input'!$C$11,20,(HLOOKUP('Data (HIDE)'!$B$13,'Data (HIDE)'!$C$124:$G$141,11,FALSE)*(('Fixed Cost Input'!$C$17*'Fixed Cost Input'!$D$17)+('Fixed Cost Input'!$C$18*'Fixed Cost Input'!$D$18)+('Fixed Cost Input'!$C$19*'Fixed Cost Input'!$D$19))*'Fixed Cost Input'!$D$20),0) -> 10.45003663 | I22: - | J22: - | K22: - | L22: - | M22: - | N22: 0 | AB22: =HLOOKUP('Data (HIDE)'!$V$14,'Data (HIDE)'!$C$167:$G$184,3,FALSE)+'Data (HIDE)'!$D$186 -> 16.4075 | AC22: =HLOOKUP('Data (HIDE)'!$W$14,'Data (HIDE)'!$D$191:$H$208,4,FALSE) -> 11.8
B23: ='Seed, Fertilizer & Chemical'!B14 -> Sunflower - Oilseed | C23: 0.2 | D23: 39.07336926 | E23: ='Data (HIDE)'!C178+'Data (HIDE)'!$D$186 -> 27.3475 | F23: ='Data (HIDE)'!D203 -> 11.8 | G23: 10 | H23: =-PMT('Fixed Cost Input'!$C$11,20,(HLOOKUP('Data (HIDE)'!$B$13,'Data (HIDE)'!$C$124:$G$141,12,FALSE)/25*(('Fixed Cost Input'!$C$17*'Fixed Cost Input'!$D$17)+('Fixed Cost Input'!$C$18*'Fixed Cost Input'!$D$18)+('Fixed Cost Input'!$C$19*'Fixed Cost Input'!$D$19))*'Fixed Cost Input'!$D$20),0) -> 22.00007711 | I23: - | J23: 13 | K23: - | L23: - | M23: - | N23: 13 | AB23: =HLOOKUP('Data (HIDE)'!$V$14,'Data (HIDE)'!$C$167:$G$184,17,FALSE)+'Data (HIDE)'!$D$186 -> 46.855 | AC23: =HLOOKUP('Data (HIDE)'!$W$14,'Data (HIDE)'!$D$191:$H$208,18,FALSE) -> 20.65
B24: ='Seed, Fertilizer & Chemical'!B15 -> Flaxseed | C24: 0.2 | D24: 36.31667789 | E24: ='Data (HIDE)'!C179+'Data (HIDE)'!$D$186 -> 21.695 | F24: ='Data (HIDE)'!D204 -> 11.8 | G24: - | H24: =-PMT('Fixed Cost Input'!$C$11,20,(HLOOKUP('Data (HIDE)'!$B$13,'Data (HIDE)'!$C$124:$G$141,13,FALSE)*(('Fixed Cost Input'!$C$17*'Fixed Cost Input'!$D$17)+('Fixed Cost Input'!$C$18*'Fixed Cost Input'!$D$18)+('Fixed Cost Input'!$C$19*'Fixed Cost Input'!$D$19))*'Fixed Cost Input'!$D$20),0) -> 6.875024096 | I24: - | J24: - | K24: - | L24: - | M24: - | N24: 0 | AB24: =HLOOKUP('Data (HIDE)'!$V$14,'Data (HIDE)'!$C$167:$G$184,14,FALSE)+'Data (HIDE)'!$D$186 -> 19.6575 | AC24: =HLOOKUP('Data (HIDE)'!$W$14,'Data (HIDE)'!$D$191:$H$208,15,FALSE) -> 23.6
B25: ='Seed, Fertilizer & Chemical'!B16 -> Peas | C25: 0.2 | D25: 33.15335579 | E25: ='Data (HIDE)'!C180+'Data (HIDE)'!$D$186 -> 19.6575 | F25: ='Data (HIDE)'!D205 -> 23.6 | G25: - | H25: =-PMT('Fixed Cost Input'!$C$11,20,(HLOOKUP('Data (HIDE)'!$B$13,'Data (HIDE)'!$C$124:$G$141,14,FALSE)*(('Fixed Cost Input'!$C$17*'Fixed Cost Input'!$D$17)+('Fixed Cost Input'!$C$18*'Fixed Cost Input'!$D$18)+('Fixed Cost Input'!$C$19*'Fixed Cost Input'!$D$19))*'Fixed Cost Input'!$D$20),0) -> 13.75004819 | I25: - | J25: - | K25: - | L25: - | M25: - | N25: 0 | AB25: =HLOOKUP('Data (HIDE)'!$V$14,'Data (HIDE)'!$C$167:$G$184,12,FALSE)+'Data (HIDE)'!$D$186 -> 27.3475 | AC25: =HLOOKUP('Data (HIDE)'!$W$14,'Data (HIDE)'!$D$191:$H$208,13,FALSE) -> 11.8
B26: ='Seed, Fertilizer & Chemical'!B17 -> Beans - Pinto | C26: 0.2 | D26: 32.607792 | E26: ='Data (HIDE)'!C181+'Data (HIDE)'!$D$186 -> 39.0075 | F26: ='Data (HIDE)'!D206 -> 20.65 | G26: - | H26: =-PMT('Fixed Cost Input'!$C$11,20,(HLOOKUP('Data (HIDE)'!$B$13,'Data (HIDE)'!$C$124:$G$141,15,FALSE)/60*(('Fixed Cost Input'!$C$17*'Fixed Cost Input'!$D$17)+('Fixed Cost Input'!$C$18*'Fixed Cost Input'!$D$18)+('Fixed Cost Input'!$C$19*'Fixed Cost Input'!$D$19))*'Fixed Cost Input'!$D$20),0) -> 8.708363854 | I26: - | J26: - | K26: - | L26: - | M26: 25 | N26: 25 | AB26: =HLOOKUP('Data (HIDE)'!$V$14,'Data (HIDE)'!$C$167:$G$184,15,FALSE)+'Data (HIDE)'!$D$186 -> 39.0075 | AC26: =HLOOKUP('Data (HIDE)'!$W$14,'Data (HIDE)'!$D$191:$H$208,16,FALSE) -> 20.65
B27: ='Seed, Fertilizer & Chemical'!B18 -> Beans - White | C27: 0.2 | D27: 32.15223495 | E27: ='Data (HIDE)'!C182+'Data (HIDE)'!$D$186 -> 40.815 | F27: ='Data (HIDE)'!D207 -> 20.65 | G27: - | H27: =-PMT('Fixed Cost Input'!$C$11,20,(HLOOKUP('Data (HIDE)'!$B$13,'Data (HIDE)'!$C$124:$G$141,16,FALSE)/60*(('Fixed Cost Input'!$C$17*'Fixed Cost Input'!$D$17)+('Fixed Cost Input'!$C$18*'Fixed Cost Input'!$D$18)+('Fixed Cost Input'!$C$19*'Fixed Cost Input'!$D$19))*'Fixed Cost Input'!$D$20),0) -> 7.791693975 | I27: - | J27: - | K27: - | L27: - | M27: 25 | N27: 25 | AB27: =HLOOKUP('Data (HIDE)'!$V$14,'Data (HIDE)'!$C$167:$G$184,16,FALSE)+'Data (HIDE)'!$D$186 -> 40.815 | AC27: =HLOOKUP('Data (HIDE)'!$W$14,'Data (HIDE)'!$D$191:$H$208,17,FALSE) -> 20.65
B28: ='Seed, Fertilizer & Chemical'!B19 -> Beans - Black | C28: 0.2 | D28: 32.15223495 | E28: ='Data (HIDE)'!C183+'Data (HIDE)'!$D$186 -> 46.855 | F28: ='Data (HIDE)'!D208 -> 20.65 | G28: - | H28: =-PMT('Fixed Cost Input'!$C$11,20,(HLOOKUP('Data (HIDE)'!$B$13,'Data (HIDE)'!$C$124:$G$141,17,FALSE)/60*(('Fixed Cost Input'!$C$17*'Fixed Cost Input'!$D$17)+('Fixed Cost Input'!$C$18*'Fixed Cost Input'!$D$18)+('Fixed Cost Input'!$C$19*'Fixed Cost Input'!$D$19))*'Fixed Cost Input'!$D$20),0) -> 7.791693975 | I28: - | J28: - | K28: - | L28: - | M28: 25 | N28: 25 | AB28: =HLOOKUP('Data (HIDE)'!$V$14,'Data (HIDE)'!$C$167:$G$184,6,FALSE)+'Data (HIDE)'!$D$186 -> 21.015 | AC28: =HLOOKUP('Data (HIDE)'!$W$14,'Data (HIDE)'!$D$191:$H$208,7,FALSE) -> 11.8
A30: =IF('Data (HIDE)'!B13="Manitoba","* "&'Data (HIDE)'!B14&" - Based on MASC Risk Areas 2, 5, 6, & 12","* "&'Data (HIDE)'!B14&" - Based on MASC "&'Data (HIDE)'!B13) -> * 80% Insured Value - Based on MASC Risk Areas 2, 5, 6, & 12 | H30: ** Storage costs are listed under Fixed Costs on the Summary Page.
A32: Field Fuel Usage
E34: Number of Field Operations & Litres Fuel Per Acre Per Operation | M34: Trucks L/acre
E35: cultivator or tandem disk | F35: high speed disk | G35: harrow or land roller | H35: air drill | I35: row planter | J35: SP sprayer | K35: swather | L35: combine & grain cart | M35: 3/4 ton pickup | N35: grain hauling
D36: Total
A37: Crop | D37: L/acre | E37: 2.9 | F37: 3.5 | G37: 1.3 | H37: 2.8 | I37: 1.9 | J37: 0.5 | K37: 1.8 | L37: 7 | M37: 2
B38: =B13 -> Wheat - Hard Red Spring | D38: =SUM(E38*$E$37)+(F38*$F$37)+(G38*$G$37)+(H38*$H$37)+(I38*$I$37)+(J38*$J$37)+(K38*$K$37)+(L38*$L$37)+M38+N38 -> 27.24525895 | E38: 2 | G38: 1 | H38: 1 | J38: 4 | L38: 1 | M38: =$M$37 -> 2 | N38: =SUM((($I$4/$I$6)*4.546)/('Op. Cost Input'!$I$7/HLOOKUP(B38,Summary!$C$2:$T$36,35,FALSE)))+((($I$5/$I$6)*4.546)/('Op. Cost Input'!$I$7/HLOOKUP(B38,Summary!$C$2:$T$36,35,FALSE))) -> 6.345258947
B39: Wheat - Northern Hard Red | D39: =SUM(E39*$E$37)+(F39*$F$37)+(G39*$G$37)+(H39*$H$37)+(I39*$I$37)+(J39*$J$37)+(K39*$K$37)+(L39*$L$37)+M39+N39 -> 27.73335579 | E39: 2 | G39: 1 | H39: 1 | J39: 4 | L39: 1 | M39: 2 | N39: =SUM((($I$4/$I$6)*4.546)/('Op. Cost Input'!$I$7/HLOOKUP(B39,Summary!$C$2:$T$36,35,FALSE)))+((($I$5/$I$6)*4.546)/('Op. Cost Input'!$I$7/HLOOKUP(B39,Summary!$C$2:$T$36,35,FALSE))) -> 6.833355789
B40: Wheat - Prairie Spring | D40: 27.34287832 | E40: 2 | G40: 1 | H40: 1 | J40: 4 | L40: 1 | M40: 2 | N40: =SUM((($I$4/$I$6)*4.546)/('Op. Cost Input'!$I$7/HLOOKUP(B40,Summary!$C$2:$T$36,35,FALSE)))+((($I$5/$I$6)*4.546)/('Op. Cost Input'!$I$7/HLOOKUP(B40,Summary!$C$2:$T$36,35,FALSE))) -> 6.442878316
B41: Wheat - Winter | D41: 27.24525895 | E41: 2 | G41: 1 | H41: 1 | J41: 4 | L41: 1 | M41: 2 | N41: =SUM((($I$4/$I$6)*4.546)/('Op. Cost Input'!$I$7/HLOOKUP(B41,Summary!$C$2:$T$36,35,FALSE)))+((($I$5/$I$6)*4.546)/('Op. Cost Input'!$I$7/HLOOKUP(B41,Summary!$C$2:$T$36,35,FALSE))) -> 6.345258947
B42: Oats | D42: 32.12622737 | E42: 2 | G42: 1 | H42: 1 | J42: 4 | L42: 1 | M42: 2 | N42: =SUM((($I$4/$I$6)*4.546)/('Op. Cost Input'!$I$7/HLOOKUP(B42,Summary!$C$2:$T$36,35,FALSE)))+((($I$5/$I$6)*4.546)/('Op. Cost Input'!$I$7/HLOOKUP(B42,Summary!$C$2:$T$36,35,FALSE))) -> 11.22622737
B43: Barley | D43: 29.81431074 | E43: 2 | G43: 1 | H43: 1 | J43: 3 | K43: 1 | L43: 1 | M43: 2 | N43: =SUM((($I$4/$I$6)*4.546)/('Op. Cost Input'!$I$7/HLOOKUP(B43,Summary!$C$2:$T$36,35,FALSE)))+((($I$5/$I$6)*4.546)/('Op. Cost Input'!$I$7/HLOOKUP(B43,Summary!$C$2:$T$36,35,FALSE))) -> 7.614310737
B44: Hybrid Fall Rye | D44: 27.70954947 | E44: 2 | G44: 1 | H44: 1 | J44: 2 | L44: 1 | M44: 2 | N44: =SUM((($I$4/$I$6)*4.546)/('Op. Cost Input'!$I$7/HLOOKUP(B44,Summary!$C$2:$T$36,35,FALSE)))+((($I$5/$I$6)*4.546)/('Op. Cost Input'!$I$7/HLOOKUP(B44,Summary!$C$2:$T$36,35,FALSE))) -> 7.809549474
B45: Corn | D45: 33.27861474 | E45: 1 | F45: 1 | G45: 1 | I45: 1 | J45: 3 | L45: 1 | M45: 2 | N45: =SUM((($I$4/$I$6)*4.546)/('Op. Cost Input'!$I$7/HLOOKUP(B45,Summary!$C$2:$T$36,35,FALSE)))+((($I$5/$I$6)*4.546)/('Op. Cost Input'!$I$7/HLOOKUP(B45,Summary!$C$2:$T$36,35,FALSE))) -> 13.17861474
B46: Canola | D46: 27.09287158 | E46: 2 | G46: 1 | H46: 1 | J46: 4 | K46: 1 | L46: 1 | M46: 2 | N46: =SUM((($I$4/$I$6)*4.546)/('Op. Cost Input'!$I$7/HLOOKUP(B46,Summary!$C$2:$T$36,35,FALSE)))+((($I$5/$I$6)*4.546)/('Op. Cost Input'!$I$7/HLOOKUP(B46,Summary!$C$2:$T$36,35,FALSE))) -> 4.392871579
B47: Soybeans | D47: 23.609536 | E47: 2 | G47: 1 | H47: 1 | J47: 2 | L47: 1 | M47: 2 | N47: =SUM((($I$4/$I$6)*4.546)/('Op. Cost Input'!$I$7/HLOOKUP(B47,Summary!$C$2:$T$36,35,FALSE)))+((($I$5/$I$6)*4.546)/('Op. Cost Input'!$I$7/HLOOKUP(B47,Summary!$C$2:$T$36,35,FALSE))) -> 3.709536
B48: Sunflower - Oilseed | D48: 27.90954947 | E48: 1 | F48: 1 | G48: 1 | I48: 1 | J48: 3 | L48: 1 | M48: 2 | N48: =SUM((($I$4/$I$6)*4.546)/('Op. Cost Input'!$I$7/(HLOOKUP(B48,Summary!$C$2:$T$36,35,FALSE)/25)))+((($I$5/$I$6)*4.546)/('Op. Cost Input'!$I$7/(HLOOKUP(B48,Summary!$C$2:$T$36,35,FALSE)/25))) -> 7.809549474
B49: Flaxseed | D49: 25.94048421 | E49: 2 | G49: 2 | H49: 1 | J49: 3 | K49: 1 | L49: 1 | M49: 2 | N49: =SUM((($I$4/$I$6)*4.546)/('Op. Cost Input'!$I$7/HLOOKUP(B49,Summary!$C$2:$T$36,35,FALSE)))+((($I$5/$I$6)*4.546)/('Op. Cost Input'!$I$7/HLOOKUP(B49,Summary!$C$2:$T$36,35,FALSE))) -> 2.440484211
B50: Peas | D50: 23.68096842 | E50: 1 | G50: 2 | H50: 1 | J50: 3 | L50: 1 | M50: 2 | N50: =SUM((($I$4/$I$6)*4.546)/('Op. Cost Input'!$I$7/HLOOKUP(B50,Summary!$C$2:$T$36,35,FALSE)))+((($I$5/$I$6)*4.546)/('Op. Cost Input'!$I$7/HLOOKUP(B50,Summary!$C$2:$T$36,35,FALSE))) -> 4.880968421
B51: Beans - Pinto | D51: 23.29128 | E51: 1 | G51: 2 | I51: 1 | J51: 4 | K51: 1 | L51: 1 | M51: 2 | N51: =SUM((($I$4/$I$6)*4.546)/('Op. Cost Input'!$I$7/(HLOOKUP(B51,Summary!$C$2:$T$36,35,FALSE)/60)))+((($I$5/$I$6)*4.546)/('Op. Cost Input'!$I$7/(HLOOKUP(B51,Summary!$C$2:$T$36,35,FALSE)/60))) -> 3.09128
B52: Beans - White | D52: 22.96588211 | E52: 1 | G52: 2 | I52: 1 | J52: 4 | K52: 1 | L52: 1 | M52: 2 | N52: =SUM((($I$4/$I$6)*4.546)/('Op. Cost Input'!$I$7/(HLOOKUP(B52,Summary!$C$2:$T$36,35,FALSE)/60)))+((($I$5/$I$6)*4.546)/('Op. Cost Input'!$I$7/(HLOOKUP(B52,Summary!$C$2:$T$36,35,FALSE)/60))) -> 2.765882105
B53: Beans - Black | D53: 22.96588211 | E53: 1 | G53: 2 | I53: 1 | J53: 4 | K53: 1 | L53: 1 | M53: 2 | N53: =SUM((($I$4/$I$6)*4.546)/('Op. Cost Input'!$I$7/(HLOOKUP(B53,Summary!$C$2:$T$36,35,FALSE)/60)))+((($I$5/$I$6)*4.546)/('Op. Cost Input'!$I$7/(HLOOKUP(B53,Summary!$C$2:$T$36,35,FALSE)/60))) -> 2.765882105

Sheet Fixed Cost Input
A1: Fixed Costs
B3: Land | I3: Conventional | J3: Special
B4: Average Land value ($/acre) | D4: 4150 | G4: Machinery | I4: Crop | J4: Crop | L4: *HIDE*
B5: Conventional Crop acres | D5: 2000 | G5: Total Investment ($/acre) | I5: =ROUND((C48)/(D5+D6),2) -> 650 | J5: =ROUND((C56)/(D6+D5),2) -> 145 | L5: =(C56-J55)/(D6+D5) -> 116
B6: Special Crop acres | D6: 500 | G6: Residual Value (End of Useful Life) | I6: 0.25
B7: Owned Land Equity | D7: 0.88 | G7: Useful Life (years) | I7: 15
B8: =" Land Financed ("&TEXT(D4*D8,"$#,###")&" per acre)" -> Land Financed ($498 per acre) | D8: =SUM(1-D7) -> 0.12 | G8: Owned Equipment Equity | I8: 0.6
B9: Land Opportunity Cost (Investment Rate) | D9: 0.015 | G9: =" Equipment Financed ("&TEXT((I5+J5)*I9,"$#,###")&" per acre)" -> Equipment Financed ($318 per acre) | I9: =SUM(1-I8) -> 0.4
B10: Land cost ($/acre) | G10: Machinery Opportunity Cost (Investment Rate) | I10: 0.015
B11: Finance Rate & Term | C11: 0.08 | D11: 25 | E11: Years
B12: Principle & Interest Cost | D12: =-PMT(C11,D11,D4*D8,0) -> 46.65203197 | G12: Machinery Cost ($/acre)
B13: Owned Land Opportunity Cost | D13: =SUM(D4*D7)*(D9) -> 54.78 | G13: Finance Rate & Term | H13: 0.085 | I13: 7 | J13: Years | L13: w/o harvest
B14: Total Cost | D14: =SUM(D12:D13) -> 101.432032 | G14: Principle & Interest Cost | I14: =-PMT(H13,I13,I5*I9,0) -> 50.7959975 | J14: =-PMT($H$13,$I$13,J5*$I$9,0) -> 11.33141483 | L14: =-PMT($H$13,$I$13,L5*$I$9,0) -> 9.065131862
G15: Machinery Depreciation Cost | I15: =(I5-(I5*I6))/I7 -> 32.5 | J15: =(J5-(J5*$I$6))/$I$7 -> 7.25 | L15: =(L5-(L5*$I$6))/$I$7 -> 5.8
B16: Grain Storage | C16: Usage % | D16: Cost | G16: Owned Machinery Opportunity Cost | I16: =SUM(I5*I8)*(I10) -> 5.85 | J16: =SUM(J5*$I$8)*($I$10) -> 1.305 | L16: =SUM(L5*$I$8)*($I$10) -> 1.044
B17: Non-aeration bins | C17: 0.15 | D17: 3.5 | E17: /bu | I17: =SUM(I14:I16) -> 89.1459975 | J17: =SUM(J14:J16) -> 19.88641483 | L17: =SUM(L14:L16) -> 15.90913186
B18: Aeration bins | C18: 0.7 | D18: 4.5 | E18: /bu
B19: Hopper bins | C19: 0.15 | D19: 5.5 | E19: /bu | G19: Total Land & Machinery Debt ($/acre) | I19: =(D4*D8)+((I5+J5)*I9) -> 816
B20: Storage Financed | D20: 0.6 | G20: ="Total Debt / EDIBTAR benchmark ratio = "&ROUND(I19/'S.O.S.'!C31,2)&":1 " -> Total Debt / EDIBTAR benchmark ratio = 3.26:1
T21: 0.0275
A22: Conventional Crop Equipment Inventory and Current Values
C23: Market | D23: Grain | E23: Grain | H23: Market | I23: Grain | J23: Grain
A24: Power Equipment | C24: Value | D24: Usage % | E24: Allocation | G24: Harvest Equipment | H24: Value | I24: Usage % | J24: Allocation
B25: 4WD Tractor 475HP | C25: 325000 | D25: 1 | E25: =SUM(C25*D25) -> 325000 | G25: Combine | H25: 325000 | I25: 1 | J25: =SUM(H25*I25) -> 325000
B26: MFWD Tractor 150HP | C26: 120000 | D26: 1 | E26: =SUM(C26*D26) -> 120000 | G26: Swather 35 ft | H26: 51000 | I26: 1 | J26: =SUM(H26*I26) -> 51000
B27: 2WD Tractor 60HP | C27: 36000 | D27: 1 | E27: 36000 | G27: Harvest Header | H27: 60000 | I27: 1 | J27: 60000
B28: ATV Quad | C28: 6000 | D28: 1 | E28: 6000 | G28: Tandem grain truck | H28: 72000 | I28: 1 | J28: 72000
C29: 0 | D29: 0 | E29: 0 | G29: Grain cart | H29: 40000 | I29: 1 | J29: 40000
C30: 0 | D30: 0 | E30: =SUM(C30*D30) -> 0 | H30: 0 | I30: 0 | J30: 0
C31: 0 | D31: 0 | E31: 0 | H31: 0 | I31: 0 | J31: 0
E32: ="Total Inv. = $"&TEXT(SUM(E25:E31),"#,###")&" ($"&ROUND(SUM(E25:E31)/($D$5+$D$6),0)&"/acre or "&ROUND((SUM(E25:E31)/$C$48)*100,0)&"% of Total)" -> Total Inv. = $487,000 ($195/acre or 30% of Total) | J32: ="Total Inv. = $"&TEXT(SUM(J25:J31),"#,###")&" ($"&ROUND(SUM(J25:J31)/($D$5+$D$6),0)&"/acre or "&ROUND((SUM(J25:J31)/$C$48)*100,0)&"% of Total)" -> Total Inv. = $548,000 ($219/acre or 34% of Total)
B33: Power Equipment - Target $/acre | C33: 150 | D33: ="("&ROUND(C33/($C$33+$H$33+$C$45+$H$45)*100,0)&"%)" -> (30%) | G33: Harvest Equipment - Target $/acre | H33: 175 | I33: ="("&ROUND(H33/($C$33+$H$33+$C$45+$H$45)*100,0)&"%)" -> (35%)
B34: =IF(ROUND(SUM(E25:E31)/($D$5+$D$6),0)<C33,"(Under Invested by",IF(ROUND(SUM(E25:E31)/($D$5+$D$6),0)=C33,"(On Target","(Over Invested by")) -> (Over Invested by | C34: ="$"&TEXT(ABS((ROUND(SUM(E25:E31)/($D$5+$D$6),0)-C33)*($D$5+$D$6)),"#,###")&")" -> $112,500) | G34: =IF(ROUND(SUM(J25:J31)/($D$5+$D$6),0)<H33,"(Under Invested by",IF(ROUND(SUM(J25:J31)/($D$5+$D$6),0)=H33,"(On Target","(Over Invested by")) -> (Over Invested by | H34: ="$"&TEXT(ABS((ROUND(SUM(J25:J31)/($D$5+$D$6),0)-H33)*($D$5+$D$6)),"#,###")&")" -> $110,000)
C36: Market | D36: Grain | E36: Grain | H36: Market | I36: Grain | J36: Grain
A37: Seeding & Tillage | C37: Value | D37: Usage % | E37: Allocation | G37: Spraying & Misc. | H37: Value | I37: Usage % | J37: Allocation
B38: Cultivator | C38: 18000 | D38: 1 | E38: =SUM(C38*D38) -> 18000 | G38: SP sprayer | H38: 235000 | I38: 1 | J38: =SUM(H38*I38) -> 235000
B39: Harrow 80ft | C39: 32000 | D39: 1 | E39: 32000 | G39: Miscellaneous | H39: 20000 | I39: 1 | J39: 20000
B40: Air tank | C40: 70000 | D40: 1 | E40: 70000 | G40: PTO Auger 13x70 | H40: 15000 | I40: 1 | J40: 15000
B41: Air drill | C41: 175000 | D41: 1 | E41: 175000 | G41: Auger 8x35 | H41: 5000 | I41: 1 | J41: 5000
C42: 0 | D42: 0 | E42: 0 | G42: Farm pickup truck | H42: 40000 | I42: 0.5 | J42: 20000
C43: 0 | D43: 0 | E43: 0 | H43: 0 | I43: 0 | J43: 0
E44: ="Total Inv. = $"&TEXT(SUM(E38:E43),"#,###")&" ($"&ROUND(SUM(E38:E43)/($D$5+$D$6),0)&"/acre or "&ROUND((SUM(E38:E43)/$C$48)*100,0)&"% of Total)" -> Total Inv. = $295,000 ($118/acre or 18% of Total) | J44: ="Total Inv. = $"&TEXT(SUM(J38:J43),"#,###")&" ($"&ROUND(SUM(J38:J43)/($D$5+$D$6),0)&"/acre or "&ROUND((SUM(J38:J43)/$C$48)*100,0)&"% of Total)" -> Total Inv. = $295,000 ($118/acre or 18% of Total)
B45: Seeding & Tillage - Target $/acre | C45: 100 | D45: ="("&ROUND(C45/($C$33+$H$33+$C$45+$H$45)*100,0)&"%)" -> (20%) | G45: Spraying & Misc. - Target $/acre | H45: 75 | I45: ="("&ROUND(H45/($C$33+$H$33+$C$45+$H$45)*100,0)&"%)" -> (15%)
B46: =IF(ROUND(SUM(E38:E43)/($D$5+$D$6),0)<C45,"(Under Invested by",IF(ROUND(SUM(E38:E43)/($D$5+$D$6),0)=C45,"(On Target","(Over Invested by")) -> (Over Invested by | C46: ="$"&TEXT(ABS((ROUND(SUM(E38:E43)/($D$5+$D$6),0)-C45)*($D$5+$D$6)),"#,###")&")" -> $45,000) | G46: =IF(ROUND(SUM(J38:J43)/($D$5+$D$6),0)<H45,"(Under Invested by",IF(ROUND(SUM(J38:J43)/($D$5+$D$6),0)=H45,"(On Target","(Over Invested by")) -> (Over Invested by | H46: ="$"&TEXT(ABS((ROUND(SUM(J38:J43)/($D$5+$D$6),0)-H45)*($D$5+$D$6)),"#,###")&")" -> $107,500)
B48: Owned Equipment TOTAL | C48: =SUM(E25:E31)+SUM(J25:J31)+SUM(E38:E43)+SUM(J38:J43) -> 1625000
A50: Special Crop Equipment Inventory and Current Values
C51: Market | D51: Grain | E51: Grain | H51: Market | I51: Grain | J51: Grain
A52: Seeding, Tillage, Spraying | C52: Value | D52: Usage % | E52: Allocation | G52: Harvest Equipment | H52: Value | I52: Usage % | J52: Allocation
B53: Planter | C53: 140000 | D53: 1 | E53: =SUM(C53*D53) -> 140000 | G53: Harvest Header | H53: 72500 | I53: 1 | J53: =SUM(H53*I53) -> 72500
B54: High speed disc | C54: 150000 | D54: 1 | E54: =SUM(C54*D54) -> 150000 | H54: 0 | I54: 0 | J54: =SUM(H54*I54) -> 0
B55: Total | E55: =SUM(E53:E54) -> 290000 | G55: Total | J55: =SUM(J53:J54) -> 72500
B56: Special Equipment TOTAL | C56: =SUM(E55+J55) -> 362500
A58: Leased Equipment Inventory
C59: Annual | D59: Grain | E59: Grain | H59: Annual | I59: Grain | J59: Grain
A60: Seeding, Tillage, Spraying | C60: Lease | D60: Usage % | E60: Allocation | G60: Trucks & Trailers | H60: Lease | I60: Usage % | J60: Allocation
B61: enter equipment here | C61: 0 | D61: 0 | E61: =SUM(C61*D61) -> 0 | G61: enter equipment here | H61: 0 | I61: 0 | J61: =SUM(H61*I61) -> 0
C62: 0 | D62: 0 | E62: =SUM(C62*D62) -> 0 | H62: 0 | I62: 0 | J62: =SUM(H62*I62) -> 0
C63: 0 | D63: 0 | E63: =SUM(C63*D63) -> 0 | H63: 0 | I63: 0 | J63: =SUM(H63*I63) -> 0
B64: Total | C64: =SUM(C61:C63) -> 0 | E64: =SUM(E61:E63) -> 0 | G64: Total | J64: =SUM(J61:J63) -> 0
B66: Leased Equipment TOTAL | C66: =SUM(E64+J64) -> 0 | D66: =SUM(C66/(D5+D6)) -> 0 | E66: per acre
B67: * Leased equipment costs are listed under Operating Costs on the Summary Page.

Sheet Assumptions
A1: Other Assumptions
A3: Fuel Costs: Includes fuel used for field work, trucking in inputs and trucking out production.
A5: Machinery Operating Costs: Includes costs for maintenance, repairs, licenses and insurance, based on 4.2% of machinery investment cost.
A8: Crop Insurance: (2023 rates)
A9: =IF('Data (HIDE)'!B13="Manitoba",'Data (HIDE)'!B14&" coverage, $100/acre excess moisture Insurance, and additional hail insurance at $"&'Data (HIDE)'!W13&"/acre coverage for all crops. Coverage and costs based on MASC Risk Areas #2, 5, 6, and 12.",'Data (HIDE)'!B14&" coverage, $50/acre excess moisture Insurance, and additional hail insurance at $"&'Data (HIDE)'!W13&"/acre coverage for all crops. Coverage and costs based on MASC "&'Data (HIDE)'!B13) -> 80% Insured Value coverage, $100/acre excess moisture Insurance, and additional hail insurance at $400/acre coverage for all crops. Coverage and costs based on MASC Risk Areas #2, 5, 6, and 12.
A12: Other Costs: Includes overhead expenses - hydro, telephone, accounting, buildings, supplies and insurance, etc.
A14: Land Taxes: The average cost based on land tax assessment and mill rates of a sample of municipalities growing crops less provincial tax rebate.
A16: Drying Costs: Budget allocates costs only for corn and sunflowers. However, drying costs may be incurred in some years for the other crops.
A18: Interest On Operating: | D18: ="Interest charges on operating costs are calculated at "&'Op. Cost Input'!D3*100&"% for six months." -> Interest charges on operating costs are calculated at 9% for six months.
A20: Land Cost:
A21: ="Based on approximate average land values. Budget assumed "&'Fixed Cost Input'!D8*100&"% financed at "&'Fixed Cost Input'!C11*100&"% for "&'Fixed Cost Input'!D11&" years, plus "&'Fixed Cost Input'!D9*100&"% land equity opportunity cost. Budget can be used to estimate cashflow by removing investment cost." -> Based on approximate average land values. Budget assumed 12% financed at 8% for 25 years, plus 1.5% land equity opportunity cost. Budget can be used to estimate cashflow by removing investment cost.
A23: ="P&I Cost (based on "&TEXT('Fixed Cost Input'!D4*('Fixed Cost Input'!D5+'Fixed Cost Input'!D6)*'Fixed Cost Input'!D8,"$#,###")&" Mortgage) = $"&TEXT('Fixed Cost Input'!D12*('Fixed Cost Input'!D5+'Fixed Cost Input'!D6),"#,###")&" payments per year) / "&'Fixed Cost Input'!D5+'Fixed Cost Input'!D6&" acres = $"&TEXT('Fixed Cost Input'!D12,"0.00")&"/acre)" -> P&I Cost (based on $1,245,000 Mortgage) = $116,630 payments per year) / 2500 acres = $46.65/acre)
A24: ="Investment = (Total Investment x Owned Equity %) x Investment Rate % (eg. (($"&TEXT('Fixed Cost Input'!D4,"#,###")&" x "&'Fixed Cost Input'!D7*100&"%) x "&'Fixed Cost Input'!D9*100&"%) = $"&TEXT('Fixed Cost Input'!D13,"0.00")&"/acre)" -> Investment = (Total Investment x Owned Equity %) x Investment Rate % (eg. (($4,150 x 88%) x 1.5%) = $54.78/acre)
A26: Machinery Cost:
A27: ="Based on approximate average machinery values. Budget assumed "&'Fixed Cost Input'!I9*100&"% financed at "&'Fixed Cost Input'!H13*100&"% for "&'Fixed Cost Input'!I13&" years, depreciation costs over "&'Fixed Cost Input'!I7&" years with a "&'Fixed Cost Input'!I6*100&"% residual value, plus "&'Fixed Cost Input'!I10*100&"% machinery equity opportunity cost. Budget can be used to estimate cashflow by removing depreciation and investment cost. " -> Based on approximate average machinery values. Budget assumed 40% financed at 8.5% for 7 years, depreciation costs over 15 years with a 25% residual value, plus 1.5% machinery equity opportunity cost. Budget can be used to estimate cashflow by removing depreciation and investment cost.
A30: ="P&I Cost (based on "&TEXT('Fixed Cost Input'!C48*'Fixed Cost Input'!I9,"$#,###")&" + "&TEXT('Fixed Cost Input'!C56*'Fixed Cost Input'!I9,"$#,###")&" Loans) = $"&TEXT('Fixed Cost Input'!I14*('Fixed Cost Input'!D5+'Fixed Cost Input'!D6),"#,###")&" + $"&TEXT('Fixed Cost Input'!J14*('Fixed Cost Input'!D5+'Fixed Cost Input'!D6),"#,###")&" payments per year) / "&'Fixed Cost Input'!D5+'Fixed Cost Input'!D6&" acres = $"&TEXT('Fixed Cost Input'!I14,"0.00")&" and $"&TEXT('Fixed Cost Input'!J14,"0.00")&"/acre)" -> P&I Cost (based on $650,000 + $145,000 Loans) = $126,990 + $28,329 payments per year) / 2500 acres = $50.80 and $11.33/acre)
A31: ="Depreciation (Useage Cost) = (Total Investment - Residual Value) / Years Useful Life (eg. ($"&'Fixed Cost Input'!I5&" - ($"&'Fixed Cost Input'!I5&" x "&'Fixed Cost Input'!I6*100&"%)) / "&'Fixed Cost Input'!I7&" = $"&TEXT('Fixed Cost Input'!I15,"0.00")&"/acre)" -> Depreciation (Useage Cost) = (Total Investment - Residual Value) / Years Useful Life (eg. ($650 - ($650 x 25%)) / 15 = $32.50/acre)
A32: ="Investment = (Total Investment x Owned Equity %) x Investment Rate % (eg. ($"&'Fixed Cost Input'!I5&" x "&'Fixed Cost Input'!I8*100&"%) x "&'Fixed Cost Input'!I10*100&"%) = $"&TEXT('Fixed Cost Input'!I16,"0.00")&"/acre)" -> Investment = (Total Investment x Owned Equity %) x Investment Rate % (eg. ($650 x 60%) x 1.5%) = $5.85/acre)
A34: Depreciation Cost = Original Cost - Salvage Value
A35: =" Useful Life" -> Useful Life
A36: Investment Cost = Original Cost + Salvage Value x Investment Rate
A37: =" 2" -> 2
A38: Estimated Farmgate Values:
A39: Target crop prices are based on deferred delivery contract prices for fall 2023.
A40: Target yields are estimated based on 5 year MASC average yields.
A42: Storage Cost:
A43: Storage costs for each crop are based on estimated yields entered on the Summary page.
A44: ="Budget assumed "&'Fixed Cost Input'!D20*100&"% financed at "&'Fixed Cost Input'!C11*100&"% for 20 years." -> Budget assumed 60% financed at 8% for 20 years.
A45: ="Farm storage requirements were assumed to cost $"&TEXT('Fixed Cost Input'!D17,"0.00")&"/bushel for "&'Fixed Cost Input'!C17*100&"% of the storage, $"&TEXT('Fixed Cost Input'!D18,"0.00")&"/bushel for "&'Fixed Cost Input'!C18*100&"% aerated storage and $"&TEXT('Fixed Cost Input'!D19,"0.00")&"/bushel for "&'Fixed Cost Input'!C19*100&"% hopper storage." -> Farm storage requirements were assumed to cost $3.50/bushel for 15% of the storage, $4.50/bushel for 70% aerated storage and $5.50/bushel for 15% hopper storage.
A48: Profitability, Breakeven & Risk Analysis Formulas:
A49: ="Gross Revenue = Price per unit x Yield per acre (eg. wheat: $"&TEXT('Data (HIDE)'!E16,"0.00")&"/bu x "&'Data (HIDE)'!C16&"bu/ac = $"&TEXT('Data (HIDE)'!AQ16, "0.00")&"/ac)" -> Gross Revenue = Price per unit x Yield per acre (eg. wheat: $9.25/bu x 65bu/ac = $601.25/ac)
A50: ="Net Profit = Gross Revenue - Total Cost (eg. wheat: $"&TEXT('Data (HIDE)'!AQ16,"0.00")&" gross revenue - $"&ROUND('Data (HIDE)'!AI16,2)&" total cost = $"&ROUND('Data (HIDE)'!AR16,2)&" per acre)" -> Net Profit = Gross Revenue - Total Cost (eg. wheat: $601.25 gross revenue - $606.04 total cost = $-4.79 per acre)
A51: ="Operating Expense Ratio = (Operating Cost / Gross Revenue) x 100 (eg. wheat: $"&TEXT('Data (HIDE)'!AC16,"0.00")&" operating expense / $"&ROUND('Data (HIDE)'!AI16,2)&" total cost = "&TEXT('Data (HIDE)'!AS16*100,"0.0")&"%)" -> Operating Expense Ratio = (Operating Cost / Gross Revenue) x 100 (eg. wheat: $388.46 operating expense / $606.04 total cost = 64.6%)
A52: ="$ Revenue Per $ Cost = Gross Revenue / Total Cost (eg. wheat: $"&TEXT('Data (HIDE)'!AQ16,"0.00")&" gross revenue / $"&ROUND('Data (HIDE)'!AI16,2)&" total cost = $"&TEXT('Data (HIDE)'!AX16,"0.00")&")" -> $ Revenue Per $ Cost = Gross Revenue / Total Cost (eg. wheat: $601.25 gross revenue / $606.04 total cost = $0.99)
A53: ="Return on Investment (ROI) = (Gross Revenue - Total Cost) / Total Cost (eg. wheat: ($"&TEXT('Data (HIDE)'!AQ16,"0.00")&" gross revenue-$"&ROUND('Data (HIDE)'!AI16,2)&" total cost) /$"&ROUND('Data (HIDE)'!AI16,2)&" total cost = "&TEXT('Data (HIDE)'!AZ16*100,"0.0")&"%)" -> Return on Investment (ROI) = (Gross Revenue - Total Cost) / Total Cost (eg. wheat: ($601.25 gross revenue-$606.04 total cost) /$606.04 total cost = -0.8%)
A54: Estimated Return on Asset (ROA) = (Margin Over Operating - Labour - Machinery Depreciation) / (Land Investment Cost + Machinery Investment Cost)
A55: =" (eg. wheat: ($"&TEXT('Data (HIDE)'!AQ16-'Data (HIDE)'!AC16,"0.00")&" margin - $"&TEXT('Data (HIDE)'!U16,"0.00")&" labour - $"&TEXT('Fixed Cost Input'!I15,"0.00")&" dep.) / ($"&'Fixed Cost Input'!D4&" land cost + $"&TEXT('Fixed Cost Input'!I5,"0.00")&" conv. machinery + $"&TEXT('Fixed Cost Input'!J5,"0.00")&" special crop. mach.) = "&TEXT('Data (HIDE)'!AY16*100,".00")&"%) " -> (eg. wheat: ($212.79 margin - $5.40 labour - $32.50 dep.) / ($4150 land cost + $650.00 conv. machinery + $145.00 special crop. mach.) = 3.10%)
A56: ="Breakeven Price = Cost / Target Yield (eg. wheat cost $"&TEXT('Data (HIDE)'!AI16,"0.00")&" / "&'Data (HIDE)'!C16&" bu = $"&TEXT('Data (HIDE)'!AT16,"0.00")&" per bu)" -> Breakeven Price = Cost / Target Yield (eg. wheat cost $606.04 / 65 bu = $9.32 per bu)
A57: ="Breakeven Yield = Cost / Target Price per Unit (eg. wheat cost $"&TEXT('Data (HIDE)'!AI16,"0.00")&" / $"&TEXT('Data (HIDE)'!E16,"0.00")&" bu = "&TEXT('Data (HIDE)'!AU16,"0.0")&" bu)" -> Breakeven Yield = Cost / Target Price per Unit (eg. wheat cost $606.04 / $9.25 bu = 65.5 bu)
A58: ="Breakeven Yield Risk Ratio = (Target Yield per Acre / Breakeven Yield) x 100 (eg. wheat yield "&'Data (HIDE)'!C16&" bu/ac / "&TEXT('Data (HIDE)'!AU16,"0.0")&" bu BE = "&ROUND('Data (HIDE)'!AV16*100,0)&" %)" -> Breakeven Yield Risk Ratio = (Target Yield per Acre / Breakeven Yield) x 100 (eg. wheat yield 65 bu/ac / 65.5 bu BE = 99 %)
A59: ="AgriInsurance Risk Ratio = (AgriInsurance Coverage / Operating Cost) x 100 (eg. wheat coverage $"&TEXT('Data (HIDE)'!AO16,"0.00")&"/ac / $"&TEXT('Data (HIDE)'!AC16,"0.00")&" operating expense = "&ROUND('Data (HIDE)'!AW16*100,0)&" %)" -> AgriInsurance Risk Ratio = (AgriInsurance Coverage / Operating Cost) x 100 (eg. wheat coverage $585.73/ac / $388.46 operating expense = 151 %)

Sheet Data (HIDE) (hidden)
B1: Annual Update Steps: | L1: To Do List:
B2: copy & paste 'Green' data blocks below from annual MASC cost and coverage information spreadsheet.
B3: enter COP yields into 'yellow' data block below | BI3: =V14&" Yield per Acre - "&Introduction!I11 -> Manitoba Yield per Acre - 2024
B4: enter MASC insured values & COP yields into 'yellow' data blocks below
B5: enter MASC SAR acres into data block below and change formula for 5 year average.
B6: select yellow rows and sort
B11: *****Re-sort Yellow rows based on column I for 5yr Avg Ac Ranking or column K for 2018 Ranking ****** *****SUMMARY will AUTO update!! ****** | O11: ****sort on column F to reset to original listing ****
W12: Hail Ins. coverage / acre
B13: Manitoba | W13: 400 | AJ13: =-CUMPRINC('Fixed Cost Input'!$H$13,'Fixed Cost Input'!$I$13,'Fixed Cost Input'!$L$5*'Fixed Cost Input'!$I$9,1,'Fixed Cost Input'!$I$13,0)/'Fixed Cost Input'!$I$13 -> 6.628571429 | AK13: =-CUMIPMT('Fixed Cost Input'!$H$13,'Fixed Cost Input'!$I$13,'Fixed Cost Input'!$L$5*'Fixed Cost Input'!$I$9,1,'Fixed Cost Input'!$I$13,0)/'Fixed Cost Input'!$I$13 -> 2.436560434
B14: 80% Insured Value | E14: **Change Mkt Prices Here*** | J14: **Change yr for Risk pg*** | V14: =B13 -> Manitoba | W14: =B13 -> Manitoba | AO14: =V14 -> Manitoba | BE14: AgriInsurance Insured Value | BK14: Estimated ROI | BT14: Margin Over Total Costs (Net Profit)
C15: Yield | D15: Unit | E15: Price | F15: Default RANK | G15: Manual Rank | H15: 5 yr Avg Acres | I15: 5 yr Avg Acres RANK | J15: 2023 Acres | K15: 2023 Acres RANK | L15: Seed & Treatment | M15: Fertilizer | N15: Herbicide | O15: Fungicide | P15: Insecticide | Q15: Fuel | R15: Machinery Operating | S15: Machinery Lease | T15: Rental and Custom | U15: Hired Labour | V15: Crop Insurance | W15: Hail Insurance | X15: Other Costs | Y15: Land Taxes | Z15: Storage Costs | AA15: Drying Costs | AB15: Interest on Operating | AC15: Total Operating | AD15: Land Investment Costs | AE15: Machinery Costs | AF15: Total Fixed | AG15: Total Operating & Fixed | AH15: Labour Owners Living | AI15: Total Costs | AJ15: Machinery amortization | AK15: Machinery interest | AL15: Machinery depreciation | AM15: Machinery opportunity | AN15: Total | AO15: Insured value | AP15: % Premium | AQ15: Gross Revenue | AR15: Margin Over Total Costs (Net Profit) | AS15: Operating Expense Ratio | AT15: B/E Price Over Total Costs | AU15: Breakeven Yield Over Total Costs | AV15: B/E Yield Risk Ratio | AW15: AgriInsurance Risk Ratio | AX15: $ Revenue Per $ Cost | AY15: Estimated ROA (Reward) | AZ15: Estimated ROI (Reward) | BA15: $/unit of cost covered by insurance | BB15: Risk | BC15: reward | BE15: % of Op Cost | BF15: % of Total Costs | BG15: Target or Average Yield as % of B/E Yield | BH15: Target Price as % of B/E Price | BI15: ="MASC "&C144&" Insured Value" -> MASC 2023 Insured Value | BK15: 4th week April | BL15: 1st week May | BM15: 2nd week May | BN15: 3rd week May | BO15: 4th week May | BP15: 1st week June | BQ15: 2nd week June | BR15: 3rd week June | BT15: 4th week April | BU15: 1st week May | BV15: 2nd week May | BW15: 3rd week May | BX15: 4th week May | BY15: 1st week June | BZ15: 2nd week June | CA15: 3rd week June | CD15: Maximum Available for Land Rent | CE15: 0.18 | CF15: 18% Profit | CG15: 18% ROI | CH15: 0.22 | CI15: 22% Profit | CJ15: 22% ROI
B16: Wheat - Hard Red Spring | C16: =HLOOKUP($B$13,$C$124:$G$141,2,FALSE) -> 65 | D16: bu | E16: 9.25 | F16: 1 | G16: 1 | H16: =$C$68 -> 2703171 | I16: =RANK(H16,$H$16:$H$31) -> 2 | J16: =$P$68 -> 2901941 | K16: =RANK(J16,$J$16:$J$31) -> 2 | L16: ='Seed, Fertilizer & Chemical'!J4 -> 36 | M16: ='Seed, Fertilizer & Chemical'!O38 -> 124.4367504 | N16: ='Seed, Fertilizer & Chemical'!D94 -> 37.31 | O16: ='Seed, Fertilizer & Chemical'!F94 -> 24.5 | P16: ='Seed, Fertilizer & Chemical'!G94 -> 0 | Q16: ='Op. Cost Input'!D13 -> 38.14336253 | R16: ='Op. Cost Input'!$D$6 -> 25 | S16: ='Fixed Cost Input'!$D$66 -> 0 | T16: ='Op. Cost Input'!N13 -> 0 | U16: ='Op. Cost Input'!$D$5*'Op. Cost Input'!$C13 -> 5.4 | V16: ='Op. Cost Input'!E13 -> 13.5175 | W16: ='Op. Cost Input'!F13 -> 11.8 | X16: ='Op. Cost Input'!$D$7 -> 17.75 | Y16: ='Op. Cost Input'!$D$4 -> 20 | Z16: ='Op. Cost Input'!H13 -> 17.87506265 | AA16: =IF('Op. Cost Input'!G13="-",0,'Op. Cost Input'!G13) -> 0 | AB16: =ROUND(SUM(L16:AA16)/2*('Op. Cost Input'!$D$3),2) -> 16.73 | AC16: =SUM(L16:AB16) -> 388.4626755 | AD16: ='Fixed Cost Input'!$D$14 -> 101.432032 | AE16: ='Fixed Cost Input'!$I$17 -> 89.1459975 | AF16: =SUM(AD16:AE16) -> 190.5780295 | AG16: =SUM(AF16+AC16) -> 579.040705 | AH16: ='Op. Cost Input'!$D$9*'Op. Cost Input'!$D$5 -> 27 | AI16: =SUM(AG16+AH16) -> 606.040705 | AJ16: =-CUMPRINC('Fixed Cost Input'!$H$13,'Fixed Cost Input'!$I$13,'Fixed Cost Input'!$I$5*'Fixed Cost Input'!$I$9,1,'Fixed Cost Input'!$I$13,0)/'Fixed Cost Input'!$I$13 -> 37.14285714 | AK16: =-CUMIPMT('Fixed Cost Input'!$H$13,'Fixed Cost Input'!$I$13,'Fixed Cost Input'!$I$5*'Fixed Cost Input'!$I$9,1,'Fixed Cost Input'!$I$13,0)/'Fixed Cost Input'!$I$13 -> 13.65314036 | AL16: ='Fixed Cost Input'!$I$15 -> 32.5 | AM16: ='Fixed Cost Input'!$I$16 -> 5.85 | AN16: =SUM(AJ16:AM16) -> 89.1459975 | AO16: =D146 -> 585.7252 | AP16: =SUM(V16/AO16) -> 0.02307822849 | AQ16: =SUM(C16*E16) -> 601.25 | AR16: =SUM(AQ16-AI16) -> -4.790705001 | AS16: =SUM(AC16/AQ16) -> 0.646091768 | AT16: =SUM(AI16/C16) -> 9.323703154 | AU16: =ROUND(AI16/E16,1) -> 65.5 | AV16: =SUM(C16/AU16) -> 0.9923664122 | AW16: =SUM(AO16/AC16) -> 1.507803032 | AX16: =AQ16/AI16 -> 0.9920950772 | AY16: =SUM((AQ16-AC16-AH16-'Fixed Cost Input'!$I$15)/(('Fixed Cost Input'!$D$4)+'Fixed Cost Input'!$I$5+'Fixed Cost Input'!$J$5)) -> 0.03099844782 | AZ16: =AR16/AI16 -> -0.007904922824 | BA16: =SUM(AO16/C16) -> 9.011156923 | BB16: =SUM(AT16-BA16) -> 0.3125462308 | BC16: =SUM(E16-AT16) -> -0.07370315387 | BE16: =SUM(AO16/AC16) -> 1.507803032 | BF16: =SUM(AO16/AI16) -> 0.966478316 | BG16: =C16/AU16 -> 0.9923664122 | BH16: =E16/AT16 -> 0.9920950772 | BI16: =C146 -> 11.29 | BK16: =SUM((C16*E16*$D$306)-AI16)/AI$16 -> 0.1385283106 | BL16: =SUM((C16*E16*$E$306)-AI16)/AI16 -> 0.06015279947 | BM16: =SUM((C16*E16*$F$306)-AI16)/AI16 -> -0.01207172215 | BN16: =SUM((C16*E16*$G$306)-AI16)/AI16 -> -0.100765022 | BO16: =SUM((C16*E16*$H$306)-AI16)/AI16 -> -0.183208123 | BP16: =SUM((C16*E16*$I$306)-AI16)/AI16 -> -0.2512658453 | BQ16: =SUM((C16*E16*$J$306)-AI16)/AI16 -> -0.3565271329 | BR16: =SUM((C16*E16*$K$306)-AI16)/AI16 -> -0.4265690454 | BT16: =SUM((C16*E16*$D$306)-AI16) -> 83.953795 | BU16: =SUM((C16*E16*$E$306)-AI16) -> 36.455045 | BV16: =SUM((C16*E16*$F$306)-AI16) -> -7.315955001 | BW16: =SUM((C16*E16*$G$306)-AI16) -> -61.067705 | BX16: =SUM((C16*E16*$H$306)-AI16) -> -111.03158 | BY16: =SUM((C16*E16*$I$306)-AI16) -> -152.27733 | BZ16: =SUM((C16*E16*$J$306)-AI16) -> -216.069955 | CA16: =SUM((C16*E16*$K$306)-AI16) -> -258.518205 | CD16: =SUM(AQ16-(AC16+U16+AE16+#REF!+Z16)) ->  | CE16: =SUM(0.18*AQ16) -> 108.225 | CF16: =SUM(CD16-CE16) ->  | CG16: =SUM(CF16/(AC16+U16+AE16+#REF!+Z16+CE16)) ->  | CH16: =SUM(0.22*AQ16) -> 132.275 | CI16: =SUM(CD16-CH16) ->  | CJ16: =SUM(CI16/(AC16+U16+AE16+#REF!+Z16+CH16)) -> 
B17: Wheat - Northern Hard Red | C17: =HLOOKUP($B$13,$C$124:$G$141,3,FALSE) -> 70 | D17: bu | E17: 8.75 | F17: 2 | G17: 2 | H17: =$C$74 -> 134729.6 | I17: 8 | J17: =$P$74 -> 151000 | K17: 8 | L17: ='Seed, Fertilizer & Chemical'!J5 -> 36 | M17: ='Seed, Fertilizer & Chemical'!O39 -> 136.2854995 | N17: ='Seed, Fertilizer & Chemical'!D95 -> 37.31 | O17: ='Seed, Fertilizer & Chemical'!F95 -> 24.5 | P17: ='Seed, Fertilizer & Chemical'!G95 -> 0 | Q17: ='Op. Cost Input'!D14 -> 38.82669811 | R17: ='Op. Cost Input'!$D$6 -> 25 | S17: ='Fixed Cost Input'!$D$66 -> 0 | T17: ='Op. Cost Input'!N14 -> 0 | U17: ='Op. Cost Input'!$D$5*'Op. Cost Input'!$C14 -> 5.4 | V17: ='Op. Cost Input'!E14 -> 16.4075 | W17: ='Op. Cost Input'!F14 -> 11.8 | X17: ='Op. Cost Input'!$D$7 -> 17.75 | Y17: ='Op. Cost Input'!$D$4 -> 20 | Z17: ='Op. Cost Input'!H14 -> 19.25006747 | AA17: =IF('Op. Cost Input'!G14="-",0,'Op. Cost Input'!G14) -> 0 | AB17: =ROUND(SUM(L17:AA17)/2*('Op. Cost Input'!$D$3),2) -> 17.48 | AC17: 406.0097651 | AD17: ='Fixed Cost Input'!$D$14 -> 101.432032 | AE17: ='Fixed Cost Input'!$I$17 -> 89.1459975 | AF17: =SUM(AD17:AE17) -> 190.5780295 | AG17: 596.5877946 | AH17: ='Op. Cost Input'!$D$9*'Op. Cost Input'!$D$5 -> 27 | AI17: 623.5877946 | AJ17: =-CUMPRINC('Fixed Cost Input'!$H$13,'Fixed Cost Input'!$I$13,'Fixed Cost Input'!$I$5*'Fixed Cost Input'!$I$9,1,'Fixed Cost Input'!$I$13,0)/'Fixed Cost Input'!$I$13 -> 37.14285714 | AK17: =-CUMIPMT('Fixed Cost Input'!$H$13,'Fixed Cost Input'!$I$13,'Fixed Cost Input'!$I$5*'Fixed Cost Input'!$I$9,1,'Fixed Cost Input'!$I$13,0)/'Fixed Cost Input'!$I$13 -> 13.65314036 | AL17: ='Fixed Cost Input'!$I$15 -> 32.5 | AM17: ='Fixed Cost Input'!$I$16 -> 5.85 | AN17: 89.1459975 | AO17: =D147 -> 554.876 | AP17: 0.02956966962 | AQ17: 612.5 | AR17: -11.08779455 | AS17: 0.6628730858 | AT17: 8.908397065 | AU17: 71.3 | AV17: 0.9817671809 | AW17: 1.366656784 | AX17: 0.9822193528 | AY17: =SUM((AQ17-AC17-AH17-'Fixed Cost Input'!$I$15)/(('Fixed Cost Input'!$D$4)+'Fixed Cost Input'!$I$5+'Fixed Cost Input'!$J$5)) -> 0.02972502223 | AZ17: -0.01778064717 | BA17: 7.9268 | BB17: 0.9815970651 | BC17: -0.1583970651 | BE17: 1.366656784 | BF17: 0.8898121561 | BG17: 0.9817671809 | BH17: 0.9822193528 | BI17: =C147 -> 9.8 | CD17: =SUM(AQ17-(AC17+U17+AE17+#REF!+Z17)) ->  | CE17: 110.25 | CG17: =SUM(CF17/(AC17+U17+AE17+#REF!+Z17+CE17)) ->  | CH17: 134.75 | CJ17: =SUM(CI17/(AC17+U17+AE17+#REF!+Z17+CH17)) -> 
B18: Wheat - Prairie Spring | C18: =HLOOKUP($B$13,$C$124:$G$141,4,FALSE) -> 66 | D18: bu | E18: 8.75 | F18: 3 | G18: 3 | H18: =$C$79 -> 46569.2 | I18: 13 | J18: =$P$79 -> 53461 | K18: 13 | L18: ='Seed, Fertilizer & Chemical'!J6 -> 36 | M18: ='Seed, Fertilizer & Chemical'!O40 -> 128.3863334 | N18: ='Seed, Fertilizer & Chemical'!D96 -> 37.31 | O18: ='Seed, Fertilizer & Chemical'!F96 -> 24.5 | P18: ='Seed, Fertilizer & Chemical'!G96 -> 0 | Q18: ='Op. Cost Input'!D15 -> 38.28002964 | R18: ='Op. Cost Input'!$D$6 -> 25 | S18: ='Fixed Cost Input'!$D$66 -> 0 | T18: ='Op. Cost Input'!N15 -> 0 | U18: ='Op. Cost Input'!$D$5*'Op. Cost Input'!$C15 -> 5.4 | V18: ='Op. Cost Input'!E15 -> 12.445 | W18: ='Op. Cost Input'!F15 -> 11.8 | X18: ='Op. Cost Input'!$D$7 -> 17.75 | Y18: ='Op. Cost Input'!$D$4 -> 20 | Z18: ='Op. Cost Input'!H15 -> 18.15006361 | AA18: =IF('Op. Cost Input'!G15="-",0,'Op. Cost Input'!G15) -> 0 | AB18: =ROUND(SUM(L18:AA18)/2*('Op. Cost Input'!$D$3),2) -> 16.88 | AC18: 391.9014267 | AD18: ='Fixed Cost Input'!$D$14 -> 101.432032 | AE18: ='Fixed Cost Input'!$I$17 -> 89.1459975 | AF18: 190.5780295 | AG18: 582.4794561 | AH18: ='Op. Cost Input'!$D$9*'Op. Cost Input'!$D$5 -> 27 | AI18: 609.4794561 | AJ18: =-CUMPRINC('Fixed Cost Input'!$H$13,'Fixed Cost Input'!$I$13,'Fixed Cost Input'!$I$5*'Fixed Cost Input'!$I$9,1,'Fixed Cost Input'!$I$13,0)/'Fixed Cost Input'!$I$13 -> 37.14285714 | AK18: =-CUMIPMT('Fixed Cost Input'!$H$13,'Fixed Cost Input'!$I$13,'Fixed Cost Input'!$I$5*'Fixed Cost Input'!$I$9,1,'Fixed Cost Input'!$I$13,0)/'Fixed Cost Input'!$I$13 -> 13.65314036 | AL18: ='Fixed Cost Input'!$I$15 -> 32.5 | AM18: ='Fixed Cost Input'!$I$16 -> 5.85 | AN18: 89.1459975 | AO18: 505.6044 | AP18: 0.02461410542 | AQ18: 577.5 | AR18: -31.97945613 | AS18: 0.678617189 | AT18: 9.234537214 | AU18: 69.7 | AV18: 0.9469153515 | AW18: 1.290131563 | AX18: 0.9475298867 | AY18: =SUM((AQ18-AC18-AH18-'Fixed Cost Input'!$I$15)/(('Fixed Cost Input'!$D$4)+'Fixed Cost Input'!$I$5+'Fixed Cost Input'!$J$5)) -> 0.02550021706 | AZ18: -0.05247011332 | BA18: 7.660672727 | BB18: 1.573864487 | BC18: -0.4845372141 | BE18: 1.290131563 | BF18: 0.8295675841 | BG18: 0.9469153515 | BH18: 0.9475298867 | BI18: 9.66 | CD18: =SUM(AQ18-(AC18+U18+AE18+#REF!+Z18)) ->  | CE18: 103.95 | CG18: =SUM(CF18/(AC18+U18+AE18+#REF!+Z18+CE18)) ->  | CH18: 127.05 | CJ18: =SUM(CI18/(AC18+U18+AE18+#REF!+Z18+CH18)) -> 
B19: Wheat - Winter | C19: =HLOOKUP($B$13,$C$124:$G$141,5,FALSE) -> 65 | D19: bu | E19: 8 | F19: 4 | G19: 4 | H19: =$C$80 -> 42315.2 | I19: 14 | J19: =$P$80 -> 60609 | K19: 12 | L19: ='Seed, Fertilizer & Chemical'!J7 -> 34 | M19: ='Seed, Fertilizer & Chemical'!O41 -> 124.4367504 | N19: ='Seed, Fertilizer & Chemical'!D97 -> 17.04 | O19: ='Seed, Fertilizer & Chemical'!F97 -> 24.5 | P19: ='Seed, Fertilizer & Chemical'!G97 -> 0 | Q19: ='Op. Cost Input'!D16 -> 38.14336253 | R19: ='Op. Cost Input'!$D$6 -> 25 | S19: ='Fixed Cost Input'!$D$66 -> 0 | T19: ='Op. Cost Input'!N16 -> 0 | U19: ='Op. Cost Input'!$D$5*'Op. Cost Input'!$C16 -> 5.4 | V19: ='Op. Cost Input'!E16 -> 13.9775 | W19: ='Op. Cost Input'!F16 -> 11.8 | X19: ='Op. Cost Input'!$D$7 -> 17.75 | Y19: ='Op. Cost Input'!$D$4 -> 20 | Z19: ='Op. Cost Input'!H16 -> 17.87506265 | AA19: =IF('Op. Cost Input'!G16="-",0,'Op. Cost Input'!G16) -> 0 | AB19: =ROUND(SUM(L19:AA19)/2*('Op. Cost Input'!$D$3),2) -> 15.75 | AC19: 365.6726755 | AD19: ='Fixed Cost Input'!$D$14 -> 101.432032 | AE19: ='Fixed Cost Input'!$I$17 -> 89.1459975 | AF19: 190.5780295 | AG19: 556.250705 | AH19: ='Op. Cost Input'!$D$9*'Op. Cost Input'!$D$5 -> 27 | AI19: 583.250705 | AJ19: =-CUMPRINC('Fixed Cost Input'!$H$13,'Fixed Cost Input'!$I$13,'Fixed Cost Input'!$I$5*'Fixed Cost Input'!$I$9,1,'Fixed Cost Input'!$I$13,0)/'Fixed Cost Input'!$I$13 -> 37.14285714 | AK19: =-CUMIPMT('Fixed Cost Input'!$H$13,'Fixed Cost Input'!$I$13,'Fixed Cost Input'!$I$5*'Fixed Cost Input'!$I$9,1,'Fixed Cost Input'!$I$13,0)/'Fixed Cost Input'!$I$13 -> 13.65314036 | AL19: ='Fixed Cost Input'!$I$15 -> 32.5 | AM19: ='Fixed Cost Input'!$I$16 -> 5.85 | AN19: 89.1459975 | AO19: 527.6528 | AP19: 0.02648995703 | AQ19: 520 | AR19: -63.250705 | AS19: 0.7032166837 | AT19: 8.973087769 | AU19: 72.9 | AV19: 0.8916323731 | AW19: 1.442964802 | AX19: 0.8915548589 | AY19: =SUM((AQ19-AC19-AH19-'Fixed Cost Input'!$I$15)/(('Fixed Cost Input'!$D$4)+'Fixed Cost Input'!$I$5+'Fixed Cost Input'!$J$5)) -> 0.01917640535 | AZ19: -0.1084451411 | BA19: 8.117735385 | BB19: 0.8553523846 | BC19: -0.9730877693 | BE19: 1.442964802 | BF19: 0.9046758032 | BG19: 0.8916323731 | BH19: 0.8915548589 | BI19: 10.21 | CD19: =SUM(AQ19-(AC19+U19+AE19+#REF!+Z19)) ->  | CE19: 93.6 | CG19: =SUM(CF19/(AC19+U19+AE19+#REF!+Z19+CE19)) ->  | CH19: 114.4 | CJ19: =SUM(CI19/(AC19+U19+AE19+#REF!+Z19+CH19)) -> 
B20: Oats | C20: =HLOOKUP($B$13,$C$124:$G$141,6,FALSE) -> 115 | D20: bu | E20: 5 | F20: 5 | G20: 5 | H20: =$C$70 -> 562552.8 | I20: 4 | J20: =$P$70 -> 324254 | K20: 6 | L20: ='Seed, Fertilizer & Chemical'!J8 -> 25 | M20: ='Seed, Fertilizer & Chemical'!O42 -> 91.20748273 | N20: ='Seed, Fertilizer & Chemical'!D98 -> 8.5 | O20: ='Seed, Fertilizer & Chemical'!F98 -> 14.63 | P20: ='Seed, Fertilizer & Chemical'!G98 -> 0 | Q20: ='Op. Cost Input'!D17 -> 44.97671832 | R20: ='Op. Cost Input'!$D$6 -> 25 | S20: ='Fixed Cost Input'!$D$66 -> 0 | T20: ='Op. Cost Input'!N17 -> 0 | U20: ='Op. Cost Input'!$D$5*'Op. Cost Input'!$C17 -> 5.4 | V20: ='Op. Cost Input'!E17 -> 21.015 | W20: ='Op. Cost Input'!F17 -> 11.8 | X20: ='Op. Cost Input'!$D$7 -> 17.75 | Y20: ='Op. Cost Input'!$D$4 -> 20 | Z20: ='Op. Cost Input'!H17 -> 31.62511084 | AA20: =IF('Op. Cost Input'!G17="-",0,'Op. Cost Input'!G17) -> 0 | AB20: =ROUND(SUM(L20:AA20)/2*('Op. Cost Input'!$D$3),2) -> 14.26 | AC20: 331.1643119 | AD20: ='Fixed Cost Input'!$D$14 -> 101.432032 | AE20: ='Fixed Cost Input'!$I$17 -> 89.1459975 | AF20: 190.5780295 | AG20: 521.7423414 | AH20: ='Op. Cost Input'!$D$9*'Op. Cost Input'!$D$5 -> 27 | AI20: 548.7423414 | AJ20: =-CUMPRINC('Fixed Cost Input'!$H$13,'Fixed Cost Input'!$I$13,'Fixed Cost Input'!$I$5*'Fixed Cost Input'!$I$9,1,'Fixed Cost Input'!$I$13,0)/'Fixed Cost Input'!$I$13 -> 37.14285714 | AK20: =-CUMIPMT('Fixed Cost Input'!$H$13,'Fixed Cost Input'!$I$13,'Fixed Cost Input'!$I$5*'Fixed Cost Input'!$I$9,1,'Fixed Cost Input'!$I$13,0)/'Fixed Cost Input'!$I$13 -> 13.65314036 | AL20: ='Fixed Cost Input'!$I$15 -> 32.5 | AM20: ='Fixed Cost Input'!$I$16 -> 5.85 | AN20: 89.1459975 | AO20: 468.1144 | AP20: 0.04489287234 | AQ20: 575 | AR20: 26.25765864 | AS20: 0.5759379337 | AT20: 4.771672534 | AU20: 109.7 | AV20: 1.048313582 | AW20: 1.413541204 | AX20: 1.047850615 | AY20: =SUM((AQ20-AC20-AH20-'Fixed Cost Input'!$I$15)/(('Fixed Cost Input'!$D$4)+'Fixed Cost Input'!$I$5+'Fixed Cost Input'!$J$5)) -> 0.03727718668 | AZ20: 0.04785061524 | BA20: 4.07056 | BB20: 0.7011125336 | BC20: 0.2283274664 | BE20: 1.413541204 | BF20: 0.8530677601 | BG20: 1.048313582 | BH20: 1.047850615 | BI20: 4.94 | BK20: =SUM((C20*E20*$D$310)-AI20)/AI$16 -> 0.1836512923 | BL20: =SUM((C20*E20*$E$310)-AI20)/AI20 -> 0.1949688416 | BM20: =SUM((C20*E20*$F$310)-AI20)/AI20 -> 0.1017101369 | BN20: =SUM((C20*E20*$G$310)-AI20)/AI20 -> -0.020678815 | BO20: =SUM((C20*E20*$H$310)-AI20)/AI20 -> -0.1037733688 | BP20: =SUM((C20*E20*$I$310)-AI20)/AI20 -> -0.2003851955 | BQ20: =SUM((C20*E20*$J$310)-AI20)/AI20 -> -0.3194210254 | BR20: =SUM((C20*E20*$K$310)-AI20)/AI20 -> -0.432798462 | BT20: =SUM((C20*E20*$D$310)-AI20) -> 111.3001586 | BU20: =SUM((C20*E20*$E$310)-AI20) -> 106.9876586 | BV20: =SUM((C20*E20*$F$310)-AI20) -> 55.81265864 | BW20: =SUM((C20*E20*$G$310)-AI20) -> -11.34734136 | BX20: =SUM((C20*E20*$H$310)-AI20) -> -56.94484136 | BY20: =SUM((C20*E20*$I$310)-AI20) -> -109.9598414 | BZ20: =SUM((C20*E20*$J$310)-AI20) -> -175.2798414 | CA20: =SUM((C20*E20*$K$310)-AI20) -> -237.4948414 | CD20: =SUM(AQ20-(AC20+U20+AE20+#REF!+Z20)) ->  | CE20: 103.5 | CG20: =SUM(CF20/(AC20+U20+AE20+#REF!+Z20+CE20)) ->  | CH20: 126.5 | CJ20: =SUM(CI20/(AC20+U20+AE20+#REF!+Z20+CH20)) -> 
B21: Barley | C21: =HLOOKUP($B$13,$C$124:$G$141,7,FALSE) -> 78 | D21: bu | E21: 6.25 | F21: 6 | G21: 6 | H21: =$C$71 -> 379474.4 | I21: 6 | J21: =$P$71 -> 379784 | K21: 5 | L21: ='Seed, Fertilizer & Chemical'!J9 -> 24 | M21: ='Seed, Fertilizer & Chemical'!O43 -> 93.08290595 | N21: ='Seed, Fertilizer & Chemical'!D99 -> 28.25 | O21: ='Seed, Fertilizer & Chemical'!F99 -> 21.88 | P21: ='Seed, Fertilizer & Chemical'!G99 -> 0 | Q21: ='Op. Cost Input'!D18 -> 41.74003503 | R21: ='Op. Cost Input'!$D$6 -> 25 | S21: ='Fixed Cost Input'!$D$66 -> 0 | T21: ='Op. Cost Input'!N18 -> 0 | U21: ='Op. Cost Input'!$D$5*'Op. Cost Input'!$C18 -> 5.4 | V21: ='Op. Cost Input'!E18 -> 18.955 | W21: ='Op. Cost Input'!F18 -> 11.8 | X21: ='Op. Cost Input'!$D$7 -> 17.75 | Y21: ='Op. Cost Input'!$D$4 -> 20 | Z21: ='Op. Cost Input'!H18 -> 21.45007518 | AA21: =IF('Op. Cost Input'!G18="-",0,'Op. Cost Input'!G18) -> 0 | AB21: =ROUND(SUM(L21:AA21)/2*('Op. Cost Input'!$D$3),2) -> 14.82 | AC21: 344.1280162 | AD21: ='Fixed Cost Input'!$D$14 -> 101.432032 | AE21: ='Fixed Cost Input'!$I$17 -> 89.1459975 | AF21: 190.5780295 | AG21: 534.7060456 | AH21: ='Op. Cost Input'!$D$9*'Op. Cost Input'!$D$5 -> 27 | AI21: 561.7060456 | AJ21: =-CUMPRINC('Fixed Cost Input'!$H$13,'Fixed Cost Input'!$I$13,'Fixed Cost Input'!$I$5*'Fixed Cost Input'!$I$9,1,'Fixed Cost Input'!$I$13,0)/'Fixed Cost Input'!$I$13 -> 37.14285714 | AK21: =-CUMIPMT('Fixed Cost Input'!$H$13,'Fixed Cost Input'!$I$13,'Fixed Cost Input'!$I$5*'Fixed Cost Input'!$I$9,1,'Fixed Cost Input'!$I$13,0)/'Fixed Cost Input'!$I$13 -> 13.65314036 | AL21: ='Fixed Cost Input'!$I$15 -> 32.5 | AM21: ='Fixed Cost Input'!$I$16 -> 5.85 | AN21: 89.1459975 | AO21: 417.555 | AP21: 0.0453952174 | AQ21: 487.5 | AR21: -74.20604563 | AS21: 0.7059036229 | AT21: 7.201359559 | AU21: 89.9 | AV21: 0.8676307008 | AW21: 1.21337113 | AX21: 0.8678916736 | AY21: =SUM((AQ21-AC21-AH21-'Fixed Cost Input'!$I$15)/(('Fixed Cost Input'!$D$4)+'Fixed Cost Input'!$I$5+'Fixed Cost Input'!$J$5)) -> 0.01696096741 | AZ21: -0.1321083264 | BA21: 5.353269231 | BB21: 1.848090329 | BC21: -0.9513595594 | BE21: 1.21337113 | BF21: 0.7433692467 | BG21: 0.8676307008 | BH21: 0.8678916736 | BI21: 6.75 | BK21: =SUM((C21*E21*$D$309)-AI21)/AI$16 -> -0.05012830884 | BL21: =SUM((C21*E21*$E$309)-AI21)/AI21 -> -0.00947523295 | BM21: =SUM((C21*E21*$F$309)-AI21)/AI21 -> -0.09027594776 | BN21: =SUM((C21*E21*$G$309)-AI21)/AI21 -> -0.1739407051 | BO21: =SUM((C21*E21*$H$309)-AI21)/AI21 -> -0.2504887507 | BP21: =SUM((C21*E21*$I$309)-AI21)/AI21 -> -0.3452625215 | BQ21: =SUM((C21*E21*$J$309)-AI21)/AI21 -> -0.431617743 | BR21: =SUM((C21*E21*$K$309)-AI21)/AI21 -> -0.5013094444 | BT21: =SUM((C21*E21*$D$309)-AI21) -> -30.37979563 | BU21: =SUM((C21*E21*$E$309)-AI21) -> -5.322295632 | BV21: =SUM((C21*E21*$F$309)-AI21) -> -50.70854563 | BW21: =SUM((C21*E21*$G$309)-AI21) -> -97.70354563 | BX21: =SUM((C21*E21*$H$309)-AI21) -> -140.7010456 | BY21: =SUM((C21*E21*$I$309)-AI21) -> -193.9360456 | BZ21: =SUM((C21*E21*$J$309)-AI21) -> -242.4422956 | CA21: =SUM((C21*E21*$K$309)-AI21) -> -281.5885456 | CD21: =SUM(AQ21-(AC21+U21+AE21+#REF!+Z21)) ->  | CE21: 87.75 | CG21: =SUM(CF21/(AC21+U21+AE21+#REF!+Z21+CE21)) ->  | CH21: 107.25 | CJ21: =SUM(CI21/(AC21+U21+AE21+#REF!+Z21+CH21)) -> 
B22: Hybrid Fall Rye | C22: =HLOOKUP($B$13,$C$124:$G$141,8,FALSE) -> 80 | D22: bu | E22: 6.5 | F22: 7 | G22: 7 | H22: =$C$75 -> 99405.8 | I22: 9 | J22: =$P$75 -> 85088 | K22: 10 | L22: ='Seed, Fertilizer & Chemical'!J10 -> 82.4 | M22: ='Seed, Fertilizer & Chemical'!O44 -> 152.0838317 | N22: ='Seed, Fertilizer & Chemical'!D100 -> 8.38 | O22: ='Seed, Fertilizer & Chemical'!F100 -> 0 | P22: ='Seed, Fertilizer & Chemical'!G100 -> 0 | Q22: ='Op. Cost Input'!D19 -> 38.79336926 | R22: ='Op. Cost Input'!$D$6 -> 25 | S22: ='Fixed Cost Input'!$D$66 -> 0 | T22: ='Op. Cost Input'!N19 -> 0 | U22: ='Op. Cost Input'!$D$5*'Op. Cost Input'!$C19 -> 5.4 | V22: ='Op. Cost Input'!E19 -> 18.4975 | W22: ='Op. Cost Input'!F19 -> 11.8 | X22: ='Op. Cost Input'!$D$7 -> 17.75 | Y22: ='Op. Cost Input'!$D$4 -> 20 | Z22: ='Op. Cost Input'!H19 -> 22.00007711 | AA22: =IF('Op. Cost Input'!G19="-",0,'Op. Cost Input'!G19) -> 0 | AB22: =ROUND(SUM(L22:AA22)/2*('Op. Cost Input'!$D$3),2) -> 18.09 | AC22: 420.1947781 | AD22: ='Fixed Cost Input'!$D$14 -> 101.432032 | AE22: ='Fixed Cost Input'!$I$17 -> 89.1459975 | AF22: 190.5780295 | AG22: 610.7728076 | AH22: ='Op. Cost Input'!$D$9*'Op. Cost Input'!$D$5 -> 27 | AI22: 637.7728076 | AJ22: =-CUMPRINC('Fixed Cost Input'!$H$13,'Fixed Cost Input'!$I$13,'Fixed Cost Input'!$I$5*'Fixed Cost Input'!$I$9,1,'Fixed Cost Input'!$I$13,0)/'Fixed Cost Input'!$I$13 -> 37.14285714 | AK22: =-CUMIPMT('Fixed Cost Input'!$H$13,'Fixed Cost Input'!$I$13,'Fixed Cost Input'!$I$5*'Fixed Cost Input'!$I$9,1,'Fixed Cost Input'!$I$13,0)/'Fixed Cost Input'!$I$13 -> 13.65314036 | AL22: ='Fixed Cost Input'!$I$15 -> 32.5 | AM22: ='Fixed Cost Input'!$I$16 -> 5.85 | AN22: 89.1459975 | AO22: 403.86 | AP22: 0.04580176299 | AQ22: 520 | AR22: -117.7728076 | AS22: 0.8080668809 | AT22: 7.972160094 | AU22: 98.1 | AV22: 0.8154943935 | AW22: 0.9611256995 | AX22: 0.8153373644 | AY22: =SUM((AQ22-AC22-AH22-'Fixed Cost Input'!$I$15)/(('Fixed Cost Input'!$D$4)+'Fixed Cost Input'!$I$5+'Fixed Cost Input'!$J$5)) -> 0.008150702106 | AZ22: -0.1846626356 | BA22: 5.04825 | BB22: 2.923910094 | BC22: -1.472160094 | BE22: 0.9611256995 | BF22: 0.6332349 | BG22: 0.8154943935 | BH22: 0.8153373644 | BI22: 6.35 | CD22: =SUM(AQ22-(AC22+U22+AE22+#REF!+Z22)) ->  | CE22: 93.6 | CG22: =SUM(CF22/(AC22+U22+AE22+#REF!+Z22+CE22)) ->  | CH22: 114.4 | CJ22: =SUM(CI22/(AC22+U22+AE22+#REF!+Z22+CH22)) -> 
B23: Corn | C23: =HLOOKUP($B$13,$C$124:$G$141,9,FALSE) -> 135 | D23: bu | E23: 6.25 | F23: 8 | G23: 8 | H23: =$C$72 -> 383497.6 | I23: 5 | J23: =$P$72 -> 497522 | K23: 4 | L23: ='Seed, Fertilizer & Chemical'!J11 -> 102 | M23: ='Seed, Fertilizer & Chemical'!O45 -> 176.9996939 | N23: ='Seed, Fertilizer & Chemical'!D101 -> 32 | O23: ='Seed, Fertilizer & Chemical'!F101 -> 0 | P23: ='Seed, Fertilizer & Chemical'!G101 -> 0 | Q23: ='Op. Cost Input'!D20 -> 46.59006063 | R23: ='Op. Cost Input'!$D$6 -> 25 | S23: ='Fixed Cost Input'!$D$66 -> 0 | T23: ='Op. Cost Input'!N20 -> 0 | U23: ='Op. Cost Input'!$D$5*'Op. Cost Input'!$C20 -> 5.4 | V23: ='Op. Cost Input'!E20 -> 50.695 | W23: ='Op. Cost Input'!F20 -> 11.8 | X23: ='Op. Cost Input'!$D$7 -> 17.75 | Y23: ='Op. Cost Input'!$D$4 -> 20 | Z23: ='Op. Cost Input'!H20 -> 37.12513012 | AA23: =IF('Op. Cost Input'!G20="-",0,'Op. Cost Input'!G20) -> 70 | AB23: =ROUND(SUM(L23:AA23)/2*('Op. Cost Input'!$D$3),2) -> 26.79 | AC23: 622.1498846 | AD23: ='Fixed Cost Input'!$D$14 -> 101.432032 | AE23: ='Fixed Cost Input'!$I$17+'Fixed Cost Input'!$J$17 -> 109.0324123 | AF23: 210.4644443 | AG23: 832.6143289 | AH23: ='Op. Cost Input'!$D$9*'Op. Cost Input'!$D$5 -> 27 | AI23: 859.6143289 | AJ23: =(-CUMPRINC('Fixed Cost Input'!$H$13,'Fixed Cost Input'!$I$13,'Fixed Cost Input'!$I$5*'Fixed Cost Input'!$I$9,1,'Fixed Cost Input'!$I$13,0)/'Fixed Cost Input'!$I$13)+(-CUMPRINC('Fixed Cost Input'!$H$13,'Fixed Cost Input'!$I$13,'Fixed Cost Input'!$J$5*'Fixed Cost Input'!$I$9,1,'Fixed Cost Input'!$I$13,0)/'Fixed Cost Input'!$I$13) -> 45.42857143 | AK23: =(-CUMIPMT('Fixed Cost Input'!$H$13,'Fixed Cost Input'!$I$13,'Fixed Cost Input'!$I$5*'Fixed Cost Input'!$I$9,1,'Fixed Cost Input'!$I$13,0)/'Fixed Cost Input'!$I$13)+(-CUMIPMT('Fixed Cost Input'!$H$13,'Fixed Cost Input'!$I$13,'Fixed Cost Input'!$J$5*'Fixed Cost Input'!$I$9,1,'Fixed Cost Input'!$I$13,0)/'Fixed Cost Input'!$I$13) -> 16.6988409 | AL23: ='Fixed Cost Input'!$I$15+'Fixed Cost Input'!$J$15 -> 39.75 | AM23: ='Fixed Cost Input'!$I$16+'Fixed Cost Input'!$J$16 -> 7.155 | AN23: 109.0324123 | AO23: 827.2 | AP23: 0.06128505803 | AQ23: 843.75 | AR23: -15.86432891 | AS23: 0.7373628262 | AT23: 6.367513548 | AU23: 137.5 | AV23: 0.9818181818 | AW23: 1.329583145 | AX23: 0.9815448296 | AY23: =SUM((AQ23-AC23-AH23-'Fixed Cost Input'!$I$15)/(('Fixed Cost Input'!$D$4)+'Fixed Cost Input'!$I$5+'Fixed Cost Input'!$J$5)) -> 0.03278060978 | AZ23: -0.01845517039 | BA23: 6.127407407 | BB23: 0.2401061401 | BC23: -0.1175135475 | BE23: 1.329583145 | BF23: 0.9622920095 | BG23: 0.9818181818 | BH23: 0.9815448296 | BI23: 8 | CD23: =SUM(AQ23-(AC23+U23+AE23+#REF!+Z23)) ->  | CE23: 151.875 | CG23: =SUM(CF23/(AC23+U23+AE23+#REF!+Z23+CE23)) ->  | CH23: 185.625 | CJ23: =SUM(CI23/(AC23+U23+AE23+#REF!+Z23+CH23)) -> 
B24: Canola | C24: =HLOOKUP($B$13,$C$124:$G$141,10,FALSE) -> 45 | D24: bu | E24: 15.75 | F24: 9 | G24: 9 | H24: =$C$67 -> 3283027 | I24: 1 | J24: =$P$67 -> 3142868 | K24: 1 | L24: ='Seed, Fertilizer & Chemical'!J12 -> 80 | M24: ='Seed, Fertilizer & Chemical'!O46 -> 142.0968231 | N24: ='Seed, Fertilizer & Chemical'!D102 -> 38.29 | O24: ='Seed, Fertilizer & Chemical'!F102 -> 23.13 | P24: ='Seed, Fertilizer & Chemical'!G102 -> 5.34 | Q24: ='Op. Cost Input'!D21 -> 37.93002021 | R24: ='Op. Cost Input'!$D$6 -> 25 | S24: ='Fixed Cost Input'!$D$66 -> 0 | T24: ='Op. Cost Input'!N21 -> 0 | U24: ='Op. Cost Input'!$D$5*'Op. Cost Input'!$C21 -> 5.4 | V24: ='Op. Cost Input'!E21 -> 17.495 | W24: ='Op. Cost Input'!F21 -> 11.8 | X24: ='Op. Cost Input'!$D$7 -> 17.75 | Y24: ='Op. Cost Input'!$D$4 -> 20 | Z24: ='Op. Cost Input'!H21 -> 12.37504337 | AA24: =IF('Op. Cost Input'!G21="-",0,'Op. Cost Input'!G21) -> 0 | AB24: =ROUND(SUM(L24:AA24)/2*('Op. Cost Input'!$D$3),2) -> 19.65 | AC24: 456.2568866 | AD24: ='Fixed Cost Input'!$D$14 -> 101.432032 | AE24: ='Fixed Cost Input'!$I$17 -> 89.1459975 | AF24: 190.5780295 | AG24: 646.8349161 | AH24: ='Op. Cost Input'!$D$9*'Op. Cost Input'!$D$5 -> 27 | AI24: 673.8349161 | AJ24: =-CUMPRINC('Fixed Cost Input'!$H$13,'Fixed Cost Input'!$I$13,'Fixed Cost Input'!$I$5*'Fixed Cost Input'!$I$9,1,'Fixed Cost Input'!$I$13,0)/'Fixed Cost Input'!$I$13 -> 37.14285714 | AK24: =-CUMIPMT('Fixed Cost Input'!$H$13,'Fixed Cost Input'!$I$13,'Fixed Cost Input'!$I$5*'Fixed Cost Input'!$I$9,1,'Fixed Cost Input'!$I$13,0)/'Fixed Cost Input'!$I$13 -> 13.65314036 | AL24: ='Fixed Cost Input'!$I$15 -> 32.5 | AM24: ='Fixed Cost Input'!$I$16 -> 5.85 | AN24: 89.1459975 | AO24: 719.6616 | AP24: 0.02431003683 | AQ24: 708.75 | AR24: 34.91508388 | AS24: 0.6437486937 | AT24: 14.97410925 | AU24: 42.8 | AV24: 1.051401869 | AW24: 1.577316685 | AX24: 1.051815486 | AY24: =SUM((AQ24-AC24-AH24-'Fixed Cost Input'!$I$15)/(('Fixed Cost Input'!$D$4)+'Fixed Cost Input'!$I$5+'Fixed Cost Input'!$J$5)) -> 0.0390279299 | AZ24: 0.05181548632 | BA24: 15.99248 | BB24: -1.018370753 | BC24: 0.7758907529 | BE24: 1.577316685 | BF24: 1.06800877 | BG24: 1.051401869 | BH24: 1.051815486 | BI24: 19.62 | BK24: =SUM((C24*E24*$D$305)-AI24)/AI$16 -> 0.161812083 | BL24: =SUM((C24*E24*$E$305)-AI24)/AI24 -> 0.1338570943 | BM24: =SUM((C24*E24*$F$305)-AI24)/AI24 -> 0.1045114422 | BN24: =SUM((C24*E24*$G$305)-AI24)/AI24 -> 0.08694612357 | BO24: =SUM((C24*E24*$H$305)-AI24)/AI24 -> 0.02541491762 | BP24: =SUM((C24*E24*$I$305)-AI24)/AI24 -> -0.03611628833 | BQ24: =SUM((C24*E24*$J$305)-AI24)/AI24 -> -0.1209977981 | BR24: =SUM((C24*E24*$K$305)-AI24)/AI24 -> -0.2059844894 | BT24: =SUM((C24*E24*$D$305)-AI24) -> 98.06470888 | BU24: =SUM((C24*E24*$E$305)-AI24) -> 90.19758388 | BV24: =SUM((C24*E24*$F$305)-AI24) -> 70.42345888 | BW24: =SUM((C24*E24*$G$305)-AI24) -> 58.58733388 | BX24: =SUM((C24*E24*$H$305)-AI24) -> 17.12545888 | BY24: =SUM((C24*E24*$I$305)-AI24) -> -24.33641612 | BZ24: =SUM((C24*E24*$J$305)-AI24) -> -81.53254112 | CA24: =SUM((C24*E24*$K$305)-AI24) -> -138.7995411 | CD24: =SUM(AQ24-(AC24+U24+AE24+#REF!+Z24)) ->  | CE24: 127.575 | CG24: =SUM(CF24/(AC24+U24+AE24+#REF!+Z24+CE24)) ->  | CH24: 155.925 | CJ24: =SUM(CI24/(AC24+U24+AE24+#REF!+Z24+CH24)) -> 
B25: Soybeans | C25: =HLOOKUP($B$13,$C$124:$G$141,11,FALSE) -> 38 | D25: bu | E25: 15.25 | F25: 10 | G25: 10 | H25: =$C$69 -> 1241453.6 | I25: 3 | J25: =$P$69 -> 1571490 | K25: 3 | L25: ='Seed, Fertilizer & Chemical'!J13 -> 90 | M25: ='Seed, Fertilizer & Chemical'!O47 -> 42.23395371 | N25: ='Seed, Fertilizer & Chemical'!D103 -> 23.58 | O25: ='Seed, Fertilizer & Chemical'!F103 -> 0 | P25: ='Seed, Fertilizer & Chemical'!G103 -> 0 | Q25: ='Op. Cost Input'!D22 -> 33.0533504 | R25: ='Op. Cost Input'!$D$6 -> 25 | S25: ='Fixed Cost Input'!$D$66 -> 0 | T25: ='Op. Cost Input'!N22 -> 0 | U25: ='Op. Cost Input'!$D$5*'Op. Cost Input'!$C22 -> 5.4 | V25: ='Op. Cost Input'!E22 -> 25.945 | W25: ='Op. Cost Input'!F22 -> 15.34 | X25: ='Op. Cost Input'!$D$7 -> 17.75 | Y25: ='Op. Cost Input'!$D$4 -> 20 | Z25: ='Op. Cost Input'!H22 -> 10.45003663 | AA25: =IF('Op. Cost Input'!G22="-",0,'Op. Cost Input'!G22) -> 0 | AB25: =ROUND(SUM(L25:AA25)/2*('Op. Cost Input'!$D$3),2) -> 13.89 | AC25: 322.6423407 | AD25: ='Fixed Cost Input'!$D$14 -> 101.432032 | AE25: ='Fixed Cost Input'!$I$17 -> 89.1459975 | AF25: 190.5780295 | AG25: 513.2203702 | AH25: ='Op. Cost Input'!$D$9*'Op. Cost Input'!$D$5 -> 27 | AI25: 540.2203702 | AJ25: =-CUMPRINC('Fixed Cost Input'!$H$13,'Fixed Cost Input'!$I$13,'Fixed Cost Input'!$I$5*'Fixed Cost Input'!$I$9,1,'Fixed Cost Input'!$I$13,0)/'Fixed Cost Input'!$I$13 -> 37.14285714 | AK25: =-CUMIPMT('Fixed Cost Input'!$H$13,'Fixed Cost Input'!$I$13,'Fixed Cost Input'!$I$5*'Fixed Cost Input'!$I$9,1,'Fixed Cost Input'!$I$13,0)/'Fixed Cost Input'!$I$13 -> 13.65314036 | AL25: ='Fixed Cost Input'!$I$15 -> 32.5 | AM25: ='Fixed Cost Input'!$I$16 -> 5.85 | AN25: 89.1459975 | AO25: 481.8 | AP25: 0.05385014529 | AQ25: 579.5 | AR25: 39.27962979 | AS25: 0.5567598632 | AT25: 14.21632553 | AU25: 35.4 | AV25: 1.073446328 | AW25: 1.493294398 | AX25: 1.072710383 | AY25: =SUM((AQ25-AC25-AH25-'Fixed Cost Input'!$I$15)/(('Fixed Cost Input'!$D$4)+'Fixed Cost Input'!$I$5+'Fixed Cost Input'!$J$5)) -> 0.03991054788 | AZ25: 0.07271038257 | BA25: 12.67894737 | BB25: 1.537378163 | BC25: 1.033674468 | BE25: 1.493294398 | BF25: 0.8918582611 | BG25: 1.073446328 | BH25: 1.072710383 | BI25: 16.06 | BK25: =SUM((C25*E25*$D$311)-AI25)/AI$16 -> 0.06481351742 | BL25: =SUM((C25*E25*$E$311)-AI25)/AI25 -> 0.1478001093 | BM25: =SUM((C25*E25*$F$311)-AI25)/AI25 -> 0.1478001093 | BN25: =SUM((C25*E25*$G$311)-AI25)/AI25 -> 0.07893210279 | BO25: =SUM((C25*E25*$H$311)-AI25)/AI25 -> -0.03670607645 | BP25: =SUM((C25*E25*$I$311)-AI25)/AI25 -> -0.07425093984 | BQ25: =SUM((C25*E25*$J$311)-AI25)/AI25 -> -1 | BR25: =SUM((C25*E25*$K$311)-AI25)/AI25 -> -1 | BT25: =SUM((C25*E25*$D$311)-AI25) -> 39.27962979 | BU25: =SUM((C25*E25*$E$311)-AI25) -> 79.84462979 | BV25: =SUM((C25*E25*$F$311)-AI25) -> 79.84462979 | BW25: =SUM((C25*E25*$G$311)-AI25) -> 42.64072979 | BX25: =SUM((C25*E25*$H$311)-AI25) -> -19.82937021 | BY25: =SUM((C25*E25*$I$311)-AI25) -> -40.11187021 | BZ25: =SUM((C25*E25*$J$311)-AI25) -> -540.2203702 | CA25: =SUM((C25*E25*$K$311)-AI25) -> -540.2203702 | CD25: =SUM(AQ25-(AC25+U25+AE25+#REF!+Z25)) ->  | CE25: 104.31 | CG25: =SUM(CF25/(AC25+U25+AE25+#REF!+Z25+CE25)) ->  | CH25: 127.49 | CJ25: =SUM(CI25/(AC25+U25+AE25+#REF!+Z25+CH25)) -> 
B26: Sunflower - Oilseed | C26: =HLOOKUP($B$13,$C$124:$G$141,12,FALSE) -> 2000 | D26: lb | E26: 0.25 | F26: 11 | G26: 11 | H26: =$C$76 -> 79371.6 | I26: 10 | J26: =$P$76 -> 85767 | K26: 9 | L26: ='Seed, Fertilizer & Chemical'!J14 -> 50 | M26: ='Seed, Fertilizer & Chemical'!O48 -> 116.1356063 | N26: ='Seed, Fertilizer & Chemical'!D104 -> 47.52 | O26: ='Seed, Fertilizer & Chemical'!F104 -> 0 | P26: ='Seed, Fertilizer & Chemical'!G104 -> 0 | Q26: ='Op. Cost Input'!D23 -> 39.07336926 | R26: ='Op. Cost Input'!$D$6 -> 25 | S26: ='Fixed Cost Input'!$D$66 -> 0 | T26: ='Op. Cost Input'!N23 -> 13 | U26: ='Op. Cost Input'!$D$5*'Op. Cost Input'!$C23 -> 5.4 | V26: ='Op. Cost Input'!E23 -> 27.3475 | W26: ='Op. Cost Input'!F23 -> 11.8 | X26: ='Op. Cost Input'!$D$7 -> 17.75 | Y26: ='Op. Cost Input'!$D$4 -> 20 | Z26: ='Op. Cost Input'!H23 -> 22.00007711 | AA26: =IF('Op. Cost Input'!G23="-",0,'Op. Cost Input'!G23) -> 10 | AB26: =ROUND(SUM(L26:AA26)/2*('Op. Cost Input'!$D$3),2) -> 18.23 | AC26: 423.2565527 | AD26: ='Fixed Cost Input'!$D$14 -> 101.432032 | AE26: ='Fixed Cost Input'!$I$17+'Fixed Cost Input'!$J$17 -> 109.0324123 | AF26: 210.4644443 | AG26: 633.720997 | AH26: ='Op. Cost Input'!$D$9*'Op. Cost Input'!$D$5 -> 27 | AI26: 660.720997 | AJ26: =(-CUMPRINC('Fixed Cost Input'!$H$13,'Fixed Cost Input'!$I$13,'Fixed Cost Input'!$I$5*'Fixed Cost Input'!$I$9,1,'Fixed Cost Input'!$I$13,0)/'Fixed Cost Input'!$I$13)+(-CUMPRINC('Fixed Cost Input'!$H$13,'Fixed Cost Input'!$I$13,'Fixed Cost Input'!$J$5*'Fixed Cost Input'!$I$9,1,'Fixed Cost Input'!$I$13,0)/'Fixed Cost Input'!$I$13) -> 45.42857143 | AK26: =(-CUMIPMT('Fixed Cost Input'!$H$13,'Fixed Cost Input'!$I$13,'Fixed Cost Input'!$I$5*'Fixed Cost Input'!$I$9,1,'Fixed Cost Input'!$I$13,0)/'Fixed Cost Input'!$I$13)+(-CUMIPMT('Fixed Cost Input'!$H$13,'Fixed Cost Input'!$I$13,'Fixed Cost Input'!$J$5*'Fixed Cost Input'!$I$9,1,'Fixed Cost Input'!$I$13,0)/'Fixed Cost Input'!$I$13) -> 16.6988409 | AL26: ='Fixed Cost Input'!$I$15+'Fixed Cost Input'!$J$15 -> 39.75 | AM26: ='Fixed Cost Input'!$I$16+'Fixed Cost Input'!$J$16 -> 7.155 | AN26: 109.0324123 | AO26: 599.104 | AP26: 0.04564733335 | AQ26: 500 | AR26: -160.720997 | AS26: 0.8465131054 | AT26: 0.3303604985 | AU26: 2642.9 | AV26: 0.7567444852 | AW26: 1.415463024 | AX26: 0.75674907 | AY26: =SUM((AQ26-AC26-AH26-'Fixed Cost Input'!$I$15)/(('Fixed Cost Input'!$D$4)+'Fixed Cost Input'!$I$5+'Fixed Cost Input'!$J$5)) -> 0.003487046977 | AZ26: -0.24325093 | BA26: 0.299552 | BB26: 0.0308084985 | BC26: -0.0803604985 | BE26: 1.415463024 | BF26: 0.9067427897 | BG26: 0.7567444852 | BH26: 0.75674907 | BI26: 0.37 | CD26: =SUM(AQ26-(AC26+U26+AE26+#REF!+Z26)) ->  | CE26: 90 | CG26: =SUM(CF26/(AC26+U26+AE26+#REF!+Z26+CE26)) ->  | CH26: 110 | CJ26: =SUM(CI26/(AC26+U26+AE26+#REF!+Z26+CH26)) -> 
B27: Flaxseed | C27: =HLOOKUP($B$13,$C$124:$G$141,13,FALSE) -> 25 | D27: bu | E27: 16 | F27: 12 | G27: 12 | H27: =$C$78 -> 48233 | I27: 12 | J27: =$P$78 -> 30271 | K27: 15 | L27: ='Seed, Fertilizer & Chemical'!J15 -> 64 | M27: ='Seed, Fertilizer & Chemical'!O49 -> 62.4648688 | N27: ='Seed, Fertilizer & Chemical'!D105 -> 15.63 | O27: ='Seed, Fertilizer & Chemical'!F105 -> 16.63 | P27: ='Seed, Fertilizer & Chemical'!G105 -> 0 | Q27: ='Op. Cost Input'!D24 -> 36.31667789 | R27: ='Op. Cost Input'!$D$6 -> 25 | S27: ='Fixed Cost Input'!$D$66 -> 0 | T27: ='Op. Cost Input'!N24 -> 0 | U27: ='Op. Cost Input'!$D$5*'Op. Cost Input'!$C24 -> 5.4 | V27: ='Op. Cost Input'!E24 -> 21.695 | W27: ='Op. Cost Input'!F24 -> 11.8 | X27: ='Op. Cost Input'!$D$7 -> 17.75 | Y27: ='Op. Cost Input'!$D$4 -> 20 | Z27: ='Op. Cost Input'!H24 -> 6.875024096 | AA27: =IF('Op. Cost Input'!G24="-",0,'Op. Cost Input'!G24) -> 0 | AB27: =ROUND(SUM(L27:AA27)/2*('Op. Cost Input'!$D$3),2) -> 13.66 | AC27: 317.2215708 | AD27: ='Fixed Cost Input'!$D$14 -> 101.432032 | AE27: ='Fixed Cost Input'!$I$17 -> 89.1459975 | AF27: 190.5780295 | AG27: 507.7996003 | AH27: ='Op. Cost Input'!$D$9*'Op. Cost Input'!$D$5 -> 27 | AI27: 534.7996003 | AJ27: =-CUMPRINC('Fixed Cost Input'!$H$13,'Fixed Cost Input'!$I$13,'Fixed Cost Input'!$I$5*'Fixed Cost Input'!$I$9,1,'Fixed Cost Input'!$I$13,0)/'Fixed Cost Input'!$I$13 -> 37.14285714 | AK27: =-CUMIPMT('Fixed Cost Input'!$H$13,'Fixed Cost Input'!$I$13,'Fixed Cost Input'!$I$5*'Fixed Cost Input'!$I$9,1,'Fixed Cost Input'!$I$13,0)/'Fixed Cost Input'!$I$13 -> 13.65314036 | AL27: ='Fixed Cost Input'!$I$15 -> 32.5 | AM27: ='Fixed Cost Input'!$I$16 -> 5.85 | AN27: 89.1459975 | AO27: 359.19 | AP27: 0.06039978841 | AQ27: 400 | AR27: -134.7996003 | AS27: 0.793053927 | AT27: 21.39198401 | AU27: 33.4 | AV27: 0.748502994 | AW27: 1.132300049 | AX27: 0.7479437154 | AY27: =SUM((AQ27-AC27-AH27-'Fixed Cost Input'!$I$15)/(('Fixed Cost Input'!$D$4)+'Fixed Cost Input'!$I$5+'Fixed Cost Input'!$J$5)) -> 0.00470746799 | AZ27: -0.2520562846 | BA27: 14.3676 | BB27: 7.024384011 | BC27: -5.391984011 | BE27: 1.132300049 | BF27: 0.6716347578 | BG27: 0.748502994 | BH27: 0.7479437154 | BI27: 18.42 | CD27: =SUM(AQ27-(AC27+U27+AE27+#REF!+Z27)) ->  | CE27: 72 | CG27: =SUM(CF27/(AC27+U27+AE27+#REF!+Z27+CE27)) ->  | CH27: 88 | CJ27: =SUM(CI27/(AC27+U27+AE27+#REF!+Z27+CH27)) -> 
B28: Peas | C28: =HLOOKUP($B$13,$C$124:$G$141,14,FALSE) -> 50 | D28: bu | E28: 9.5 | F28: 13 | G28: 13 | H28: =$C$73 -> 169342.2 | I28: 7 | J28: =$P$73 -> 164775 | K28: 7 | L28: ='Seed, Fertilizer & Chemical'!J16 -> 88 | M28: ='Seed, Fertilizer & Chemical'!O50 -> 28.13173853 | N28: ='Seed, Fertilizer & Chemical'!D106 -> 21 | O28: ='Seed, Fertilizer & Chemical'!F106 -> 25 | P28: ='Seed, Fertilizer & Chemical'!G106 -> 0 | Q28: ='Op. Cost Input'!D25 -> 33.15335579 | R28: ='Op. Cost Input'!$D$6 -> 25 | S28: ='Fixed Cost Input'!$D$66 -> 0 | T28: ='Op. Cost Input'!N25 -> 0 | U28: ='Op. Cost Input'!$D$5*'Op. Cost Input'!$C25 -> 5.4 | V28: ='Op. Cost Input'!E25 -> 19.6575 | W28: ='Op. Cost Input'!F25 -> 23.6 | X28: ='Op. Cost Input'!$D$7 -> 17.75 | Y28: ='Op. Cost Input'!$D$4 -> 20 | Z28: ='Op. Cost Input'!H25 -> 13.75004819 | AA28: =IF('Op. Cost Input'!G25="-",0,'Op. Cost Input'!G25) -> 0 | AB28: =ROUND(SUM(L28:AA28)/2*('Op. Cost Input'!$D$3),2) -> 14.42 | AC28: 334.8626425 | AD28: ='Fixed Cost Input'!$D$14 -> 101.432032 | AE28: ='Fixed Cost Input'!$I$17 -> 89.1459975 | AF28: 190.5780295 | AG28: 525.440672 | AH28: ='Op. Cost Input'!$D$9*'Op. Cost Input'!$D$5 -> 27 | AI28: 552.440672 | AJ28: =-CUMPRINC('Fixed Cost Input'!$H$13,'Fixed Cost Input'!$I$13,'Fixed Cost Input'!$I$5*'Fixed Cost Input'!$I$9,1,'Fixed Cost Input'!$I$13,0)/'Fixed Cost Input'!$I$13 -> 37.14285714 | AK28: =-CUMIPMT('Fixed Cost Input'!$H$13,'Fixed Cost Input'!$I$13,'Fixed Cost Input'!$I$5*'Fixed Cost Input'!$I$9,1,'Fixed Cost Input'!$I$13,0)/'Fixed Cost Input'!$I$13 -> 13.65314036 | AL28: ='Fixed Cost Input'!$I$15 -> 32.5 | AM28: ='Fixed Cost Input'!$I$16 -> 5.85 | AN28: 89.1459975 | AO28: 450.216 | AP28: 0.04366237539 | AQ28: 475 | AR28: -77.44067198 | AS28: 0.7049739842 | AT28: 11.04881344 | AU28: 58.2 | AV28: 0.8591065292 | AW28: 1.344479625 | AX28: 0.8598208352 | AY28: =SUM((AQ28-AC28-AH28-'Fixed Cost Input'!$I$15)/(('Fixed Cost Input'!$D$4)+'Fixed Cost Input'!$I$5+'Fixed Cost Input'!$J$5)) -> 0.01630684681 | AZ28: -0.1401791648 | BA28: 9.00432 | BB28: 2.04449344 | BC28: -1.54881344 | BE28: 1.344479625 | BF28: 0.8149580993 | BG28: 0.8591065292 | BH28: 0.8598208352 | BI28: 11.7 | CD28: =SUM(AQ28-(AC28+U28+AE28+#REF!+Z28)) ->  | CE28: 85.5 | CG28: =SUM(CF28/(AC28+U28+AE28+#REF!+Z28+CE28)) ->  | CH28: 104.5 | CJ28: =SUM(CI28/(AC28+U28+AE28+#REF!+Z28+CH28)) -> 
B29: Beans - Pinto | C29: =HLOOKUP($B$13,$C$124:$G$141,15,FALSE) -> 1900 | D29: lb | E29: 0.5 | F29: 14 | G29: 14 | H29: =$C$77 -> 76749 | I29: 11 | J29: =$P$77 -> 81814 | K29: 11 | L29: ='Seed, Fertilizer & Chemical'!J17 -> 116 | M29: ='Seed, Fertilizer & Chemical'!O51 -> 78.26320101 | N29: ='Seed, Fertilizer & Chemical'!D107 -> 84.9 | O29: ='Seed, Fertilizer & Chemical'!F107 -> 44.88 | P29: ='Seed, Fertilizer & Chemical'!G107 -> 0 | Q29: ='Op. Cost Input'!D26 -> 32.607792 | R29: ='Op. Cost Input'!$D$6 -> 25 | S29: ='Fixed Cost Input'!$D$66 -> 0 | T29: ='Op. Cost Input'!N26 -> 25 | U29: ='Op. Cost Input'!$D$5*'Op. Cost Input'!$C26 -> 5.4 | V29: ='Op. Cost Input'!E26 -> 39.0075 | W29: ='Op. Cost Input'!F26 -> 20.65 | X29: ='Op. Cost Input'!$D$7 -> 17.75 | Y29: ='Op. Cost Input'!$D$4 -> 20 | Z29: ='Op. Cost Input'!H26 -> 8.708363854 | AA29: =IF('Op. Cost Input'!G26="-",0,'Op. Cost Input'!G26) -> 0 | AB29: =ROUND(SUM(L29:AA29)/2*('Op. Cost Input'!$D$3),2) -> 23.32 | AC29: 541.4868569 | AD29: ='Fixed Cost Input'!$D$14 -> 101.432032 | AE29: ='Fixed Cost Input'!$I$17+'Fixed Cost Input'!$J$17 -> 109.0324123 | AF29: 210.4644443 | AG29: 751.9513012 | AH29: ='Op. Cost Input'!$D$9*'Op. Cost Input'!$D$5 -> 27 | AI29: 778.9513012 | AJ29: =(-CUMPRINC('Fixed Cost Input'!$H$13,'Fixed Cost Input'!$I$13,'Fixed Cost Input'!$I$5*'Fixed Cost Input'!$I$9,1,'Fixed Cost Input'!$I$13,0)/'Fixed Cost Input'!$I$13)+(-CUMPRINC('Fixed Cost Input'!$H$13,'Fixed Cost Input'!$I$13,'Fixed Cost Input'!$J$5*'Fixed Cost Input'!$I$9,1,'Fixed Cost Input'!$I$13,0)/'Fixed Cost Input'!$I$13) -> 45.42857143 | AK29: =(-CUMIPMT('Fixed Cost Input'!$H$13,'Fixed Cost Input'!$I$13,'Fixed Cost Input'!$I$5*'Fixed Cost Input'!$I$9,1,'Fixed Cost Input'!$I$13,0)/'Fixed Cost Input'!$I$13)+(-CUMIPMT('Fixed Cost Input'!$H$13,'Fixed Cost Input'!$I$13,'Fixed Cost Input'!$J$5*'Fixed Cost Input'!$I$9,1,'Fixed Cost Input'!$I$13,0)/'Fixed Cost Input'!$I$13) -> 16.6988409 | AL29: ='Fixed Cost Input'!$I$15+'Fixed Cost Input'!$J$15 -> 39.75 | AM29: ='Fixed Cost Input'!$I$16+'Fixed Cost Input'!$J$16 -> 7.155 | AN29: 109.0324123 | AO29: 693.72 | AP29: 0.05622945857 | AQ29: 950 | AR29: 171.0486988 | AS29: 0.5699861651 | AT29: 0.409974369 | AU29: 1557.9 | AV29: 1.219590474 | AW29: 1.281139129 | AX29: 1.219588437 | AY29: =SUM((AQ29-AC29-AH29-'Fixed Cost Input'!$I$15)/(('Fixed Cost Input'!$D$4)+'Fixed Cost Input'!$I$5+'Fixed Cost Input'!$J$5)) -> 0.0705789976 | AZ29: 0.2195884372 | BA29: 0.3651157895 | BB29: 0.04485857956 | BC29: 0.09002563097 | BE29: 1.281139129 | BF29: 0.8905819901 | BG29: 1.219590474 | BH29: 1.219588437 | BI29: 0.47 | CD29: =SUM(AQ29-(AC29+U29+AE29+#REF!+Z29)) ->  | CE29: 171 | CG29: =SUM(CF29/(AC29+U29+AE29+#REF!+Z29+CE29)) ->  | CH29: 209 | CJ29: =SUM(CI29/(AC29+U29+AE29+#REF!+Z29+CH29)) -> 
B30: Beans - White | C30: =HLOOKUP($B$13,$C$124:$G$141,16,FALSE) -> 1700 | D30: lb | E30: 0.5 | F30: 15 | G30: 15 | H30: =$C$81 -> 33258.6 | I30: 15 | J30: =$P$81 -> 19183 | K30: 16 | L30: ='Seed, Fertilizer & Chemical'!J18 -> 112 | M30: ='Seed, Fertilizer & Chemical'!O52 -> 86.16236711 | N30: ='Seed, Fertilizer & Chemical'!D108 -> 84.9 | O30: ='Seed, Fertilizer & Chemical'!F108 -> 44.88 | P30: ='Seed, Fertilizer & Chemical'!G108 -> 0 | Q30: ='Op. Cost Input'!D27 -> 32.15223495 | R30: ='Op. Cost Input'!$D$6 -> 25 | S30: ='Fixed Cost Input'!$D$66 -> 0 | T30: ='Op. Cost Input'!N27 -> 25 | U30: ='Op. Cost Input'!$D$5*'Op. Cost Input'!$C27 -> 5.4 | V30: ='Op. Cost Input'!E27 -> 40.815 | W30: ='Op. Cost Input'!F27 -> 20.65 | X30: ='Op. Cost Input'!$D$7 -> 17.75 | Y30: ='Op. Cost Input'!$D$4 -> 20 | Z30: ='Op. Cost Input'!H27 -> 7.791693975 | AA30: =IF('Op. Cost Input'!G27="-",0,'Op. Cost Input'!G27) -> 0 | AB30: =ROUND(SUM(L30:AA30)/2*('Op. Cost Input'!$D$3),2) -> 23.51 | AC30: 546.011296 | AD30: ='Fixed Cost Input'!$D$14 -> 101.432032 | AE30: ='Fixed Cost Input'!$I$17+'Fixed Cost Input'!$J$17 -> 109.0324123 | AF30: 210.4644443 | AG30: 756.4757403 | AH30: ='Op. Cost Input'!$D$9*'Op. Cost Input'!$D$5 -> 27 | AI30: 783.4757403 | AJ30: =(-CUMPRINC('Fixed Cost Input'!$H$13,'Fixed Cost Input'!$I$13,'Fixed Cost Input'!$I$5*'Fixed Cost Input'!$I$9,1,'Fixed Cost Input'!$I$13,0)/'Fixed Cost Input'!$I$13)+(-CUMPRINC('Fixed Cost Input'!$H$13,'Fixed Cost Input'!$I$13,'Fixed Cost Input'!$J$5*'Fixed Cost Input'!$I$9,1,'Fixed Cost Input'!$I$13,0)/'Fixed Cost Input'!$I$13) -> 45.42857143 | AK30: =(-CUMIPMT('Fixed Cost Input'!$H$13,'Fixed Cost Input'!$I$13,'Fixed Cost Input'!$I$5*'Fixed Cost Input'!$I$9,1,'Fixed Cost Input'!$I$13,0)/'Fixed Cost Input'!$I$13)+(-CUMIPMT('Fixed Cost Input'!$H$13,'Fixed Cost Input'!$I$13,'Fixed Cost Input'!$J$5*'Fixed Cost Input'!$I$9,1,'Fixed Cost Input'!$I$13,0)/'Fixed Cost Input'!$I$13) -> 16.6988409 | AL30: ='Fixed Cost Input'!$I$15+'Fixed Cost Input'!$J$15 -> 39.75 | AM30: ='Fixed Cost Input'!$I$16+'Fixed Cost Input'!$J$16 -> 7.155 | AN30: 109.0324123 | AO30: 687.648 | AP30: 0.05935449532 | AQ30: 850 | AR30: 66.52425967 | AS30: 0.6423662306 | AT30: 0.4608680825 | AU30: 1567 | AV30: 1.084875558 | AW30: 1.259402516 | AX30: 1.084909151 | AY30: =SUM((AQ30-AC30-AH30-'Fixed Cost Input'!$I$15)/(('Fixed Cost Input'!$D$4)+'Fixed Cost Input'!$I$5+'Fixed Cost Input'!$J$5)) -> 0.04944159838 | AZ30: 0.08490915065 | BA30: 0.4044988235 | BB30: 0.05636925902 | BC30: 0.03913191745 | BE30: 1.259402516 | BF30: 0.8776889502 | BG30: 1.084875558 | BH30: 1.084909151 | BI30: 0.48 | CD30: =SUM(AQ30-(AC30+U30+AE30+#REF!+Z30)) ->  | CE30: 153 | CG30: =SUM(CF30/(AC30+U30+AE30+#REF!+Z30+CE30)) ->  | CH30: 187 | CJ30: =SUM(CI30/(AC30+U30+AE30+#REF!+Z30+CH30)) -> 
B31: Beans - Black | C31: =HLOOKUP($B$13,$C$124:$G$141,17,FALSE) -> 1700 | D31: lb | E31: 0.5 | F31: 16 | G31: 16 | H31: =$C$82 -> 25528.8 | I31: 16 | J31: =$P$82 -> 30497 | K31: 14 | L31: ='Seed, Fertilizer & Chemical'!J19 -> 118 | M31: ='Seed, Fertilizer & Chemical'!O53 -> 86.16236711 | N31: ='Seed, Fertilizer & Chemical'!D109 -> 84.9 | O31: ='Seed, Fertilizer & Chemical'!F109 -> 44.88 | P31: ='Seed, Fertilizer & Chemical'!G109 -> 0 | Q31: ='Op. Cost Input'!D28 -> 32.15223495 | R31: ='Op. Cost Input'!$D$6 -> 25 | S31: ='Fixed Cost Input'!$D$66 -> 0 | T31: ='Op. Cost Input'!N28 -> 25 | U31: ='Op. Cost Input'!$D$5*'Op. Cost Input'!$C28 -> 5.4 | V31: ='Op. Cost Input'!E28 -> 46.855 | W31: ='Op. Cost Input'!F28 -> 20.65 | X31: ='Op. Cost Input'!$D$7 -> 17.75 | Y31: ='Op. Cost Input'!$D$4 -> 20 | Z31: ='Op. Cost Input'!H28 -> 7.791693975 | AA31: =IF('Op. Cost Input'!G28="-",0,'Op. Cost Input'!G28) -> 0 | AB31: =ROUND(SUM(L31:AA31)/2*('Op. Cost Input'!$D$3),2) -> 24.05 | AC31: 558.591296 | AD31: ='Fixed Cost Input'!$D$14 -> 101.432032 | AE31: ='Fixed Cost Input'!$I$17+'Fixed Cost Input'!$J$17 -> 109.0324123 | AF31: 210.4644443 | AG31: 769.0557403 | AH31: ='Op. Cost Input'!$D$9*'Op. Cost Input'!$D$5 -> 27 | AI31: 796.0557403 | AJ31: =(-CUMPRINC('Fixed Cost Input'!$H$13,'Fixed Cost Input'!$I$13,'Fixed Cost Input'!$I$5*'Fixed Cost Input'!$I$9,1,'Fixed Cost Input'!$I$13,0)/'Fixed Cost Input'!$I$13)+(-CUMPRINC('Fixed Cost Input'!$H$13,'Fixed Cost Input'!$I$13,'Fixed Cost Input'!$J$5*'Fixed Cost Input'!$I$9,1,'Fixed Cost Input'!$I$13,0)/'Fixed Cost Input'!$I$13) -> 45.42857143 | AK31: =(-CUMIPMT('Fixed Cost Input'!$H$13,'Fixed Cost Input'!$I$13,'Fixed Cost Input'!$I$5*'Fixed Cost Input'!$I$9,1,'Fixed Cost Input'!$I$13,0)/'Fixed Cost Input'!$I$13)+(-CUMIPMT('Fixed Cost Input'!$H$13,'Fixed Cost Input'!$I$13,'Fixed Cost Input'!$J$5*'Fixed Cost Input'!$I$9,1,'Fixed Cost Input'!$I$13,0)/'Fixed Cost Input'!$I$13) -> 16.6988409 | AL31: ='Fixed Cost Input'!$I$15+'Fixed Cost Input'!$J$15 -> 39.75 | AM31: ='Fixed Cost Input'!$I$16+'Fixed Cost Input'!$J$16 -> 7.155 | AN31: 109.0324123 | AO31: 637.98 | AP31: 0.07344274115 | AQ31: 850 | AR31: 53.94425967 | AS31: 0.6571662306 | AT31: 0.4682680825 | AU31: 1592.1 | AV31: 1.067772125 | AW31: 1.142123059 | AX31: 1.067764425 | AY31: =SUM((AQ31-AC31-AH31-'Fixed Cost Input'!$I$15)/(('Fixed Cost Input'!$D$4)+'Fixed Cost Input'!$I$5+'Fixed Cost Input'!$J$5)) -> 0.04689761455 | AZ31: 0.0677644252 | BA31: 0.3752823529 | BB31: 0.09298572961 | BC31: 0.03173191745 | BE31: 1.142123059 | BF31: 0.8014262917 | BG31: 1.067772125 | BH31: 1.067764425 | BI31: 0.49 | CD31: =SUM(AQ31-(AC31+U31+AE31+#REF!+Z31)) ->  | CE31: 153 | CG31: =SUM(CF31/(AC31+U31+AE31+#REF!+Z31+CE31)) ->  | CH31: 187 | CJ31: =SUM(CI31/(AC31+U31+AE31+#REF!+Z31+CH31)) -> 
B34: MASC Seeded Acreage SAR - Market Variety Share Report Data | H34: https://www.masc.mb.ca/masc.nsf/tools_and_data.html | M34: (**under Management Plus**)
C35: **Change 5 year avg formula***
C36: 5yr | D36: 2012 | E36: 2013 | F36: 2014 | G36: 2015 | H36: 2016 | I36: 2017 | J36: 2018 | K36: 2019 | L36: 2020 | M36: 2021 | N36: 2022 | O36: 2023 | P36: 2024 | Q36: 2025
B37: Wheat - Hard Red Spring | C37: =AVERAGE(K37:O37) -> 2703171 | D37: 2271793 | E37: 2701101 | F37: 2232194 | G37: 2568571 | H37: 2254121 | I37: =2025021+59747 -> 2084768 | J37: =2515440+62947 -> 2578387 | K37: =2691388+66793 -> 2758181 | L37: =2660220+67221 -> 2727441 | M37: =2470659+74494 -> 2545153 | N37: =2512963+70176 -> 2583139 | O37: =2824397+77544 -> 2901941 | P37: 0 | Q37: 0
B38: Wheat - Prairie Spring | C38: =AVERAGE(K38:O38) -> 46569.2 | D38: 4527 | E38: 6415 | F38: 2482 | G38: 6747 | H38: 71364 | I38: =52807+7698 -> 60505 | J38: =48945+1954 -> 50899 | K38: =49646+1825 -> 51471 | L38: =40732+501 -> 41233 | M38: =41825+620 -> 42445 | N38: =43018+1218 -> 44236 | O38: =52548+913 -> 53461 | P38: 0 | Q38: 0
B39: Wheat - Northern Hard Red | C39: 134729.6 | D39: 48320 | E39: 138881 | F39: 279169 | G39: 341402 | H39: 374131 | I39: 220255 | J39: 163539 | K39: =149977+3608 -> 153585 | L39: =135583+2465 -> 138048 | M39: =119850 -> 119850 | N39: =111165 -> 111165 | O39: 151000 | P39: 0 | Q39: 0
B40: Wheat - Other Spring | C40: 4361.4 | D40: =D38*0.1 -> 452.7 | E40: 641.5 | F40: 248.2 | G40: 674.7 | H40: 7136.4 | I40: 6050.5 | J40: 6509 | K40: 5402 | L40: 3587 | M40: 3543 | N40: 3876 | O40: 5399 | P40: 0 | Q40: 0
B41: Wheat - Winter | C41: 42315.2 | D41: 508916 | E41: 640523 | F41: 408796 | G41: 172534 | H41: 140355 | I41: =129778+3818 -> 133596 | J41: =66039+1446 -> 67485 | K41: =32846+456 -> 33302 | L41: =27453+1560 -> 29013 | M41: =35940+740 -> 36680 | N41: =51972 -> 51972 | O41: =59403+1206 -> 60609 | P41: 0 | Q41: 0
B42: Barley | C42: 379474.4 | D42: 504626 | E42: 468209 | F42: 329036 | G42: 392393 | H42: 362057 | I42: =239898+6798 -> 246696 | J42: =257482+6990 -> 264472 | K42: =337775+11202 -> 348977 | L42: =371821+11321 -> 383142 | M42: =394491+13276 -> 407767 | N42: =365928+11774 -> 377702 | O42: =369773+10011 -> 379784 | P42: 0 | Q42: 0
B43: Oats | C43: 562552.8 | D43: 467710 | E43: 382302 | F43: 352808 | G43: 466972 | H43: 350105 | I43: =437386+13641 -> 451027 | J43: =429294+13738 -> 443032 | K43: =515939+19292 -> 535231 | L43: =624199+22844 -> 647043 | M43: =616105+27796 -> 643901 | N43: =633712+28623 -> 662335 | O43: =309507+14747 -> 324254 | P43: 0 | Q43: 0
B44: Fall Rye OP | C44: 49345.2 | D44: 96298 | E44: 85243 | F44: 58390 | G44: 68077 | H44: 112383 | I44: 73308 | J44: 41925 | K44: 40312 | L44: =39557 -> 39557 | M44: 46974 | N44: =67447 -> 67447 | O44: 52436 | P44: 0 | Q44: 0
B45: Hybrid Fall Rye | C45: 50060.6 | K45: 53793 | L45: =60939 -> 60939 | M45: 53091 | N45: =49828 -> 49828 | O45: 32652 | P45: 0 | Q45: 0
B46: Flaxseed | C46: 48233 | D46: 128901 | E46: 78363 | F46: 83237 | G46: 126840 | H46: 67161 | I46: =39294+3039 -> 42333 | J46: =32356+3316 -> 35672 | K46: =42008+3697 -> 45705 | L46: =45213+3179 -> 48392 | M46: =61707+5590 -> 67297 | N46: =44961+4539 -> 49500 | O46: =28046+2225 -> 30271 | P46: 0 | Q46: 0
B47: Canola | C47: 3283027 | D47: 3611339 | E47: 3262419 | F47: 3040491 | G47: 3160998 | H47: 3173535 | I47: 3108464 | J47: 2351203 | K47: =3213617+1200 -> 3214817 | L47: =3372513+1430 -> 3373943 | M47: =3471110+1235 -> 3472345 | N47: =3208253+2909 -> 3211162 | O47: =3142868 -> 3142868 | P47: 0 | Q47: 0
B48: Sunflower Oil | C48: 62956.2 | D48: 44667 | E48: 33630 | F48: 26617 | G48: 38535 | H48: 36752 | I48: 33480 | J48: 32269 | K48: 45831 | L48: 65716 | M48: =64238 -> 64238 | N48: 70505 | O48: 68491 | P48: 0 | Q48: 0
B49: Sunflower Confection | C49: 16415.4 | D49: 45914 | E49: 41212 | F49: 60104 | G49: 62304 | H49: 31170 | I49: 26325 | J49: 17098 | K49: 20032 | L49: 24625 | M49: =15652 -> 15652 | N49: 4492 | O49: 17276 | P49: 0 | Q49: 0
B50: Buckwheat | C50: 5394.2 | D50: 11535 | E50: 5094 | F50: 2599 | G50: 8921 | H50: 11083 | I50: 5645 | J50: 4848 | K50: 6766 | L50: 5681 | M50: =4416 -> 4416 | N50: 2834 | O50: 7274 | P50: 0 | Q50: 0
B51: Peas | C51: 169342.2 | D51: 53283 | E51: 49046 | F51: 55650 | G51: 67883 | H51: 170121 | I51: =63646+3401 -> 67047 | J51: =78440+5587 -> 84027 | K51: =104435+7740 -> 112175 | L51: =146487+9378 -> 155865 | M51: =212103+14274 -> 226377 | N51: =172294+15225 -> 187519 | O51: =154656+10119 -> 164775 | P51: 0 | Q51: 0
B52: Corn | C52: 383497.6 | D52: 273257 | E52: 334620 | F52: 250401 | G52: 225197 | H52: 328087 | I52: 395526 | J52: 380823 | K52: 416259 | L52: 306544 | M52: 383647 | N52: =313516 -> 313516 | O52: 497522 | P52: 0 | Q52: 0
B53: Soybeans | C53: 1241453.6 | D53: 844660 | E53: 1056652 | F53: 1298688 | G53: 1414338 | H53: 1646521 | I53: =2150632+111842 -> 2262474 | J53: =1778556+113835 -> 1892391 | K53: =1295148+93751 -> 1388899 | L53: =1025788+78186 -> 1103974 | M53: =1166807+83170 -> 1249977 | N53: =815354+77574 -> 892928 | O53: =1477397+94093 -> 1571490 | P53: 0 | Q53: 0
B54: Lentil | C54: 1428 | D54: 877 | E54: 533 | F54: 0 | G54: 1707 | H54: 9957 | I54: 2681 | J54: 1684 | K54: 1542 | L54: 2522 | M54: 1070 | N54: 1003 | O54: 1003 | P54: 0 | Q54: 0
B55: Beans - White | C55: 33258.6 | D55: 55274 | E55: 28913 | F55: 50273 | G55: 37602 | H55: 24226 | I55: 27231 | J55: 20243 | K55: 43665 | L55: =42923 -> 42923 | M55: 40204 | N55: 20318 | O55: 19183 | P55: 0 | Q55: 0
B56: Kidney Bean | C56: 8510 | D56: 9319 | E56: 8734 | F56: 17210 | G56: 16604 | H56: 11906 | I56: 8136 | J56: 10501 | K56: 12358 | L56: =12402 -> 12402 | M56: 9454 | N56: 4300 | O56: 4036 | P56: 0 | Q56: 0
B57: Beans - Pinto | C57: 76749 | D57: 49746 | E57: 36404 | F57: 41620 | G57: 35572 | H57: 48292 | I57: 52048 | J57: 48368 | K57: 55924 | L57: =95417 -> 95417 | M57: 86179 | N57: 64411 | O57: 81814 | P57: 0 | Q57: 0
B58: Black Bean | C58: 25528.8 | D58: 14498 | E58: 9535 | F58: 14921 | G58: 20302 | H58: 17512 | I58: 22409 | J58: 27610 | K58: 27308 | L58: 20940 | M58: 27846 | N58: 21053 | O58: 30497 | P58: 0 | Q58: 0
B59: Hempseed | C59: 7675.4 | D59: 14403 | E59: 11297 | F59: 17453 | G59: 21220 | H59: 14491 | I59: 27296 | J59: 10126 | K59: 10009 | L59: 11308 | M59: 6131 | N59: 5604 | O59: 5325 | P59: 0 | Q59: 0
B60: Canaryseed | C60: 4715.8 | D60: 12135 | E60: 6422 | F60: 2009 | G60: 9449 | H60: 7635 | I60: 4283 | J60: 1578 | K60: 3179 | L60: 5120 | M60: 6979 | N60: 4990 | O60: 3311 | P60: 0 | Q60: 0
B61: Fababean | C61: 4630.8 | D61: 3463 | E61: 2377 | F61: 3468 | G61: 9040 | H61: 9596 | I61: 8379 | J61: 5826 | K61: 8052 | L61: 6679 | M61: 5206 | N61: 0 | O61: 3217 | P61: 0 | Q61: 0
B64: MASC Seeded Acreage (for COP)
C65: **Change 5 year avg formula***
C66: 5yr | D66: Rank | E66: 2012 | F66: 2013 | G66: 2014 | H66: 2015 | I66: 2016 | J66: 2017 | K66: 2018 | L66: 2019 | M66: 2020 | N66: 2021 | O66: 2022 | P66: 2023 | Q66: 2024 | R66: 2025
B67: Canola | C67: =AVERAGE(L67:P67) -> 3283027 | D67: =RANK(C67,$C$67:$C$90) -> 1 | E67: =D47 -> 3611339 | F67: 3262419 | G67: 3040491 | H67: 3160998 | I67: 3173535 | J67: 3108464 | K67: 2351203 | L67: 3214817 | M67: 3373943 | N67: 3472345 | O67: 3211162 | P67: 3142868 | Q67: =P47 -> 0 | R67: =Q47 -> 0
B68: Wheat - Hard Red Spring | C68: 2703171 | D68: 2 | E68: =D37 -> 2271793 | F68: 2701101 | G68: 2232194 | H68: 2568571 | I68: 2254121 | J68: 2084768 | K68: 2578387 | L68: 2758181 | M68: 2727441 | N68: 2545153 | O68: 2583139 | P68: 2901941 | Q68: =P37 -> 0 | R68: =Q37 -> 0
B69: Soybeans | C69: 1241453.6 | D69: 3 | E69: =D53 -> 844660 | F69: 1056652 | G69: 1298688 | H69: 1414338 | I69: 1646521 | J69: 2262474 | K69: 1892391 | L69: 1388899 | M69: 1103974 | N69: 1249977 | O69: 892928 | P69: 1571490 | Q69: =P53 -> 0 | R69: =Q53 -> 0
B70: Oats | C70: 562552.8 | D70: 4 | E70: =D43 -> 467710 | F70: 382302 | G70: 352808 | H70: 466972 | I70: 350105 | J70: 451027 | K70: 443032 | L70: 535231 | M70: 647043 | N70: 643901 | O70: 662335 | P70: 324254 | Q70: =P43 -> 0 | R70: =Q43 -> 0
B71: Barley | C71: 379474.4 | D71: 6 | E71: =D42 -> 504626 | F71: 468209 | G71: 329036 | H71: 392393 | I71: 362057 | J71: 246696 | K71: 264472 | L71: 348977 | M71: 383142 | N71: 407767 | O71: 377702 | P71: 379784 | Q71: =P42 -> 0 | R71: =Q42 -> 0
B72: Corn | C72: 383497.6 | D72: 5 | E72: =D52 -> 273257 | F72: 334620 | G72: 250401 | H72: 225197 | I72: 328087 | J72: 395526 | K72: 380823 | L72: 416259 | M72: 306544 | N72: 383647 | O72: 313516 | P72: 497522 | Q72: =P52 -> 0 | R72: =Q52 -> 0
B73: Peas | C73: 169342.2 | D73: 7 | E73: =D51 -> 53283 | F73: 49046 | G73: 55650 | H73: 67883 | I73: 170121 | J73: 67047 | K73: 84027 | L73: 112175 | M73: 155865 | N73: 226377 | O73: 187519 | P73: 164775 | Q73: =P51 -> 0 | R73: =Q51 -> 0
B74: Wheat - Northern Hard Red | C74: 134729.6 | D74: 8 | E74: =D39*0.9 -> 43488 | F74: 124992.9 | G74: 251252.1 | H74: 307261.8 | I74: 336717.9 | J74: 198229.5 | K74: =J39 -> 163539 | L74: 153585 | M74: 138048 | N74: 119850 | O74: 111165 | P74: 151000 | Q74: =P39 -> 0 | R74: =Q39 -> 0
B75: Fall Rye | C75: 99405.8 | D75: 9 | E75: =D45+D44 -> 96298 | F75: 85243 | G75: 58390 | H75: 68077 | I75: 112383 | J75: 73308 | K75: 41925 | L75: 94105 | M75: 100496 | N75: 100065 | O75: 117275 | P75: 85088 | Q75: =P45+P44 -> 0 | R75: =Q45+Q44 -> 0
B76: Sunflower | C76: 79371.6 | D76: 10 | E76: =D48+D49 -> 90581 | F76: 74842 | G76: 86721 | H76: 100839 | I76: 67922 | J76: 59805 | K76: 49367 | L76: 65863 | M76: 90341 | N76: 79890 | O76: 74997 | P76: 85767 | Q76: =P48+P49 -> 0 | R76: =Q48+Q49 -> 0
B77: Beans - Pinto | C77: 76749 | D77: 11 | E77: =D57 -> 49746 | F77: 36404 | G77: 41620 | H77: 35572 | I77: 48292 | J77: 52048 | K77: 48368 | L77: 55924 | M77: 95417 | N77: 86179 | O77: 64411 | P77: 81814 | Q77: =P57 -> 0 | R77: =Q57 -> 0
B78: Flaxseed | C78: 48233 | D78: 12 | E78: =D46 -> 128901 | F78: 78363 | G78: 83237 | H78: 126840 | I78: 67161 | J78: 42333 | K78: 35672 | L78: 45705 | M78: 48392 | N78: 67297 | O78: 49500 | P78: 30271 | Q78: =P46 -> 0 | R78: =Q46 -> 0
B79: Wheat - Prairie Spring | C79: 46569.2 | D79: 13 | E79: =D38 -> 4527 | F79: 6415 | G79: 2482 | H79: 6747 | I79: 71364 | J79: 60505 | K79: 50899 | L79: 51471 | M79: 41233 | N79: 42445 | O79: 44236 | P79: 53461 | Q79: =P38 -> 0 | R79: =Q38 -> 0
B80: Wheat - Winter | C80: 42315.2 | D80: 14 | E80: =D41 -> 508916 | F80: 640523 | G80: 408796 | H80: 172534 | I80: 140355 | J80: 133596 | K80: 67485 | L80: 33302 | M80: 29013 | N80: 36680 | O80: 51972 | P80: 60609 | Q80: =P41 -> 0 | R80: =Q41 -> 0
B81: Beans - White | C81: 33258.6 | D81: 15 | E81: =D55 -> 55274 | F81: 28913 | G81: 50273 | H81: 37602 | I81: 24226 | J81: 27231 | K81: 20243 | L81: 43665 | M81: 42923 | N81: 40204 | O81: 20318 | P81: 19183 | Q81: =P55 -> 0 | R81: =Q55 -> 0
B82: Beans - Black | C82: 25528.8 | D82: 16 | E82: =D58 -> 14498 | F82: 9535 | G82: 14921 | H82: 20302 | I82: 17512 | J82: 22409 | K82: 27610 | L82: 27308 | M82: 20940 | N82: 27846 | O82: 21053 | P82: 30497 | Q82: =P58 -> 0 | R82: =Q58 -> 0
B83: Beans - Kidney | C83: 8510 | D83: 18 | E83: =D56 -> 9319 | F83: 8734 | G83: 17210 | H83: 16604 | I83: 11906 | J83: 8136 | K83: 10501 | L83: 12358 | M83: 12402 | N83: 9454 | O83: 4300 | P83: 4036 | Q83: =P56 -> 0 | R83: =Q56 -> 0
B84: Hempseed | C84: 10447 | D84: 17 | E84: =D59 -> 14403 | F84: 11297 | G84: 17453 | H84: 21220 | I84: 14491 | J84: 27296 | K84: 10126 | L84: 10009 | M84: 11308 | N84: 6131 | O84: 5604 | P84: =O55 -> 19183 | Q84: =P55 -> 0 | R84: 0
B85: Canaryseed | C85: 4715.8 | D85: 20 | E85: =D60 -> 12135 | F85: 6422 | G85: 2009 | H85: 9449 | I85: 7635 | J85: 4283 | K85: 1578 | L85: 3179 | M85: 5120 | N85: 6979 | O85: 4990 | P85: =O60 -> 3311 | Q85: =P60 -> 0 | R85: 0
B86: Fababean | C86: 4630.8 | D86: 21 | E86: =D61 -> 3463 | F86: 2377 | G86: 3468 | H86: 9040 | I86: 9596 | J86: 8379 | K86: 5826 | L86: 8052 | M86: 6679 | N86: 5206 | O86: 0 | P86: =O61 -> 3217 | Q86: =P61 -> 0 | R86: 0
B87: Buckwheat | C87: 5394.2 | D87: 19 | E87: =D50 -> 11535 | F87: 5094 | G87: 2599 | H87: 8921 | I87: 11083 | J87: 5645 | K87: 4848 | L87: 6766 | M87: 5681 | N87: 4416 | O87: 2834 | P87: 7274 | Q87: =P50 -> 0 | R87: =Q50 -> 0
B88: Wheat - Other Spring | C88: 4361.4 | D88: 22 | E88: =D40 -> 452.7 | F88: 641.5 | G88: 248.2 | H88: 674.7 | I88: 7136.4 | J88: 6050.5 | K88: 6509 | L88: 5402 | M88: 3587 | N88: 3543 | O88: 3876 | P88: 5399 | Q88: =P40 -> 0 | R88: =Q40 -> 0
B89: Lentil | C89: 1428 | D89: 23 | E89: =D54 -> 877 | F89: 533 | G89: 0 | H89: 1707 | I89: 9957 | J89: 2681 | K89: 1684 | L89: 1542 | M89: 2522 | N89: 1070 | O89: 1003 | P89: 1003 | Q89: =P54 -> 0 | R89: =Q54 -> 0
B92: MASC 2023 Crop & Hail Insurance Costs | G92: https://www.masc.mb.ca/masc.nsf/maps_risk_areas.html
C94: RA #2 | E94: RA #5 | G94: RA #6 | I94: RA #12 | L94: 80% Insured Value
C95: Expected | D95: 0.8 | E95: Expected | F95: 0.8 | G95: Expected | H95: 0.8 | I95: Expected | J95: 0.8 | L95: 70% Insured Value
B96: D' soil zone | C96: Yield | D96: Crop | E96: Yield | F96: Crop | G96: Yield | H96: Crop | I96: Yield | J96: Crop | L96: 50% Insured Value
B97: Wheat - Hard Red Spring | C97: 61.4 | D97: 10.62 | E97: 67.5 | F97: 8.66 | G97: 60.9 | H97: 10.03 | I97: 69.6 | J97: 18.4
B98: Wheat - Prairie Spring | C98: 62.2 | D98: 12.1 | E98: 68.6 | F98: 6.01 | G98: 61.8 | H98: 10.05 | I98: 69.1 | J98: 15.26
B99: Wheat - Northern Hard Red | C99: 67.4 | D99: 15.8 | E99: 74.1 | F99: 6.75 | G99: 66.9 | H99: 11.88 | I99: 74.7 | J99: 24.84
B100: Wheat - Winter | C100: 61.1 | D100: 13.54 | E100: 67.3 | F100: 13.77 | G100: 60.7 | H100: 11.82 | I100: 69.3 | J100: 10.42
B101: Hybrid Fall Rye | C101: 79.5 | D101: 19.36 | E101: 79.5 | F101: 14.45 | G101: 79.5 | H101: 14.9 | I101: 79.5 | J101: 18.92
B102: Barley | C102: 75.8 | D102: 14.79 | E102: 82.9 | F102: 11.72 | G102: 71.5 | H102: 17.9 | I102: 79.1 | J102: 25.05
B103: Oats | C103: 115.1 | D103: 23.25 | E103: 126.2 | F103: 15.12 | G103: 97.6 | H103: 16.21 | I103: 134.9 | J103: 23.12
B104: Flaxseed | C104: 22 | D104: 19.86 | E104: 27.1 | F104: 18.39 | G104: 22.1 | H104: 15.69 | I104: 26.3 | J104: 26.48
B105: Canola | C105: 43.3 | D105: 10 | E105: 48.1 | F105: 10.41 | G105: 43.2 | H105: 11.9 | I105: 48.8 | J105: 31.31
B106: Sunflowers Oil | C106: 2024 | D106: 25.85 | E106: 2024 | F106: 25.66 | G106: 2024 | H106: 26.09 | I106: 2024 | J106: 25.43
B107: Peas | C107: 48.1 | D107: 18.12 | E107: 48.1 | F107: 17.94 | G107: 48.1 | H107: 18.27 | I107: 48.1 | J107: 17.94
B108: Beans - White | C108: 1885 | D108: 38.96 | E108: 1885 | F108: 38.96 | G108: 1508 | H108: 40.36 | I108: 1885 | J108: 38.62
B109: Beans - Pinto | C109: 1942 | D109: 37.43 | E109: 1942 | F109: 37.15 | G109: 1554 | H109: 37.94 | I109: 1942 | J109: 37.15
B110: Beans - Black | C110: 1713 | D110: 45.31 | E110: 1713 | F110: 45.06 | G110: 1371 | H110: 45.89 | I110: 1713 | J110: 44.8
B111: Corn | C111: 119.4 | D111: 46.74 | E111: 135.8 | F111: 45.55 | G111: 105.4 | H111: 52.08 | I111: 156.4 | J111: 52.05
B112: Soybeans | C112: 36.6 | D112: 24.29 | E112: 37.8 | F112: 24.06 | G112: 36.6 | H112: 24.48 | I112: 39 | J112: 24.59
B113: Organic RS Wheat | C113: 28.4 | D113: 77.56 | E113: 28.4 | F113: 75.19 | G113: 28.4 | H113: 75.19 | I113: 28.4 | J113: 70.65
B114: Organic Winter Wheat | C114: 30.6 | D114: 78.74 | E114: 30.6 | F114: 76.67 | G114: 30.6 | H114: 75.9 | I114: 30.6 | J114: 68.37
B115: Organic OP Fall Rye | C115: 22.8 | D115: 12.34 | E115: 22.8 | F115: 9.64 | G115: 22.8 | H115: 9.96 | I115: 22.8 | J115: 11.84
B116: Organic Barley | C116: 36.2 | D116: 26.09 | E116: 36.2 | F116: 23.13 | G116: 36.2 | H116: 26.98 | I116: 36.2 | J116: 33.42
B117: Organic Oats | C117: 50.8 | D117: 46.61 | E117: 50.8 | F117: 44.56 | G117: 50.8 | H117: 48.65 | I117: 50.8 | J117: 45.13
B118: Organic Flax | C118: 11.4 | D118: 57.5 | E118: 11.4 | F118: 56.29 | G118: 11.4 | H118: 58.9 | I118: 11.4 | J118: 56.55
B119: Organic Peas | C119: 22.2 | D119: 23.56 | E119: 22.2 | F119: 23.56 | G119: 22.2 | H119: 24.24 | I119: 22.2 | J119: 23.21
B120: Organic Hemp | C120: 370 | D120: 39.05 | E120: 370 | F120: 38.72 | G120: 370 | H120: 39.62 | I120: 370 | J120: 38.6
B123: 2023 MASC data | C123: COP
B124: Expected Yield 'D' | C124: Manitoba | D124: RA#2 | E124: RA#5 | F124: RA#6 | G124: RA#12 | H124: Avg.
A125: 1 | B125: Wheat - Hard Red Spring | C125: 65 | D125: =C97 -> 61.4 | E125: =E97 -> 67.5 | F125: =G97 -> 60.9 | G125: =I97 -> 69.6 | H125: =AVERAGE(D125:G125) -> 64.85
A126: 2 | B126: Wheat - Northern Hard Red | C126: 70 | D126: =C99 -> 67.4 | E126: =E99 -> 74.1 | F126: =G99 -> 66.9 | G126: =I99 -> 74.7 | H126: 70.775
A127: 3 | B127: Wheat - Prairie Spring | C127: 66 | D127: =C98 -> 62.2 | E127: =E98 -> 68.6 | F127: =G98 -> 61.8 | G127: =I98 -> 69.1 | H127: 65.425
A128: 4 | B128: Wheat - Winter | C128: 65 | D128: =C100 -> 61.1 | E128: =E100 -> 67.3 | F128: =G100 -> 60.7 | G128: =I100 -> 69.3 | H128: 64.6
A129: 5 | B129: Oats | C129: 115 | D129: =C103 -> 115.1 | E129: =E103 -> 126.2 | F129: =G103 -> 97.6 | G129: =I103 -> 134.9 | H129: 118.45
A130: 6 | B130: Barley | C130: 78 | D130: =C102 -> 75.8 | E130: =E102 -> 82.9 | F130: =G102 -> 71.5 | G130: =I102 -> 79.1 | H130: 77.325
A131: 7 | B131: Hybrid Fall Rye | C131: 80 | D131: =C101 -> 79.5 | E131: =E101 -> 79.5 | F131: =G101 -> 79.5 | G131: =I101 -> 79.5 | H131: 79.5
A132: 8 | B132: Corn | C132: 135 | D132: =C111 -> 119.4 | E132: =E111 -> 135.8 | F132: =G111 -> 105.4 | G132: =I111 -> 156.4 | H132: 129.25
A133: 9 | B133: Canola | C133: 45 | D133: =C105 -> 43.3 | E133: =E105 -> 48.1 | F133: =G105 -> 43.2 | G133: =I105 -> 48.8 | H133: 45.85
A134: 10 | B134: Soybeans | C134: 38 | D134: =C112 -> 36.6 | E134: =E112 -> 37.8 | F134: =G112 -> 36.6 | G134: =I112 -> 39 | H134: 37.5
A135: 11 | B135: Sunflower Oil | C135: 2000 | D135: =C106 -> 2024 | E135: =E106 -> 2024 | F135: =G106 -> 2024 | G135: =I106 -> 2024 | H135: 2024
A136: 12 | B136: Flaxseed | C136: 25 | D136: =C104 -> 22 | E136: =E104 -> 27.1 | F136: =G104 -> 22.1 | G136: =I104 -> 26.3 | H136: 24.375
A137: 13 | B137: Peas | C137: 50 | D137: =C107 -> 48.1 | E137: =E107 -> 48.1 | F137: =G107 -> 48.1 | G137: =I107 -> 48.1 | H137: 48.1
A138: 14 | B138: Beans - Pinto | C138: 1900 | D138: =C109 -> 1942 | E138: =E109 -> 1942 | F138: =G109 -> 1554 | G138: =I109 -> 1942 | H138: 1845
A139: 15 | B139: Beans - White | C139: 1700 | D139: =C108 -> 1885 | E139: =E108 -> 1885 | F139: =G108 -> 1508 | G139: =I108 -> 1885 | H139: 1790.75
A140: 16 | B140: Beans - Black | C140: 1700 | D140: =C110 -> 1713 | E140: =E110 -> 1713 | F140: =G110 -> 1371 | G140: =I110 -> 1713 | H140: 1627.5
C143: **Mkt Prices are Changed E16 to E32 above***
B144: 80% Insured Value | C144: 2023 | D144: Avg 2,5,6,12
C145: $/bu | D145: Manitoba | E145: RA#2 | F145: RA#5 | G145: RA#6 | H145: RA#12
A146: 1 | B146: Wheat - Hard Red Spring | C146: 11.29 | D146: =AVERAGE(E146:H146) -> 585.7252 | E146: =SUM($C$146*D125*0.8) -> 554.5648 | F146: =SUM($C$146*E125*0.8) -> 609.66 | G146: 550.0488 | H146: 628.6272
A147: 2 | B147: Wheat - Northern Hard Red | C147: 9.8 | D147: 554.876 | E147: =SUM($C$147*D126*0.8) -> 528.416 | F147: =SUM($C$147*E126*0.8) -> 580.944 | G147: 524.496 | H147: 585.648
A148: 3 | B148: Wheat - Prairie Spring | C148: 9.66 | D148: 505.6044 | E148: =SUM($C$148*D127*0.8) -> 480.6816 | F148: =SUM($C$148*E127*0.8) -> 530.1408 | G148: 477.5904 | H148: 534.0048
A149: 4 | B149: Wheat - Winter | C149: 10.21 | D149: 527.6528 | E149: =SUM($C$149*D128*0.8) -> 499.0648 | F149: =SUM($C$149*E128*0.8) -> 549.7064 | G149: 495.7976 | H149: 566.0424
A150: 5 | B150: Oats | C150: 4.94 | D150: 468.1144 | E150: =SUM($C$150*D129*0.8) -> 454.8752 | F150: =SUM($C$150*E129*0.8) -> 498.7424 | G150: 385.7152 | H150: 533.1248
A151: 6 | B151: Barley | C151: 6.75 | D151: 417.555 | E151: =SUM($C$151*D130*0.8) -> 409.32 | F151: =SUM($C$151*E130*0.8) -> 447.66 | G151: 386.1 | H151: 427.14
A152: 7 | B152: Hybrid Fall Rye | C152: 6.35 | D152: 403.86 | E152: =SUM($C$152*D131*0.8) -> 403.86 | F152: =SUM($C$152*E131*0.8) -> 403.86 | G152: 403.86 | H152: 403.86
A153: 8 | B153: Corn | C153: 8 | D153: 827.2 | E153: =SUM($C$153*D132*0.8) -> 764.16 | F153: =SUM($C$153*E132*0.8) -> 869.12 | G153: 674.56 | H153: 1000.96
A154: 9 | B154: Canola | C154: 19.62 | D154: 719.6616 | E154: =SUM($C$154*D133*0.8) -> 679.6368 | F154: =SUM($C$154*E133*0.8) -> 754.9776 | G154: 678.0672 | H154: 765.9648
A155: 10 | B155: Soybeans | C155: 16.06 | D155: 481.8 | E155: =SUM($C$155*D134*0.8) -> 470.2368 | F155: =SUM($C$155*E134*0.8) -> 485.6544 | G155: 470.2368 | H155: 501.072
A156: 11 | B156: Sunflower Oil | C156: 0.37 | D156: 599.104 | E156: =SUM($C$156*D135*0.8) -> 599.104 | F156: =SUM($C$156*E135*0.8) -> 599.104 | G156: 599.104 | H156: 599.104
A157: 12 | B157: Flaxseed | C157: 18.42 | D157: 359.19 | E157: =SUM($C$157*D136*0.8) -> 324.192 | F157: =SUM($C$157*E136*0.8) -> 399.3456 | G157: 325.6656 | H157: 387.5568
A158: 13 | B158: Peas | C158: 11.7 | D158: 450.216 | E158: =SUM($C$158*D137*0.8) -> 450.216 | F158: =SUM($C$158*E137*0.8) -> 450.216 | G158: 450.216 | H158: 450.216
A159: 14 | B159: Beans - Pinto | C159: 0.47 | D159: 693.72 | E159: =SUM($C$159*D138*0.8) -> 730.192 | F159: =SUM($C$159*E138*0.8) -> 730.192 | G159: 584.304 | H159: 730.192
A160: 15 | B160: Beans - White | C160: 0.48 | D160: =AVERAGE(E160:H160) -> 687.648 | E160: =SUM($C$160*D139*0.8) -> 723.84 | F160: =SUM($C$160*E139*0.8) -> 723.84 | G160: 579.072 | H160: 723.84
A161: 16 | B161: Beans - Black | C161: 0.49 | D161: 637.98 | E161: =SUM($C$161*D140*0.8) -> 671.496 | F161: =SUM($C$161*E140*0.8) -> 671.496 | G161: 537.432 | H161: 671.496
B166: 2023 | C166: Avg 2,5,6,12
B167: 80% Crop | C167: Manitoba | D167: RA#2 | E167: RA#5 | F167: RA#6 | G167: RA#12
A168: 1 | B168: Wheat - Hard Red Spring | C168: =AVERAGE(D168:G168) -> 11.9275 | D168: =D97 -> 10.62 | E168: =F97 -> 8.66 | F168: =H97 -> 10.03 | G168: =J97 -> 18.4
A169: 2 | B169: Wheat - Northern Hard Red | C169: =AVERAGE(D169:G169) -> 14.8175 | D169: =D99 -> 15.8 | E169: =F99 -> 6.75 | F169: =H99 -> 11.88 | G169: =J99 -> 24.84
A170: 3 | B170: Wheat - Prairie Spring | C170: 10.855 | D170: =D98 -> 12.1 | E170: =F98 -> 6.01 | F170: =H98 -> 10.05 | G170: =J98 -> 15.26
A171: 4 | B171: Wheat - Winter | C171: 12.3875 | D171: =D100 -> 13.54 | E171: =F100 -> 13.77 | F171: =H100 -> 11.82 | G171: =J100 -> 10.42
A172: 5 | B172: Oats | C172: 19.425 | D172: =D103 -> 23.25 | E172: =F103 -> 15.12 | F172: =H103 -> 16.21 | G172: =J103 -> 23.12
A173: 6 | B173: Barley | C173: 17.365 | D173: =D102 -> 14.79 | E173: =F102 -> 11.72 | F173: =H102 -> 17.9 | G173: =J102 -> 25.05
A174: 7 | B174: Hybrid Fall Rye | C174: 16.9075 | D174: =D101 -> 19.36 | E174: =F101 -> 14.45 | F174: =H101 -> 14.9 | G174: =J101 -> 18.92
A175: 8 | B175: Corn | C175: 49.105 | D175: =D111 -> 46.74 | E175: =F111 -> 45.55 | F175: =H111 -> 52.08 | G175: =J111 -> 52.05
A176: 9 | B176: Canola | C176: 15.905 | D176: =D105 -> 10 | E176: =F105 -> 10.41 | F176: =H105 -> 11.9 | G176: =J105 -> 31.31
A177: 10 | B177: Soybeans | C177: 24.355 | D177: =D112 -> 24.29 | E177: =F112 -> 24.06 | F177: =H112 -> 24.48 | G177: =J112 -> 24.59
A178: 11 | B178: Sunflower Oil | C178: 25.7575 | D178: =D106 -> 25.85 | E178: =F106 -> 25.66 | F178: =H106 -> 26.09 | G178: =J106 -> 25.43
A179: 12 | B179: Flaxseed | C179: 20.105 | D179: =D104 -> 19.86 | E179: =F104 -> 18.39 | F179: =H104 -> 15.69 | G179: =J104 -> 26.48
A180: 13 | B180: Peas | C180: 18.0675 | D180: =D107 -> 18.12 | E180: =F107 -> 17.94 | F180: =H107 -> 18.27 | G180: =J107 -> 17.94
A181: 14 | B181: Beans - Pinto | C181: 37.4175 | D181: =D109 -> 37.43 | E181: =F109 -> 37.15 | F181: =H109 -> 37.94 | G181: =J109 -> 37.15
A182: 15 | B182: Beans - White | C182: 39.225 | D182: =D108 -> 38.96 | E182: =F108 -> 38.96 | F182: =H108 -> 40.36 | G182: =J108 -> 38.62
A183: 16 | B183: Beans - Black | C183: 45.265 | D183: =D110 -> 45.31 | E183: =F110 -> 45.06 | F183: =H110 -> 45.89 | G183: =J110 -> 44.8
B186: EMI premium / acre ($100) | D186: 1.59 | E186: 2023 | J186: 200
J187: 300
B188: Hail Ins. coverage / acre | C188: =W13 -> 400 | D188: (selected in W13 above) | J188: 400
C190: Rate | D190: Avg 2,5,6,12 | E190: Cost per Acre
B191: 2023 HAIL Ins. Costs | C191: Factor | D191: Manitoba | E191: RA#2 | F191: RA#5 | G191: RA#6 | H191: RA#12
E192: 3.2 | F192: 3.5 | G192: 2.8 | H192: 2.3
A193: 1 | B193: Wheat - Hard Red Spring | C193: 1 | D193: =AVERAGE(F193,G193,E193,H193) -> 11.8 | E193: =(($E$192*$C193)/100)*$W$13 -> 12.8 | F193: =(($F$192*$C193)/100)*$W$13 -> 14 | G193: =(($G$192*$C193)/100)*$W$13 -> 11.2 | H193: =(($H$192*$C193)/100)*$W$13 -> 9.2
A194: 2 | B194: Wheat - Northern Hard Red | C194: 1 | D194: 11.8 | E194: 12.8 | F194: 14 | G194: 11.2 | H194: 9.2
A195: 3 | B195: Wheat - Prairie Spring | C195: 1 | D195: 11.8 | E195: 12.8 | F195: 14 | G195: 11.2 | H195: 9.2
A196: 4 | B196: Wheat - Winter | C196: 1 | D196: 11.8 | E196: 12.8 | F196: 14 | G196: 11.2 | H196: 9.2
A197: 5 | B197: Oats | C197: 1 | D197: 11.8 | E197: 12.8 | F197: 14 | G197: 11.2 | H197: 9.2
A198: 6 | B198: Barley | C198: 1 | D198: 11.8 | E198: 12.8 | F198: 14 | G198: 11.2 | H198: 9.2
A199: 7 | B199: Hybrid Fall Rye | C199: 1 | D199: 11.8 | E199: 12.8 | F199: 14 | G199: 11.2 | H199: 9.2
A200: 8 | B200: Corn | C200: 1 | D200: 11.8 | E200: 12.8 | F200: 14 | G200: 11.2 | H200: 9.2
A201: 9 | B201: Canola | C201: 1 | D201: 11.8 | E201: 12.8 | F201: 14 | G201: 11.2 | H201: 9.2
A202: 10 | B202: Soybeans | C202: 1.3 | D202: 15.34 | E202: 16.64 | F202: 18.2 | G202: 14.56 | H202: 11.96
A203: 11 | B203: Sunflower Oil | C203: 1 | D203: 11.8 | E203: 12.8 | F203: 14 | G203: 11.2 | H203: 9.2
A204: 12 | B204: Flaxseed | C204: 1 | D204: 11.8 | E204: 12.8 | F204: 14 | G204: 11.2 | H204: 9.2
A205: 13 | B205: Peas | C205: 2 | D205: 23.6 | E205: 25.6 | F205: 28 | G205: 22.4 | H205: 18.4
A206: 14 | B206: Beans - Pinto | C206: 1.75 | D206: 20.65 | E206: 22.4 | F206: 24.5 | G206: 19.6 | H206: 16.1
A207: 15 | B207: Beans - White | C207: 1.75 | D207: 20.65 | E207: 22.4 | F207: 24.5 | G207: 19.6 | H207: 16.1
A208: 16 | B208: Beans - Black Bean | C208: 1.75 | D208: 20.65 | E208: 22.4 | F208: 24.5 | G208: 19.6 | H208: 16.1
B211: Data Source – MASC Harvest Production Reports (2010-2015)
D212: Crop planted
B213: Stubble | D213: Wheat - Hard Red Spring | E213: Wheat - Northern Hard Red | F213: Wheat - Special Purpose | G213: Wheat - Prairie Spring | H213: Wheat - Winter | I213: Oats | J213: Barley | K213: Canola | L213: Flaxseed | M213: Peas | N213: Soybeans | O213: Beans - White | P213: Sunflower | Q213: Corn
B214: Wheat - Hard Red Spring | C214: 2 | D214: 85 | E214: 85 | F214: 85 | G214: 85 | H214: 84 | I214: 98 | J214: 96 | K214: 102 | L214: 105 | M214: 103 | N214: 101 | O214: 106 | P214: 101 | Q214: 98
B215: Wheat - Northern Hard Red | C215: 3 | D215: 85 | E215: 85 | F215: 85 | G215: 85 | H215: 84 | I215: 98 | J215: 96 | K215: 102 | L215: 105 | M215: 103 | N215: 101 | O215: 106 | P215: 101 | Q215: 98
B216: Wheat - Special Purpose | C216: 4 | D216: 85 | E216: 85 | F216: 85 | G216: 85 | H216: 84 | I216: 98 | J216: 96 | K216: 102 | L216: 105 | M216: 103 | N216: 101 | O216: 106 | P216: 101 | Q216: 98
B217: Wheat - Prairie Spring | C217: 5 | D217: 85 | E217: 85 | F217: 85 | G217: 85 | H217: 84 | I217: 98 | J217: 96 | K217: 102 | L217: 105 | M217: 103 | N217: 101 | O217: 106 | P217: 101 | Q217: 98
B218: Wheat - Winter | C218: 6 | D218: 75 | E218: 75 | F218: 75 | G218: 75 | H218: 83 | I218: 97 | J218: 105 | K218: 98 | L218: 94 | M218: 112 | N218: 105 | O218: 83 | P218: 87 | Q218: 74
B219: Oats | C219: 7 | D219: 93 | E219: 93 | F219: 93 | G219: 93 | H219: 86 | I219: 77 | J219: 78 | K219: 95 | L219: 92 | M219: 94 | N219: 100 | O219: 77 | P219: 104 | Q219: 99
B220: Barley | C220: 8 | D220: 90 | E220: 90 | F220: 90 | G220: 90 | H220: 91 | I220: 90 | J220: 85 | K220: 104 | L220: 104 | M220: 93 | N220: 101 | O220: 67 | P220: 100 | Q220: 92
B221: Canola | C221: 9 | D221: 101 | E221: 101 | F221: 101 | G221: 101 | H221: 105 | I221: 101 | J221: 102 | K221: 86 | L221: 87 | M221: 96 | N221: 100 | O221: 99 | P221: 75 | Q221: 99
B222: Flaxseed | C222: 10 | D222: 96 | E222: 96 | F222: 96 | G222: 96 | H222: 104 | I222: 97 | J222: 106 | K222: 103 | L222: 79 | M222: 86 | N222: 98 | O222: 100 | P222: 71 | Q222: 78
B223: Peas | C223: 11 | D223: 101 | E223: 101 | F223: 101 | G223: 101 | H223: 82 | I223: 112 | J223: 102 | K223: 104 | L223: 145 | M223: 100 | N223: 68 | O223: 100 | P223: 100 | Q223: 94
B224: Soybeans | C224: 12 | D224: 108 | E224: 108 | F224: 108 | G224: 108 | H224: 93 | I224: 108 | J224: 108 | K224: 104 | L224: 104 | M224: 96 | N224: 94 | O224: 100 | P224: 101 | Q224: 103
... 67 more rows

Sheet Weekly Bushels (HIDE) (hidden)
B1: Open Market (CAD/Bushels) | I1: Closing Futures Prices | M1: Cash Prices | R1: US Futures Prices | AA1: Additional Data from CWB MRS (FOB USD)
B2: CWRS Wheat | C2: Canola | D2: #2CW Oats | E2: Soybeans | F2: Peas | G2: Corn | I2: ICE Milling Wheat | J2: ICE Western Barley | K2: ICE Canola | M2: Feed Wheat Track Thunder Bay | N2: Feed Barley Lethbridge | O2: Canola Thunder Bay | P2: Canola Vancouver | R2: SRW Wheat | S2: Corn | T2: Oats | U2: Soybeans | V2: Soyoil (cents/lb) | W2: Soymeal | X2: HRW Wheat | Y2: HRS Wheat | AA2: 2 CWRS 13.5 TB | AB2: 2 CWRS 13.0 TB | AC2: 2 CWRS 13.5 SL | AD2: 2 CWRS 13.0 SL | AE2: 2 CWRS 13.5 Van | AF2: 2 CWRS 13.0 Van | AG2: Canola Van | AH2: CWRS WCEI (NTN) (CAD) | AI2: CWRW WCEI (NTN) (CAD) | AJ2: Feed Barley WCEI (NTN) (CAD) | AK2: Canola WCEI (NTN) (CAD) | AL2: Soybeans WCEI (NTN) (CAD) | AN2: CWB less ICE
A3: 2011-08-05 | C3: 12.2868094 | D3: 3.103953456 | E3: 11.32380608 | J3: 4.463352609 | K3: 12.68937676 | M3: 6.341223121 | N3: 4.310945447 | O3: 13.36977229 | P3: 12.91617527 | R3: 6.816813495 | S3: 6.937852444 | T3: 3.315 | U3: 13.39115141 | V3: 1216.719 | X3: 7.709223622 | Y3: 8.231671008
A4: 2011-08-12 | C4: 12.10419124 | D4: 3.299353351 | E4: 11.15717797 | J4: 4.463352609 | K4: 12.42629048 | M4: 6.341223121 | N4: 4.245628092 | O4: 12.53968974 | P4: 12.90256736 | R4: 7.011793859 | S4: 7.025356889 | T4: 3.44 | U4: 13.33615695 | V4: 1191.3615 | X4: 8.079186364 | Y4: 8.624131484
A5: 2011-08-19 | C5: 12.01029665 | D5: 3.25428025 | E5: 11.33180346 | J5: 4.332717899 | K5: 12.55329765 | M5: 6.341223121 | N5: 4.136765833 | O5: 12.78009616 | P5: 12.89349542 | R5: 7.076787313 | S5: 6.990355111 | T5: 3.425 | U5: 13.51863857 | V5: 1218.7035 | X5: 7.949199455 | Y5: 9.106582897
A6: 2011-08-26 | C6: 12.19178082 | D6: 3.533880664 | E6: 11.83844958 | J6: 4.376262802 | K6: 12.7438084 | M6: 6.341223121 | N6: 4.136765833 | O6: 12.97060691 | P6: 13.08400617 | R6: 7.571737468 | S6: 7.322872003 | T6: 3.68 | U6: 13.85860433 | V6: 1225.98 | X6: 8.476646337 | Y6: 9.34655873
A7: 2011-09-02 | C7: 12.34963259 | D7: 3.446382746 | E7: 12.23149148 | J7: 4.572214868 | K7: 13.04091445 | M7: 6.55894752 | N7: 4.136765833 | O7: 13.15431371 | P7: 13.38111222 | R7: 7.154279509 | S7: 7.287870225 | T7: 3.62 | U7: 14.24606531 | V7: 1272.5055 | X7: 8.479146085 | Y7: 9.706522479
A8: 2011-09-09 | C8: 12.29429375 | D8: 3.488903026 | E8: 12.01509084 | J8: 4.681077127 | K8: 12.91617527 | M8: 6.61337862 | N8: 4.310945447 | O8: 13.14297378 | P8: 13.25637304 | R8: 7.091785803 | S8: 7.23286743 | T8: 3.5325 | U8: 14.07108293 | V8: 1274.931 | X8: 8.239170252 | Y8: 9.494043877
A9: 2011-09-16 | C9: 12.17635852 | D9: 3.249241695 | E9: 11.78342228 | J9: 4.528669964 | K9: 12.50566996 | M9: 6.61337862 | N9: 4.35449035 | O9: 12.73246848 | P9: 12.84586773 | R9: 6.959299145 | S9: 7.010356127 | T9: 3.44 | U9: 13.58613177 | V9: 1239.651 | X9: 7.951699203 | Y9: 8.709122924
A10: 2011-09-23 | C10: 11.79120929 | D10: 3.1942437 | E10: 10.8783924 | J10: 4.528669964 | K10: 12.25845958 | M10: 6.749456369 | N10: 4.528669964 | O10: 12.5306178 | P10: 12.71205661 | R10: 6.336861829 | S10: 6.500330217 | T10: 3.37 | U10: 12.82870805 | V10: 1183.644 | X10: 7.209273971 | Y10: 8.19917428
A11: 2011-09-30 | C11: 11.75356074 | D11: 3.156183646 | E11: 10.79679183 | J11: 4.609228036 | K11: 12.15413227 | M11: 6.749456369 | N11: 4.572214868 | O11: 12.42629048 | P11: 12.60772929 | R11: 6.541841186 | S11: 6.325321327 | T11: 3.33 | U11: 12.29876142 | V11: 1138.4415 | X11: 7.399254838 | Y11: 8.954098254
A12: 2011-10-07 | C12: 11.48956727 | D12: 3.083381296 | E12: 10.36840783 | J12: 4.572214868 | K12: 11.85702622 | M12: 6.803887469 | N12: 4.572214868 | O12: 11.85702622 | P12: 12.21990384 | R12: 6.159379703 | S12: 6.05530761 | T12: 3.245 | U12: 11.63632813 | V12: 1078.686 | X12: 6.976797383 | Y12: 8.949098757
A13: 2011-10-14 | C13: 11.8968974 | D13: 3.323379291 | E13: 10.98839257 | J13: 4.572214868 | K13: 12.14052436 | M13: 6.803887469 | N13: 4.572214868 | O13: 12.43536242 | P13: 12.59412138 | R13: 6.179377689 | S13: 6.382824248 | T13: 3.4175 | U13: 12.56873423 | V13: 1151.01 | X13: 7.00929411 | Y13: 8.831610589
A14: 2011-10-21 | C14: 11.76127189 | D14: 3.175873199 | E14: 10.90342018 | J14: 4.681077127 | K14: 11.89558196 | M14: 6.749456369 | N14: 4.659304675 | O14: 12.19042003 | P14: 12.34917899 | R14: 6.30686485 | S14: 6.495329963 | T14: 3.37 | U14: 12.24876646 | V14: 1133.1495 | X14: 7.249269943 | Y14: 9.1740761
A15: 2011-10-28 | C15: 11.86015604 | D15: 3.237922643 | E15: 10.99338898 | J15: 4.702849578 | K15: 12.03166107 | M15: 6.749456369 | N15: 4.659304675 | O15: 12.59865735 | P15: 12.71205661 | R15: 6.439351508 | S15: 6.515330979 | T15: 3.335 | U15: 12.34875639 | V15: 1149.0255 | X15: 7.379256852 | Y15: 9.229070562
A16: 2011-11-04 | C16: 11.90646829 | D16: 3.13859227 | E16: 11.17678913 | J16: 4.702849578 | K16: 12.00444525 | M16: 6.749456369 | N16: 4.659304675 | O16: 12.50340198 | P16: 12.61680123 | R16: 6.359359564 | S16: 6.535331996 | T16: 3.32 | U16: 12.19127225 | V16: 1147.2615 | X16: 7.199274978 | Y16: 9.169076604
A17: 2011-11-11 | C17: 11.71414316 | D17: 3.257869899 | E17: 10.88678676 | J17: 4.72462203 | K17: 11.6461036 | M17: 6.749456369 | N17: 4.659304675 | O17: 12.21309988 | P17: 12.25845958 | R17: 6.199375675 | S17: 6.455327931 | T17: 3.2175 | U17: 11.57883392 | V17: 1113.966 | X17: 6.969298138 | Y17: 9.454047905
A18: 2011-11-18 | C18: 11.63108954 | D18: 3.04758567 | E18: 10.85509879 | J18: 4.72462203 | K18: 11.83434637 | M18: 6.749456369 | N18: 4.681077127 | O18: 12.40134265 | P18: 12.56010161 | R18: 6.199375675 | S18: 6.455327931 | T18: 3.2175 | U18: 11.57883392 | V18: 1113.966 | X18: 6.969298138 | Y18: 9.454047905
A19: 2011-11-25 | C19: 11.63108954 | D19: 3.04758567 | E19: 10.85509879 | J19: 4.72462203 | K19: 11.33538964 | M19: 6.749456369 | N19: 4.72462203 | O19: 12.03846503 | P19: 12.19722399 | R19: 6.199375675 | S19: 6.455327931 | T19: 3.2175 | U19: 11.57883392 | V19: 1113.966 | X19: 6.969298138 | Y19: 9.454047905
A20: 2011-12-02 | C20: 11.36573528 | D20: 3.217926652 | E20: 10.53173451 | J20: 4.72462203 | K20: 11.33765762 | M20: 6.749456369 | N20: 4.746394482 | O20: 11.90465391 | P20: 12.06341286 | R20: 6.019393801 | S20: 5.947802149 | T20: 3.22 | U20: 11.27886413 | V20: 1091.916 | X20: 6.629332375 | Y20: 8.54413954
A21: 2011-12-09 | C21: 11.52676222 | D21: 3.087926652 | E21: 10.41506689 | J21: 4.72462203 | K21: 11.58033203 | M21: 6.72224082 | N21: 4.746394482 | O21: 12.26072757 | P21: 12.30608727 | R21: 5.766919227 | S21: 5.900299736 | T21: 2.95 | U21: 11.3238596 | V21: 1106.91 | X21: 6.504344963 | Y21: 8.446649358
A22: 2011-12-16 | C22: 11.53179715 | D22: 3.225363807 | E22: 10.40337473 | K22: 11.56899211 | M22: 6.450085321 | N22: 4.72462203 | O22: 12.04526898 | P22: 12.20402794 | R22: 5.79191671 | S22: 5.790294148 | T22: 2.99 | U22: 11.1163805 | V22: 1080.009 | X22: 6.374358053 | Y22: 8.15667856
A23: 2011-12-23 | C23: 11.74090538 | D23: 3.269988433 | E23: 10.7467428 | J23: 4.72462203 | K23: 11.72548308 | M23: 6.450085321 | N23: 4.681077127 | O23: 12.40587862 | P23: 12.56463758 | R23: 6.216873913 | S23: 6.175313707 | T23: 3.1075 | U23: 11.62132964 | V23: 1112.4225 | X23: 6.724322809 | Y23: 8.436650365
A24: 2011-12-30 | C24: 11.82844961 | D24: 3.225002622 | E24: 10.95008868 | J24: 4.72462203 | K24: 11.86156219 | M24: 6.450085321 | N24: 4.637532223 | O24: 12.54195772 | P24: 12.70071668 | R24: 6.451850249 | S24: 6.380324121 | T24: 3.06 | U24: 11.87380422 | V24: 1127.637 | X24: 6.979297131 | Y24: 8.551638784
A25: 2012-01-06 | C25: 11.97949741 | D25: 2.962900126 | E25: 10.80632762 | J25: 4.72462203 | K25: 11.74816293 | M25: 6.72224082 | N25: 4.637532223 | O25: 12.55556564 | P25: 12.71432459 | R25: 6.291866361 | S25: 6.435326915 | T25: 2.9 | U25: 12.01129037 | V25: 1141.5285 | X25: 6.859309215 | Y25: 8.184175791
A26: 2012-01-13 | C26: 11.86779295 | D26: 2.937507387 | E26: 10.74383772 | J26: 4.637532223 | K26: 11.64156763 | M26: 6.72224082 | N26: 4.59398732 | O26: 12.48072213 | P26: 12.52608183 | R26: 6.04939078 | S26: 6.115310658 | T26: 2.8425 | U26: 11.78381328 | V26: 1127.8575 | X26: 6.729322306 | Y26: 8.074186867
A27: 2012-01-20 | C27: 11.86171339 | D27: 2.898507387 | E27: 10.65508699 | J27: 4.615759771 | K27: 11.92960174 | M27: 6.66780972 | N27: 4.572214868 | O27: 12.60999728 | P27: 12.65535698 | R27: 6.04939078 | S27: 6.115310658 | T27: 2.8425 | U27: 11.78381328 | V27: 1127.8575 | X27: 6.729322306 | Y27: 8.074186867
A28: 2012-01-27 | C28: 11.9354229 | D28: 2.989336973 | E28: 10.83883849 | J28: 4.615759771 | K28: 11.95908555 | M28: 6.72224082 | N28: 4.550442416 | O28: 12.63948109 | P28: 12.68484079 | R28: 6.534341942 | S28: 6.345322343 | T28: 3.0075 | U28: 12.22626872 | V28: 1145.277 | X28: 7.089286054 | Y28: 8.27166698
A29: 2012-02-03 | C29: 11.94600683 | D29: 2.947336973 | E29: 10.85508863 | J29: 4.615759771 | K29: 11.85475823 | M29: 6.72224082 | N29: 4.550442416 | O29: 12.64855303 | P29: 12.64855303 | R29: 6.534341942 | S29: 6.345322343 | T29: 3.0075 | U29: 12.22626872 | V29: 1145.277 | X29: 7.089286054 | Y29: 8.27166698
A30: 2012-02-10 | C30: 12.11028456 | D30: 3.058039912 | E30: 10.88133884 | J30: 4.615759771 | K30: 12.11557652 | M30: 6.72224082 | N30: 4.59398732 | O30: 12.90937131 | P30: 12.93205117 | R30: 6.459349494 | S30: 6.370323613 | T30: 3.18 | U30: 12.27376394 | V30: 1158.507 | X30: 6.919303173 | Y30: 8.316662448
A31: 2012-02-17 | C31: 12.42629048 | D31: 3.100039912 | E31: 11.17259122 | J31: 4.637532223 | K31: 12.45577429 | M31: 6.72224082 | N31: 4.572214868 | O31: 13.24956908 | P31: 13.27224893 | R31: 6.286866864 | S31: 6.362823232 | T31: 3.2375 | U31: 12.58123297 | V31: 1169.7525 | X31: 6.829312236 | Y31: 8.176676546
A32: 2012-02-24 | C32: 12.84208776 | D32: 3.004039912 | E32: 11.2063415 | J32: 4.659304675 | K32: 12.75288034 | M32: 6.72224082 | N32: 4.572214868 | O32: 13.54667513 | P32: 13.56935499 | R32: 6.416853774 | S32: 6.395324883 | T32: 3.205 | U32: 12.76621434 | V32: 1195.11 | X32: 6.799315257 | Y32: 8.009193413
A33: 2012-03-02 | C33: 13.03675648 | D33: 2.975573301 | E33: 11.49385745 | J33: 4.659304675 | K33: 13.12936587 | M33: 6.749456369 | N33: 4.681077127 | O33: 13.75306178 | P33: 13.77574163 | R33: 6.591836152 | S33: 6.537832123 | T33: 3.2725 | U33: 13.16617407 | V33: 1189.377 | X33: 6.969298138 | Y33: 8.139180322
A34: 2012-03-09 | C34: 13.22348725 | D34: 2.791617809 | E34: 11.94759755 | J34: 4.659304675 | K34: 13.36296834 | M34: 6.885534119 | N34: 4.789939385 | O34: 14.00707611 | P34: 13.98439626 | R34: 6.304365102 | S34: 6.450327677 | T34: 3.125 | U34: 13.32365821 | V34: 1169.091 | X34: 6.731822054 | Y34: 8.011693161
A35: 2012-03-16 | C35: 13.60375276 | D35: 3.041617809 | E35: 12.1138489 | J35: 4.877029193 | K35: 13.37884423 | M35: 6.885534119 | N35: 4.964119 | O35: 13.34709244 | P35: 14.42211739 | R35: 6.646830613 | S35: 6.69033987 | T35: 3.29 | U35: 13.68862145 | V35: 1223.334 | X35: 7.044290586 | Y35: 8.201674028
A36: 2012-03-23 | C36: 13.57729293 | D36: 3.026617809 | E36: 12.11634893 | J36: 4.877029193 | K36: 13.34936043 | M36: 6.885534119 | N36: 5.007663903 | O36: 14.18851492 | P36: 14.18851492 | R36: 6.461849242 | S36: 6.445327423 | T36: 3.2825 | U36: 13.49364109 | V36: 1189.818 | X36: 6.839311229 | Y36: 8.069187371
A37: 2012-03-30 | C37: 13.86532704 | D37: 3.073462015 | E37: 12.31510055 | J37: 4.985891451 | K37: 13.68275424 | M37: 6.885534119 | N37: 5.116526162 | O37: 14.54458859 | P37: 14.52190874 | R37: 6.124383228 | S37: 6.040306848 | T37: 3.355 | U37: 13.55363504 | V37: 1181.6595 | X37: 6.539341438 | Y37: 7.886705748
A38: 2012-04-06 | C38: 14.12879132 | D38: 3.115617655 | E38: 12.69636373 | J38: 5.007663903 | K38: 14.09779552 | M38: 6.858318569 | N38: 5.116526162 | O38: 14.95962986 | P38: 15.11838882 | R38: 6.384357046 | S38: 6.582834409 | T38: 3.37 | U38: 14.338556 | V38: 1248.912 | X38: 6.619333382 | Y38: 8.459148099
A39: 2012-04-13 | C39: 14.22631468 | D39: 3.128179513 | E39: 12.82283684 | J39: 5.116526162 | K39: 14.2837703 | M39: 6.858318569 | N39: 5.334250679 | O39: 15.07756509 | P39: 15.3043636 | R39: 6.391856291 | S39: 6.375323867 | T39: 3.34 | U39: 14.40854895 | V39: 1261.9215 | X39: 6.529342445 | Y39: 8.364157665
A40: 2012-04-20 | C40: 14.08305362 | D40: 3.077330434 | E40: 12.75978086 | I40: 7.021611868 | J40: 5.116526162 | K40: 13.94357253 | M40: 6.858318569 | N40: 5.443112938 | O40: 14.73736732 | P40: 14.85076658 | R40: 6.246870892 | S40: 6.210315485 | T40: 3.2275 | U40: 14.15607437 | V40: 1216.4985 | X40: 6.374358053 | Y40: 8.091685105
A41: 2012-04-27 | C41: 14.41244065 | D41: 3.075583542 | E41: 12.93318746 | I41: 6.858318569 | J41: 5.268933324 | K41: 14.62850404 | M41: 6.72224082 | N41: 5.399568035 | O41: 15.42229883 | P41: 15.53569809 | R41: 6.259369633 | S41: 6.240317009 | T41: 3.3775 | U41: 14.81100842 | V41: 1220.9085 | X41: 6.391856291 | Y41: 7.676726895
A42: 2012-05-04 | C42: 14.36503977 | D42: 3.204107831 | E42: 13.08067778 | I42: 6.749456369 | J42: 5.268933324 | K42: 14.27469836 | M42: 6.994396318 | N42: 5.660837456 | O42: 14.95509389 | P42: 15.06849315 | R42: 6.259369633 | S42: 6.240317009 | T42: 3.3775 | U42: 14.81100842 | V42: 1220.9085 | X42: 6.391856291 | Y42: 7.676726895
A43: 2012-05-11 | C43: 14.11253742 | D43: 3.131996623 | E43: 13.28440794 | I43: 6.61337862 | J43: 5.268933324 | K43: 14.25201851 | M43: 6.994396318 | N43: 5.530202745 | O43: 14.81901479 | P43: 15.15921256 | R43: 5.946901101 | S43: 6.255317771 | T43: 3.3325 | U43: 14.52103762 | V43: 1171.9575 | X43: 6.094386249 | Y43: 7.299264908
A44: 2012-05-18 | C44: 14.01274608 | D44: 3.071826748 | E44: 13.05761151 | I44: 6.66780972 | J44: 5.160071065 | K44: 13.86646104 | M44: 6.858318569 | N44: 5.486657842 | O44: 14.77365508 | P44: 14.88705434 | R44: 6.576837662 | S44: 6.250317517 | T44: 3.385 | U44: 14.37855197 | V44: 1118.376 | X44: 6.719323313 | Y44: 7.671727398
A45: 2012-05-25 | C45: 13.90615078 | D45: 3.113208671 | E45: 13.02519191 | I45: 7.149524953 | J45: 5.160071065 | K45: 13.63966252 | M45: 7.130474068 | N45: 5.421340486 | O45: 14.54685657 | P45: 14.66025583 | R45: 6.629332375 | S45: 5.785293894 | T45: 3.05 | U45: 13.7586144 | V45: 1089.711 | X45: 6.869308208 | Y45: 7.751719342
A46: 2012-06-01 | C46: 14.0550278 | D46: 2.738027791 | E46: 12.57762719 | I46: 7.013447203 | J46: 5.160071065 | K46: 13.89821283 | M46: 7.130474068 | N46: 5.399568035 | O46: 14.80540688 | P46: 14.98684569 | R46: 6.43685176 | S46: 5.552782082 | T46: 2.8075 | U46: 13.39865065 | V46: 1084.86 | X46: 6.649330361 | Y46: 7.526741999
A47: 2012-06-08 | C47: 14.03850391 | D47: 2.841040745 | E47: 12.95894948 | I47: 6.877369454 | J47: 5.160071065 | K47: 13.94584052 | M47: 7.130474068 | N47: 5.268933324 | O47: 14.5581965 | P47: 15.03447337 | R47: 6.416853774 | S47: 5.940301768 | T47: 3 | U47: 14.27856204 | V47: 1111.0995 | X47: 6.684326837 | Y47: 7.666727902
A48: 2012-06-15 | C48: 13.94422053 | D48: 2.907294038 | E48: 13.04618599 | I48: 6.877369454 | J48: 5.160071065 | K48: 13.5217273 | M48: 7.184905167 | N48: 5.268933324 | O48: 14.31552209 | P48: 14.5423206 | R48: 6.234372151 | S48: 6.015305578 | T48: 3.0575 | U48: 13.85860433 | V48: 1058.4 | X48: 6.459349494 | Y48: 7.94170021
A49: 2012-06-22 | C49: 14.09261155 | D49: 2.935054748 | E49: 13.24545106 | I49: 6.877369454 | J49: 5.160071065 | K49: 14.07738365 | M49: 7.184905167 | N49: 5.312478228 | O49: 14.87117845 | P49: 15.09797696 | R49: 6.616833634 | S49: 5.865297958 | T49: 3.1425 | U49: 14.38355147 | V49: 1098.3105 | X49: 6.829312236 | Y49: 8.436650365
A50: 2012-06-29 | C50: 14.38518163 | D50: 3.206045773 | E50: 13.41039079 | I50: 7.465225331 | J50: 5.160071065 | K50: 14.57407239 | M50: 7.184905167 | N50: 5.617292552 | O50: 15.36786719 | P50: 15.70806496 | R50: 7.259268936 | S50: 6.520331233 | T50: 3.34 | U50: 14.65852377 | V50: 1122.786 | X50: 7.349259873 | Y50: 8.676626197
A51: 2012-07-06 | C51: 14.43378131 | D51: 3.294888437 | E51: 14.16096539 | I51: 8.191880513 | J51: 5.160071065 | K51: 15.1365327 | M51: 7.320982917 | N51: 5.878561973 | O51: 15.02313345 | P51: 15.24993196 | R51: 8.224171763 | S51: 7.680390165 | T51: 3.56 | U51: 16.26336215 | V51: 1194.0075 | X51: 8.27166698 | Y51: 9.384054954
A52: 2012-07-13 | C52: 14.5724524 | D52: 3.368615219 | E52: 14.33170595 | I52: 8.232703838 | J52: 5.813244618 | K52: 15.45631861 | M52: 7.457060666 | N52: 6.205148749 | O52: 14.88932233 | P52: 15.11612084 | R52: 8.326661441 | S52: 7.712891816 | T52: 3.6775 | U52: 16.25586291 | V52: 1171.9575 | X52: 8.369157162 | Y52: 9.326560744
A53: 2012-07-20 | C53: 14.24003059 | D53: 3.425737577 | E53: 15.14111513 | I53: 8.913092585 | J53: 5.551975197 | K53: 14.44026127 | M53: 8.055802763 | N53: 6.205148749 | O53: 15.12065681 | P53: 15.34745532 | R53: 9.349058478 | S53: 8.077910359 | T53: 3.835 | U53: 17.33575416 | V53: 1199.52 | X53: 9.379055457 | Y53: 10.21897087
A54: 2012-07-27 | C54: 13.36426433 | D54: 3.377737577 | E54: 15.56237396 | I54: 8.953915909 | J54: 5.5955201 | K54: 13.64193051 | M54: 8.055802763 | N54: 6.052741587 | O54: 14.32232605 | P54: 14.54912456 | R54: 8.839109834 | S54: 7.812896896 | T54: 3.695 | U54: 16.5558327 | V54: 1139.544 | X54: 8.899103792 | Y54: 9.6765255
A55: 2012-08-03 | C55: 13.07525823 | D55: 3.341032479 | E55: 14.65506109 | I55: 8.096626088 | J55: 5.769699714 | K55: 13.90728477 | M55: 8.055802763 | N55: 5.83501707 | O55: 14.47428105 | P55: 14.81447882 | R55: 8.649128966 | S55: 7.940403373 | T55: 3.7175 | U55: 16.52833547 | V55: 1136.457 | X55: 8.689124938 | Y55: 9.264067037
A56: 2012-08-10 | C56: 13.109926 | D56: 3.379557416 | E56: 14.63281662 | I56: 8.268084053 | J56: 5.769699714 | K56: 13.81429738 | M56: 8.055802763 | N56: 5.551975197 | O56: 14.15449515 | P56: 14.72149143 | R56: 9.129080632 | S56: 8.182915693 | T56: 3.895 | U56: 16.94329368 | V56: 1155.1995 | X56: 9.149078618 | Y56: 9.589034311
A57: 2012-08-17 | C57: 13.08433017 | D57: 3.333737577 | E57: 14.57069724 | I57: 7.957826784 | J57: 5.758813488 | K57: 13.85285313 | M57: 8.055802763 | N57: 5.551975197 | O57: 14.07965164 | P57: 14.53324866 | R57: 8.616632239 | S57: 7.977905278 | T57: 3.835 | U57: 16.5608322 | V57: 1169.532 | X57: 8.724121414 | Y57: 9.214072072
A58: 2012-08-24 | C58: 13.54570314 | D58: 3.383135314 | E58: 15.16234043 | I58: 8.061245873 | J58: 5.758813488 | K58: 14.21573074 | M58: 8.191880513 | N58: 5.551975197 | O58: 14.44252926 | P58: 14.89612628 | R58: 8.7441194 | S58: 8.087910867 | T58: 3.875 | U58: 17.2707607 | V58: 1237.446 | X58: 8.829110841 | Y58: 9.204073079
A59: 2012-08-31 | C59: 13.67983826 | D59: 3.423148268 | E59: 15.41958768 | I59: 8.273527162 | J59: 5.758813488 | K59: 14.41758142 | M59: 8.191880513 | N59: 5.660837456 | O59: 14.64437993 | P59: 15.09797696 | R59: 8.834110337 | S59: 8.115412264 | T59: 3.875 | U59: 17.7007174 | V59: 1247.8095 | X59: 8.896604044 | Y59: 9.399053443
A60: 2012-09-07 | C60: 13.81915735 | D60: 3.447146726 | E60: 15.50286335 | I60: 8.001371664 | J60: 5.758813488 | K60: 14.51510478 | M60: 8.191880513 | N60: 5.769699714 | O60: 14.90066225 | P60: 15.19550032 | R60: 8.719121917 | S60: 7.972905024 | T60: 3.86 | U60: 17.44324333 | V60: 1251.999 | X60: 8.874106309 | Y60: 9.291564268
A61: 2012-09-14 | C61: 13.88201293 | D61: 3.382557416 | E61: 15.43816349 | I61: 8.153778743 | J61: 5.443112938 | K61: 14.65345187 | M61: 8.164664963 | N61: 5.769699714 | O61: 15.1070489 | P61: 15.33384741 | R61: 8.789114869 | S61: 7.76789461 | T61: 3.8475 | U61: 17.43324434 | V61: 1244.943 | X61: 9.036589946 | Y61: 9.394053947
A62: 2012-09-21 | C62: 13.83114527 | D62: 3.289141791 | E62: 15.17777491 | I62: 8.042194989 | J62: 5.449644674 | K62: 14.00254014 | M62: 7.756431715 | N62: 5.769699714 | O62: 14.56953642 | P62: 14.68293568 | R62: 8.794114365 | S62: 7.460378988 | T62: 3.7325 | U62: 16.18586996 | V62: 1204.5915 | X62: 9.094084156 | Y62: 9.40405294
A63: 2012-09-28 | C63: 13.20291339 | D63: 3.23782354 | E63: 14.60936814 | I63: 7.911560349 | J63: 5.449644674 | K63: 13.42420394 | M63: 8.164664963 | N63: 5.769699714 | O63: 13.87780096 | P63: 14.21799873 | R63: 8.554138533 | S63: 7.162863874 | T63: 3.6825 | U63: 15.70591829 | V63: 1149.0255 | X63: 8.781615624 | Y63: 9.141579373
A64: 2012-10-05 | C64: 13.30011275 | D64: 3.248719688 | E64: 14.17648979 | I64: 7.982320779 | J64: 5.334250679 | K64: 13.75532977 | M64: 8.164664963 | N64: 5.83501707 | O64: 14.32232605 | P64: 14.54912456 | R64: 8.691624687 | S64: 7.570384576 | T64: 3.7075 | U64: 15.51343768 | V64: 1124.55 | X64: 8.866607065 | Y64: 9.261567289
A65: 2012-10-12 | C65: 13.68790581 | D65: 3.356141791 | E65: 13.92774315 | I65: 8.104790753 | J65: 5.334250679 | K65: 14.08872358 | M65: 8.164664963 | N65: 6.009196684 | O65: 14.70107956 | P65: 14.88251837 | R65: 8.85910782 | S65: 7.732892832 | T65: 3.885 | U65: 15.4834407 | V65: 1121.904 | X65: 9.179075597 | Y65: 9.466546646
A66: 2012-10-19 | C66: 13.71868561 | D66: 3.608997409 | E66: 13.95472878 | I66: 8.216374508 | J66: 5.443112938 | K66: 13.86419305 | M66: 8.164664963 | N66: 6.096286491 | O66: 14.47654903 | P66: 14.65798784 | R66: 8.85910782 | S66: 7.732892832 | T66: 3.885 | U66: 15.4834407 | V66: 1121.904 | X66: 9.179075597 | Y66: 9.466546646
A67: 2012-10-26 | C67: 13.98306787 | D67: 3.624256809 | E67: 14.01126702 | I67: 8.395997137 | J67: 5.443112938 | K67: 13.9934682 | M67: 8.164664963 | N67: 6.139831394 | O67: 14.56046448 | P67: 14.787263 | R67: 8.726621162 | S67: 7.420376956 | T67: 3.8775 | U67: 15.63842509 | V67: 1134.4725 | X67: 9.141579373 | Y67: 9.451548157
A68: 2012-11-02 | C68: 14.06183175 | D68: 3.621419512 | E68: 14.11932974 | I68: 8.395997137 | J68: 5.443112938 | K68: 14.18397895 | M68: 8.164664963 | N68: 6.118058942 | O68: 14.75097523 | P68: 14.97777375 | R68: 8.684125442 | S68: 7.510381528 | T68: 3.8025 | U68: 15.58343063 | V68: 1111.9815 | X68: 9.084085163 | Y68: 9.431550171
A69: 2012-11-09 | C69: 13.66849833 | D69: 3.441989266 | E69: 13.64278502 | I69: 8.444985127 | J69: 5.443112938 | K69: 13.66914633 | M69: 8.164664963 | N69: 6.096286491 | O69: 14.16810306 | P69: 14.34954187 | R69: 9.024091205 | S69: 7.412876575 | T69: 3.6375 | U69: 14.99099029 | V69: 1075.3785 | X69: 9.369056464 | Y69: 9.586534562
A70: 2012-11-16 | C70: 13.29492879 | D70: 3.398583326 | E70: 13.02869771 | I70: 8.355173812 | J70: 5.443112938 | K70: 13.16565363 | M70: 8.164664963 | N70: 6.052741587 | O70: 13.66461036 | P70: 13.84604917 | R70: 8.454148602 | S70: 7.212866414 | T70: 3.645 | U70: 14.01858822 | V70: 1046.493 | X70: 8.864107316 | Y70: 9.024091205
A71: 2012-11-23 | C71: 13.28358886 | D71: 3.500583326 | E71: 12.88471831 | I71: 8.091182978 | J71: 5.443112938 | K71: 13.11802595 | M71: 8.164664963 | N71: 6.052741587 | O71: 13.61698267 | P71: 13.95718044 | R71: 8.416652379 | S71: 7.387875305 | T71: 3.775 | U71: 13.94609552 | V71: 1055.9745 | X71: 8.75911789 | Y71: 9.101583401
A72: 2012-11-30 | C72: 13.52334729 | D72: 3.584996607 | E72: 13.09736537 | I72: 8.382389362 | J72: 5.334250679 | K72: 13.54440715 | M72: 8.164664963 | N72: 6.030969135 | O72: 14.04336388 | P72: 14.38356164 | R72: 8.691624687 | S72: 7.515381782 | T72: 3.6075 | U72: 14.4785419 | V72: 1097.4285 | X72: 9.171576352 | Y72: 9.311562254
A73: 2012-12-07 | C73: 13.67497829 | D73: 3.754869683 | E73: 12.99058288 | I73: 8.055802763 | J73: 5.334250679 | K73: 13.6578064 | M73: 8.164664963 | N73: 6.030969135 | O73: 14.15676313 | P73: 14.4969609 | R73: 8.691624687 | S73: 7.515381782 | T73: 3.6075 | U73: 14.4785419 | V73: 1097.4285 | X73: 9.171576352 | Y73: 9.311562254
A74: 2012-12-14 | C74: 13.50163943 | D74: 3.699193116 | E74: 13.25397192 | I74: 7.367249352 | J74: 5.225388421 | K74: 13.38564819 | M74: 8.164664963 | N74: 6.096286491 | O74: 13.88006895 | P74: 14.22026672 | R74: 7.929201469 | S74: 7.122861842 | T74: 3.6975 | U74: 14.7635132 | V74: 1072.071 | X74: 8.506643316 | Y74: 8.846609079
A75: 2012-12-21 | C75: 13.34450046 | D75: 3.672264582 | E75: 13.03070339 | I75: 7.906117239 | J75: 5.399568035 | K75: 13.12709789 | M75: 8.164664963 | N75: 6.096286491 | O75: 13.72811394 | P75: 14.00027216 | R75: 8.05668863 | S75: 7.030357143 | T75: 3.7525 | U75: 14.36855298 | V75: 1067.4405 | X75: 8.579136015 | Y75: 8.954098254
A76: 2012-12-28 | C76: 13.59462682 | D76: 3.724283643 | E76: 13.05865441 | I76: 7.906117239 | J76: 5.377795583 | K76: 13.41059603 | M76: 8.164664963 | N76: 6.096286491 | O76: 13.96171641 | P76: 14.23387463 | R76: 7.721722363 | S76: 6.915351301 | T76: 3.53 | U76: 14.18607135 | V76: 1064.7945 | X76: 8.231671008 | Y76: 8.646629218
A77: 2013-01-04 | B77: 7.851141828 | C77: 13.64193051 | D77: 3.461028346 | E77: 12.83539763 | I77: 7.906117239 | J77: 5.377795583 | K77: 13.70543409 | M77: 8.164664963 | N77: 6.052741587 | O77: 13.95944843 | P77: 14.25428649 | R77: 7.554220179 | S77: 6.892907946 | T77: 3.377440548 | U77: 14.02852734 | V77: 1107.13 | X77: 8.111594641 | Y77: 8.464036012
A78: 2013-01-11 | B78: 7.705538637 | C78: 13.49814025 | D78: 3.218592887 | E78: 12.8117201 | I78: 7.906117239 | J78: 5.288528531 | K78: 13.70089812 | M78: 8.028587214 | N78: 5.987424232 | O78: 13.89821283 | P78: 14.19305089 | R78: 7.444269358 | S78: 6.987908962 | T78: 3.395021745 | U78: 14.17358622 | V78: 1089.05 | X78: 7.96408636 | Y78: 8.391642649
A79: 2013-01-18 | B79: 7.887610665 | C79: 13.62061145 | D79: 3.374510348 | E79: 13.20362402 | I79: 7.919725014 | J79: 5.288528531 | K79: 13.43781185 | M79: 8.028587214 | N79: 5.987424232 | O79: 14.11820738 | P79: 14.41304545 | R79: 7.811679281 | S79: 7.245478561 | T79: 3.55001388 | U79: 14.30095499 | V79: 1135.35 | X79: 8.369053743 | Y79: 8.689925076
A80: 2013-01-25 | B80: 7.92299088 | C80: 13.99596299 | D80: 3.482927732 | E80: 13.31983442 | I80: 7.919725014 | J80: 5.258047098 | K80: 13.81429738 | M80: 8.028587214 | N80: 6.030969135 | O80: 14.49469291 | P80: 14.94828994 | R80: 7.69 | S80: 7.245478561 | T80: 3.61 | U80: 14.35 | V80: 1135.35 | X80: 8.22 | Y80: 8.560106903
A81: 2013-02-01 | B81: 7.994023465 | C81: 14.18556654 | D81: 3.505598223 | E81: 13.42597507 | I81: 7.919725014 | J81: 5.258047098 | K81: 14.12727933 | M81: 8.028587214 | N81: 6.096286491 | O81: 14.80767486 | P81: 15.26127189 | R81: 7.811679281 | S81: 7.41 | T81: 3.6 | U81: 14.69 | V81: 1135.35 | X81: 8.369053743 | Y81: 8.649918217
A82: 2013-02-08 | B82: 7.845154407 | C82: 14.48811576 | D82: 3.609543197 | E82: 13.5933507 | I82: 7.919725014 | J82: 5.258047098 | K82: 14.68293568 | M82: 8.028587214 | N82: 6.205148749 | O82: 15.36333122 | P82: 15.81692824 | R82: 7.56 | S82: 7.11 | T82: 3.82 | U82: 14.87 | V82: 1135.35 | X82: 8.01 | Y82: 8.390009716
A83: 2013-02-15 | B83: 7.657367113 | C83: 14.22072031 | D83: 3.75821227 | E83: 13.34759428 | I83: 7.919725014 | J83: 5.258047098 | K83: 14.3450059 | M83: 8.028587214 | N83: 6.161603846 | O83: 15.02540143 | P83: 15.47899846 | R83: 7.319349984 | S83: 6.947774843 | T83: 3.800006169 | U83: 14.17848502 | V83: 1139.99 | X83: 7.749355672 | Y83: 8.191608357
A84: 2013-02-22 | B84: 7.810318504 | C84: 14.58745351 | D84: 3.709169982 | E84: 13.42080411 | I84: 7.919725014 | J84: 5.258047098 | K84: 14.59221628 | M84: 8.028587214 | N84: 6.096286491 | O84: 15.27261181 | P84: 15.61280958 | R84: 7.211848562 | S84: 6.907894737 | T84: 3.895006323 | U84: 14.87601956 | V84: 1131.39 | X84: 7.571638131 | Y84: 8.064239584
A85: 2013-03-01 | B85: 7.630695874 | C85: 14.298739 | D85: 3.907652447 | E85: 13.27683385 | I85: 7.919725014 | J85: 5.258047098 | K85: 14.25655448 | M85: 8.055802763 | N85: 6.161603846 | O85: 15.08210106 | P85: 15.30889957 | R85: 7.076859434 | S85: 7.195437919 | T85: 3.917522593 | U85: 14.74103044 | V85: 1076.48 | X85: 7.469307664 | Y85: 7.99674502
A86: 2013-03-08 | B86: 7.641582094 | C86: 14.40918988 | D86: 3.772554826 | E86: 13.5590591 | I86: 7.865293914 | J86: 5.268933324 | K86: 14.57634038 | M86: 8.055802763 | N86: 6.226921201 | O86: 15.26807584 | P86: 15.4268348 | R86: 6.866755389 | S86: 7.115423694 | T86: 3.950063231 | U86: 15.0335976 | V86: 1111.32 | X86: 7.3993637 | Y86: 8.061790184
A87: 2013-03-15 | B87: 7.665531778 | C87: 14.39762315 | D87: 3.859227044 | E87: 13.49102023 | I87: 7.865293914 | J87: 5.268933324 | K87: 14.47201306 | M87: 8.055802763 | N87: 6.205148749 | O87: 15.03900934 | P87: 15.1977683 | R87: 7.141904599 | S87: 7.327778907 | T87: 4.285031307 | U87: 14.57093325 | V87: 1082.43 | X87: 7.426851406 | Y87: 8.004093219
A88: 2013-03-22 | B88: 7.70472217 | C88: 14.42778735 | D88: 3.878350452 | E88: 13.26132099 | I88: 7.946940564 | J88: 5.290705776 | K88: 14.29737821 | M88: 8.055802763 | N88: 6.248693653 | O88: 15.20457226 | P88: 15.36333122 | R88: 7.29 | S88: 7.327778907 | T88: 3.95 | U88: 14.49 | V88: 1082.43 | X88: 7.61 | Y88: 8.004093219
A89: 2013-03-29 | B89: 7.723500899 | C89: 14.56522725 | D89: 3.932482033 | E89: 13.42434213 | I89: 7.946940564 | J89: 5.301592002 | K89: 14.18624694 | M89: 8.055802763 | N89: 6.33578346 | O89: 15.09344099 | P89: 15.3202395 | R89: 7.286691324 | S89: 6.952855111 | T89: 3.962555134 | U89: 14.04621745 | V89: 1104.93 | X89: 7.266823973 | Y89: 7.801609528
A90: 2013-04-05 | B90: 7.245595844 | C90: 14.33457317 | D90: 3.646710465 | E90: 12.85553714 | I90: 7.946940564 | J90: 5.301592002 | K90: 13.85285313 | M90: 7.756431715 | N90: 6.422873267 | O90: 14.71468747 | P90: 14.98684569 | R90: 6.939420908 | S90: 6.300294656 | T90: 3.589957127 | U90: 13.71854223 | V90: 1070.53 | X90: 7.216747361 | Y90: 7.864205292
A91: 2013-04-12 | B91: 7.461959465 | C91: 14.3901388 | D91: 3.678017334 | E91: 12.79049198 | I91: 7.946940564 | J91: 5.301592002 | K91: 14.18171097 | M91: 7.756431715 | N91: 6.314011008 | O91: 15.04354531 | P91: 15.31570353 | R91: 6.976706211 | S91: 6.512903881 | T91: 3.737546652 | U91: 14.01845759 | V91: 1097.43 | X91: 7.386844548 | Y91: 7.894142397
A92: 2013-04-19 | B92: 7.829369388 | C92: 14.53120748 | D92: 3.760062922 | E92: 12.87322725 | I92: 7.946940564 | J92: 5.301592002 | K92: 14.39943754 | M92: 7.838078364 | N92: 6.292238556 | O92: 15.26127189 | P92: 15.5334301 | R92: 7.026782823 | S92: 6.445336314 | T92: 3.884981956 | U92: 14.30367655 | V92: 1095 | X92: 7.436649004 | Y92: 7.176740502
A93: 2013-04-26 | B93: 7.872642113 | C93: 14.6491427 | D93: 3.93494957 | E93: 12.67156002 | I93: 7.946940564 | J93: 5.301592002 | K93: 14.43118933 | M93: 7.838078364 | N93: 6.314011008 | O93: 15.0458133 | P93: 15.43137077 | R93: 7.01181427 | S93: 6.452702703 | T93: 3.944973937 | U93: 14.23346043 | V93: 1097.43 | X93: 7.636683295 | Y93: 8.231615216
A94: 2013-05-03 | B94: 7.738197296 | C94: 14.25859566 | D94: 3.859998149 | E94: 12.68870582 | I94: 7.946940564 | J94: 5.301592002 | K94: 14.36088179 | M94: 7.838078364 | N94: 6.314011008 | O94: 14.61036016 | P94: 15.01859748 | R94: 7.186810256 | S94: 6.975462304 | T94: 4.162425588 | U94: 14.40845642 | V94: 1067.66 | X94: 8.021783326 | Y94: 8.44661806
A95: 2013-05-10 | B95: 7.647841671 | C95: 14.13589767 | D95: 3.853520866 | E95: 12.67264864 | I95: 7.946940564 | J95: 5.301592002 | K95: 14.44252926 | M95: 7.838078364 | N95: 6.357555912 | O95: 15.00952554 | P95: 15.2590039 | R95: 7.16177195 | S95: 6.945234708 | T95: 4.130039172 | U95: 14.91112762 | V95: 1081.99 | X95: 7.919180703 | Y95: 8.576708388
A96: 2013-05-17 | B96: 7.634778207 | C96: 14.725347 | D96: 3.89747386 | E96: 13.04985617 | I96: 8.001371664 | J96: 5.312478228 | K96: 14.19985485 | M96: 7.838078364 | N96: 6.422873267 | O96: 15.44724667 | P96: 15.69672503 | R96: 6.876825143 | S96: 6.415362731 | T96: 3.777489899 | U96: 14.27346729 | V96: 1091.92 | X96: 7.434199604 | Y96: 8.039201278
A97: 2013-05-24 | B97: 7.720507189 | C97: 14.98299011 | D97: 3.768853521 | E97: 13.64233869 | I97: 8.001371664 | J97: 5.312478228 | K97: 14.56273247 | M97: 7.838078364 | N97: 6.422873267 | O97: 15.19028395 | P97: 15.81692824 | R97: 7.031681622 | S97: 6.620351555 | T97: 3.702538478 | U97: 14.99359074 | V97: 1095 | X97: 7.544150426 | Y97: 8.131734148
A98: 2013-05-31 | B98: 7.763507758 | C98: 14.97255738 | D98: 3.755744733 | E98: 13.55334384 | I98: 8.001371664 | J98: 5.312478228 | K98: 14.63984396 | M98: 7.838078364 | N98: 6.488190622 | O98: 15.43363876 | P98: 15.54703801 | R98: 6.986775964 | S98: 6.542877464 | T98: 3.680022208 | U98: 14.95603328 | V98: 1071.19 | X98: 7.45923791 | Y98: 8.154050899
A99: 2013-06-07 | B99: 7.679139553 | C99: 14.72693459 | D99: 3.849202677 | E99: 14.16351647 | I99: 8.001371664 | J99: 5.312478228 | K99: 14.05923977 | M99: 7.838078364 | N99: 6.444645719 | O99: 14.73963531 | P99: 14.96643382 | R99: 6.976706211 | S99: 6.632798212 | T99: 3.985071404 | U99: 15.27091719 | V99: 1061.93 | X99: 7.384122993 | Y99: 8.201678111
A100: 2013-06-14 | B100: 7.580891418 | C100: 13.99641658 | D100: 4.140834644 | E100: 13.97708995 | I100: 8.001371664 | J100: 5.312478228 | K100: 13.52853125 | M100: 7.838078364 | N100: 6.379328363 | O100: 14.20892679 | P100: 14.4357253 | R100: 6.854236236 | S100: 6.435429791 | T100: 4.082539095 | U100: 15.10109216 | V100: 1054.87 | X100: 7.184360856 | Y100: 8.119214995
A101: 2013-06-21 | B101: 7.452978334 | C101: 13.92520185 | D101: 4.039974091 | E101: 13.75800477 | I101: 8.001371664 | J101: 5.312478228 | K101: 13.76213372 | M101: 7.565922866 | N101: 6.074514039 | O101: 14.20892679 | P101: 14.66252381 | R101: 7.004193916 | S101: 6.732879496 | T101: 3.947441473 | U101: 14.97345123 | V101: 1067.22 | X101: 7.36915444 | Y101: 8.139082346
A102: 2013-06-28 | B102: 7.604024636 | C102: 13.779824 | D102: 3.943894389 | E102: 13.93354507 | I102: 8.001371664 | J102: 5.312478228 | K102: 13.89594484 | M102: 7.565922866 | N102: 6.139831394 | O102: 13.64419849 | P102: 13.87099701 | R102: 6.634334593 | S102: 6.672932331 | T102: 3.855063076 | U102: 15.48347064 | V102: 1023.12 | X102: 6.86430599 | Y102: 7.864205292
A103: 2013-07-05 | B103: 7.435016071 | C103: 13.93404699 | D103: 3.772554826 | E103: 13.97246331 | I103: 8.001371664 | J103: 5.312478228 | K103: 13.72357797 | M103: 7.565922866 | N103: 6.030969135 | O103: 13.14524177 | P103: 13.48543954 | R103: 6.576909783 | S103: 6.782920138 | T103: 3.91999013 | U103: 15.83346261 | V103: 1041.2 | X103: 6.834368885 | Y103: 7.611644989
A104: 2013-07-12 | B104: 7.38004066 | C104: 13.68479543 | D104: 3.724900527 | E104: 13.77569488 | I104: 7.674785065 | J104: 5.312478228 | K104: 13.81429738 | M104: 7.565922866 | N104: 5.922106877 | O104: 13.2019414 | P104: 13.54213916 | R104: 6.791912627 | S104: 6.167699655 | T104: 3.932482033 | U104: 16.01090799 | V104: 1025.1 | X104: 7.114416893 | Y104: 7.96408636
A105: 2013-07-19 | B105: 7.305197898 | C105: 13.05474916 | D105: 3.683260849 | E105: 13.90088641 | I105: 7.212120717 | J105: 4.22385564 | K105: 11.79125465 | M105: 7.266551817 | N105: 5.878561973 | O105: 12.81184795 | P105: 13.15204572 | R105: 6.604397489 | S105: 5.41023166 | T105: 3.532432683 | U105: 14.69095382 | V105: 1003.72 | X105: 7.021884024 | Y105: 7.501694168
A106: 2013-07-26 | B106: 7.21075994 | C106: 11.82414043 | D106: 3.651645538 | E106: 12.71782646 | I106: 6.994396318 | J106: 4.22385564 | K106: 11.19704255 | M106: 7.266551817 | N106: 5.769699714 | O106: 12.1042366 | P106: 12.55783362 | R106: 6.491725112 | S106: 4.960373908 | T106: 3.380062305 | U106: 13.55116659 | V106: 966.01 | X106: 6.9217308 | Y106: 7.376774794
A107: 2013-08-02 | B107: 6.933705642 | C107: 11.07184977 | D107: 3.333333333 | E107: 11.89292314 | I107: 6.912749669 | J107: 4.114993381 | K107: 11.09951919 | M107: 6.994396318 | N107: 5.660837456 | O107: 11.77991472 | P107: 12.23351175 | R107: 6.579359183 | S107: 4.875279415 | T107: 3.397489282 | U107: 13.5762049 | V107: 936.9 | X107: 7.066789681 | Y107: 7.416781652
A108: 2013-08-09 | B108: 6.907578714 | C108: 10.69967341 | D108: 3.367570402 | E108: 11.42617646 | I108: 6.967180768 | J108: 4.114993381 | K108: 11.01106777 | M108: 6.994396318 | N108: 5.116526162 | O108: 11.46466479 | P108: 11.91826182 | R108: 6.411983551 | S108: 4.735318025 | T108: 3.620030227 | U108: 13.55606539 | V108: 918.38 | X108: 7.019162469 | Y108: 7.334318536
A109: 2013-08-16 | B109: 6.891249384 | C109: 10.99700626 | D109: 3.271644922 | E109: 11.74378193 | I109: 6.803887469 | J109: 4.114993381 | K109: 11.23559829 | M109: 6.994396318 | N109: 5.443112938 | O109: 11.68919532 | P109: 12.14279234 | R109: 6.281893223 | S109: 4.552936395 | T109: 3.607538324 | U109: 13.59607225 | V109: 938.89 | X109: 6.961737658 | Y109: 7.324248783
A110: 2013-08-23 | B110: 6.871654188 | C110: 11.26349451 | D110: 3.330865797 | E110: 12.62420497 | I110: 6.831103019 | J110: 4.114993381 | K110: 11.55765218 | M110: 6.994396318 | N110: 4.245628092 | O110: 12.01124921 | P110: 12.35144697 | R110: 6.304482129 | S110: 4.875279415 | T110: 3.824989976 | U110: 13.21859258 | V110: 935.58 | X110: 6.941870307 | Y110: 7.191709055
A111: 2013-08-30 | B111: 6.793817716 | C111: 11.45196408 | D111: 2.333981062 | E111: 13.62437642 | I111: 6.939965219 | J111: 4.114993381 | K111: 11.93186973 | M111: 6.994396318 | N111: 4.463352609 | O111: 12.2720675 | P111: 12.70298467 | R111: 6.411983551 | S111: 4.972820565 | T111: 3.947441473 | U111: 14.29850559 | V111: 965.35 | X111: 7.009364871 | Y111: 7.241785667
A112: 2013-09-06 | B112: 6.727139618 | C112: 11.22493876 | D112: 3.341661269 | E112: 13.2594159 | I112: 6.66780972 | J112: 4.114993381 | K112: 11.5395083 | M112: 6.994396318 | N112: 4.398035254 | O112: 11.87970607 | P112: 12.26526354 | R112: 6.271823469 | S112: 4.895346474 | T112: 3.744949261 | U112: 14.22856163 | V112: 952.34 | X112: 7.01181427 | Y112: 7.059169327
A113: 2013-09-13 | B113: 6.28869711 | C113: 10.64320058 | D113: 3.093365411 | E113: 13.21451024 | I113: 6.477300871 | J113: 3.897268864 | K113: 11.43064501 | M113: 6.72224082 | N113: 4.245628092 | O113: 11.65744353 | P113: 12.11104055 | R113: 6.41688235 | S113: 4.790184922 | T113: 3.669997841 | U113: 14.41852617 | V113: 947.31 | X113: 7.066789681 | Y113: 7.054270528
A114: 2013-09-20 | B114: 6.012459279 | C114: 10.41844326 | D114: 3.009931834 | E114: 12.90506944 | I114: 6.259576472 | J114: 3.446579112 | K114: 11.14714687 | M114: 6.72224082 | N114: 4.027903574 | O114: 10.64819015 | P114: 11.6914633 | R114: 6.569289429 | S114: 4.595356635 | T114: 3.120045649 | U114: 13.39358856 | V114: 941.76 | X114: 7.019162469 | Y114: 7.084207633
A115: 2013-09-27 | B115: 6.342583899 | C115: 10.20502586 | D115: 3.050029302 | E115: 12.33680876 | I115: 6.422869771 | J115: 3.446579112 | K115: 10.95890411 | M115: 6.69502527 | N115: 3.919041315 | O115: 10.95890411 | P115: 11.41250113 | R115: 6.781842874 | S115: 4.567669173 | T115: 3.184972703 | U115: 13.16606656 | V115: 921.47 | X115: 7.271722772 | Y115: 7.244235066
A116: 2013-10-04 | B116: 6.450085321 | C116: 10.18007802 | D116: 2.990037321 | E116: 11.97674703 | I116: 6.55894752 | J116: 3.244095311 | K116: 10.83416493 | M116: 6.69502527 | N116: 4.202083188 | O116: 10.87952463 | P116: 11.35580151 | R116: 6.859407191 | S116: 4.390113798 | T116: 3.137472626 | U116: 12.73633303 | V116: 862.6 | X116: 7.544150426 | Y116: 7.466858264
A117: 2013-10-11 | B117: 6.591878336 | C117: 10.17214007 | D117: 2.91493168 | E117: 11.69669903 | I117: 6.55894752 | J117: 3.244095311 | K117: 10.83416493 | M117: 6.69502527 | N117: 4.202083188 | O117: 10.87952463 | P117: 11.35580151 | R117: 6.859407191 | S117: 4.390113798 | T117: 3.137472626 | U117: 12.73633303 | V117: 862.6 | X117: 7.544150426 | Y117: 7.466858264
A118: 2013-10-18 | B118: 6.599226534 | C118: 10.23450966 | D118: 3.320070325 | E118: 11.84339084 | I118: 6.395654221 | J118: 3.309412666 | K118: 10.92488433 | M118: 6.69502527 | N118: 4.35449035 | O118: 10.94983217 | P118: 11.51682845 | R118: 6.859407191 | S118: 4.430247917 | T118: 3.317448567 | U118: 12.93119637 | V118: 906.7 | X118: 7.489175015 | Y118: 7.449168157
A119: 2013-10-25 | B119: 6.622087596 | C119: 10.35289848 | D119: 3.272570248 | E119: 12.02001976 | I119: 6.422869771 | J119: 3.309412666 | K119: 11.09271523 | M119: 6.450085321 | N119: 4.006131122 | O119: 11.22652635 | P119: 11.74816293 | R119: 6.965003524 | S119: 4.402560455 | T119: 3.442521822 | U119: 13.09748338 | V119: 906.92 | X119: 7.642670716 | Y119: 7.519928586
A120: 2013-11-01 | B120: 6.349932097 | C120: 10.40143337 | D120: 3.161068443 | E120: 11.63410326 | I120: 6.232360922 | J120: 3.309412666 | K120: 10.96797605 | M120: 6.450085321 | N120: 4.027903574 | O120: 11.09951919 | P120: 11.62115577 | R120: 6.675157918 | S120: 4.282412111 | T120: 3.302489127 | U120: 12.80273897 | V120: 911.33 | X120: 7.405078966 | Y120: 7.302476343
A121: 2013-11-08 | B121: 6.088390663 | C121: 10.57243944 | D121: 2.922488511 | E121: 11.81508667 | I121: 5.960205423 | J121: 3.309412666 | K121: 11.13127098 | M121: 6.450085321 | N121: 4.006131122 | O121: 11.4170371 | P121: 11.82527443 | R121: 6.45253472 | S121: 4.32254623 | T121: 3.364948644 | U121: 13.1927378 | V121: 898.54 | X121: 7.032498088 | Y121: 7.012630737
A122: 2013-11-15 | B122: 6.186366642 | C122: 10.45881339 | D122: 3.29832516 | E122: 11.86353035 | I122: 5.932989873 | J122: 3.309412666 | K122: 11.13127098 | M122: 6.450085321 | N122: 4.006131122 | O122: 11.20157852 | P122: 11.65517554 | R122: 6.445186522 | S122: 4.219924812 | T122: 3.430029919 | U122: 12.80518837 | V122: 892.33 | X122: 6.982421476 | Y122: 6.967452924
A123: 2013-11-22 | B123: 6.192626219 | C123: 10.47128731 | D123: 3.075013109 | E123: 12.32510607 | I123: 5.824127674 | J123: 3.309412666 | K123: 11.1743627 | M123: 6.450085321 | N123: 4.006131122 | O123: 11.28776195 | P123: 11.58260002 | R123: 6.494990978 | S123: 4.222464946 | T123: 3.690046575 | U123: 13.1951872 | V123: 907.58 | X123: 7.017529536 | Y123: 6.99249123
A124: 2013-11-29 | B124: 6.207594771 | C124: 10.4574526 | D124: 3.243268252 | E124: 12.15664182 | I124: 5.796912124 | J124: 3.309412666 | K124: 11.12673501 | M124: 6.450085321 | N124: 3.940813767 | O124: 11.24013426 | P124: 11.53497233 | R124: 6.549966389 | S124: 4.152611258 | T124: 3.652570865 | U124: 13.36501223 | V124: 886.85 | X124: 7.132651312 | Y124: 6.867571856
A125: 2013-12-06 | B125: 5.796639968 | C125: 10.09865735 | D125: 3.124980722 | E125: 11.91006894 | I125: 5.551972175 | J125: 3.309412666 | K125: 10.90900844 | M125: 6.450085321 | N125: 4.027903574 | O125: 11.24920621 | P125: 11.47600472 | R125: 6.380141358 | S125: 4.227545214 | T125: 3.642546498 | U125: 13.28009972 | V125: 890.38 | X125: 7.050188196 | Y125: 6.662638765
A126: 2013-12-13 | B126: 5.737582225 | C126: 9.426653361 | D126: 3.21751334 | E126: 11.77752921 | I126: 5.225385576 | J126: 3.374730022 | K126: 10.16284133 | M126: 6.450085321 | N126: 4.027903574 | O126: 10.5030391 | P126: 10.43499955 | R126: 6.225012723 | S126: 4.282412111 | T126: 3.864933222 | U126: 13.23764346 | V126: 877.59 | X126: 6.69257587 | Y126: 6.522478683
A127: 2013-12-20 | B127: 4.854981942 | C127: 9.243400163 | D127: 2.990037321 | E127: 11.73017415 | I127: 5.143738927 | J127: 3.178777956 | K127: 10.0154223 | M127: 6.450085321 | N127: 3.875496412 | O127: 10.35562007 | P127: 10.46901932 | R127: 6.107441548 | S127: 4.305019305 | T127: 3.482465069 | U127: 13.27002996 | V127: 867.23 | X127: 6.527649638 | Y127: 6.462604474
A128: 2013-12-27 | B128: 4.85 | C128: 9.24 | D128: 2.99 | E128: 11.73
A129: 2014-01-03 | B129: 4.85 | C129: 9.24 | D129: 2.99 | E129: 11.73
A130: 2014-01-10 | B130: 5.016642309 | C130: 8.729928332 | D130: 3.184972703 | E130: 12.16017984 | I130: 4.871583428 | J130: 3.178777956 | K130: 9.543681393 | M130: 6.450085321 | N130: 3.374730022 | O130: 10.20139708 | P130: 10.42819559 | R130: 5.689955013 | S130: 4.327626499 | T130: 3.864933222 | U130: 13.03760917 | V130: 836.8 | X130: 6.260120783 | Y130: 6.205145372
A131: 2014-01-17 | B131: 4.693321576 | C131: 8.686609816 | D131: 3.234940316 | E131: 11.38508098 | I131: 4.953230078 | J131: 2.765101373 | K131: 9.777283861 | M131: 6.422869771 | N131: 3.309412666 | O131: 10.23088089 | P131: 10.4576794 | R131: 5.634979602 | S131: 4.239991872 | T131: 3.99494155 | U131: 13.16497794 | V131: 832.17 | X131: 6.232633077 | Y131: 6.177657666
A132: 2014-01-24 | B132: 4.350133492 | C132: 8.629910188 | D132: 3.130070016 | E132: 11.38018218 | I132: 4.953230078 | J132: 2.765101373 | K132: 9.643472739 | M132: 6.422869771 | N132: 3.309412666 | O132: 10.09706976 | P132: 10.32386828 | R132: 5.652669709 | S132: 4.295112782 | T132: 3.962555134 | U132: 12.84764463 | V132: 827.76 | X132: 6.272639936 | Y132: 6.130030454
A133: 2014-01-31 | B133: 4.880020248 | C133: 8.58999365 | D133: 3.029980568 | E133: 11.44005639 | I133: 4.789936778 | J133: 2.754215147 | K133: 9.66161662 | M133: 6.422869771 | N133: 3.309412666 | O133: 10.11521364 | P133: 10.34201216 | R133: 5.535098534 | S133: 4.334992888 | T133: 4.120014805 | U133: 12.75021296 | V133: 817.39 | X133: 6.107441548 | Y133: 5.97245242
A134: 2014-02-07 | B134: 5.510060228 | C134: 8.699990928 | D134: 3.03 | E134: 10.59011477 | I134: 5.062092277 | J134: 2.754215147 | K134: 9.718316248 | M134: 6.286792021 | N134: 3.48359228 | O134: 10.39871178 | P134: 10.6255103 | R134: 5.807526188 | S134: 4.429993904 | T134: 4.564942476 | U134: 13.25751081 | V134: 852.45 | X134: 6.48764278 | Y134: 6.382590757
